Workbook

Sheet Read Me
D1: California Air Resources Board
D2: Calculator Tool for the
D3: California State Transportation Agency
D4: Transit and Intercity Rail Capital Program
D5: Greenhouse Gas Reduction Fund
D6: Fiscal Year 2018-19
A10: The California Air Resources Board (CARB) is responsible for providing the quantification methodology to estimate the greenhouse gas (GHG) emission reductions and other non-GHG outcomes, referred to as co-benefits (e.g., air pollutant emission estimates), from projects receiving monies from the Greenhouse Gas Reduction Fund (GGRF).
A13: CARB released the California State Transportation Agency (CalSTA) Transit and Intercity Rail Capital Program (TIRCP) Draft Quantification Methodology and Draft TIRCP Calculator Tool for Fiscal Year (FY) 2018-19 for public comment in September 2017. The Draft Quantification Methodology and Draft TIRCP Calculator Tool were updated as necessary to reflect stakeholder comments and final TIRCP Guidelines for FY 2018-19. This Final TIRCP Calculator Tool accompanies the Final Quantification Methodology for FY 2018-19, available at:
A14: www.arb.ca.gov/cci-quantification
A16: Instructions: Applicants must use this calculator to estimate the GHG emission reductions and air pollutant emissions associated with the quantification methodology, as applicable. This Excel file must be submitted with other documentation requirements. Please use the following file naming convention: “[Project Name]_calc” not to exceed 20 characters. Project names may be abbreviated. Additional documentation may be necessary to substantiate the inputs to this file. Fields highlighted in yellow indicate input needed by the project applicant.
A18: Step 1 Define the Project: Applicants must define the project by identifying both eligible project types in Table 2 of the Quantification Methodology and the number of quantifiable components. Step 2 Determine the TIRCP Calculator Tool Inputs Needed: The applicant will use Table 3 in the Quantification Methodology to determine the required data inputs to estimate the GHG emission reductions and air pollutant emission co-benefits for each quantifiable component by project type, as identified in Step 1. Step 3 Estimate the GHG Emission Reductions and Air Pollutant Emissions for the Proposed Project for Each Component Using the TIRCP Calculator Tool: The applicant will enter the required data inputs identified in Step 2 into this TIRCP Calculator Tool to calculate the GHG emission reductions and air pollutant emission estimates of the proposed project.
A23: Read Me Tab (this page): Enter the Project Name and the contact information for person who can answer project-specific questions on the quantification calculations.
A24: Project Name: | B24: North State Intercity Bus Project
A25: Contact Name: | B25: Jennifer Pollom
A26: Contact Phone Number: | B26: 530-262-6195
A27: Contact Email: | B27: jpollom@srta.ca.gov
A28: Date Completed:
A30: Quantifiable Component Tabs: Cells in yellow with headers in red indicate a direct user input is required. Cells in red indicate a direct user input is optional (note: additional supporting documentation is required if used). Green fields indicate a selection from a drop-down box is required. Gray fields indicate output or calculation fields that are automatically populated based on user entries and the quantification methods. For each component, applicants must work from top to bottom and enter all relevant data. Some cells may not be applicable to the project type; these cells will turn black and lock. Applicants should use one tab per quantifiable component and may use as many tabs as necessary to characterize all relevant components of the proposed project, including additional GGRF funding requested from other California Climate Investments (CCI) programs. A component is a project type for which GHG emission reductions and air pollutant emissions may be estimated, evaluated and reported separately from other components within the TIRCP project. Inputs must be substantiated in the documentation provided to CalSTA and CARB; see Section C. Documentation of the Quantification Methodology.
A32: Submit documentation: Save file for submittal. See Section C. Documentation of the Quantification Methodology for additional documentation requirements.
A34: For more information on CARB’s efforts to support implementation of GGRF investments, see: | D34: http://www.arb.ca.gov/caclimateinvestments
A35: Questions pertaining to TIRCP should be sent to: | C35: TIRCPcomments@dot.ca.gov
A36: Questions on this calculator should be sent to : | C36: GGRFProgram@arb.ca.gov

Sheet Quantifiable Component 1
C1: ='Read Me'!D1 -> California Air Resources Board
C2: ='Read Me'!D2 -> Calculator Tool for the
C3: ='Read Me'!D3 -> California State Transportation Agency
C4: ='Read Me'!D4 -> Transit and Intercity Rail Capital Program
C5: ='Read Me'!D5 -> Greenhouse Gas Reduction Fund
C6: ='Read Me'!D6 -> Fiscal Year 2018-19
C9: Project Name: | D9: =IF('Read Me'!B24="","",'Read Me'!B24) -> North State Intercity Bus Project
A11: Input | B11: Description | C11: Quantified Component 1
A12: Identifying Descriptor (ID) | B12: Brief description of the quantifiable component identifying it from other separable components. | C12: I-5 Backbone Service (No SAC to SAC Airport, or SAC to Chico)
A13: Funding Inputs
A14: TIRCP Funds Requested | B14: Total TIRCP funds requested for this separable component. | C14: 6409202
A15: Multi-Year | B15: Will this component request several California Transportation Commission allocations over multiple calendar years? | C15: No
A16: Additional CCI Program 1
A17: CCI Program | B17: Other CCI Program from which project has or will be requesting GGRF funds. | C17: HVIP Vouchers
A18: Additional GGRF Funds | B18: Total GGRF funds requested or to be requested from Additional CCI Program 1. | C18: 625000
A19: Additional CCI Program 2
A20: CCI Program | B20: Other CCI Program from which project has or will be requesting GGRF funds.
A21: Additional GGRF Funds | B21: Total GGRF funds requested or to be requested from Additional CCI Program 2.
A22: Total GGRF Funds Requested | B22: Total GGRF funds requested from all CCI Programs | C22: =IF(C14="","",C21+C18+C14) -> 7034202
A23: Project Inputs
A24: Project Type | B24: For the purposes of this quantification, eligible TIRCP projects fall into four project types. Select the project type that best describes this component. | C24: New/Expanded Service
A25: Service Type | B25: The transit service (e.g., Intercity/Express Bus (Long Distance), Light Rail, Vanpool, etc.) directly associated with the proposed project. For projects that serve multiple services, select Multi-modal. | C25: Intercity/Express Bus (Long Distance)
A26: Vehicle Type | B26: The vehicle type (e.g., Transit Bus, Streetcar, Ferry, etc.) that will operate the new service or will be procured. | C26: Over-Road Coach
A27: Region | B27: The region that best encompasses the geographic location for the proposed project type. | C27: Air Basin
A28: Sub region | B28: The County or Air Basin where the majority of the service occurs. | C28: Sacramento Valley
A29: Year 1 (Yr1) | B29: The first year of service or the first year the facility or rolling stock will be in use. | C29: 2019
A30: Year F (YrF) | B30: The final year of service or the final year the facility or rolling stock's useful life. | C30: 2031
A31: Useful Life | B31: The number of years the service is funded or the useful life of the facility or rolling stock. | C31: =IF(C24="","", IF(C29="","", IF(C30="","", IF(C30-C29<=0,"Useful Life cannot be negative",C30-C29)))) -> 12
A32: Displaced Autos Inputs | C32: Input | D32: Reference
A33: Yr1 Ridership | B33: The increase in unlinked passenger trips directly associated with the proposed project in the first year (Yr1). | C33: 31218 | D33: Nelson/Nygaard, 2018. Traffic Study.
A34: YrF Ridership | B34: The increase in unlinked passenger trips directly associated with the proposed project in the final year. If the ridership is not expected to change, Yr1 and YrF should be the same value. | C34: 31402 | D34: Nelson/Nygaard, 2018. Traffic Study.
A35: Adjustment Factor (A) | B35: Discount factor applied to annual ridership to account for transit-dependent riders. Use: document project-specific data or system average developed from a recent, statistically valid survey or default. | C35: 1 | D35: Nelson/Nygaard, 2018. Traffic Study. Correspondence with SRTA, 2018.
A36: Length of Average Trip (L) | B36: Annual passenger miles over unlinked trips directly associated with the proposed project. | C36: 153 | D36: Nelson/Nygaard, 2018. Traffic Study.
A37: New/Expanded Service Vehicle Inputs | C37: Input | D37: Reference
A38: Hybrid Vehicle | B38: Is the vehicle for the new/expanded service, or vehicle(s) to be procured, a hybrid? | C38: No
A39: Fuel Type | B39: The fuel type (e.g., electric, diesel, etc.) of the vehicle for the new/expanded service, or of the new vehicle(s) to be procured. | C39: Electric
A40: Model Year | B40: The engine model year of the vehicle that will operate the new/expanded service, or of the new vehicle(s) to be procured. | C40: 2019
A41: Project-Specific Emission Factor | B41: If used, applicant must be able to demonstrate an approved carbon intensity value under the Low Carbon Fuel Standard and submit additional documentation.
A42: Annual VMT | B42: The estimated annual VMT required to operate the new/expanded service or of the new vehicle(s) to be procured (e.g., 72,000). For rail and ferry vehicles, applicants may alternatively use Annual Fuel. | C42: 484720 | D42: Nelson/Nygaard, 2018. Traffic Study.
A43: Annual Fuel | B43: The estimated annual fuel (i.e., gallon of diesel, KWh of electricity) required to operate the new/expanded service, or of the new rail or ferry vehicle(s) to be procured (e.g., 26,000).
A44: Displaced Vehicle/Fuel Reductions Inputs | C44: Input | D44: Reference
A45: Fuel Type | B45: The fuel type (e.g., electric, diesel, etc.) of the displaced vehicle(s) or of fuel reductions as a result of the project.
A46: Model Year | B46: The average engine model year(s) of the displaced vehicle(s) or of the vehicle(s) to realize fuel reductions as a result of the project.
A47: Annual VMT | B47: The estimated annual VMT of the displaced vehicle(s). For rail and ferry vehicles, applicants may alternatively use Annual Fuel.
A48: Annual Fuel | B48: The estimated annual fuel reductions expected to be realized as a result of the project or the estimated annual fuel the displaced vehicle(s) would have required to operate the equivalent as the new vehicle to be procured.

Sheet Quantifiable Component 2
C1: ='Read Me'!D1 -> California Air Resources Board
C2: ='Read Me'!D2 -> Calculator Tool for the
C3: ='Read Me'!D3 -> California State Transportation Agency
C4: ='Read Me'!D4 -> Transit and Intercity Rail Capital Program
C5: ='Read Me'!D5 -> Greenhouse Gas Reduction Fund
C6: ='Read Me'!D6 -> Fiscal Year 2018-19
C9: Project Name: | D9: =IF('Read Me'!B24="","",'Read Me'!B24) -> North State Intercity Bus Project
A11: ='Quantifiable Component 1'!A11 -> Input | B11: ='Quantifiable Component 1'!B11 -> Description | C11: Quantified Component 2
A12: ='Quantifiable Component 1'!A12 -> Identifying Descriptor (ID) | B12: ='Quantifiable Component 1'!B12 -> Brief description of the quantifiable component identifying it from other separable components. | C12: North Valley Feeder
A13: ='Quantifiable Component 1'!A13:D13 -> Funding Inputs
A14: ='Quantifiable Component 1'!A14 -> TIRCP Funds Requested | B14: ='Quantifiable Component 1'!B14 -> Total TIRCP funds requested for this separable component. | C14: 2231588
A15: ='Quantifiable Component 1'!A15 -> Multi-Year | B15: ='Quantifiable Component 1'!B15 -> Will this component request several California Transportation Commission allocations over multiple calendar years? | C15: No
A16: ='Quantifiable Component 1'!A16:D16 -> Additional CCI Program 1
A17: ='Quantifiable Component 1'!A17 -> CCI Program | B17: ='Quantifiable Component 1'!B17 -> Other CCI Program from which project has or will be requesting GGRF funds. | C17: HVIP
A18: ='Quantifiable Component 1'!A18 -> Additional GGRF Funds | B18: ='Quantifiable Component 1'!B18 -> Total GGRF funds requested or to be requested from Additional CCI Program 1. | C18: 250000
A19: ='Quantifiable Component 1'!A19:D19 -> Additional CCI Program 2
A20: ='Quantifiable Component 1'!A20 -> CCI Program | B20: ='Quantifiable Component 1'!B20 -> Other CCI Program from which project has or will be requesting GGRF funds. | C20: LCTOP
A21: ='Quantifiable Component 1'!A21 -> Additional GGRF Funds | B21: ='Quantifiable Component 1'!B21 -> Total GGRF funds requested or to be requested from Additional CCI Program 2. | C21: 10000
A22: ='Quantifiable Component 1'!A22 -> Total GGRF Funds Requested | B22: ='Quantifiable Component 1'!B22 -> Total GGRF funds requested from all CCI Programs | C22: =IF(C14="","",C21+C18+C14) -> 2491588
A23: ='Quantifiable Component 1'!A23:D23 -> Project Inputs
A24: ='Quantifiable Component 1'!A24 -> Project Type | B24: ='Quantifiable Component 1'!B24 -> For the purposes of this quantification, eligible TIRCP projects fall into four project types. Select the project type that best describes this component. | C24: New/Expanded Service
A25: ='Quantifiable Component 1'!A25 -> Service Type | B25: ='Quantifiable Component 1'!B25 -> The transit service (e.g., Intercity/Express Bus (Long Distance), Light Rail, Vanpool, etc.) directly associated with the proposed project. For projects that serve multiple services, select Multi-modal. | C25: Intercity/Express Bus (Long Distance)
A26: ='Quantifiable Component 1'!A26 -> Vehicle Type | B26: ='Quantifiable Component 1'!B26 -> The vehicle type (e.g., Transit Bus, Streetcar, Ferry, etc.) that will operate the new service or will be procured. | C26: Transit Bus
A27: ='Quantifiable Component 1'!A27 -> Region | B27: ='Quantifiable Component 1'!B27 -> The region that best encompasses the geographic location for the proposed project type. | C27: Air Basin
A28: ='Quantifiable Component 1'!A28 -> Sub region | B28: ='Quantifiable Component 1'!B28 -> The County or Air Basin where the majority of the service occurs. | C28: Sacramento Valley
A29: ='Quantifiable Component 1'!A29 -> Year 1 (Yr1) | B29: ='Quantifiable Component 1'!B29 -> The first year of service or the first year the facility or rolling stock will be in use. | C29: 2019
A30: ='Quantifiable Component 1'!A30 -> Year F (YrF) | B30: ='Quantifiable Component 1'!B30 -> The final year of service or the final year the facility or rolling stock's useful life. | C30: 2031
A31: ='Quantifiable Component 1'!A31 -> Useful Life | B31: ='Quantifiable Component 1'!B31 -> The number of years the service is funded or the useful life of the facility or rolling stock. | C31: =IF(C24="","", IF(C29="","", IF(C30="","", IF(C30-C29<=0,"Useful Life cannot be negative",C30-C29)))) -> 12
A32: ='Quantifiable Component 1'!A32:B32 -> Displaced Autos Inputs | C32: Input | D32: Reference
A33: ='Quantifiable Component 1'!A33 -> Yr1 Ridership | B33: ='Quantifiable Component 1'!B33 -> The increase in unlinked passenger trips directly associated with the proposed project in the first year (Yr1). | C33: 27288 | D33: Nelson/Nygaard, 2018. Traffic Study.
A34: ='Quantifiable Component 1'!A34 -> YrF Ridership | B34: ='Quantifiable Component 1'!B34 -> The increase in unlinked passenger trips directly associated with the proposed project in the final year. If the ridership is not expected to change, Yr1 and YrF should be the same value. | C34: 27450 | D34: Nelson/Nygaard, 2018. Traffic Study.
A35: ='Quantifiable Component 1'!A35 -> Adjustment Factor (A) | B35: ='Quantifiable Component 1'!B35 -> Discount factor applied to annual ridership to account for transit-dependent riders. Use: document project-specific data or system average developed from a recent, statistically valid survey or default. | C35: 1 | D35: Nelson/Nygaard, 2018. Traffic Study. Correspondence with SRTA, 2018.
A36: ='Quantifiable Component 1'!A36 -> Length of Average Trip (L) | B36: ='Quantifiable Component 1'!B36 -> Annual passenger miles over unlinked trips directly associated with the proposed project. | C36: 60 | D36: Nelson/Nygaard, 2018. Traffic Study.
A37: ='Quantifiable Component 1'!A37:B37 -> New/Expanded Service Vehicle Inputs | C37: Input | D37: Reference
A38: ='Quantifiable Component 1'!A38 -> Hybrid Vehicle | B38: ='Quantifiable Component 1'!B38 -> Is the vehicle for the new/expanded service, or vehicle(s) to be procured, a hybrid? | C38: Yes
A39: ='Quantifiable Component 1'!A39 -> Fuel Type | B39: ='Quantifiable Component 1'!B39 -> The fuel type (e.g., electric, diesel, etc.) of the vehicle for the new/expanded service, or of the new vehicle(s) to be procured. | C39: Electric
A40: ='Quantifiable Component 1'!A40 -> Model Year | B40: ='Quantifiable Component 1'!B40 -> The engine model year of the vehicle that will operate the new/expanded service, or of the new vehicle(s) to be procured. | C40: 2019
A41: ='Quantifiable Component 1'!A41 -> Project-Specific Emission Factor | B41: ='Quantifiable Component 1'!B41 -> If used, applicant must be able to demonstrate an approved carbon intensity value under the Low Carbon Fuel Standard and submit additional documentation.
A42: ='Quantifiable Component 1'!A42 -> Annual VMT | B42: ='Quantifiable Component 1'!B42 -> The estimated annual VMT required to operate the new/expanded service or of the new vehicle(s) to be procured (e.g., 72,000). For rail and ferry vehicles, applicants may alternatively use Annual Fuel. | C42: 151840 | D42: Nelson/Nygaard
A43: ='Quantifiable Component 1'!A43 -> Annual Fuel | B43: ='Quantifiable Component 1'!B43 -> The estimated annual fuel (i.e., gallon of diesel, KWh of electricity) required to operate the new/expanded service, or of the new rail or ferry vehicle(s) to be procured (e.g., 26,000).
A44: ='Quantifiable Component 1'!A44:B44 -> Displaced Vehicle/Fuel Reductions Inputs | C44: Input | D44: Reference
A45: ='Quantifiable Component 1'!A45 -> Fuel Type | B45: ='Quantifiable Component 1'!B45 -> The fuel type (e.g., electric, diesel, etc.) of the displaced vehicle(s) or of fuel reductions as a result of the project.
A46: ='Quantifiable Component 1'!A46 -> Model Year | B46: ='Quantifiable Component 1'!B46 -> The average engine model year(s) of the displaced vehicle(s) or of the vehicle(s) to realize fuel reductions as a result of the project.
A47: ='Quantifiable Component 1'!A47 -> Annual VMT | B47: ='Quantifiable Component 1'!B47 -> The estimated annual VMT of the displaced vehicle(s). For rail and ferry vehicles, applicants may alternatively use Annual Fuel.
A48: ='Quantifiable Component 1'!A48 -> Annual Fuel | B48: ='Quantifiable Component 1'!B48 -> The estimated annual fuel reductions expected to be realized as a result of the project or the estimated annual fuel the displaced vehicle(s) would have required to operate the equivalent as the new vehicle to be procured.

Sheet Quantifiable Component 3
C1: ='Read Me'!D1 -> California Air Resources Board
C2: ='Read Me'!D2 -> Calculator Tool for the
C3: ='Read Me'!D3 -> California State Transportation Agency
C4: ='Read Me'!D4 -> Transit and Intercity Rail Capital Program
C5: ='Read Me'!D5 -> Greenhouse Gas Reduction Fund
C6: ='Read Me'!D6 -> Fiscal Year 2018-19
C9: Project Name: | D9: =IF('Read Me'!B24="","",'Read Me'!B24) -> North State Intercity Bus Project
A11: ='Quantifiable Component 1'!A11 -> Input | B11: ='Quantifiable Component 1'!B11 -> Description | C11: Quantified Component 3
A12: ='Quantifiable Component 1'!A12 -> Identifying Descriptor (ID) | B12: ='Quantifiable Component 1'!B12 -> Brief description of the quantifiable component identifying it from other separable components.
A13: ='Quantifiable Component 1'!A13:D13 -> Funding Inputs
A14: ='Quantifiable Component 1'!A14 -> TIRCP Funds Requested | B14: ='Quantifiable Component 1'!B14 -> Total TIRCP funds requested for this separable component.
A15: ='Quantifiable Component 1'!A15 -> Multi-Year | B15: ='Quantifiable Component 1'!B15 -> Will this component request several California Transportation Commission allocations over multiple calendar years?
A16: ='Quantifiable Component 1'!A16:D16 -> Additional CCI Program 1
A17: ='Quantifiable Component 1'!A17 -> CCI Program | B17: ='Quantifiable Component 1'!B17 -> Other CCI Program from which project has or will be requesting GGRF funds.
A18: ='Quantifiable Component 1'!A18 -> Additional GGRF Funds | B18: ='Quantifiable Component 1'!B18 -> Total GGRF funds requested or to be requested from Additional CCI Program 1.
A19: ='Quantifiable Component 1'!A19:D19 -> Additional CCI Program 2
A20: ='Quantifiable Component 1'!A20 -> CCI Program | B20: ='Quantifiable Component 1'!B20 -> Other CCI Program from which project has or will be requesting GGRF funds.
A21: ='Quantifiable Component 1'!A21 -> Additional GGRF Funds | B21: ='Quantifiable Component 1'!B21 -> Total GGRF funds requested or to be requested from Additional CCI Program 2.
A22: ='Quantifiable Component 1'!A22 -> Total GGRF Funds Requested | B22: ='Quantifiable Component 1'!B22 -> Total GGRF funds requested from all CCI Programs
A23: ='Quantifiable Component 1'!A23:D23 -> Project Inputs
A24: ='Quantifiable Component 1'!A24 -> Project Type | B24: ='Quantifiable Component 1'!B24 -> For the purposes of this quantification, eligible TIRCP projects fall into four project types. Select the project type that best describes this component.
A25: ='Quantifiable Component 1'!A25 -> Service Type | B25: ='Quantifiable Component 1'!B25 -> The transit service (e.g., Intercity/Express Bus (Long Distance), Light Rail, Vanpool, etc.) directly associated with the proposed project. For projects that serve multiple services, select Multi-modal.
A26: ='Quantifiable Component 1'!A26 -> Vehicle Type | B26: ='Quantifiable Component 1'!B26 -> The vehicle type (e.g., Transit Bus, Streetcar, Ferry, etc.) that will operate the new service or will be procured.
A27: ='Quantifiable Component 1'!A27 -> Region | B27: ='Quantifiable Component 1'!B27 -> The region that best encompasses the geographic location for the proposed project type.
A28: ='Quantifiable Component 1'!A28 -> Sub region | B28: ='Quantifiable Component 1'!B28 -> The County or Air Basin where the majority of the service occurs.
A29: ='Quantifiable Component 1'!A29 -> Year 1 (Yr1) | B29: ='Quantifiable Component 1'!B29 -> The first year of service or the first year the facility or rolling stock will be in use.
A30: ='Quantifiable Component 1'!A30 -> Year F (YrF) | B30: ='Quantifiable Component 1'!B30 -> The final year of service or the final year the facility or rolling stock's useful life.
A31: ='Quantifiable Component 1'!A31 -> Useful Life | B31: ='Quantifiable Component 1'!B31 -> The number of years the service is funded or the useful life of the facility or rolling stock. | C31: =IF(C24="","", IF(C29="","", IF(C30="","", IF(C30-C29<=0,"Useful Life cannot be negative",C30-C29)))) -> 
A32: ='Quantifiable Component 1'!A32:B32 -> Displaced Autos Inputs | C32: Input | D32: Reference
A33: ='Quantifiable Component 1'!A33 -> Yr1 Ridership | B33: ='Quantifiable Component 1'!B33 -> The increase in unlinked passenger trips directly associated with the proposed project in the first year (Yr1).
A34: ='Quantifiable Component 1'!A34 -> YrF Ridership | B34: ='Quantifiable Component 1'!B34 -> The increase in unlinked passenger trips directly associated with the proposed project in the final year. If the ridership is not expected to change, Yr1 and YrF should be the same value.
A35: ='Quantifiable Component 1'!A35 -> Adjustment Factor (A) | B35: ='Quantifiable Component 1'!B35 -> Discount factor applied to annual ridership to account for transit-dependent riders. Use: document project-specific data or system average developed from a recent, statistically valid survey or default.
A36: ='Quantifiable Component 1'!A36 -> Length of Average Trip (L) | B36: ='Quantifiable Component 1'!B36 -> Annual passenger miles over unlinked trips directly associated with the proposed project.
A37: ='Quantifiable Component 1'!A37:B37 -> New/Expanded Service Vehicle Inputs | C37: Input | D37: Reference
A38: ='Quantifiable Component 1'!A38 -> Hybrid Vehicle | B38: ='Quantifiable Component 1'!B38 -> Is the vehicle for the new/expanded service, or vehicle(s) to be procured, a hybrid?
A39: ='Quantifiable Component 1'!A39 -> Fuel Type | B39: ='Quantifiable Component 1'!B39 -> The fuel type (e.g., electric, diesel, etc.) of the vehicle for the new/expanded service, or of the new vehicle(s) to be procured.
A40: ='Quantifiable Component 1'!A40 -> Model Year | B40: ='Quantifiable Component 1'!B40 -> The engine model year of the vehicle that will operate the new/expanded service, or of the new vehicle(s) to be procured.
A41: ='Quantifiable Component 1'!A41 -> Project-Specific Emission Factor | B41: ='Quantifiable Component 1'!B41 -> If used, applicant must be able to demonstrate an approved carbon intensity value under the Low Carbon Fuel Standard and submit additional documentation.
A42: ='Quantifiable Component 1'!A42 -> Annual VMT | B42: ='Quantifiable Component 1'!B42 -> The estimated annual VMT required to operate the new/expanded service or of the new vehicle(s) to be procured (e.g., 72,000). For rail and ferry vehicles, applicants may alternatively use Annual Fuel.
A43: ='Quantifiable Component 1'!A43 -> Annual Fuel | B43: ='Quantifiable Component 1'!B43 -> The estimated annual fuel (i.e., gallon of diesel, KWh of electricity) required to operate the new/expanded service, or of the new rail or ferry vehicle(s) to be procured (e.g., 26,000).
A44: ='Quantifiable Component 1'!A44:B44 -> Displaced Vehicle/Fuel Reductions Inputs | C44: Input | D44: Reference
A45: ='Quantifiable Component 1'!A45 -> Fuel Type | B45: ='Quantifiable Component 1'!B45 -> The fuel type (e.g., electric, diesel, etc.) of the displaced vehicle(s) or of fuel reductions as a result of the project.
A46: ='Quantifiable Component 1'!A46 -> Model Year | B46: ='Quantifiable Component 1'!B46 -> The average engine model year(s) of the displaced vehicle(s) or of the vehicle(s) to realize fuel reductions as a result of the project.
A47: ='Quantifiable Component 1'!A47 -> Annual VMT | B47: ='Quantifiable Component 1'!B47 -> The estimated annual VMT of the displaced vehicle(s). For rail and ferry vehicles, applicants may alternatively use Annual Fuel.
A48: ='Quantifiable Component 1'!A48 -> Annual Fuel | B48: ='Quantifiable Component 1'!B48 -> The estimated annual fuel reductions expected to be realized as a result of the project or the estimated annual fuel the displaced vehicle(s) would have required to operate the equivalent as the new vehicle to be procured.

Sheet Quantifiable Component 4
C1: ='Read Me'!D1 -> California Air Resources Board
C2: ='Read Me'!D2 -> Calculator Tool for the
C3: ='Read Me'!D3 -> California State Transportation Agency
C4: ='Read Me'!D4 -> Transit and Intercity Rail Capital Program
C5: ='Read Me'!D5 -> Greenhouse Gas Reduction Fund
C6: ='Read Me'!D6 -> Fiscal Year 2018-19
C9: Project Name: | D9: =IF('Read Me'!B24="","",'Read Me'!B24) -> North State Intercity Bus Project
A11: ='Quantifiable Component 1'!A11 -> Input | B11: ='Quantifiable Component 1'!B11 -> Description | C11: Quantified Component 4
A12: ='Quantifiable Component 1'!A12 -> Identifying Descriptor (ID) | B12: ='Quantifiable Component 1'!B12 -> Brief description of the quantifiable component identifying it from other separable components. | C12: Siskiyou Feeder
A13: ='Quantifiable Component 1'!A13:D13 -> Funding Inputs
A14: ='Quantifiable Component 1'!A14 -> TIRCP Funds Requested | B14: ='Quantifiable Component 1'!B14 -> Total TIRCP funds requested for this separable component. | C14: 2706330
A15: ='Quantifiable Component 1'!A15 -> Multi-Year | B15: ='Quantifiable Component 1'!B15 -> Will this component request several California Transportation Commission allocations over multiple calendar years? | C15: No
A16: ='Quantifiable Component 1'!A16:D16 -> Additional CCI Program 1
A17: ='Quantifiable Component 1'!A17 -> CCI Program | B17: ='Quantifiable Component 1'!B17 -> Other CCI Program from which project has or will be requesting GGRF funds. | C17: HVIP
A18: ='Quantifiable Component 1'!A18 -> Additional GGRF Funds | B18: ='Quantifiable Component 1'!B18 -> Total GGRF funds requested or to be requested from Additional CCI Program 1. | C18: 250000
A19: ='Quantifiable Component 1'!A19:D19 -> Additional CCI Program 2
A20: ='Quantifiable Component 1'!A20 -> CCI Program | B20: ='Quantifiable Component 1'!B20 -> Other CCI Program from which project has or will be requesting GGRF funds.
A21: ='Quantifiable Component 1'!A21 -> Additional GGRF Funds | B21: ='Quantifiable Component 1'!B21 -> Total GGRF funds requested or to be requested from Additional CCI Program 2.
A22: ='Quantifiable Component 1'!A22 -> Total GGRF Funds Requested | B22: ='Quantifiable Component 1'!B22 -> Total GGRF funds requested from all CCI Programs | C22: =IF(C14="","",C21+C18+C14) -> 2956330
A23: ='Quantifiable Component 1'!A23:D23 -> Project Inputs
A24: ='Quantifiable Component 1'!A24 -> Project Type | B24: ='Quantifiable Component 1'!B24 -> For the purposes of this quantification, eligible TIRCP projects fall into four project types. Select the project type that best describes this component. | C24: New/Expanded Service
A25: ='Quantifiable Component 1'!A25 -> Service Type | B25: ='Quantifiable Component 1'!B25 -> The transit service (e.g., Intercity/Express Bus (Long Distance), Light Rail, Vanpool, etc.) directly associated with the proposed project. For projects that serve multiple services, select Multi-modal. | C25: Intercity/Express Bus (Long Distance)
A26: ='Quantifiable Component 1'!A26 -> Vehicle Type | B26: ='Quantifiable Component 1'!B26 -> The vehicle type (e.g., Transit Bus, Streetcar, Ferry, etc.) that will operate the new service or will be procured. | C26: Transit Bus
A27: ='Quantifiable Component 1'!A27 -> Region | B27: ='Quantifiable Component 1'!B27 -> The region that best encompasses the geographic location for the proposed project type. | C27: Air Basin
A28: ='Quantifiable Component 1'!A28 -> Sub region | B28: ='Quantifiable Component 1'!B28 -> The County or Air Basin where the majority of the service occurs. | C28: Sacramento Valley
A29: ='Quantifiable Component 1'!A29 -> Year 1 (Yr1) | B29: ='Quantifiable Component 1'!B29 -> The first year of service or the first year the facility or rolling stock will be in use. | C29: 2019
A30: ='Quantifiable Component 1'!A30 -> Year F (YrF) | B30: ='Quantifiable Component 1'!B30 -> The final year of service or the final year the facility or rolling stock's useful life. | C30: 2031
A31: ='Quantifiable Component 1'!A31 -> Useful Life | B31: ='Quantifiable Component 1'!B31 -> The number of years the service is funded or the useful life of the facility or rolling stock. | C31: =IF(C24="","", IF(C29="","", IF(C30="","", IF(C30-C29<=0,"Useful Life cannot be negative",C30-C29)))) -> 12
A32: ='Quantifiable Component 1'!A32:B32 -> Displaced Autos Inputs | C32: Input | D32: Reference
A33: ='Quantifiable Component 1'!A33 -> Yr1 Ridership | B33: ='Quantifiable Component 1'!B33 -> The increase in unlinked passenger trips directly associated with the proposed project in the first year (Yr1). | C33: 760 | D33: Nelson/Nygaard, 2018. Traffic Study.
A34: ='Quantifiable Component 1'!A34 -> YrF Ridership | B34: ='Quantifiable Component 1'!B34 -> The increase in unlinked passenger trips directly associated with the proposed project in the final year. If the ridership is not expected to change, Yr1 and YrF should be the same value. | C34: 764 | D34: Nelson/Nygaard, 2018. Traffic Study.
A35: ='Quantifiable Component 1'!A35 -> Adjustment Factor (A) | B35: ='Quantifiable Component 1'!B35 -> Discount factor applied to annual ridership to account for transit-dependent riders. Use: document project-specific data or system average developed from a recent, statistically valid survey or default. | C35: 1 | D35: Nelson/Nygaard, 2018. Traffic Study. Correspondence with SRTA, 2018.
A36: ='Quantifiable Component 1'!A36 -> Length of Average Trip (L) | B36: ='Quantifiable Component 1'!B36 -> Annual passenger miles over unlinked trips directly associated with the proposed project. | C36: 60 | D36: Nelson/Nygaard, 2018. Traffic Study.
A37: ='Quantifiable Component 1'!A37:B37 -> New/Expanded Service Vehicle Inputs | C37: Input | D37: Reference
A38: ='Quantifiable Component 1'!A38 -> Hybrid Vehicle | B38: ='Quantifiable Component 1'!B38 -> Is the vehicle for the new/expanded service, or vehicle(s) to be procured, a hybrid? | C38: Yes
A39: ='Quantifiable Component 1'!A39 -> Fuel Type | B39: ='Quantifiable Component 1'!B39 -> The fuel type (e.g., electric, diesel, etc.) of the vehicle for the new/expanded service, or of the new vehicle(s) to be procured. | C39: Electric
A40: ='Quantifiable Component 1'!A40 -> Model Year | B40: ='Quantifiable Component 1'!B40 -> The engine model year of the vehicle that will operate the new/expanded service, or of the new vehicle(s) to be procured. | C40: 2019
A41: ='Quantifiable Component 1'!A41 -> Project-Specific Emission Factor | B41: ='Quantifiable Component 1'!B41 -> If used, applicant must be able to demonstrate an approved carbon intensity value under the Low Carbon Fuel Standard and submit additional documentation.
A42: ='Quantifiable Component 1'!A42 -> Annual VMT | B42: ='Quantifiable Component 1'!B42 -> The estimated annual VMT required to operate the new/expanded service or of the new vehicle(s) to be procured (e.g., 72,000). For rail and ferry vehicles, applicants may alternatively use Annual Fuel. | C42: 156000 | D42: Nelson/Nygaard, 2018. Traffic Study.
A43: ='Quantifiable Component 1'!A43 -> Annual Fuel | B43: ='Quantifiable Component 1'!B43 -> The estimated annual fuel (i.e., gallon of diesel, KWh of electricity) required to operate the new/expanded service, or of the new rail or ferry vehicle(s) to be procured (e.g., 26,000).
A44: ='Quantifiable Component 1'!A44:B44 -> Displaced Vehicle/Fuel Reductions Inputs | C44: Input | D44: Reference
A45: ='Quantifiable Component 1'!A45 -> Fuel Type | B45: ='Quantifiable Component 1'!B45 -> The fuel type (e.g., electric, diesel, etc.) of the displaced vehicle(s) or of fuel reductions as a result of the project.
A46: ='Quantifiable Component 1'!A46 -> Model Year | B46: ='Quantifiable Component 1'!B46 -> The average engine model year(s) of the displaced vehicle(s) or of the vehicle(s) to realize fuel reductions as a result of the project.
A47: ='Quantifiable Component 1'!A47 -> Annual VMT | B47: ='Quantifiable Component 1'!B47 -> The estimated annual VMT of the displaced vehicle(s). For rail and ferry vehicles, applicants may alternatively use Annual Fuel.
A48: ='Quantifiable Component 1'!A48 -> Annual Fuel | B48: ='Quantifiable Component 1'!B48 -> The estimated annual fuel reductions expected to be realized as a result of the project or the estimated annual fuel the displaced vehicle(s) would have required to operate the equivalent as the new vehicle to be procured.

Sheet Quantifiable Component 5
C1: ='Read Me'!D1 -> California Air Resources Board
C2: ='Read Me'!D2 -> Calculator Tool for the
C3: ='Read Me'!D3 -> California State Transportation Agency
C4: ='Read Me'!D4 -> Transit and Intercity Rail Capital Program
C5: ='Read Me'!D5 -> Greenhouse Gas Reduction Fund
C6: ='Read Me'!D6 -> Fiscal Year 2018-19
C9: Project Name: | D9: =IF('Read Me'!B24="","",'Read Me'!B24) -> North State Intercity Bus Project
A11: ='Quantifiable Component 1'!A11 -> Input | B11: ='Quantifiable Component 1'!B11 -> Description | C11: Quantified Component 5
A12: ='Quantifiable Component 1'!A12 -> Identifying Descriptor (ID) | B12: ='Quantifiable Component 1'!B12 -> Brief description of the quantifiable component identifying it from other separable components. | C12: Lake/Mendocino Feeder
A13: ='Quantifiable Component 1'!A13:D13 -> Funding Inputs
A14: ='Quantifiable Component 1'!A14 -> TIRCP Funds Requested | B14: ='Quantifiable Component 1'!B14 -> Total TIRCP funds requested for this separable component. | C14: 2440770
A15: ='Quantifiable Component 1'!A15 -> Multi-Year | B15: ='Quantifiable Component 1'!B15 -> Will this component request several California Transportation Commission allocations over multiple calendar years? | C15: No
A16: ='Quantifiable Component 1'!A16:D16 -> Additional CCI Program 1
A17: ='Quantifiable Component 1'!A17 -> CCI Program | B17: ='Quantifiable Component 1'!B17 -> Other CCI Program from which project has or will be requesting GGRF funds. | C17: HVIP
A18: ='Quantifiable Component 1'!A18 -> Additional GGRF Funds | B18: ='Quantifiable Component 1'!B18 -> Total GGRF funds requested or to be requested from Additional CCI Program 1. | C18: 250000
A19: ='Quantifiable Component 1'!A19:D19 -> Additional CCI Program 2
A20: ='Quantifiable Component 1'!A20 -> CCI Program | B20: ='Quantifiable Component 1'!B20 -> Other CCI Program from which project has or will be requesting GGRF funds.
A21: ='Quantifiable Component 1'!A21 -> Additional GGRF Funds | B21: ='Quantifiable Component 1'!B21 -> Total GGRF funds requested or to be requested from Additional CCI Program 2.
A22: ='Quantifiable Component 1'!A22 -> Total GGRF Funds Requested | B22: ='Quantifiable Component 1'!B22 -> Total GGRF funds requested from all CCI Programs | C22: =IF(C14="","",C21+C18+C14) -> 2690770
A23: ='Quantifiable Component 1'!A23:D23 -> Project Inputs
A24: ='Quantifiable Component 1'!A24 -> Project Type | B24: ='Quantifiable Component 1'!B24 -> For the purposes of this quantification, eligible TIRCP projects fall into four project types. Select the project type that best describes this component. | C24: New/Expanded Service
A25: ='Quantifiable Component 1'!A25 -> Service Type | B25: ='Quantifiable Component 1'!B25 -> The transit service (e.g., Intercity/Express Bus (Long Distance), Light Rail, Vanpool, etc.) directly associated with the proposed project. For projects that serve multiple services, select Multi-modal. | C25: Intercity/Express Bus (Long Distance)
A26: ='Quantifiable Component 1'!A26 -> Vehicle Type | B26: ='Quantifiable Component 1'!B26 -> The vehicle type (e.g., Transit Bus, Streetcar, Ferry, etc.) that will operate the new service or will be procured. | C26: Transit Bus
A27: ='Quantifiable Component 1'!A27 -> Region | B27: ='Quantifiable Component 1'!B27 -> The region that best encompasses the geographic location for the proposed project type. | C27: Air Basin
A28: ='Quantifiable Component 1'!A28 -> Sub region | B28: ='Quantifiable Component 1'!B28 -> The County or Air Basin where the majority of the service occurs. | C28: Sacramento Valley
A29: ='Quantifiable Component 1'!A29 -> Year 1 (Yr1) | B29: ='Quantifiable Component 1'!B29 -> The first year of service or the first year the facility or rolling stock will be in use. | C29: 2019
A30: ='Quantifiable Component 1'!A30 -> Year F (YrF) | B30: ='Quantifiable Component 1'!B30 -> The final year of service or the final year the facility or rolling stock's useful life. | C30: 2031
A31: ='Quantifiable Component 1'!A31 -> Useful Life | B31: ='Quantifiable Component 1'!B31 -> The number of years the service is funded or the useful life of the facility or rolling stock. | C31: =IF(C24="","", IF(C29="","", IF(C30="","", IF(C30-C29<=0,"Useful Life cannot be negative",C30-C29)))) -> 12
A32: ='Quantifiable Component 1'!A32:B32 -> Displaced Autos Inputs | C32: Input | D32: Reference
A33: ='Quantifiable Component 1'!A33 -> Yr1 Ridership | B33: ='Quantifiable Component 1'!B33 -> The increase in unlinked passenger trips directly associated with the proposed project in the first year (Yr1). | C33: 167 | D33: Nelson/Nygaard, 2018. Traffic Study.
A34: ='Quantifiable Component 1'!A34 -> YrF Ridership | B34: ='Quantifiable Component 1'!B34 -> The increase in unlinked passenger trips directly associated with the proposed project in the final year. If the ridership is not expected to change, Yr1 and YrF should be the same value. | C34: 168 | D34: Nelson/Nygaard, 2018. Traffic Study.
A35: ='Quantifiable Component 1'!A35 -> Adjustment Factor (A) | B35: ='Quantifiable Component 1'!B35 -> Discount factor applied to annual ridership to account for transit-dependent riders. Use: document project-specific data or system average developed from a recent, statistically valid survey or default. | C35: 1 | D35: Nelson/Nygaard, 2018. Traffic Study. Correspondence with SRTA, 2018.
A36: ='Quantifiable Component 1'!A36 -> Length of Average Trip (L) | B36: ='Quantifiable Component 1'!B36 -> Annual passenger miles over unlinked trips directly associated with the proposed project. | C36: 60 | D36: Nelson/Nygaard, 2018. Traffic Study.
A37: ='Quantifiable Component 1'!A37:B37 -> New/Expanded Service Vehicle Inputs | C37: Input | D37: Reference
A38: ='Quantifiable Component 1'!A38 -> Hybrid Vehicle | B38: ='Quantifiable Component 1'!B38 -> Is the vehicle for the new/expanded service, or vehicle(s) to be procured, a hybrid? | C38: No
A39: ='Quantifiable Component 1'!A39 -> Fuel Type | B39: ='Quantifiable Component 1'!B39 -> The fuel type (e.g., electric, diesel, etc.) of the vehicle for the new/expanded service, or of the new vehicle(s) to be procured. | C39: Electric
A40: ='Quantifiable Component 1'!A40 -> Model Year | B40: ='Quantifiable Component 1'!B40 -> The engine model year of the vehicle that will operate the new/expanded service, or of the new vehicle(s) to be procured. | C40: 2019
A41: ='Quantifiable Component 1'!A41 -> Project-Specific Emission Factor | B41: ='Quantifiable Component 1'!B41 -> If used, applicant must be able to demonstrate an approved carbon intensity value under the Low Carbon Fuel Standard and submit additional documentation.
A42: ='Quantifiable Component 1'!A42 -> Annual VMT | B42: ='Quantifiable Component 1'!B42 -> The estimated annual VMT required to operate the new/expanded service or of the new vehicle(s) to be procured (e.g., 72,000). For rail and ferry vehicles, applicants may alternatively use Annual Fuel. | C42: 104000 | D42: Nelson/Nygaard, 2018. Traffic Study.
A43: ='Quantifiable Component 1'!A43 -> Annual Fuel | B43: ='Quantifiable Component 1'!B43 -> The estimated annual fuel (i.e., gallon of diesel, KWh of electricity) required to operate the new/expanded service, or of the new rail or ferry vehicle(s) to be procured (e.g., 26,000).
A44: ='Quantifiable Component 1'!A44:B44 -> Displaced Vehicle/Fuel Reductions Inputs | C44: Input | D44: Reference
A45: ='Quantifiable Component 1'!A45 -> Fuel Type | B45: ='Quantifiable Component 1'!B45 -> The fuel type (e.g., electric, diesel, etc.) of the displaced vehicle(s) or of fuel reductions as a result of the project.
A46: ='Quantifiable Component 1'!A46 -> Model Year | B46: ='Quantifiable Component 1'!B46 -> The average engine model year(s) of the displaced vehicle(s) or of the vehicle(s) to realize fuel reductions as a result of the project.
A47: ='Quantifiable Component 1'!A47 -> Annual VMT | B47: ='Quantifiable Component 1'!B47 -> The estimated annual VMT of the displaced vehicle(s). For rail and ferry vehicles, applicants may alternatively use Annual Fuel.
A48: ='Quantifiable Component 1'!A48 -> Annual Fuel | B48: ='Quantifiable Component 1'!B48 -> The estimated annual fuel reductions expected to be realized as a result of the project or the estimated annual fuel the displaced vehicle(s) would have required to operate the equivalent as the new vehicle to be procured.

Sheet Quantifiable Component 6
C1: ='Read Me'!D1 -> California Air Resources Board
C2: ='Read Me'!D2 -> Calculator Tool for the
C3: ='Read Me'!D3 -> California State Transportation Agency
C4: ='Read Me'!D4 -> Transit and Intercity Rail Capital Program
C5: ='Read Me'!D5 -> Greenhouse Gas Reduction Fund
C6: ='Read Me'!D6 -> Fiscal Year 2018-19
C9: Project Name: | D9: =IF('Read Me'!B24="","",'Read Me'!B24) -> North State Intercity Bus Project
A11: ='Quantifiable Component 1'!A11 -> Input | B11: ='Quantifiable Component 1'!B11 -> Description | C11: Quantified Component 6
A12: ='Quantifiable Component 1'!A12 -> Identifying Descriptor (ID) | B12: ='Quantifiable Component 1'!B12 -> Brief description of the quantifiable component identifying it from other separable components. | C12: Shasta Urban Feeder
A13: ='Quantifiable Component 1'!A13:D13 -> Funding Inputs
A14: ='Quantifiable Component 1'!A14 -> TIRCP Funds Requested | B14: ='Quantifiable Component 1'!B14 -> Total TIRCP funds requested for this separable component. | C14: 2957366
A15: ='Quantifiable Component 1'!A15 -> Multi-Year | B15: ='Quantifiable Component 1'!B15 -> Will this component request several California Transportation Commission allocations over multiple calendar years? | C15: No
A16: ='Quantifiable Component 1'!A16:D16 -> Additional CCI Program 1
A17: ='Quantifiable Component 1'!A17 -> CCI Program | B17: ='Quantifiable Component 1'!B17 -> Other CCI Program from which project has or will be requesting GGRF funds. | C17: HVIP
A18: ='Quantifiable Component 1'!A18 -> Additional GGRF Funds | B18: ='Quantifiable Component 1'!B18 -> Total GGRF funds requested or to be requested from Additional CCI Program 1. | C18: 250000
A19: ='Quantifiable Component 1'!A19:D19 -> Additional CCI Program 2
A20: ='Quantifiable Component 1'!A20 -> CCI Program | B20: ='Quantifiable Component 1'!B20 -> Other CCI Program from which project has or will be requesting GGRF funds. | C20: LCTOP
A21: ='Quantifiable Component 1'!A21 -> Additional GGRF Funds | B21: ='Quantifiable Component 1'!B21 -> Total GGRF funds requested or to be requested from Additional CCI Program 2. | C21: 208000
A22: ='Quantifiable Component 1'!A22 -> Total GGRF Funds Requested | B22: ='Quantifiable Component 1'!B22 -> Total GGRF funds requested from all CCI Programs | C22: =IF(C14="","",C21+C18+C14) -> 3415366
A23: ='Quantifiable Component 1'!A23:D23 -> Project Inputs
A24: ='Quantifiable Component 1'!A24 -> Project Type | B24: ='Quantifiable Component 1'!B24 -> For the purposes of this quantification, eligible TIRCP projects fall into four project types. Select the project type that best describes this component. | C24: Cleaner Vehicles/Technology/Fuels
A25: ='Quantifiable Component 1'!A25 -> Service Type | B25: ='Quantifiable Component 1'!B25 -> The transit service (e.g., Intercity/Express Bus (Long Distance), Light Rail, Vanpool, etc.) directly associated with the proposed project. For projects that serve multiple services, select Multi-modal. | C25: Intercity/Express Bus (Long Distance)
A26: ='Quantifiable Component 1'!A26 -> Vehicle Type | B26: ='Quantifiable Component 1'!B26 -> The vehicle type (e.g., Transit Bus, Streetcar, Ferry, etc.) that will operate the new service or will be procured. | C26: Over-Road Coach
A27: ='Quantifiable Component 1'!A27 -> Region | B27: ='Quantifiable Component 1'!B27 -> The region that best encompasses the geographic location for the proposed project type. | C27: Air Basin
A28: ='Quantifiable Component 1'!A28 -> Sub region | B28: ='Quantifiable Component 1'!B28 -> The County or Air Basin where the majority of the service occurs. | C28: Sacramento Valley
A29: ='Quantifiable Component 1'!A29 -> Year 1 (Yr1) | B29: ='Quantifiable Component 1'!B29 -> The first year of service or the first year the facility or rolling stock will be in use. | C29: 2019
A30: ='Quantifiable Component 1'!A30 -> Year F (YrF) | B30: ='Quantifiable Component 1'!B30 -> The final year of service or the final year the facility or rolling stock's useful life. | C30: 2031
A31: ='Quantifiable Component 1'!A31 -> Useful Life | B31: ='Quantifiable Component 1'!B31 -> The number of years the service is funded or the useful life of the facility or rolling stock. | C31: =IF(C24="","", IF(C29="","", IF(C30="","", IF(C30-C29<=0,"Useful Life cannot be negative",C30-C29)))) -> 12
A32: ='Quantifiable Component 1'!A32:B32 -> Displaced Autos Inputs | C32: Input | D32: Reference
A33: ='Quantifiable Component 1'!A33 -> Yr1 Ridership | B33: ='Quantifiable Component 1'!B33 -> The increase in unlinked passenger trips directly associated with the proposed project in the first year (Yr1).
A34: ='Quantifiable Component 1'!A34 -> YrF Ridership | B34: ='Quantifiable Component 1'!B34 -> The increase in unlinked passenger trips directly associated with the proposed project in the final year. If the ridership is not expected to change, Yr1 and YrF should be the same value.
A35: ='Quantifiable Component 1'!A35 -> Adjustment Factor (A) | B35: ='Quantifiable Component 1'!B35 -> Discount factor applied to annual ridership to account for transit-dependent riders. Use: document project-specific data or system average developed from a recent, statistically valid survey or default.
A36: ='Quantifiable Component 1'!A36 -> Length of Average Trip (L) | B36: ='Quantifiable Component 1'!B36 -> Annual passenger miles over unlinked trips directly associated with the proposed project.
A37: ='Quantifiable Component 1'!A37:B37 -> New/Expanded Service Vehicle Inputs | C37: Input | D37: Reference
A38: ='Quantifiable Component 1'!A38 -> Hybrid Vehicle | B38: ='Quantifiable Component 1'!B38 -> Is the vehicle for the new/expanded service, or vehicle(s) to be procured, a hybrid? | C38: No
A39: ='Quantifiable Component 1'!A39 -> Fuel Type | B39: ='Quantifiable Component 1'!B39 -> The fuel type (e.g., electric, diesel, etc.) of the vehicle for the new/expanded service, or of the new vehicle(s) to be procured. | C39: Electric
A40: ='Quantifiable Component 1'!A40 -> Model Year | B40: ='Quantifiable Component 1'!B40 -> The engine model year of the vehicle that will operate the new/expanded service, or of the new vehicle(s) to be procured. | C40: 2019
A41: ='Quantifiable Component 1'!A41 -> Project-Specific Emission Factor | B41: ='Quantifiable Component 1'!B41 -> If used, applicant must be able to demonstrate an approved carbon intensity value under the Low Carbon Fuel Standard and submit additional documentation.
A42: ='Quantifiable Component 1'!A42 -> Annual VMT | B42: ='Quantifiable Component 1'!B42 -> The estimated annual VMT required to operate the new/expanded service or of the new vehicle(s) to be procured (e.g., 72,000). For rail and ferry vehicles, applicants may alternatively use Annual Fuel. | C42: 204400 | D42: Nelson/Nygaard, 2018. Traffic Study.
A43: ='Quantifiable Component 1'!A43 -> Annual Fuel | B43: ='Quantifiable Component 1'!B43 -> The estimated annual fuel (i.e., gallon of diesel, KWh of electricity) required to operate the new/expanded service, or of the new rail or ferry vehicle(s) to be procured (e.g., 26,000).
A44: ='Quantifiable Component 1'!A44:B44 -> Displaced Vehicle/Fuel Reductions Inputs | C44: Input | D44: Reference
A45: ='Quantifiable Component 1'!A45 -> Fuel Type | B45: ='Quantifiable Component 1'!B45 -> The fuel type (e.g., electric, diesel, etc.) of the displaced vehicle(s) or of fuel reductions as a result of the project. | C45: Gasoline
A46: ='Quantifiable Component 1'!A46 -> Model Year | B46: ='Quantifiable Component 1'!B46 -> The average engine model year(s) of the displaced vehicle(s) or of the vehicle(s) to realize fuel reductions as a result of the project. | C46: 2010
A47: ='Quantifiable Component 1'!A47 -> Annual VMT | B47: ='Quantifiable Component 1'!B47 -> The estimated annual VMT of the displaced vehicle(s). For rail and ferry vehicles, applicants may alternatively use Annual Fuel. | C47: 204400 | D47: Nelson/Nygaard, 2018. Traffic Study.
A48: ='Quantifiable Component 1'!A48 -> Annual Fuel | B48: ='Quantifiable Component 1'!B48 -> The estimated annual fuel reductions expected to be realized as a result of the project or the estimated annual fuel the displaced vehicle(s) would have required to operate the equivalent as the new vehicle to be procured.

Sheet GHG Summary
E1: ='Read Me'!D1 -> California Air Resources Board
E2: ='Read Me'!D2 -> Calculator Tool for the
E3: ='Read Me'!D3 -> California State Transportation Agency
E4: ='Read Me'!D4 -> Transit and Intercity Rail Capital Program
E5: ='Read Me'!D5 -> Greenhouse Gas Reduction Fund
E6: ='Read Me'!D6 -> Fiscal Year 2018-19
C10: Project Name: | D10: =IF('Read Me'!B24="","",'Read Me'!B24) -> North State Intercity Bus Project
C14: Quantified GHG Component 1 | D14: Quantified GHG Component 2 | E14: Quantified GHG Component 3 | F14: Quantified GHG Component 4 | G14: Quantified GHG Component 5 | H14: Quantified GHG Component 6 | I14: Total Project
B15: Identifying Descriptor | C15: =IF('Quantifiable Component 1'!$C$12="","",'Quantifiable Component 1'!$C$12) -> I-5 Backbone Service (No SAC to SAC Airport, or SAC to Chico) | D15: =IF('Quantifiable Component 2'!$C$12="","",'Quantifiable Component 2'!$C$12) -> North Valley Feeder | E15: =IF('Quantifiable Component 3'!$C$12="","",'Quantifiable Component 3'!$C$12) ->  | F15: =IF('Quantifiable Component 4'!$C$12="","",'Quantifiable Component 4'!$C$12) -> Siskiyou Feeder | G15: =IF('Quantifiable Component 5'!$C$12="","",'Quantifiable Component 5'!$C$12) -> Lake/Mendocino Feeder | H15: =IF('Quantifiable Component 6'!$C$12="","",'Quantifiable Component 6'!$C$12) -> Shasta Urban Feeder
B16: GHG Emission Reduction Start Date (Year) | C16: =IF('Quantifiable Component 1'!C29="","", 'Quantifiable Component 1'!C29) -> 2019 | D16: =IF('Quantifiable Component 2'!C29="","", 'Quantifiable Component 2'!C29) -> 2019 | E16: =IF('Quantifiable Component 3'!C29="","", 'Quantifiable Component 3'!C29) ->  | F16: =IF('Quantifiable Component 4'!C29="","", 'Quantifiable Component 4'!C29) -> 2019 | G16: =IF('Quantifiable Component 5'!C29="","", 'Quantifiable Component 5'!C29) -> 2019 | H16: =IF('Quantifiable Component 6'!C29="","", 'Quantifiable Component 6'!C29) -> 2019
B17: Total CCI
B18: Total GHG Emission Reductions (MTCO2e) | C18: ='GHG Calcs'!$BX$16 -> 21415.21836 | D18: ='GHG Calcs'!$BX$17 -> 7275.83924 | E18: ='GHG Calcs'!$BX$18 ->  | F18: ='GHG Calcs'!$BX$19 -> -705.2810868 | G18: ='GHG Calcs'!$BX$20 -> -727.5417162 | H18: ='GHG Calcs'!$BX$21 -> 5943.509434 | I18: =IF(SUM(C18:H18)<1,"", SUM(C18:H18)) -> 33201.74423
B19: Total GGRF Funds Requested ($) | C19: =IF('Quantifiable Component 1'!$C$22="","",'Quantifiable Component 1'!$C$22) -> 7034202 | D19: =IF('Quantifiable Component 2'!$C$22="","",'Quantifiable Component 2'!$C$22) -> 2491588 | E19: =IF('Quantifiable Component 3'!$C$22="","",'Quantifiable Component 3'!$C$22) ->  | F19: =IF('Quantifiable Component 4'!$C$22="","",'Quantifiable Component 4'!$C$22) -> 2956330 | G19: =IF('Quantifiable Component 5'!$C$22="","",'Quantifiable Component 5'!$C$22) -> 2690770 | H19: =IF('Quantifiable Component 6'!$C$22="","",'Quantifiable Component 6'!$C$22) -> 3415366 | I19: =IF(SUM(C19:H19)<1,"", SUM(C19:H19)) -> 18588256
B20: Total GHG Emission Reductions/Total GGRF Funds Requested (MTCO2e/$) | C20: =IF(C19="","",C18/C19) -> 0.003044441766 | D20: 0.002920161455 | F20: -0.0002385664276 | G20: -0.0002703842083 | H20: 0.001740226211 | I20: =IF(I18="","",I18/I19) -> 0.001786167795
B21: TIRCP
B22: TIRCP GHG Emission Reductions (MTCO2e) | C22: =IF(C18="","",IF(C19=C23,C18,C20*C23)) -> 19512.44226 | D22: 6516.597261 | F22: -645.6394799 | G22: -659.9456641 | H22: 5146.485829 | I22: =IF(SUM(C22:H22)<1,"", SUM(C22:H22)) -> 29869.9402
B23: TIRCP Funds Requested ($) | C23: =IF('Quantifiable Component 1'!$C$14="","",'Quantifiable Component 1'!$C$14) -> 6409202 | D23: =IF('Quantifiable Component 2'!$C$14="","",'Quantifiable Component 2'!$C$14) -> 2231588 | E23: =IF('Quantifiable Component 3'!$C$14="","",'Quantifiable Component 3'!$C$14) ->  | F23: =IF('Quantifiable Component 4'!$C$14="","",'Quantifiable Component 4'!$C$14) -> 2706330 | G23: =IF('Quantifiable Component 5'!$C$14="","",'Quantifiable Component 5'!$C$14) -> 2440770 | H23: =IF('Quantifiable Component 6'!$C$14="","",'Quantifiable Component 6'!$C$14) -> 2957366 | I23: =IF(SUM(C23:H23)<1,"", SUM(C23:H23)) -> 16745256
B24: TIRCP GHG Emission Reductions/TIRCP Funds Requested (MTCO2e/$) | C24: =IF(C22="","", IF(C23="","", C22/C23)) -> 0.003044441766 | D24: 0.002920161455 | F24: -0.0002385664276 | G24: -0.0002703842083 | H24: 0.001740226211 | I24: =IF(I22="","",I22/I23) -> 0.001783785223
B25: TIRCP Funds Requested/TIRCP GHG Emission Reductions ($/MTCO2e) | C25: =IF(C23="","", IF(C22="","", C23/C22)) -> 328.4674422 | D25: 342.4468186 | F25: -4191.704634 | G25: -3698.440845 | H25: 574.637937 | I25: =IF(I22="","",I23/I22) -> 560.6056084
B26: Additional CCI Program 1
B27: CCI Program | C27: =IF('Quantifiable Component 1'!$C$17="","",'Quantifiable Component 1'!$C$17) -> HVIP Vouchers | D27: =IF('Quantifiable Component 2'!$C$17="","",'Quantifiable Component 2'!$C$17) -> HVIP | E27: =IF('Quantifiable Component 3'!$C$17="","",'Quantifiable Component 3'!$C$17) ->  | F27: =IF('Quantifiable Component 4'!$C$17="","",'Quantifiable Component 4'!$C$17) -> HVIP | G27: =IF('Quantifiable Component 5'!$C$17="","",'Quantifiable Component 5'!$C$17) -> HVIP | H27: =IF('Quantifiable Component 6'!$C$17="","",'Quantifiable Component 6'!$C$17) -> HVIP
B28: GHG Emission Reductions Attributable to other GGRF Programs (MTCO2e) | C28: =IF(C20="","", IF(C29="","", C20*C29)) -> 1902.776104 | D28: 730.0403638 | F28: -59.64160689 | G28: -67.59605208 | H28: 435.0565528
B29: Total Additional GGRF Funds to Implement Project ($) | C29: =IF('Quantifiable Component 1'!$C$18="","",'Quantifiable Component 1'!$C$18) -> 625000 | D29: =IF('Quantifiable Component 2'!$C$18="","",'Quantifiable Component 2'!$C$18) -> 250000 | E29: =IF('Quantifiable Component 3'!$C$18="","",'Quantifiable Component 3'!$C$18) ->  | F29: =IF('Quantifiable Component 4'!$C$18="","",'Quantifiable Component 4'!$C$18) -> 250000 | G29: =IF('Quantifiable Component 5'!$C$18="","",'Quantifiable Component 5'!$C$18) -> 250000 | H29: =IF('Quantifiable Component 6'!$C$18="","",'Quantifiable Component 6'!$C$18) -> 250000
B30: Additional CCI Program 2
B31: CCI Program | C31: =IF('Quantifiable Component 1'!$C$20="","",'Quantifiable Component 1'!$C$20) ->  | D31: =IF('Quantifiable Component 2'!$C$20="","",'Quantifiable Component 2'!$C$20) -> LCTOP | E31: =IF('Quantifiable Component 3'!$C$20="","",'Quantifiable Component 3'!$C$20) ->  | F31: =IF('Quantifiable Component 4'!$C$20="","",'Quantifiable Component 4'!$C$20) ->  | G31: =IF('Quantifiable Component 5'!$C$20="","",'Quantifiable Component 5'!$C$20) ->  | H31: =IF('Quantifiable Component 6'!$C$20="","",'Quantifiable Component 6'!$C$20) -> LCTOP
B32: GHG Emission Reductions Attributable to other GGRF Programs (MTCO2e) | C32: =IF(C20="","", IF(C33="","", C20*C33)) ->  | D32: 29.20161455 | H32: 361.9670519
B33: Total Additional GGRF Funds to Implement Project ($) | C33: =IF('Quantifiable Component 1'!$C$21="","",'Quantifiable Component 1'!$C$21) ->  | D33: =IF('Quantifiable Component 2'!$C$21="","",'Quantifiable Component 2'!$C$21) -> 10000 | E33: =IF('Quantifiable Component 3'!$C$21="","",'Quantifiable Component 3'!$C$21) ->  | F33: =IF('Quantifiable Component 4'!$C$21="","",'Quantifiable Component 4'!$C$21) ->  | G33: =IF('Quantifiable Component 5'!$C$21="","",'Quantifiable Component 5'!$C$21) ->  | H33: =IF('Quantifiable Component 6'!$C$21="","",'Quantifiable Component 6'!$C$21) -> 208000

Sheet Co-benefits Summary
G1: ='Read Me'!D1 -> California Air Resources Board
G2: ='Read Me'!D2 -> Calculator Tool for the
G3: ='Read Me'!D3 -> California State Transportation Agency
G4: ='Read Me'!D4 -> Transit and Intercity Rail Capital Program
G5: ='Read Me'!D5 -> Greenhouse Gas Reduction Fund
G6: ='Read Me'!D6 -> Fiscal Year 2018-19
C10: Project Name: | E10: =IF('Read Me'!B24="","",'Read Me'!B24) -> North State Intercity Bus Project
C14: Quantified Co-Benefit Component 1 | E14: Quantified Co-Benefit Component 2 | G14: Quantified Co-Benefit Component 3 | I14: Quantified Co-Benefit Component 4 | K14: Quantified Co-Benefit Component 5 | M14: Quantified Co-Benefit Component 6 | O14: Total Project
B15: Identifying Descriptor | C15: =IF('Quantifiable Component 1'!$C$12="","",'Quantifiable Component 1'!$C$12) -> I-5 Backbone Service (No SAC to SAC Airport, or SAC to Chico) | E15: =IF('Quantifiable Component 2'!$C$12="","",'Quantifiable Component 2'!$C$12) -> North Valley Feeder | G15: =IF('Quantifiable Component 3'!$C$12="","",'Quantifiable Component 3'!$C$12) ->  | I15: =IF('Quantifiable Component 4'!$C$12="","",'Quantifiable Component 4'!$C$12) -> Siskiyou Feeder | K15: =IF('Quantifiable Component 5'!$C$12="","",'Quantifiable Component 5'!$C$12) -> Lake/Mendocino Feeder | M15: =IF('Quantifiable Component 6'!$C$12="","",'Quantifiable Component 6'!$C$12) -> Shasta Urban Feeder
B16: Total CCI
A17: Key Variables | B17: Passenger VMT Reductions (miles) | C17: =IF('GHG Calcs'!S16=0,"",'GHG Calcs'!S16) -> 4790430 | E17: =IF('GHG Calcs'!S17=0,"",'GHG Calcs'!S17) -> 1642140 | G17: =IF('GHG Calcs'!S18=0,"",'GHG Calcs'!S18) ->  | I17: =IF('GHG Calcs'!S19=0,"",'GHG Calcs'!S19) -> 45720 | K17: =IF('GHG Calcs'!S20=0,"",'GHG Calcs'!S20) -> 10050 | M17: =IF('GHG Calcs'!S21=0,"",'GHG Calcs'!S21) ->  | O17: =IF(SUM(C17:M17)=0,"",SUM(C17:M17)) -> 6488340
B18: Fossil Fuel Use Reductions | C18: =IF(C15<>"",IF(AND('Quantifiable Component 1'!C24="Fuel Reductions",OR('Quantifiable Component 1'!C45="LNG",'Quantifiable Component 1'!C45="CNG",'Quantifiable Component 1'!C45="Diesel",'Quantifiable Component 1'!C45="Gasoline")),'Quantifiable Component 1'!C48*'Quantifiable Component 1'!C31,"N/A"),"") -> N/A | D18: =IF(AND(C18>0,'Quantifiable Component 1'!C45="Gasoline"),"gallons of Gasoline",IF(AND(C18>0,'Quantifiable Component 1'!C45="Diesel"),"gallons of Diesel",IF(AND(C18>0,'Quantifiable Component 1'!C45="CNG"),"cubic feet of CNG",IF(AND(C18>0,'Quantifiable Component 1'!C45="LNG"),"cubic feet of LNG","")))) ->  | E18: =IF(E15<>"",IF(AND('Quantifiable Component 2'!C24="Fuel Reductions",OR('Quantifiable Component 2'!C45="LNG",'Quantifiable Component 2'!C45="CNG",'Quantifiable Component 2'!C45="Diesel",'Quantifiable Component 2'!C45="Gasoline")),'Quantifiable Component 2'!C48*'Quantifiable Component 2'!C31,"N/A"),"") -> N/A | F18: =IF(AND(E18>0,'Quantifiable Component 2'!E45="Gasoline"),"gallons of Gasoline",IF(AND(E18>0,'Quantifiable Component 2'!E45="Diesel"),"gallons of Diesel",IF(AND(E18>0,'Quantifiable Component 2'!E45="CNG"),"cubic feet of CNG",IF(AND(E18>0,'Quantifiable Component 2'!E45:F45="LNG"),"cubic feet of LNG","")))) ->  | G18: =IF(G15<>"",IF(AND('Quantifiable Component 3'!C24="Fuel Reductions",OR('Quantifiable Component 3'!C45="LNG",'Quantifiable Component 3'!C45="CNG",'Quantifiable Component 3'!C45="Diesel",'Quantifiable Component 3'!C45="Gasoline")),'Quantifiable Component 3'!C48*'Quantifiable Component 3'!C31,"N/A"),"") ->  | H18: =IF(AND(G18>0,'Quantifiable Component 3'!G45="Gasoline"),"gallons of Gasoline",IF(AND(G18>0,'Quantifiable Component 3'!G45="Diesel"),"gallons of Diesel",IF(AND(G18>0,'Quantifiable Component 3'!G45="CNG"),"cubic feet of CNG",IF(AND(G18>0,'Quantifiable Component 3'!G45:H45="LNG"),"cubic feet of LNG","")))) ->  | I18: =IF(I15<>"",IF(AND('Quantifiable Component 4'!C24="Fuel Reductions",OR('Quantifiable Component 4'!C45="LNG",'Quantifiable Component 4'!C45="CNG",'Quantifiable Component 4'!C45="Diesel",'Quantifiable Component 4'!C45="Gasoline")),'Quantifiable Component 4'!C48*'Quantifiable Component 4'!C31,"N/A"),"") -> N/A | J18: =IF(AND(I18>0,'Quantifiable Component 4'!I45="Gasoline"),"gallons of Gasoline",IF(AND(I18>0,'Quantifiable Component 4'!I45="Diesel"),"gallons of Diesel",IF(AND(I18>0,'Quantifiable Component 4'!I45="CNG"),"cubic feet of CNG",IF(AND(I18>0,'Quantifiable Component 4'!I45:J45="LNG"),"cubic feet of LNG","")))) ->  | K18: =IF(K15<>"",IF(AND('Quantifiable Component 5'!C24="Fuel Reductions",OR('Quantifiable Component 5'!C45="LNG",'Quantifiable Component 5'!C45="CNG",'Quantifiable Component 5'!C45="Diesel",'Quantifiable Component 5'!C45="Gasoline")),'Quantifiable Component 5'!C48*'Quantifiable Component 5'!C31,"N/A"),"") -> N/A | L18: =IF(AND(K18>0,'Quantifiable Component 5'!K45="Gasoline"),"gallons of Gasoline",IF(AND(K18>0,'Quantifiable Component 5'!K45="Diesel"),"gallons of Diesel",IF(AND(K18>0,'Quantifiable Component 5'!K45="CNG"),"cubic feet of CNG",IF(AND(K18>0,'Quantifiable Component 5'!K45:L45="LNG"),"cubic feet of LNG","")))) ->  | M18: =IF(M15<>"",IF(AND('Quantifiable Component 6'!C24="Fuel Reductions",OR('Quantifiable Component 6'!C45="LNG",'Quantifiable Component 6'!C45="CNG",'Quantifiable Component 6'!C45="Diesel",'Quantifiable Component 6'!C45="Gasoline")),'Quantifiable Component 6'!C48*'Quantifiable Component 6'!C31,"N/A"),"") -> N/A | N18: =IF(AND(M18>0,'Quantifiable Component 6'!M45="Gasoline"),"gallons of Gasoline",IF(AND(M18>0,'Quantifiable Component 6'!M45="Diesel"),"gallons of Diesel",IF(AND(M18>0,'Quantifiable Component 6'!M45="CNG"),"cubic feet of CNG",IF(AND(M18>0,'Quantifiable Component 6'!M45:N45="LNG"),"cubic feet of LNG","")))) -> 
B19: Fossil Fuel Energy Use Reductions (kWh) | C19: =IF(C15<>"",IF(AND('Quantifiable Component 1'!C24="Fuel Reductions",'Quantifiable Component 1'!C45="Electric"),'Quantifiable Component 1'!C48,"N/A"),"") -> N/A | E19: =IF(E15<>"",IF(AND('Quantifiable Component 2'!C24="Fuel Reductions",'Quantifiable Component 2'!C45="Electric"),'Quantifiable Component 2'!C48,"N/A"),"") -> N/A | G19: =IF(G15<>"",IF(AND('Quantifiable Component 3'!C24="Fuel Reductions",'Quantifiable Component 3'!C45="Electric"),'Quantifiable Component 3'!C48,"N/A"),"") ->  | I19: =IF(I15<>"",IF(AND('Quantifiable Component 4'!C24="Fuel Reductions",'Quantifiable Component 4'!C45="Electric"),'Quantifiable Component 4'!C48,"N/A"),"") -> N/A | K19: =IF(K15<>"",IF(AND('Quantifiable Component 5'!C24="Fuel Reductions",'Quantifiable Component 5'!C45="Electric"),'Quantifiable Component 5'!C48,"N/A"),"") -> N/A | M19: =IF(M15<>"",IF(AND('Quantifiable Component 6'!C24="Fuel Reductions",'Quantifiable Component 6'!C45="Electric"),'Quantifiable Component 6'!C48,"N/A"),"") -> N/A
A20: Co-Benefits | B20: ROG Emission Reductions (lbs) | C20: =IFERROR('Co-Benefit Calcs'!B17,"") -> 2016.659405 | E20: =IFERROR('Co-Benefit Calcs'!B18,"") -> 691.2949384 | G20: =IFERROR('Co-Benefit Calcs'!B19,"") ->  | I20: =IFERROR('Co-Benefit Calcs'!B20,"") -> 19.25024281 | K20: =IFERROR('Co-Benefit Calcs'!B21,"") -> 4.230711449 | M20: =IFERROR('Co-Benefit Calcs'!B22,"") -> 734.8562991 | O20: 3466.291597
B21: NOx Emission Reductions (lbs) | C21: =IFERROR('Co-Benefit Calcs'!C17,"") -> 10009.24036 | E21: =IFERROR('Co-Benefit Calcs'!C18,"") -> 3431.09078 | G21: =IFERROR('Co-Benefit Calcs'!C19,"") ->  | I21: =IFERROR('Co-Benefit Calcs'!C20,"") -> 95.54342136 | K21: =IFERROR('Co-Benefit Calcs'!C21,"") -> 20.99822388 | M21: =IFERROR('Co-Benefit Calcs'!C22,"") -> 23664.14435 | O21: 37221.01714
B22: PM2.5 Emission Reductions (lbs) | C22: =IFERROR('Co-Benefit Calcs'!D17,"") -> 191.2946677 | E22: =IFERROR('Co-Benefit Calcs'!D18,"") -> 65.57476419 | G22: =IFERROR('Co-Benefit Calcs'!D19,"") ->  | I22: =IFERROR('Co-Benefit Calcs'!D20,"") -> 1.825834262 | K22: =IFERROR('Co-Benefit Calcs'!D21,"") -> 0.4013196655 | M22: =IFERROR('Co-Benefit Calcs'!D22,"") -> 97.35038666 | O22: 356.4469725
B23: Diesel PM Emission Reductions (lbs) | C23: =IFERROR('Co-Benefit Calcs'!E17,"") -> 1123.910081 | E23: =IFERROR('Co-Benefit Calcs'!E18,"") -> 385.2655008 | G23: =IFERROR('Co-Benefit Calcs'!E19,"") ->  | I23: =IFERROR('Co-Benefit Calcs'!E20,"") -> 10.72923502 | K23: =IFERROR('Co-Benefit Calcs'!E21,"") -> 2.357802483 | M23: =IFERROR('Co-Benefit Calcs'!E22,"") -> 101.7521392 | O23: 1624.014758
B24: TIRCP
A25: Key Variables | B25: Passenger VMT Reductions (miles) | C25: =IFERROR(IF(C17="","",IF('GHG Summary'!C23='GHG Summary'!C19,'Co-benefits Summary'!C17,C17*'GHG Summary'!$C$23/'GHG Summary'!$C$19)),"") -> 4364792.7 | E25: =IFERROR(IF(E17="","",IF('GHG Summary'!D23='GHG Summary'!D19,'Co-benefits Summary'!E17,E17*'GHG Summary'!$D$23/'GHG Summary'!$D$19)),"") -> 1470780.851 | G25: =IFERROR(IF(G17="","",IF('GHG Summary'!E23='GHG Summary'!E19,'Co-benefits Summary'!G17,G17*('GHG Summary'!$E$23/'GHG Summary'!$E$19))),"") ->  | I25: =IFERROR(IF(I17="","",IF('GHG Summary'!F23='GHG Summary'!F19,'Co-benefits Summary'!I17,I17*'GHG Summary'!$F$23/'GHG Summary'!$F$19)),"") -> 41853.71985 | K25: =IFERROR(IF(K17="","",IF('GHG Summary'!G23='GHG Summary'!G19,'Co-benefits Summary'!K17,K17*'GHG Summary'!$G$23/'GHG Summary'!$G$19)),"") -> 9116.252411 | M25: =IFERROR(IF(M17="","",IF('GHG Summary'!H23='GHG Summary'!H19,'Co-benefits Summary'!M17,M17*'GHG Summary'!$H$23/'GHG Summary'!$H$19)),"") ->  | O25: =IF(SUM(C25:M25)=0,"",SUM(C25:M25)) -> 5886543.523
B26: Fossil Fuel Use Reductions | C26: =IFERROR(IF(C18="","",IF('GHG Summary'!C23='GHG Summary'!C19,'Co-benefits Summary'!C18,C18*'GHG Summary'!$C$23/'GHG Summary'!$C$19)),"") ->  | D26: =IFERROR(IF(C26>0,D18,""),"") ->  | E26: =IFERROR(IF(E18="","",IF('GHG Summary'!D23='GHG Summary'!D19,'Co-benefits Summary'!E18,E18*'GHG Summary'!$D$23/'GHG Summary'!$D$19)),"") ->  | F26: =IFERROR(IF(E26>0,F18,""),"") ->  | G26: =IFERROR(IF(G18="","",IF('GHG Summary'!E23='GHG Summary'!E19,'Co-benefits Summary'!G18,G18*'GHG Summary'!$E$23/'GHG Summary'!$E$19)),"") ->  | H26: =IFERROR(IF(G26>0,H18,""),"") ->  | I26: =IFERROR(IF(I18="","",IF('GHG Summary'!F23='GHG Summary'!F19,'Co-benefits Summary'!I18,I18*'GHG Summary'!$F$23/'GHG Summary'!$F$19)),"") ->  | J26: =IFERROR(IF(I26>0,J18,""),"") ->  | K26: =IFERROR(IF(K18="","",IF('GHG Summary'!G23='GHG Summary'!G19,'Co-benefits Summary'!K18,K18*'GHG Summary'!$G$23/'GHG Summary'!$G$19)),"") ->  | L26: =IFERROR(IF(K26>0,L18,""),"") ->  | M26: =IFERROR(IF(M18="","",IF('GHG Summary'!H23='GHG Summary'!H19,'Co-benefits Summary'!M18,M18*'GHG Summary'!$H$23/'GHG Summary'!$H$19)),"") ->  | N26: =IFERROR(IF(M26>0,N18,""),"") -> 
B27: Fossil Fuel Energy Use Reductions (kWh) | C27: =IFERROR(IF(C19="","",IF('GHG Summary'!C23='GHG Summary'!C19,'Co-benefits Summary'!C19,C19*'GHG Summary'!$C$23/'GHG Summary'!$C$19)),"") ->  | E27: =IFERROR(IF(E19="","",IF('GHG Summary'!D23='GHG Summary'!D19,'Co-benefits Summary'!E19,E19*'GHG Summary'!$D$23/'GHG Summary'!$D$19)),"") ->  | G27: =IFERROR(IF(G19="","",IF('GHG Summary'!E23='GHG Summary'!E19,'Co-benefits Summary'!G19,G19*'GHG Summary'!$E$23/'GHG Summary'!$E$19)),"") ->  | I27: =IFERROR(IF(I19="","",IF('GHG Summary'!F23='GHG Summary'!F19,'Co-benefits Summary'!I19,I19*'GHG Summary'!$F$23/'GHG Summary'!$F$19)),"") ->  | K27: =IFERROR(IF(K19="","",IF('GHG Summary'!G23='GHG Summary'!G19,'Co-benefits Summary'!K19,K19*'GHG Summary'!$G$23/'GHG Summary'!$G$19)),"") ->  | M27: =IFERROR(IF(M19="","",IF('GHG Summary'!H23='GHG Summary'!H19,'Co-benefits Summary'!M19,M19*'GHG Summary'!$H$23/'GHG Summary'!$H$19)),"") -> 
A28: Co-Benefits | B28: ROG Emission Reductions (lbs) | C28: =IF(C20="","",IF('GHG Summary'!C23='GHG Summary'!C19,'Co-benefits Summary'!C20,C20*'GHG Summary'!$C$23/'GHG Summary'!$C$19)) -> 1837.47602 | E28: =IF(E20="","",IF('GHG Summary'!D23='GHG Summary'!D19,'Co-benefits Summary'!E20,E20*'GHG Summary'!$D$23/'GHG Summary'!$D$19)) -> 619.1575369 | G28: =IF(G20="","",IF('GHG Summary'!E23='GHG Summary'!E19,'Co-benefits Summary'!G20,G20*'GHG Summary'!$E$23/'GHG Summary'!$E$19)) ->  | I28: =IF(I20="","",IF('GHG Summary'!F23='GHG Summary'!F19,'Co-benefits Summary'!I20,I20*'GHG Summary'!$F$23/'GHG Summary'!$F$19)) -> 17.62235935 | K28: =IF(K20="","",IF('GHG Summary'!G23='GHG Summary'!G19,'Co-benefits Summary'!K20,K20*'GHG Summary'!$G$23/'GHG Summary'!$G$19)) -> 3.837635169 | M28: =IF(M20="","",IF('GHG Summary'!H23='GHG Summary'!H19,'Co-benefits Summary'!M20,M20*'GHG Summary'!$H$23/'GHG Summary'!$H$19)) -> 636.3121943 | O28: 3114.405745
B29: NOx Emission Reductions (lbs) | C29: =IF(C21="","",IF('GHG Summary'!C23='GHG Summary'!C19,'Co-benefits Summary'!C21,C21*'GHG Summary'!$C$23/'GHG Summary'!$C$19)) -> 9119.903487 | E29: =IF(E21="","",IF('GHG Summary'!D23='GHG Summary'!D19,'Co-benefits Summary'!E21,E21*'GHG Summary'!$D$23/'GHG Summary'!$D$19)) -> 3073.052612 | G29: =IF(G21="","",IF('GHG Summary'!E23='GHG Summary'!E19,'Co-benefits Summary'!G21,G21*'GHG Summary'!$E$23/'GHG Summary'!$E$19)) ->  | I29: =IF(I21="","",IF('GHG Summary'!F23='GHG Summary'!F19,'Co-benefits Summary'!I21,I21*'GHG Summary'!$F$23/'GHG Summary'!$F$19)) -> 87.46385807 | K29: =IF(K21="","",IF('GHG Summary'!G23='GHG Summary'!G19,'Co-benefits Summary'!K21,K21*'GHG Summary'!$G$23/'GHG Summary'!$G$19)) -> 19.04727453 | M29: =IF(M21="","",IF('GHG Summary'!H23='GHG Summary'!H19,'Co-benefits Summary'!M21,M21*'GHG Summary'!$H$23/'GHG Summary'!$H$19)) -> 20490.78662 | O29: 32790.25385
B30: PM2.5 Emission Reductions (lbs) | C30: =IF(C22="","",IF('GHG Summary'!C23='GHG Summary'!C19,'Co-benefits Summary'!C22,C22*'GHG Summary'!$C$23/'GHG Summary'!$C$19)) -> 174.2978332 | E30: =IF(E22="","",IF('GHG Summary'!D23='GHG Summary'!D19,'Co-benefits Summary'!E22,E22*'GHG Summary'!$D$23/'GHG Summary'!$D$19)) -> 58.73196406 | G30: =IF(G22="","",IF('GHG Summary'!E23='GHG Summary'!E19,'Co-benefits Summary'!G22,G22*'GHG Summary'!$E$23/'GHG Summary'!$E$19)) ->  | I30: =IF(I22="","",IF('GHG Summary'!F23='GHG Summary'!F19,'Co-benefits Summary'!I22,I22*'GHG Summary'!$F$23/'GHG Summary'!$F$19)) -> 1.671433852 | K30: =IF(K22="","",IF('GHG Summary'!G23='GHG Summary'!G19,'Co-benefits Summary'!K22,K22*'GHG Summary'!$G$23/'GHG Summary'!$G$19)) -> 0.364032972 | M30: =IF(M22="","",IF('GHG Summary'!H23='GHG Summary'!H19,'Co-benefits Summary'!M22,M22*'GHG Summary'!$H$23/'GHG Summary'!$H$19)) -> 84.29571636 | O30: 319.3609805
B31: Diesel PM Emission Reductions (lbs) | C31: =IF(C23="","",IF('GHG Summary'!C23='GHG Summary'!C19,'Co-benefits Summary'!C23,C23*'GHG Summary'!$C$23/'GHG Summary'!$C$19)) -> 1024.048888 | E31: =IF(E23="","",IF('GHG Summary'!D23='GHG Summary'!D19,'Co-benefits Summary'!E23,E23*'GHG Summary'!$D$23/'GHG Summary'!$D$19)) -> 345.062614 | G31: =IF(G23="","",IF('GHG Summary'!E23='GHG Summary'!E19,'Co-benefits Summary'!G23,G23*'GHG Summary'!$E$23/'GHG Summary'!$E$19)) ->  | I31: =IF(I23="","",IF('GHG Summary'!F23='GHG Summary'!F19,'Co-benefits Summary'!I23,I23*'GHG Summary'!$F$23/'GHG Summary'!$F$19)) -> 9.82192469 | K31: =IF(K23="","",IF('GHG Summary'!G23='GHG Summary'!G19,'Co-benefits Summary'!K23,K23*'GHG Summary'!$G$23/'GHG Summary'!$G$19)) -> 2.138738564 | M31: =IF(M23="","",IF('GHG Summary'!H23='GHG Summary'!H19,'Co-benefits Summary'!M23,M23*'GHG Summary'!$H$23/'GHG Summary'!$H$19)) -> 88.1071946 | O31: 1469.17936
B32: Additional CCI Program 1
A33: Key Variables | B33: Passenger VMT Reductions (miles) | C33: =IFERROR(IF('GHG Summary'!C29="","",C17*'GHG Summary'!$C$29/'GHG Summary'!$C$19),"") -> 425637.3004 | E33: =IFERROR(IF('GHG Summary'!D29="","",E17*'GHG Summary'!$D$29/'GHG Summary'!$D$19),"") -> 164768.4128 | G33: =IFERROR(IF('GHG Summary'!E29="","",G17*'GHG Summary'!$E$29/'GHG Summary'!$E$19),"") ->  | I33: =IFERROR(IF('GHG Summary'!$F$29="","",I17*'GHG Summary'!$F$29/'GHG Summary'!$F$19),"") -> 3866.280151 | K33: =IFERROR(IF('GHG Summary'!$G$29="","",K17*'GHG Summary'!$G$29/'GHG Summary'!$G$19),"") -> 933.747589 | M33: =IFERROR(IF('GHG Summary'!$H$29="","",M17*'GHG Summary'!$H$29/'GHG Summary'!$H$19),"") ->  | O33: =IF(SUM(C33:M33)=0,"",SUM(C33:M33)) -> 595205.7409
B34: Fossil Fuel Use Reductions | C34: =IFERROR(IF('GHG Summary'!C29="","",C18*'GHG Summary'!$C$29/'GHG Summary'!$C$19),"") ->  | D34: =IFERROR(IF(C34="","",D18),"") ->  | E34: =IFERROR(IF('GHG Summary'!D29="","",E18*'GHG Summary'!$D$29/'GHG Summary'!$D$19),"") ->  | F34: =IFERROR(IF(E34="","",F18),"") ->  | G34: =IFERROR(IF('GHG Summary'!E29="","",G18*'GHG Summary'!$E$29/'GHG Summary'!$E$19),"") ->  | H34: =IFERROR(IF(G34="","",H18),"") ->  | I34: =IFERROR(IF('GHG Summary'!$F$29="","",I18*'GHG Summary'!$F$29/'GHG Summary'!$F$19),"") ->  | J34: =IFERROR(IF(I34="","",J18),"") ->  | K34: =IFERROR(IF('GHG Summary'!$G$29="","",K18*'GHG Summary'!$G$29/'GHG Summary'!$G$19),"") ->  | L34: =IFERROR(IF(K34="","",L18),"") ->  | M34: =IFERROR(IF('GHG Summary'!$H$29="","",M18*'GHG Summary'!$H$29/'GHG Summary'!$H$19),"") ->  | N34: =IFERROR(IF(M34="","",N18),"") -> 
B35: Fossil Fuel Energy Use Reductions (kWh) | C35: =IFERROR(IF('GHG Summary'!C29="","",C19*'GHG Summary'!$C$29/'GHG Summary'!$C$19),"") ->  | E35: =IFERROR(IF('GHG Summary'!D29="","",E19*'GHG Summary'!$D$29/'GHG Summary'!$D$19),"") ->  | G35: =IFERROR(IF('GHG Summary'!E29="","",G19*'GHG Summary'!$E$29/'GHG Summary'!$E$19),"") ->  | I35: =IFERROR(IF('GHG Summary'!$F$29="","",I19*'GHG Summary'!$F$29/'GHG Summary'!$F$19),"") ->  | K35: =IFERROR(IF('GHG Summary'!$G$29="","",K19*'GHG Summary'!$G$29/'GHG Summary'!$G$19),"") ->  | M35: =IFERROR(IF('GHG Summary'!$H$29="","",M19*'GHG Summary'!$H$29/'GHG Summary'!$H$19),"") -> 
A36: Co-Benefits | B36: ROG Emission Reductions (lbs) | C36: =IF('GHG Summary'!C29="","",C20*'GHG Summary'!$C$29/'GHG Summary'!$C$19) -> 179.1833854 | E36: =IF('GHG Summary'!D29="","",E20*'GHG Summary'!$D$29/'GHG Summary'!$D$19) -> 69.36288608 | G36: =IF('GHG Summary'!E29="","",G20*'GHG Summary'!$E$29/'GHG Summary'!$E$19) ->  | I36: =IF('GHG Summary'!$F$29="","",I20*'GHG Summary'!$F$29/'GHG Summary'!$F$19) -> 1.627883458 | K36: =IF('GHG Summary'!$G$29="","",K20*'GHG Summary'!$G$29/'GHG Summary'!$G$19) -> 0.3930762801 | M36: =IF('GHG Summary'!$H$29="","",M20*'GHG Summary'!$H$29/'GHG Summary'!$H$19) -> 53.79045021 | O36: 304.3576815
B37: NOx Emission Reductions (lbs) | C37: =IF('GHG Summary'!C29="","",C21*'GHG Summary'!$C$29/'GHG Summary'!$C$19) -> 889.3368752 | E37: =IF('GHG Summary'!D29="","",E21*'GHG Summary'!$D$29/'GHG Summary'!$D$19) -> 344.2674692 | G37: =IF('GHG Summary'!E29="","",G21*'GHG Summary'!$E$29/'GHG Summary'!$E$19) ->  | I37: =IF('GHG Summary'!$F$29="","",I21*'GHG Summary'!$F$29/'GHG Summary'!$F$19) -> 8.079563289 | K37: =IF('GHG Summary'!$G$29="","",K21*'GHG Summary'!$G$29/'GHG Summary'!$G$19) -> 1.950949345 | M37: =IF('GHG Summary'!$H$29="","",M21*'GHG Summary'!$H$29/'GHG Summary'!$H$19) -> 1732.18217 | O37: 2975.817027
B38: PM2.5 Emission Reductions (lbs) | C38: =IF('GHG Summary'!C29="","",C22*'GHG Summary'!$C$29/'GHG Summary'!$C$19) -> 16.99683451 | E38: =IF('GHG Summary'!D29="","",E22*'GHG Summary'!$D$29/'GHG Summary'!$D$19) -> 6.579615509 | G38: =IF('GHG Summary'!E29="","",G22*'GHG Summary'!$E$29/'GHG Summary'!$E$19) ->  | I38: =IF('GHG Summary'!$F$29="","",I22*'GHG Summary'!$F$29/'GHG Summary'!$F$19) -> 0.1544004105 | K38: =IF('GHG Summary'!$G$29="","",K22*'GHG Summary'!$G$29/'GHG Summary'!$G$19) -> 0.03728669354 | M38: =IF('GHG Summary'!$H$29="","",M22*'GHG Summary'!$H$29/'GHG Summary'!$H$19) -> 7.125911737 | O38: 30.89404886
B39: Diesel PM Emission Reductions (lbs) | C39: =IF('GHG Summary'!C29="","",C23*'GHG Summary'!$C$29/'GHG Summary'!$C$19) -> 99.86119258 | E39: =IF('GHG Summary'!D29="","",E23*'GHG Summary'!$D$29/'GHG Summary'!$D$19) -> 38.65662188 | G39: =IF('GHG Summary'!E29="","",G23*'GHG Summary'!$E$29/'GHG Summary'!$E$19) ->  | I39: =IF('GHG Summary'!$F$29="","",I23*'GHG Summary'!$F$29/'GHG Summary'!$F$19) -> 0.9073103326 | K39: =IF('GHG Summary'!$G$29="","",K23*'GHG Summary'!$G$29/'GHG Summary'!$G$19) -> 0.2190639188 | M39: =IF('GHG Summary'!$H$29="","",M23*'GHG Summary'!$H$29/'GHG Summary'!$H$19) -> 7.448113845 | O39: 147.0923026
B40: Additional CCI Program 2
A41: Key Variables | B41: Passenger VMT Reductions (miles) | C41: =IFERROR(IF('GHG Summary'!$C$33="","",C17*'GHG Summary'!$C$33/'GHG Summary'!$C$19),"") ->  | E41: =IFERROR(IF('GHG Summary'!$D$33="","",E17*'GHG Summary'!$D$33/'GHG Summary'!$D$19),"") -> 6590.73651 | G41: =IFERROR(IF('GHG Summary'!$E$33="","",G17*'GHG Summary'!$E$33/'GHG Summary'!$E$19),"") ->  | I41: =IFERROR(IF('GHG Summary'!$F$33="","",I17*'GHG Summary'!$F$33/'GHG Summary'!$F$19),"") ->  | K41: =IFERROR(IF('GHG Summary'!$G$33="","",K17*'GHG Summary'!$G$33/'GHG Summary'!$G$19),"") ->  | M41: =IFERROR(IF('GHG Summary'!$H$33="","",M17*'GHG Summary'!$H$33/'GHG Summary'!$H$19),"") ->  | O41: =IF(SUM(C41:M41)=0,"",SUM(C41:M41)) -> 6590.73651
B42: Fossil Fuel Use Reductions | C42: =IFERROR(IF('GHG Summary'!$C$33="","",C18*'GHG Summary'!$C$33/'GHG Summary'!$C$19),"") ->  | D42: =IFERROR(IF(C42="","",D18),"") ->  | E42: =IFERROR(IF('GHG Summary'!$D$33="","",E18*'GHG Summary'!$D$33/'GHG Summary'!$D$19),"") ->  | F42: =IFERROR(IF(E42="","",F18),"") ->  | G42: =IFERROR(IF('GHG Summary'!$E$33="","",G18*'GHG Summary'!$E$33/'GHG Summary'!$E$19),"") ->  | H42: =IFERROR(IF(G42="","",H18),"") ->  | I42: =IFERROR(IF('GHG Summary'!$F$33="","",I18*'GHG Summary'!$F$33/'GHG Summary'!$F$19),"") ->  | J42: =IFERROR(IF(I42="","",J18),"") ->  | K42: =IFERROR(IF('GHG Summary'!$G$33="","",K18*'GHG Summary'!$G$33/'GHG Summary'!$G$19),"") ->  | L42: =IFERROR(IF(K42="","",L18),"") ->  | M42: =IFERROR(IF('GHG Summary'!$H$33="","",M18*'GHG Summary'!$H$33/'GHG Summary'!$H$19),"") ->  | N42: =IFERROR(IF(M42="","",N18),"") -> 
B43: Fossil Fuel Energy Use Reductions (kWh) | C43: =IFERROR(IF('GHG Summary'!$C$33="","",C19*'GHG Summary'!$C$33/'GHG Summary'!$C$19),"") ->  | E43: =IFERROR(IF('GHG Summary'!$D$33="","",E19*'GHG Summary'!$D$33/'GHG Summary'!$D$19),"") ->  | G43: =IFERROR(IF('GHG Summary'!$E$33="","",G19*'GHG Summary'!$E$33/'GHG Summary'!$E$19),"") ->  | I43: =IFERROR(IF('GHG Summary'!$F$33="","",I19*'GHG Summary'!$F$33/'GHG Summary'!$F$19),"") ->  | K43: =IFERROR(IF('GHG Summary'!$G$33="","",K19*'GHG Summary'!$G$33/'GHG Summary'!$G$19),"") ->  | M43: =IFERROR(IF('GHG Summary'!$H$33="","",M19*'GHG Summary'!$H$33/'GHG Summary'!$H$19),"") -> 
A44: Co-Benefits | B44: ROG Emission Reductions (lbs) | C44: =IF('GHG Summary'!$C$33="","",C20*'GHG Summary'!$C$33/'GHG Summary'!$C$19) ->  | E44: =IF('GHG Summary'!$D$33="","",E20*'GHG Summary'!$D$33/'GHG Summary'!$D$19) -> 2.774515443 | G44: =IF('GHG Summary'!$E$33="","",G20*'GHG Summary'!$E$33/'GHG Summary'!$E$19) ->  | I44: =IF('GHG Summary'!$F$33="","",I20*'GHG Summary'!$F$33/'GHG Summary'!$F$19) ->  | K44: =IF('GHG Summary'!$G$33="","",K20*'GHG Summary'!$G$33/'GHG Summary'!$G$19) ->  | M44: =IF('GHG Summary'!$H$33="","",M20*'GHG Summary'!$H$33/'GHG Summary'!$H$19) -> 44.75365458 | O44: 47.52817002
B45: NOx Emission Reductions (lbs) | C45: =IF('GHG Summary'!$C$33="","",C21*'GHG Summary'!$C$33/'GHG Summary'!$C$19) ->  | E45: =IF('GHG Summary'!$D$33="","",E21*'GHG Summary'!$D$33/'GHG Summary'!$D$19) -> 13.77069877 | G45: =IF('GHG Summary'!$E$33="","",G21*'GHG Summary'!$E$33/'GHG Summary'!$E$19) ->  | I45: =IF('GHG Summary'!$F$33="","",I21*'GHG Summary'!$F$33/'GHG Summary'!$F$19) ->  | K45: =IF('GHG Summary'!$G$33="","",K21*'GHG Summary'!$G$33/'GHG Summary'!$G$19) ->  | M45: =IF('GHG Summary'!$H$33="","",M21*'GHG Summary'!$H$33/'GHG Summary'!$H$19) -> 1441.175565 | O45: 1454.946264
B46: PM2.5 Emission Reductions (lbs) | C46: =IF('GHG Summary'!$C$33="","",C22*'GHG Summary'!$C$33/'GHG Summary'!$C$19) ->  | E46: =IF('GHG Summary'!$D$33="","",E22*'GHG Summary'!$D$33/'GHG Summary'!$D$19) -> 0.2631846204 | G46: =IF('GHG Summary'!$E$33="","",G22*'GHG Summary'!$E$33/'GHG Summary'!$E$19) ->  | I46: =IF('GHG Summary'!$F$33="","",I22*'GHG Summary'!$F$33/'GHG Summary'!$F$19) ->  | K46: =IF('GHG Summary'!$G$33="","",K22*'GHG Summary'!$G$33/'GHG Summary'!$G$19) ->  | M46: =IF('GHG Summary'!$H$33="","",M22*'GHG Summary'!$H$33/'GHG Summary'!$H$19) -> 5.928758565 | O46: 6.191943186
B47: Diesel PM Emission Reductions (lbs) | C47: =IF('GHG Summary'!$C$33="","",C23*'GHG Summary'!$C$33/'GHG Summary'!$C$19) ->  | E47: =IF('GHG Summary'!$D$33="","",E23*'GHG Summary'!$D$33/'GHG Summary'!$D$19) -> 1.546264875 | G47: =IF('GHG Summary'!$E$33="","",G23*'GHG Summary'!$E$33/'GHG Summary'!$E$19) ->  | I47: =IF('GHG Summary'!$F$33="","",I23*'GHG Summary'!$F$33/'GHG Summary'!$F$19) ->  | K47: =IF('GHG Summary'!$G$33="","",K23*'GHG Summary'!$G$33/'GHG Summary'!$G$19) ->  | M47: =IF('GHG Summary'!$H$33="","",M23*'GHG Summary'!$H$33/'GHG Summary'!$H$19) -> 6.196830719 | O47: 7.743095594

Sheet GHG Calcs (hidden)
F14: GHGs of Displaced Autos | V14: New Service/Vehicle Details | AW14: Old Service Vehicle or Displaced Fuel Details | BX14: Net GHG Benefits
A15: Project Type | B15: Transit Service Type | C15: Vehicle Type | D15: Yr 1 | E15: YrF | F15: County/Air Basin | G15: Region Yr1 | H15: Region Yr F | I15: Yr1 Annual Ridership Increase | J15: Yr1 Auto Vehicle Emission Factor (g/mi) | K15: YrF Annual Ridership Increase | L15: YrF Auto Vehicle Emission Factor (g/mi) | M15: Adjustment factor (A) transit dependency | N15: Length auto trip reduced (L) | O15: Yr1 Annual Auto VMT Reduced in miles per year | P15: Yr1 Annual GHG Emission Reductions (MTCO2e) | Q15: YrF Annual Auto VMT Reduced in miles per year | R15: YrF Annual GHG Emission Reductions (MTCO2e) | S15: Annual Average VMT Displaced | T15: Displaced Auto GHG Emission Reductions (MTCO2e) | U15: System and Efficiency Improvements GHG Emission Reductions (MTCO2e) | V15: Fuel Type | W15: Annual Units of Fuel | X15: Engine MY | Y15: CY_Yr1 | Z15: CY_YrF | AA15: VMT | AB15: Bus Yr1 EF | AC15: Bus YrF EF | AD15: Van Yr1EF | AE15: Van YrF EF | AF15: Cut-A-Way Yr1 EF | AG15: Cut-A-Way YrF EF | AH15: Over-Road Coach Yr1 EF | AI15: Over-Road Coach Yr-F EF | AJ15: Heavy Rail EF | AK15: Ferry EF | AL15: Light Rail EF | AM15: Street Car EF | AN15: Hybrid | AO15: Yr1 Project EF | AP15: YrF Project EF | AQ15: Fuel EF | AR15: Yr1 Emissions from VMT | AS15: YrF Emissions from VMT | AT15: Emissions From Fuel | AU15: N/E Service Emissions | AV15: N/E Service GHG Emission Reductions (MTCO2e) | AW15: Fuel Type | AX15: Annual Units of Fuel | AY15: Engine MY | AZ15: Annual VMT | BA15: Fuel gCO2e/unit | BB15: CY_MY Yr1 | BC15: CY_MY YrF | BD15: Bus Yr1 EF | BE15: Bus YrF EF | BF15: Van Yr1EF | BG15: Van YrF EF | BH15: Cut-A-Way Yr1 EF | BI15: Cut-A-Way YrF EF | BJ15: Over-Road Coach Yr1 EF | BK15: Over-Road Coach Yr-F EF | BL15: Heavy Rail EF | BM15: Ferry EF | BN15: Light Rail EF | BO15: Street Car EF | BP15: Yr1 Project EF | BQ15: YrF Project EF | BR15: Fuel EF | BS15: Yr1 Emissions from VMT | BT15: YrF Emissions from VMT | BU15: Emission Reductions From Fuel | BV15: N/E Service Emissions | BW15: Old-New GHG Emission Reductions (MTCO2e) | BX15: Total GHG Emission Reductions (MTCO2e)
A16: ='Quantifiable Component 1'!$C$24 -> New/Expanded Service | B16: ='Quantifiable Component 1'!$C$25 -> Intercity/Express Bus (Long Distance) | C16: ='Quantifiable Component 1'!$C$26 -> Over-Road Coach | D16: ='Quantifiable Component 1'!$C$29 -> 2019 | E16: ='Quantifiable Component 1'!$C$30 -> 2031 | F16: ='Quantifiable Component 1'!$C$28 -> Sacramento Valley | G16: =CONCATENATE(F16,"_",D16) -> Sacramento Valley_2019 | H16: =IF(E16<=2050,CONCATENATE(F16,"_",E16),CONCATENATE(F16,"_",2050)) -> Sacramento Valley_2031 | I16: ='Quantifiable Component 1'!$C$33 -> 31218 | J16: =VLOOKUP((CONCATENATE(F16,"_",D16)),'Auto GHG'!$C$2:$D$2483,2,) -> 490.3041546 | K16: ='Quantifiable Component 1'!$C$34 -> 31402 | L16: =IF(E16<=2050,VLOOKUP((CONCATENATE(F16,"_",E16)),'Auto GHG'!$C$2:$D$2483,2,),VLOOKUP((CONCATENATE(F16,"_",2050)),'Auto GHG'!$C$2:$D$2483,2,)) -> 340.7729715 | M16: ='Quantifiable Component 1'!$C$35 -> 1 | N16: ='Quantifiable Component 1'!$C$36 -> 153 | O16: =((I16*M16)*(N16)) -> 4776354 | P16: =(O16*J16)/1000000 -> 2341.86621 | Q16: =((K16*M16)*(N16)) -> 4804506 | R16: =(Q16*L16)/1000000 -> 1637.245786 | S16: =('GHG Calcs'!O16+'GHG Calcs'!Q16)/2 -> 4790430 | T16: =((P16+R16)/2)*(E16-D16) -> 23874.67198 | U16: =IF(A16="System and Efficiency Improvements",T16,"") ->  | V16: ='Quantifiable Component 1'!$C$39 -> Electric | W16: ='Quantifiable Component 1'!$C$43 -> 0 | X16: ='Quantifiable Component 1'!$C$40 -> 2019 | Y16: =CONCATENATE(D16,"_",X16) -> 2019_2019 | Z16: =CONCATENATE(E16,"_",X16) -> 2031_2019 | AA16: ='Quantifiable Component 1'!$C$42 -> 484720 | AB16: =(IF(V16="Gasoline",VLOOKUP(Y16,'Fuel Consumption'!$A$4:$H$1533,3),VLOOKUP(Y16,'Fuel Consumption'!$A$4:$H$1533,2)))*(IF($V$16="Gasoline",'EF Default Tables'!$F$21,(VLOOKUP($V16,'EF Default Tables'!$B$17:$J$25,3,)))) -> 475.6820837 | AC16: =(IF(V16="Gasoline",VLOOKUP(Z16,'Fuel Consumption'!A4:H1533,3),VLOOKUP(Z16,'Fuel Consumption'!A4:H1533,2)))*(IF($V$16="Gasoline",'EF Default Tables'!$F$21,(VLOOKUP($V16,'EF Default Tables'!$B$17:$J$25,3,)))) -> 475.9614931 | AD16: =(IF(V16="Gasoline",VLOOKUP(Y16,'Fuel Consumption'!$A$4:$H$1533,5),VLOOKUP(Y16,'Fuel Consumption'!$A$4:$H$1533,4)))*(IF($V16="Diesel",'EF Default Tables'!$D$19,(VLOOKUP($V16,'EF Default Tables'!$B$17:$J$25,5,)))) -> 169.2404114 | AE16: =(IF(V16="Gasoline",VLOOKUP(Z16,'Fuel Consumption'!$A$4:$H$1533,5),VLOOKUP(Z16,'Fuel Consumption'!$A$4:$H$1533,4)))*(IF($V16="Diesel",'EF Default Tables'!$D$19,(VLOOKUP($V16,'EF Default Tables'!$B$17:$J$25,5,)))) -> 170.4256514 | AF16: =(IF(V16="Gasoline",VLOOKUP(Y16,'Fuel Consumption'!$A$4:$H$1533,7),VLOOKUP(Y16,'Fuel Consumption'!$A$4:$H$1533,6)))*(IF($V16="Diesel",'EF Default Tables'!$D$19,(VLOOKUP($V16,'EF Default Tables'!$B$17:$J$25,5,)))) -> 188.2067858 | AG16: =(IF(V16="Gasoline",VLOOKUP(Z16,'Fuel Consumption'!$A$4:$H$1533,7),VLOOKUP(Z16,'Fuel Consumption'!$A$4:$H$1533,6)))*(IF($V16="Diesel",'EF Default Tables'!$D$19,(VLOOKUP($V16,'EF Default Tables'!$B$17:$J$25,5,)))) -> 190.0404224 | AH16: =(VLOOKUP(Y16,'Fuel Consumption'!$A$4:$H$1533,8))*(VLOOKUP($V$16,'EF Default Tables'!$B$17:$J$25,3,)) -> 418.5977237 | AI16: =(VLOOKUP(Z16,'Fuel Consumption'!$A$4:$H$1533,8))*(VLOOKUP($V$16,'EF Default Tables'!$B$17:$J$25,3,)) -> 427.0635561 | AJ16: =(VLOOKUP($V16,'EF Default Tables'!$B$17:$J$25,6,)) -> 5591.75669 | AK16: =(VLOOKUP($V16,'EF Default Tables'!$B$17:$J$25,9,)) -> 378.54 | AL16: ='EF Default Tables'!H20 -> 7794.569931 | AM16: ='EF Default Tables'!I20 -> 8297.445411 | AN16: ='Quantifiable Component 1'!$C$38 -> No | AO16: =(IF(AN16="yes",0.8,1))*(IF(C16="Transit Bus",AB16,IF(C16="Van",AD16,IF(C16="Cut-A-Way",AF16,IF(C16="Over-Road Coach",AH16,IF(C16="Heavy Rail",AJ16,IF(C16="Ferry",AK16,IF(C16="Light Rail",AL16,AM16)))))))) -> 418.5977237 | AP16: =(IF(AN16="yes",0.8,1))*(IF(C16="Transit Bus",AC16,IF(C16="Van",AE16,IF(C16="Cut-A-Way",AG16,IF(C16="Over-Road Coach",AI16,IF(C16="Heavy Rail",AJ16,IF(C16="Ferry",AK16,IF(C16="Light Rail",AL16,AM16)))))))) -> 427.0635561 | AQ16: =VLOOKUP(V16,'EF Default Tables'!$B$3:$P$11,5,) -> 378.54 | AR16: =AO16*$AA16/1000000 -> 202.9026886 | AS16: 207.0062469 | AT16: =AQ16*W16/1000000 -> 0 | AU16: =IF(AT16>0,AT16*(E16-D16),AVERAGE(AR16:AS16)*(E16-D16)) -> 2459.453613 | AV16: =T16-AU16 -> 21415.21836 | AW16: ='Quantifiable Component 1'!$C$45 -> 0 | AX16: ='Quantifiable Component 1'!$C$48 -> 0 | AY16: ='Quantifiable Component 1'!$C$46 -> 0 | AZ16: ='Quantifiable Component 1'!$C$47 -> 0 | BA16: =VLOOKUP(AW16,'EF Default Tables'!$B$3:$P$11,5,) ->  | BB16: =CONCATENATE(D16,"_",AY16) -> 2019_0 | BC16: =CONCATENATE(E16,"_",AY16) -> 2031_0 | BD16: =(IF(AW16="Gasoline",VLOOKUP(BB16,'Fuel Consumption'!$A$4:$H$1533,3),VLOOKUP(BB16,'Fuel Consumption'!$A$4:$H$1533,2)))*(IF(AW16="Gasoline",'EF Default Tables'!$F$21,(VLOOKUP(AW16,'EF Default Tables'!$B$17:$J$25,3,)))) ->  | BE16: =(IF(AW16="Gasoline",VLOOKUP(BC16,'Fuel Consumption'!$A$4:$H$1533,3),VLOOKUP(BC16,'Fuel Consumption'!$A$4:$H$1533,2)))*(IF(AW16="Gasoline",'EF Default Tables'!$F$21,(VLOOKUP(AW16,'EF Default Tables'!$B$17:$J$25,3,)))) ->  | BF16: =(IF(AW16="Gasoline",VLOOKUP(BB16,'Fuel Consumption'!$A$4:$H$1533,5),VLOOKUP(BB16,'Fuel Consumption'!$A$4:$H$1533,4)))*(IF(AW16="Diesel",'EF Default Tables'!$D$19,(VLOOKUP(AW16,'EF Default Tables'!$B$17:$J$25,5,)))) ->  | BG16: =(IF(AW16="Gasoline",VLOOKUP(BC16,'Fuel Consumption'!$A$4:$H$1533,5),VLOOKUP(BC16,'Fuel Consumption'!$A$4:$H$1533,4)))*(IF(AW16="Diesel",'EF Default Tables'!$D$19,(VLOOKUP(AW16,'EF Default Tables'!$B$17:$J$25,5,)))) ->  | BH16: =(IF($AW16="Gasoline",VLOOKUP(BB16,'Fuel Consumption'!$A$4:$H$1533,7),VLOOKUP(BB16,'Fuel Consumption'!$A$4:$H$1533,6)))*(IF($AW16="Diesel",'EF Default Tables'!$D$19,(VLOOKUP($AW16,'EF Default Tables'!$B$17:$J$25,5,)))) ->  | BI16: =(IF($AW16="Gasoline",VLOOKUP(BC16,'Fuel Consumption'!$A$4:$H$1533,7),VLOOKUP(BC16,'Fuel Consumption'!$A$4:$H$1533,6)))*(IF($AW16="Diesel",'EF Default Tables'!$D$19,(VLOOKUP($AW16,'EF Default Tables'!$B$17:$J$25,5,)))) ->  | BJ16: =(VLOOKUP(BB16,'Fuel Consumption'!$A$4:$H$1533,8))*(VLOOKUP($AW$16,'EF Default Tables'!$B$17:$J$25,3,)) ->  | BK16: =(VLOOKUP(BC16,'Fuel Consumption'!$A$4:$H$1533,8))*(VLOOKUP($AW$16,'EF Default Tables'!$B$17:$J$25,3,)) ->  | BL16: =(VLOOKUP($AW16,'EF Default Tables'!$B$17:$J$25,6,)) ->  | BM16: =(VLOOKUP($AW16,'EF Default Tables'!$B$17:$J$25,9,)) ->  | BN16: ='EF Default Tables'!H20 -> 7794.569931 | BO16: ='EF Default Tables'!I20 -> 8297.445411 | BP16: =(IF(C16="Transit Bus",BD16,IF(C16="Van",BF16,IF(C16="Cut-A-Way",BH16,IF(C16="Over-Road Coach",BJ16,IF(C16="Heavy Rail",BL16,IF(C16="Ferry",BM16,IF(C16="Light Rail",BN16,BO16)))))))) ->  | BQ16: =(IF(C16="Transit Bus",BE16,IF(C16="Van",BG16,IF(C16="Cut-A-Way",BI16,IF(C16="Over-Road Coach",BK16,IF(C16="Heavy Rail",BL16,IF(C16="Ferry",BM16,IF(C16="Light Rail",BN16,BO16)))))))) ->  | BR16: =VLOOKUP(AW16,'EF Default Tables'!$B$3:$P$11,5,) ->  | BS16: =BP16*$AZ16/1000000 ->  | BT16: =BQ16*$AZ16/1000000 ->  | BU16: =BR16*AX16/1000000 ->  | BV16: =IF(BU16>0,BU16*(E16-D16),AVERAGE(BS16:BT16)*(E16-D16)) ->  | BW16: =BV16-AU16 ->  | BX16: =IF($A16="New/Expanded Service", AV16, IF($A16="Cleaner Vehicles/Technology/Fuels",BW16,IF( $A16="System and Efficiency Improvements",U16, IF($A16="Fuel Reductions",BU16,"")))) -> 21415.21836
A17: ='Quantifiable Component 2'!$C$24 -> New/Expanded Service | B17: ='Quantifiable Component 2'!$C$25 -> Intercity/Express Bus (Long Distance) | C17: ='Quantifiable Component 2'!$C$26 -> Transit Bus | D17: ='Quantifiable Component 2'!$C$29 -> 2019 | E17: ='Quantifiable Component 2'!$C$30 -> 2031 | F17: ='Quantifiable Component 2'!$C$28 -> Sacramento Valley | G17: Sacramento Valley_2019 | H17: Sacramento Valley_2031 | I17: ='Quantifiable Component 2'!$C$33 -> 27288 | J17: =VLOOKUP((CONCATENATE(F17,"_",D17)),'Auto GHG'!$C$2:$D$2483,2,) -> 490.3041546 | K17: ='Quantifiable Component 2'!$C$34 -> 27450 | L17: =IF(E17<=2050,VLOOKUP((CONCATENATE(F17,"_",E17)),'Auto GHG'!$C$2:$D$2483,2,),VLOOKUP((CONCATENATE(F17,"_",2050)),'Auto GHG'!$C$2:$D$2483,2,)) -> 340.7729715 | M17: ='Quantifiable Component 2'!$C$35 -> 1 | N17: ='Quantifiable Component 2'!$C$36 -> 60 | O17: 1637280 | P17: 802.7651862 | Q17: 1647000 | R17: 561.253084 | S17: =('GHG Calcs'!O17+'GHG Calcs'!Q17)/2 -> 1642140 | T17: 8184.109621 | V17: ='Quantifiable Component 2'!$C$39 -> Electric | W17: ='Quantifiable Component 2'!$C$43 -> 0 | X17: ='Quantifiable Component 2'!$C$40 -> 2019 | Y17: 2019_2019 | Z17: 2031_2019 | AA17: ='Quantifiable Component 2'!$C$42 -> 151840 | AB17: =(IF(V17="Gasoline",VLOOKUP(Y17,'Fuel Consumption'!$A$4:$H$1533,3),VLOOKUP(Y17,'Fuel Consumption'!$A$4:$H$1533,2)))*(IF($V$17="Gasoline",'EF Default Tables'!$F$30,(VLOOKUP($V17,'EF Default Tables'!$B$26:$J$34,3,)))) -> 622.9170144 | AC17: =(IF(V17="Gasoline",VLOOKUP(Z17,'Fuel Consumption'!A4:H1533,3),VLOOKUP(Z17,'Fuel Consumption'!A4:H1533,2)))*(IF($V$17="Gasoline",'EF Default Tables'!$F$30,(VLOOKUP($V17,'EF Default Tables'!$B$26:$J$34,3,)))) -> 623.2829076 | AD17: =(IF(V17="Gasoline",VLOOKUP(Y17,'Fuel Consumption'!$A$4:$H$1533,5),VLOOKUP(Y17,'Fuel Consumption'!$A$4:$H$1533,4)))*(IF($V$17="Diesel",'EF Default Tables'!$D$28,(VLOOKUP($V17,'EF Default Tables'!$B$26:$J$34,5,)))) -> 169.2404114 | AE17: =(IF(V17="Gasoline",VLOOKUP(Z17,'Fuel Consumption'!$A$4:$H$1533,5),VLOOKUP(Z17,'Fuel Consumption'!$A$4:$H$1533,4)))*(IF($V$17="Diesel",'EF Default Tables'!$D$28,(VLOOKUP($V17,'EF Default Tables'!$B$26:$J$34,5,)))) -> 170.4256514 | AF17: =(IF(V17="Gasoline",VLOOKUP(Y17,'Fuel Consumption'!$A$4:$H$1533,7),VLOOKUP(Y17,'Fuel Consumption'!$A$4:$H$1533,6)))*(IF($V$17="Diesel",'EF Default Tables'!$D$28,(VLOOKUP($V17,'EF Default Tables'!$B$26:$J$34,5,)))) -> 188.2067858 | AG17: =(IF(V17="Gasoline",VLOOKUP(Z17,'Fuel Consumption'!$A$4:$H$1533,7),VLOOKUP(Z17,'Fuel Consumption'!$A$4:$H$1533,6)))*(IF($V$17="Diesel",'EF Default Tables'!$D$28,(VLOOKUP($V17,'EF Default Tables'!$B$26:$J$34,5,)))) -> 190.0404224 | AH17: =(VLOOKUP(Y17,'Fuel Consumption'!$A$4:$H$1533,8))*(VLOOKUP($V$17,'EF Default Tables'!$B$17:$J$25,3,)) -> 418.5977237 | AI17: =(VLOOKUP(Z17,'Fuel Consumption'!$A$4:$H$1533,8))*(VLOOKUP($V$17,'EF Default Tables'!$B$17:$J$25,3,)) -> 427.0635561 | AJ17: =(VLOOKUP($V17,'EF Default Tables'!$B$26:$J$34,6,)) -> 5591.75669 | AK17: =(VLOOKUP($V17,'EF Default Tables'!$B$26:$J$34,9,)) -> 378.54 | AL17: ='EF Default Tables'!H29 -> 7794.569931 | AM17: ='EF Default Tables'!I29 -> 8297.445411 | AN17: ='Quantifiable Component 2'!$C$38 -> Yes | AO17: 498.3336115 | AP17: 498.6263261 | AQ17: =VLOOKUP(V17,'EF Default Tables'!$B$3:$P$11,7,) -> 378.54 | AR17: 75.66697557 | AS17: 75.71142135 | AT17: 0 | AU17: 908.2703815 | AV17: 7275.83924 | AW17: ='Quantifiable Component 2'!$C$45 -> 0 | AX17: ='Quantifiable Component 2'!$C$48 -> 0 | AY17: ='Quantifiable Component 2'!$C$46 -> 0 | AZ17: ='Quantifiable Component 2'!$C$47 -> 0 | BA17: =VLOOKUP(AW17,'EF Default Tables'!$B$3:$P$11,5,) ->  | BB17: 2019_0 | BC17: 2031_0 | BD17: =(IF(AW17="Gasoline",VLOOKUP(BB17,'Fuel Consumption'!$A$4:$H$1533,3),VLOOKUP(BB17,'Fuel Consumption'!$A$4:$H$1533,2)))*(IF(AW17="Gasoline",'EF Default Tables'!$F$30,(VLOOKUP(AW17,'EF Default Tables'!$B$26:$J$34,3,)))) ->  | BE17: =(IF(AW17="Gasoline",VLOOKUP(BC17,'Fuel Consumption'!$A$4:$H$1533,3),VLOOKUP(BC17,'Fuel Consumption'!$A$4:$H$1533,2)))*(IF(AW17="Gasoline",'EF Default Tables'!$F$30,(VLOOKUP(AW17,'EF Default Tables'!$B$26:$J$34,3,)))) ->  | BF17: =(IF(AW17="Gasoline",VLOOKUP(BB17,'Fuel Consumption'!$A$4:$H$1533,5),VLOOKUP(BB17,'Fuel Consumption'!$A$4:$H$1533,4)))*(IF(AW17="Diesel",'EF Default Tables'!$D$28,(VLOOKUP(AW17,'EF Default Tables'!$B$26:$J$34,5,)))) ->  | BG17: =(IF(AW17="Gasoline",VLOOKUP(BC17,'Fuel Consumption'!$A$4:$H$1533,5),VLOOKUP(BC17,'Fuel Consumption'!$A$4:$H$1533,4)))*(IF(AW17="Diesel",'EF Default Tables'!$D$28,(VLOOKUP(AW17,'EF Default Tables'!$B$26:$J$34,5,)))) ->  | BH17: =(IF($AW17="Gasoline",VLOOKUP(BB17,'Fuel Consumption'!$A$4:$H$1533,7),VLOOKUP(BB17,'Fuel Consumption'!$A$4:$H$1533,6)))*(IF($AW17="Diesel",'EF Default Tables'!$D$28,(VLOOKUP(AW17,'EF Default Tables'!$B$26:$J$34,5,)))) ->  | BI17: =(IF($AW17="Gasoline",VLOOKUP(BC17,'Fuel Consumption'!$A$4:$H$1533,7),VLOOKUP(BC17,'Fuel Consumption'!$A$4:$H$1533,6)))*(IF($AW17="Diesel",'EF Default Tables'!$D$28,(VLOOKUP(AW17,'EF Default Tables'!$B$26:$J$34,5,)))) ->  | BJ17: =(VLOOKUP(BB17,'Fuel Consumption'!$A$4:$H$1533,8))*(VLOOKUP($AW$17,'EF Default Tables'!$B$17:$J$25,3,)) ->  | BK17: =(VLOOKUP(BC17,'Fuel Consumption'!$A$4:$H$1533,8))*(VLOOKUP($AW$17,'EF Default Tables'!$B$17:$J$25,3,)) ->  | BL17: =(VLOOKUP($AW17,'EF Default Tables'!$B$26:$J$34,6,)) ->  | BM17: =(VLOOKUP($AW17,'EF Default Tables'!$B$26:$J$34,9,)) ->  | BN17: ='EF Default Tables'!H29 -> 7794.569931 | BO17: ='EF Default Tables'!I29 -> 8297.445411 | BR17: =VLOOKUP(AW17,'EF Default Tables'!$B$3:$P$11,7,) ->  | BS17: =BP17*$AZ17/1000000 ->  | BX17: 7275.83924
A18: ='Quantifiable Component 3'!$C$24 -> 0 | B18: ='Quantifiable Component 3'!$C$25 -> 0 | C18: ='Quantifiable Component 3'!$C$26 -> 0 | D18: ='Quantifiable Component 3'!$C$29 -> 0 | E18: ='Quantifiable Component 3'!$C$30 -> 0 | F18: ='Quantifiable Component 3'!$C$28 -> 0 | G18: 0_0 | H18: 0_0 | I18: ='Quantifiable Component 3'!$C$33 -> 0 | J18: =VLOOKUP((CONCATENATE(F18,"_",D18)),'Auto GHG'!$C$2:$D$2483,2,) ->  | K18: ='Quantifiable Component 3'!$C$34 -> 0 | L18: =IF(E18<=2050,VLOOKUP((CONCATENATE(F18,"_",E18)),'Auto GHG'!$C$2:$D$2483,2,),VLOOKUP((CONCATENATE(F18,"_",2050)),'Auto GHG'!$C$2:$D$2483,2,)) ->  | M18: ='Quantifiable Component 3'!$C$35 -> 0 | N18: ='Quantifiable Component 3'!$C$36 -> 0 | O18: 0 | Q18: 0 | S18: =('GHG Calcs'!O18+'GHG Calcs'!Q18)/2 -> 0 | V18: ='Quantifiable Component 3'!$C$39 -> 0 | W18: ='Quantifiable Component 3'!$C$43 -> 0 | X18: ='Quantifiable Component 3'!$C$40 -> 0 | Y18: 0_0 | Z18: 0_0 | AA18: ='Quantifiable Component 3'!$C$42 -> 0 | AB18: =(IF(V18="Gasoline",VLOOKUP(Y18,'Fuel Consumption'!$A$4:$H$1533,3),VLOOKUP(Y18,'Fuel Consumption'!$A$4:$H$1533,2)))*(IF($V$18="Gasoline",'EF Default Tables'!$F$39,(VLOOKUP($V18,'EF Default Tables'!$B$35:$J$43,3,)))) ->  | AC18: =(IF(V18="Gasoline",VLOOKUP(Z18,'Fuel Consumption'!A4:H1533,3),VLOOKUP(Z18,'Fuel Consumption'!A4:H1533,2)))*(IF($V$18="Gasoline",'EF Default Tables'!$F$39,(VLOOKUP($V18,'EF Default Tables'!$B$35:$J$43,3,)))) ->  | AD18: =(IF(V18="Gasoline",VLOOKUP(Y18,'Fuel Consumption'!$A$4:$H$1533,5),VLOOKUP(Y18,'Fuel Consumption'!$A$4:$H$1533,4)))*(IF($V18="Diesel",'EF Default Tables'!$D$37,(VLOOKUP($V18,'EF Default Tables'!$B$35:$J$43,5,)))) ->  | AE18: =(IF(V18="Gasoline",VLOOKUP(Z18,'Fuel Consumption'!$A$4:$H$1533,5),VLOOKUP(Z18,'Fuel Consumption'!$A$4:$H$1533,4)))*(IF($V18="Diesel",'EF Default Tables'!$D$37,(VLOOKUP($V18,'EF Default Tables'!$B$35:$J$43,5,)))) ->  | AF18: =(IF(V18="Gasoline",VLOOKUP(Y18,'Fuel Consumption'!$A$4:$H$1533,7),VLOOKUP(Y18,'Fuel Consumption'!$A$4:$H$1533,6)))*(IF($V18="Diesel",'EF Default Tables'!$D$37,(VLOOKUP($V18,'EF Default Tables'!$B$35:$J$43,5,)))) ->  | AG18: =(IF(V18="Gasoline",VLOOKUP(Z18,'Fuel Consumption'!$A$4:$H$1533,7),VLOOKUP(Z18,'Fuel Consumption'!$A$4:$H$1533,6)))*(IF($V18="Diesel",'EF Default Tables'!$D$37,(VLOOKUP($V18,'EF Default Tables'!$B$35:$J$43,5,)))) ->  | AH18: =(VLOOKUP(Y18,'Fuel Consumption'!$A$4:$H$1533,8))*(VLOOKUP($V$18,'EF Default Tables'!$B$17:$J$25,3,)) ->  | AI18: =(VLOOKUP(Z18,'Fuel Consumption'!$A$4:$H$1533,8))*(VLOOKUP($V$18,'EF Default Tables'!$B$17:$J$25,3,)) ->  | AJ18: =(VLOOKUP($V18,'EF Default Tables'!$B$35:$J$43,6,)) ->  | AK18: =(VLOOKUP($V18,'EF Default Tables'!$B$35:$J$43,9,)) ->  | AL18: ='EF Default Tables'!H38 -> 7794.569931 | AM18: ='EF Default Tables'!I38 -> 8297.445411 | AN18: ='Quantifiable Component 3'!$C$38 -> 0 | AO18: 8297.445411 | AP18: 8297.445411 | AQ18: =VLOOKUP(V18,'EF Default Tables'!$B$3:$P$11,9,) ->  | AR18: 0 | AS18: 0 | AW18: ='Quantifiable Component 3'!$C$45 -> 0 | AX18: ='Quantifiable Component 3'!$C$48 -> 0 | AY18: ='Quantifiable Component 3'!$C$46 -> 0 | AZ18: ='Quantifiable Component 3'!$C$47 -> 0 | BA18: =VLOOKUP(AW18,'EF Default Tables'!$B$3:$P$11,5,) ->  | BB18: 0_0 | BC18: 0_0 | BD18: =(IF(AW18="Gasoline",VLOOKUP(BB18,'Fuel Consumption'!$A$4:$H$1533,3),VLOOKUP(BB18,'Fuel Consumption'!$A$4:$H$1533,2)))*(IF(AW18="Gasoline",'EF Default Tables'!$F$39,(VLOOKUP(AW18,'EF Default Tables'!$B$35:$J$43,3,)))) ->  | BE18: =(IF(AW18="Gasoline",VLOOKUP(BC18,'Fuel Consumption'!$A$4:$H$1533,3),VLOOKUP(BC18,'Fuel Consumption'!$A$4:$H$1533,2)))*(IF(AW18="Gasoline",'EF Default Tables'!$F$39,(VLOOKUP(AW18,'EF Default Tables'!$B$35:$J$43,3,)))) ->  | BF18: =(IF(AW18="Gasoline",VLOOKUP(BB18,'Fuel Consumption'!$A$4:$H$1533,5),VLOOKUP(BB18,'Fuel Consumption'!$A$4:$H$1533,4)))*(IF(AW18="Diesel",'EF Default Tables'!$D$37,(VLOOKUP(AW18,'EF Default Tables'!$B$35:$J$43,5,)))) ->  | BG18: =(IF(AW18="Gasoline",VLOOKUP(BC18,'Fuel Consumption'!$A$4:$H$1533,5),VLOOKUP(BC18,'Fuel Consumption'!$A$4:$H$1533,4)))*(IF(AW18="Diesel",'EF Default Tables'!$D$37,(VLOOKUP(AW18,'EF Default Tables'!$B$35:$J$43,5,)))) ->  | BH18: =(IF($AW18="Gasoline",VLOOKUP(BB18,'Fuel Consumption'!$A$4:$H$1533,7),VLOOKUP(BB18,'Fuel Consumption'!$A$4:$H$1533,6)))*(IF($AW18="Diesel",'EF Default Tables'!$D$37,(VLOOKUP($AW18,'EF Default Tables'!$B$35:$J$43,5,)))) ->  | BI18: =(IF($AW18="Gasoline",VLOOKUP(BC18,'Fuel Consumption'!$A$4:$H$1533,7),VLOOKUP(BC18,'Fuel Consumption'!$A$4:$H$1533,6)))*(IF($AW18="Diesel",'EF Default Tables'!$D$37,(VLOOKUP($AW18,'EF Default Tables'!$B$35:$J$43,5,)))) ->  | BJ18: =(VLOOKUP(BB18,'Fuel Consumption'!$A$4:$H$1533,8))*(VLOOKUP($AW$18,'EF Default Tables'!$B$17:$J$25,3,)) ->  | BK18: =(VLOOKUP(BC18,'Fuel Consumption'!$A$4:$H$1533,8))*(VLOOKUP($AW$18,'EF Default Tables'!$B$17:$J$25,3,)) ->  | BL18: =(VLOOKUP($AW18,'EF Default Tables'!$B$35:$J$43,6,)) ->  | BM18: =(VLOOKUP($AW18,'EF Default Tables'!$B$35:$J$43,9,)) ->  | BN18: ='EF Default Tables'!H38 -> 7794.569931 | BO18: ='EF Default Tables'!I38 -> 8297.445411 | BP18: 8297.445411 | BQ18: 8297.445411 | BR18: =VLOOKUP(AW18,'EF Default Tables'!$B$3:$P$11,9,) ->  | BS18: 0 | BT18: 0
A19: ='Quantifiable Component 4'!$C$24 -> New/Expanded Service | B19: ='Quantifiable Component 4'!$C$25 -> Intercity/Express Bus (Long Distance) | C19: ='Quantifiable Component 4'!$C$26 -> Transit Bus | D19: ='Quantifiable Component 4'!$C$29 -> 2019 | E19: ='Quantifiable Component 4'!$C$30 -> 2031 | F19: ='Quantifiable Component 4'!$C$28 -> Sacramento Valley | G19: Sacramento Valley_2019 | H19: Sacramento Valley_2031 | I19: ='Quantifiable Component 4'!$C$33 -> 760 | J19: =VLOOKUP((CONCATENATE(F19,"_",D19)),'Auto GHG'!$C$2:$D$2483,2,) -> 490.3041546 | K19: ='Quantifiable Component 4'!$C$34 -> 764 | L19: =IF(E19<=2050,VLOOKUP((CONCATENATE(F19,"_",E19)),'Auto GHG'!$C$2:$D$2483,2,),VLOOKUP((CONCATENATE(F19,"_",2050)),'Auto GHG'!$C$2:$D$2483,2,)) -> 340.7729715 | M19: ='Quantifiable Component 4'!$C$35 -> 1 | N19: ='Quantifiable Component 4'!$C$36 -> 60 | O19: 45600 | P19: 22.35786945 | Q19: 45840 | R19: 15.62103301 | S19: =('GHG Calcs'!O19+'GHG Calcs'!Q19)/2 -> 45720 | T19: 227.8734148 | V19: ='Quantifiable Component 4'!$C$39 -> Electric | W19: ='Quantifiable Component 4'!$C$43 -> 0 | X19: ='Quantifiable Component 4'!$C$40 -> 2019 | Y19: 2019_2019 | Z19: 2031_2019 | AA19: ='Quantifiable Component 4'!$C$42 -> 156000 | AB19: =(IF(V19="Gasoline",VLOOKUP(Y19,'Fuel Consumption'!$A$4:$H$1533,3),VLOOKUP(Y19,'Fuel Consumption'!$A$4:$H$1533,2)))*(IF($V$19="Gasoline",'EF Default Tables'!$F$48,(VLOOKUP($V19,'EF Default Tables'!$B$44:$J$52,3,)))) -> 622.9170144 | AC19: =(IF(V19="Gasoline",VLOOKUP(Z19,'Fuel Consumption'!A4:H1533,3),VLOOKUP(Z19,'Fuel Consumption'!A4:H1533,2)))*(IF($V$19="Gasoline",'EF Default Tables'!$F$48,(VLOOKUP($V19,'EF Default Tables'!$B$44:$J$52,3,)))) -> 623.2829076 | AD19: =(IF(V19="Gasoline",VLOOKUP(Y19,'Fuel Consumption'!$A$4:$H$1533,5),VLOOKUP(Y19,'Fuel Consumption'!$A$4:$H$1533,4)))*(IF($V19="Diesel",'EF Default Tables'!$D$46,(VLOOKUP($V19,'EF Default Tables'!$B$44:$J$52,5,)))) -> 169.2404114 | AE19: =(IF(V19="Gasoline",VLOOKUP(Z19,'Fuel Consumption'!$A$4:$H$1533,5),VLOOKUP(Z19,'Fuel Consumption'!$A$4:$H$1533,4)))*(IF($V19="Diesel",'EF Default Tables'!$D$46,(VLOOKUP($V19,'EF Default Tables'!$B$44:$J$52,5,)))) -> 170.4256514 | AF19: =(IF(V19="Gasoline",VLOOKUP(Y19,'Fuel Consumption'!$A$4:$H$1533,7),VLOOKUP(Y19,'Fuel Consumption'!$A$4:$H$1533,6)))*(IF($V19="Diesel",'EF Default Tables'!$D$46,(VLOOKUP($V19,'EF Default Tables'!$B$44:$J$52,5,)))) -> 188.2067858 | AG19: =(IF(V19="Gasoline",VLOOKUP(Z19,'Fuel Consumption'!$A$4:$H$1533,7),VLOOKUP(Z19,'Fuel Consumption'!$A$4:$H$1533,6)))*(IF($V19="Diesel",'EF Default Tables'!$D$46,(VLOOKUP($V19,'EF Default Tables'!$B$44:$J$52,5,)))) -> 190.0404224 | AH19: =(VLOOKUP(Y19,'Fuel Consumption'!$A$4:$H$1533,8))*(VLOOKUP($V$19,'EF Default Tables'!$B$17:$J$25,3,)) -> 418.5977237 | AI19: =(VLOOKUP(Z19,'Fuel Consumption'!$A$4:$H$1533,8))*(VLOOKUP($V$19,'EF Default Tables'!$B$17:$J$25,3,)) -> 427.0635561 | AJ19: =(VLOOKUP($V19,'EF Default Tables'!$B$44:$J$52,6,)) -> 5591.75669 | AK19: =(VLOOKUP($V19,'EF Default Tables'!$B$44:$J$52,9,)) -> 378.54 | AL19: ='EF Default Tables'!H47 -> 7794.569931 | AM19: ='EF Default Tables'!I47 -> 8297.445411 | AN19: ='Quantifiable Component 4'!$C$38 -> Yes | AO19: 498.3336115 | AP19: 498.6263261 | AQ19: =VLOOKUP(V19,'EF Default Tables'!$B$3:$P$11,11,) -> 378.54 | AR19: 77.7400434 | AS19: 77.78570686 | AT19: 0 | AU19: 933.1545016 | AV19: -705.2810868 | AW19: ='Quantifiable Component 4'!$C$45 -> 0 | AX19: ='Quantifiable Component 4'!$C$48 -> 0 | AY19: ='Quantifiable Component 4'!$C$46 -> 0 | AZ19: ='Quantifiable Component 4'!$C$47 -> 0 | BA19: =VLOOKUP(AW19,'EF Default Tables'!$B$3:$P$11,5,) ->  | BB19: 2019_0 | BC19: 2031_0 | BD19: =(IF(AW19="Gasoline",VLOOKUP(BB19,'Fuel Consumption'!$A$4:$H$1533,3),VLOOKUP(BB19,'Fuel Consumption'!$A$4:$H$1533,2)))*(IF(AW19="Gasoline",'EF Default Tables'!$F$48,(VLOOKUP(AW19,'EF Default Tables'!$B$44:$J$52,3,)))) ->  | BE19: =(IF(AW19="Gasoline",VLOOKUP(BC19,'Fuel Consumption'!$A$4:$H$1533,3),VLOOKUP(BC19,'Fuel Consumption'!$A$4:$H$1533,2)))*(IF(AW19="Gasoline",'EF Default Tables'!$F$48,(VLOOKUP(AW19,'EF Default Tables'!$B$44:$J$52,3,)))) ->  | BF19: =(IF(AW19="Gasoline",VLOOKUP(BB19,'Fuel Consumption'!$A$4:$H$1533,5),VLOOKUP(BB19,'Fuel Consumption'!$A$4:$H$1533,4)))*(IF(AW19="Diesel",'EF Default Tables'!$D$46,(VLOOKUP(AW19,'EF Default Tables'!$B$44:$J$52,5,)))) ->  | BG19: =(IF(AW19="Gasoline",VLOOKUP(BC19,'Fuel Consumption'!$A$4:$H$1533,5),VLOOKUP(BC19,'Fuel Consumption'!$A$4:$H$1533,4)))*(IF(AW19="Diesel",'EF Default Tables'!$D$46,(VLOOKUP(AW19,'EF Default Tables'!$B$44:$J$52,5,)))) ->  | BH19: =(IF(AW19="Gasoline",VLOOKUP(BB19,'Fuel Consumption'!$A$4:$H$1533,7),VLOOKUP(BB19,'Fuel Consumption'!$A$4:$H$1533,6)))*(IF($AW19="Diesel",'EF Default Tables'!$D$46,(VLOOKUP($AW19,'EF Default Tables'!$B$44:$J$52,5,)))) ->  | BI19: =(IF(AW19="Gasoline",VLOOKUP(BC19,'Fuel Consumption'!$A$4:$H$1533,7),VLOOKUP(BC19,'Fuel Consumption'!$A$4:$H$1533,6)))*(IF($AW19="Diesel",'EF Default Tables'!$D$46,(VLOOKUP($AW19,'EF Default Tables'!$B$44:$J$52,5,)))) ->  | BJ19: =(VLOOKUP(BB19,'Fuel Consumption'!$A$4:$H$1533,8))*(VLOOKUP($AW$19,'EF Default Tables'!$B$17:$J$25,3,)) ->  | BK19: =(VLOOKUP(BC19,'Fuel Consumption'!$A$4:$H$1533,8))*(VLOOKUP($AW$19,'EF Default Tables'!$B$17:$J$25,3,)) ->  | BL19: =(VLOOKUP($AW19,'EF Default Tables'!$B$44:$J$52,6,)) ->  | BM19: =(VLOOKUP($AW19,'EF Default Tables'!$B$44:$J$52,9,)) ->  | BN19: ='EF Default Tables'!H47 -> 7794.569931 | BO19: ='EF Default Tables'!I47 -> 8297.445411 | BR19: =VLOOKUP(AW19,'EF Default Tables'!$B$3:$P$11,11,) ->  | BX19: -705.2810868
A20: ='Quantifiable Component 5'!$C$24 -> New/Expanded Service | B20: ='Quantifiable Component 5'!$C$25 -> Intercity/Express Bus (Long Distance) | C20: ='Quantifiable Component 5'!$C$26 -> Transit Bus | D20: ='Quantifiable Component 5'!$C$29 -> 2019 | E20: ='Quantifiable Component 5'!$C$30 -> 2031 | F20: ='Quantifiable Component 5'!$C$28 -> Sacramento Valley | G20: Sacramento Valley_2019 | H20: Sacramento Valley_2031 | I20: ='Quantifiable Component 5'!$C$33 -> 167 | J20: =VLOOKUP((CONCATENATE(F20,"_",D20)),'Auto GHG'!$C$2:$D$2483,2,) -> 490.3041546 | K20: ='Quantifiable Component 5'!$C$34 -> 168 | L20: =IF(E20<=2050,VLOOKUP((CONCATENATE(F20,"_",E20)),'Auto GHG'!$C$2:$D$2483,2,),VLOOKUP((CONCATENATE(F20,"_",2050)),'Auto GHG'!$C$2:$D$2483,2,)) -> 340.7729715 | M20: ='Quantifiable Component 5'!$C$35 -> 1 | N20: ='Quantifiable Component 5'!$C$36 -> 60 | O20: 10020 | P20: 4.912847629 | Q20: 10080 | R20: 3.434991552 | S20: =('GHG Calcs'!O20+'GHG Calcs'!Q20)/2 -> 10050 | T20: 50.08703509 | V20: ='Quantifiable Component 5'!$C$39 -> Electric | W20: ='Quantifiable Component 5'!$C$43 -> 0 | X20: ='Quantifiable Component 5'!$C$40 -> 2019 | Y20: 2019_2019 | Z20: 2031_2019 | AA20: ='Quantifiable Component 5'!$C$42 -> 104000 | AB20: =(IF(V20="Gasoline",VLOOKUP(Y20,'Fuel Consumption'!$A$4:$H$1533,3),VLOOKUP(Y20,'Fuel Consumption'!$A$4:$H$1533,2)))*(IF($V$20="Gasoline",'EF Default Tables'!$F$57,(VLOOKUP($V20,'EF Default Tables'!$B$53:$J$61,3,)))) -> 622.9170144 | AC20: =(IF(V20="Gasoline",VLOOKUP(Z20,'Fuel Consumption'!A4:H1533,3),VLOOKUP(Z20,'Fuel Consumption'!A4:H1533,2)))*(IF($V$20="Gasoline",'EF Default Tables'!$F$57,(VLOOKUP($V20,'EF Default Tables'!$B$53:$J$61,3,)))) -> 623.2829076 | AD20: =(IF(V20="Gasoline",VLOOKUP(Y20,'Fuel Consumption'!$A$4:$H$1533,5),VLOOKUP(Y20,'Fuel Consumption'!$A$4:$H$1533,4)))*(IF($V20="Diesel",'EF Default Tables'!$D$55,(VLOOKUP($V20,'EF Default Tables'!$B$53:$J$61,5,)))) -> 169.2404114 | AE20: =(IF(V20="Gasoline",VLOOKUP(Z20,'Fuel Consumption'!$A$4:$H$1533,5),VLOOKUP(Z20,'Fuel Consumption'!$A$4:$H$1533,4)))*(IF($V20="Diesel",'EF Default Tables'!$D$55,(VLOOKUP($V20,'EF Default Tables'!$B$53:$J$61,5,)))) -> 170.4256514 | AF20: =(IF(V20="Gasoline",VLOOKUP(Y20,'Fuel Consumption'!$A$4:$H$1533,7),VLOOKUP(Y20,'Fuel Consumption'!$A$4:$H$1533,6)))*(IF($V20="Diesel",'EF Default Tables'!$D$55,(VLOOKUP($V20,'EF Default Tables'!$B$53:$J$61,5,)))) -> 188.2067858 | AG20: =(IF(V20="Gasoline",VLOOKUP(Z20,'Fuel Consumption'!$A$4:$H$1533,7),VLOOKUP(Z20,'Fuel Consumption'!$A$4:$H$1533,6)))*(IF($V20="Diesel",'EF Default Tables'!$D$55,(VLOOKUP($V20,'EF Default Tables'!$B$53:$J$61,5,)))) -> 190.0404224 | AH20: =(VLOOKUP(Y20,'Fuel Consumption'!$A$4:$H$1533,8))*(VLOOKUP($V$20,'EF Default Tables'!$B$17:$J$25,3,)) -> 418.5977237 | AI20: =(VLOOKUP(Z20,'Fuel Consumption'!$A$4:$H$1533,8))*(VLOOKUP($V$20,'EF Default Tables'!$B$17:$J$25,3,)) -> 427.0635561 | AJ20: =(VLOOKUP($V20,'EF Default Tables'!$B$53:$J$61,6,)) -> 5591.75669 | AK20: =(VLOOKUP($V20,'EF Default Tables'!$B$53:$J$61,9,)) -> 378.54 | AL20: ='EF Default Tables'!H56 -> 7794.569931 | AM20: ='EF Default Tables'!I56 -> 8297.445411 | AN20: ='Quantifiable Component 5'!$C$38 -> No | AO20: 622.9170144 | AP20: 623.2829076 | AQ20: =VLOOKUP(V20,'EF Default Tables'!$B$3:$P$11,13,) -> 378.54 | AR20: 64.7833695 | AS20: 64.82142239 | AT20: 0 | AU20: 777.6287513 | AV20: -727.5417162 | AW20: ='Quantifiable Component 5'!$C$45 -> 0 | AX20: ='Quantifiable Component 5'!$C$48 -> 0 | AY20: ='Quantifiable Component 5'!$C$46 -> 0 | AZ20: ='Quantifiable Component 5'!$C$47 -> 0 | BA20: =VLOOKUP(AW20,'EF Default Tables'!$B$3:$P$11,5,) ->  | BB20: 2019_0 | BC20: 2031_0 | BD20: =(IF(AW20="Gasoline",VLOOKUP(BB20,'Fuel Consumption'!$A$4:$H$1533,3),VLOOKUP(BB20,'Fuel Consumption'!$A$4:$H$1533,2)))*(IF(AW20="Gasoline",'EF Default Tables'!$F$57,(VLOOKUP(AW20,'EF Default Tables'!$B$53:$J$61,3,)))) ->  | BE20: =(IF(AW20="Gasoline",VLOOKUP(BC20,'Fuel Consumption'!$A$4:$H$1533,3),VLOOKUP(BC20,'Fuel Consumption'!$A$4:$H$1533,2)))*(IF(AW20="Gasoline",'EF Default Tables'!$F$57,(VLOOKUP(AW20,'EF Default Tables'!$B$53:$J$61,3,)))) ->  | BF20: =(IF(AW20="Gasoline",VLOOKUP(BB20,'Fuel Consumption'!$A$4:$H$1533,5),VLOOKUP(BB20,'Fuel Consumption'!$A$4:$H$1533,4)))*(IF(AW20="Diesel",'EF Default Tables'!$D$55,(VLOOKUP(AW20,'EF Default Tables'!$B$53:$J$61,5,)))) ->  | BG20: =(IF(AW20="Gasoline",VLOOKUP(BC20,'Fuel Consumption'!$A$4:$H$1533,5),VLOOKUP(BC20,'Fuel Consumption'!$A$4:$H$1533,4)))*(IF(AW20="Diesel",'EF Default Tables'!$D$55,(VLOOKUP(AW20,'EF Default Tables'!$B$53:$J$61,5,)))) ->  | BH20: =(IF($AW20="Gasoline",VLOOKUP(BB20,'Fuel Consumption'!$A$4:$H$1533,7),VLOOKUP(BB20,'Fuel Consumption'!$A$4:$H$1533,6)))*(IF($AW20="Diesel",'EF Default Tables'!$D$55,(VLOOKUP($AW20,'EF Default Tables'!$B$53:$J$61,5,)))) ->  | BI20: =(IF($AW20="Gasoline",VLOOKUP(BC20,'Fuel Consumption'!$A$4:$H$1533,7),VLOOKUP(BC20,'Fuel Consumption'!$A$4:$H$1533,6)))*(IF($AW20="Diesel",'EF Default Tables'!$D$55,(VLOOKUP($AW20,'EF Default Tables'!$B$53:$J$61,5,)))) ->  | BJ20: =(VLOOKUP(BB20,'Fuel Consumption'!$A$4:$H$1533,8))*(VLOOKUP($AW$20,'EF Default Tables'!$B$17:$J$25,3,)) ->  | BK20: =(VLOOKUP(BC20,'Fuel Consumption'!$A$4:$H$1533,8))*(VLOOKUP($AW$20,'EF Default Tables'!$B$17:$J$25,3,)) ->  | BL20: =(VLOOKUP($AW20,'EF Default Tables'!$B$53:$J$61,6,)) ->  | BM20: =(VLOOKUP($AW20,'EF Default Tables'!$B$53:$J$61,9,)) ->  | BN20: ='EF Default Tables'!H56 -> 7794.569931 | BO20: ='EF Default Tables'!I56 -> 8297.445411 | BR20: =VLOOKUP(AW20,'EF Default Tables'!$B$3:$P$11,13,) ->  | BX20: -727.5417162
A21: ='Quantifiable Component 6'!$C$24 -> Cleaner Vehicles/Technology/Fuels | B21: ='Quantifiable Component 6'!$C$25 -> Intercity/Express Bus (Long Distance) | C21: ='Quantifiable Component 6'!$C$26 -> Over-Road Coach | D21: ='Quantifiable Component 6'!$C$29 -> 2019 | E21: ='Quantifiable Component 6'!$C$30 -> 2031 | F21: ='Quantifiable Component 6'!$C$28 -> Sacramento Valley | G21: Sacramento Valley_2019 | H21: Sacramento Valley_2031 | I21: ='Quantifiable Component 6'!$C$33 -> 0 | J21: =VLOOKUP((CONCATENATE(F21,"_",D21)),'Auto GHG'!$C$2:$D$2483,2,) -> 490.3041546 | K21: ='Quantifiable Component 6'!$C$34 -> 0 | L21: =IF(E21<=2050,VLOOKUP((CONCATENATE(F21,"_",E21)),'Auto GHG'!$C$2:$D$2483,2,),VLOOKUP((CONCATENATE(F21,"_",2050)),'Auto GHG'!$C$2:$D$2483,2,)) -> 340.7729715 | M21: ='Quantifiable Component 6'!$C$35 -> 0 | N21: ='Quantifiable Component 6'!$C$36 -> 0 | O21: 0 | P21: 0 | Q21: 0 | R21: 0 | S21: =('GHG Calcs'!O21+'GHG Calcs'!Q21)/2 -> 0 | T21: 0 | V21: ='Quantifiable Component 6'!$C$39 -> Electric | W21: ='Quantifiable Component 6'!$C$43 -> 0 | X21: ='Quantifiable Component 6'!$C$40 -> 2019 | Y21: 2019_2019 | Z21: 2031_2019 | AA21: ='Quantifiable Component 6'!$C$42 -> 204400 | AB21: =(IF(V21="Gasoline",VLOOKUP(Y21,'Fuel Consumption'!$A$4:$H$1533,3),VLOOKUP(Y21,'Fuel Consumption'!$A$4:$H$1533,2)))*(IF($V$21="Gasoline",'EF Default Tables'!$F$66,(VLOOKUP($V21,'EF Default Tables'!$B$62:$J$70,3,)))) -> 622.9170144 | AC21: =(IF(V21="Gasoline",VLOOKUP(Z21,'Fuel Consumption'!A4:H1533,3),VLOOKUP(Z21,'Fuel Consumption'!A4:H1533,2)))*(IF($V$21="Gasoline",'EF Default Tables'!$F$66,(VLOOKUP($V21,'EF Default Tables'!$B$62:$J$70,3,)))) -> 623.2829076 | AD21: =(IF(V21="Gasoline",VLOOKUP(Y21,'Fuel Consumption'!$A$4:$H$1533,5),VLOOKUP(Y21,'Fuel Consumption'!$A$4:$H$1533,4)))*(IF($V21="Diesel",'EF Default Tables'!$D$64,(VLOOKUP($V21,'EF Default Tables'!$B$62:$J$70,5,)))) -> 169.2404114 | AE21: =(IF(V21="Gasoline",VLOOKUP(Z21,'Fuel Consumption'!$A$4:$H$1533,5),VLOOKUP(Z21,'Fuel Consumption'!$A$4:$H$1533,4)))*(IF($V21="Diesel",'EF Default Tables'!$D$64,(VLOOKUP($V21,'EF Default Tables'!$B$62:$J$70,5,)))) -> 170.4256514 | AF21: =(IF(V21="Gasoline",VLOOKUP(Y21,'Fuel Consumption'!$A$4:$H$1533,7),VLOOKUP(Y21,'Fuel Consumption'!$A$4:$H$1533,6)))*(IF($V21="Diesel",'EF Default Tables'!$D$64,(VLOOKUP($V21,'EF Default Tables'!$B$62:$J$70,5,)))) -> 188.2067858 | AG21: =(IF(V21="Gasoline",VLOOKUP(Z21,'Fuel Consumption'!$A$4:$H$1533,7),VLOOKUP(Z21,'Fuel Consumption'!$A$4:$H$1533,6)))*(IF($V21="Diesel",'EF Default Tables'!$D$64,(VLOOKUP($V21,'EF Default Tables'!$B$62:$J$70,5,)))) -> 190.0404224 | AH21: =(VLOOKUP(Y21,'Fuel Consumption'!$A$4:$H$1533,8))*(VLOOKUP($V$21,'EF Default Tables'!$B$17:$J$25,3,)) -> 418.5977237 | AI21: =(VLOOKUP(Z21,'Fuel Consumption'!$A$4:$H$1533,8))*(VLOOKUP($V$21,'EF Default Tables'!$B$17:$J$25,3,)) -> 427.0635561 | AJ21: =(VLOOKUP($V21,'EF Default Tables'!$B$62:$J$70,6,)) -> 5591.75669 | AK21: =(VLOOKUP($V21,'EF Default Tables'!$B$62:$J$70,9,)) -> 378.54 | AL21: ='EF Default Tables'!H65 -> 7794.569931 | AM21: ='EF Default Tables'!I65 -> 8297.445411 | AN21: ='Quantifiable Component 6'!$C$38 -> No | AO21: 418.5977237 | AP21: 427.0635561 | AQ21: =VLOOKUP(V21,'EF Default Tables'!$B$3:$P$11,15,) -> 378.54 | AR21: 85.56137472 | AS21: 87.29179086 | AT21: 0 | AU21: 1037.118993 | AV21: -1037.118993 | AW21: ='Quantifiable Component 6'!$C$45 -> Gasoline | AX21: ='Quantifiable Component 6'!$C$48 -> 0 | AY21: ='Quantifiable Component 6'!$C$46 -> 2010 | AZ21: ='Quantifiable Component 6'!$C$47 -> 204400 | BA21: =VLOOKUP(AW21,'EF Default Tables'!$B$3:$P$11,5,) -> 11405.83506 | BB21: 2019_2010 | BC21: 2031_2010 | BD21: =(IF(AW21="Gasoline",VLOOKUP(BB21,'Fuel Consumption'!$A$4:$H$1533,3),VLOOKUP(BB21,'Fuel Consumption'!$A$4:$H$1533,2)))*(IF(AW21="Gasoline",'EF Default Tables'!$F$66,(VLOOKUP(AW21,'EF Default Tables'!$B$62:$J$70,3,)))) -> 2338.187061 | BE21: =(IF(AW21="Gasoline",VLOOKUP(BC21,'Fuel Consumption'!$A$4:$H$1533,3),VLOOKUP(BC21,'Fuel Consumption'!$A$4:$H$1533,2)))*(IF(AW21="Gasoline",'EF Default Tables'!$F$66,(VLOOKUP(AW21,'EF Default Tables'!$B$62:$J$70,3,)))) -> 2340.763009 | BF21: =(IF(AW21="Gasoline",VLOOKUP(BB21,'Fuel Consumption'!$A$4:$H$1533,5),VLOOKUP(BB21,'Fuel Consumption'!$A$4:$H$1533,4)))*(IF(AW21="Diesel",'EF Default Tables'!$D$64,(VLOOKUP(AW21,'EF Default Tables'!$B$62:$J$70,5,)))) -> 1111.864451 | BG21: =(IF(AW21="Gasoline",VLOOKUP(BC21,'Fuel Consumption'!$A$4:$H$1533,5),VLOOKUP(BC21,'Fuel Consumption'!$A$4:$H$1533,4)))*(IF(AW21="Diesel",'EF Default Tables'!$D$64,(VLOOKUP(AW21,'EF Default Tables'!$B$62:$J$70,5,)))) -> 1145.015663 | BH21: =(IF($AW21="Gasoline",VLOOKUP(BB21,'Fuel Consumption'!$A$4:$H$1533,7),VLOOKUP(BB21,'Fuel Consumption'!$A$4:$H$1533,6)))*(IF($AW21="Diesel",'EF Default Tables'!$D$64,(VLOOKUP($AW21,'EF Default Tables'!$B$62:$J$70,5,)))) -> 1223.270585 | BI21: =(IF($AW21="Gasoline",VLOOKUP(BC21,'Fuel Consumption'!$A$4:$H$1533,7),VLOOKUP(BC21,'Fuel Consumption'!$A$4:$H$1533,6)))*(IF($AW21="Diesel",'EF Default Tables'!$D$64,(VLOOKUP($AW21,'EF Default Tables'!$B$62:$J$70,5,)))) -> 1255.808267 | BJ21: =(VLOOKUP(BB21,'Fuel Consumption'!$A$4:$H$1533,8))*(VLOOKUP($AW$21,'EF Default Tables'!$B$17:$J$25,3,)) -> 2759.671191 | BK21: =(VLOOKUP(BC21,'Fuel Consumption'!$A$4:$H$1533,8))*(VLOOKUP($AW$21,'EF Default Tables'!$B$17:$J$25,3,)) -> 2932.29589 | BL21: =(VLOOKUP($AW21,'EF Default Tables'!$B$62:$J$70,6,)) -> 0 | BM21: =(VLOOKUP($AW21,'EF Default Tables'!$B$62:$J$70,9,)) -> 11405.83506 | BN21: ='EF Default Tables'!H65 -> 7794.569931 | BO21: ='EF Default Tables'!I65 -> 8297.445411 | BP21: 2759.671191 | BQ21: 2932.29589 | BR21: =VLOOKUP(AW21,'EF Default Tables'!$B$3:$P$11,15,) -> 11405.83506 | BS21: 564.0767914 | BT21: 599.3612799 | BU21: 0 | BV21: 6980.628428 | BW21: 5943.509434 | BX21: 5943.509434

Sheet Co-Benefit Calcs (hidden)
B1: C&T Co-Benefits from Displaced Autos | P1: New Service/Vehicle | BM1: Old Vehicle or Fuel Reductions
Q2: BUS | Y2: Van | AG2: Shuttle | AO2: Over Road Coach | AW2: Train (g/gal) | BA2: Ferry | BE2: Fuel Consumption Rates | BN2: BUS | BV2: Van | CD2: Shuttle | CL2: Over Road Coach | CT2: Train (g/gal) | CX2: Fuel Consumption Rates
B3: ='GHG Calcs'!O15 -> Yr1 Annual Auto VMT Reduced in miles per year | C3: ='GHG Calcs'!Q15 -> YrF Annual Auto VMT Reduced in miles per year | D3: Yr1 ROG Emission Reductions | E3: YrF ROG Emission Reductions | F3: Yr1 NOx Emission Reductions | G3: YrF NOx Emission Reductions | H3: Yr1 PM 2.5 Emission Reductions | I3: YrF PM 2.5 Emission Reductions | J3: Yr1Diesel PM 10 Emission Reductions | K3: YrF Diesel PM 10 Emission Reductions | L3: ROG Emission Reductions | M3: NOx Emission Reductions | N3: PM 2.5 Emission Reductions | O3: Diesel PM 10 Emission Reductions | Q3: Yr1 ROG | R3: YrF ROG | S3: Yr1 NOx | T3: YrF NOx | U3: Yr1 PM2.5 | V3: YrF PM 2.5 | W3: Yr1 Dsl PM 10 | X3: YrF Dsl PM10 | Y3: Yr1 ROG | Z3: YrF ROG | AA3: Yr1 NOx | AB3: YrF NOx | AC3: Yr1 PM2.5 | AD3: YrF PM 2.5 | AE3: Yr1 Dsl PM 10 | AF3: YrF Dsl PM10 | AG3: Yr1 ROG | AH3: YrF ROG | AI3: Yr1 NOx | AJ3: YrF NOx | AK3: Yr1 PM2.5 | AL3: YrF PM 2.5 | AM3: Yr1 Dsl PM 10 | AN3: YrF Dsl PM10 | AO3: Yr1 ROG | AP3: YrF ROG | AQ3: Yr1 NOx | AR3: YrF NOx | AS3: Yr1 PM2.5 | AT3: YrF PM 2.5 | AU3: Yr1 Dsl PM 10 | AV3: YrF Dsl PM10 | AW3: ROG | AX3: NOx | AY3: PM 2.5 | AZ3: PM 10 | BA3: ROG | BB3: NOx | BC3: PM 2.5 | BD3: PM 10 | BE3: Bus Yr1 | BF3: Bus YrF | BG3: Van Yr1 | BH3: Van YrF | BI3: Shuttle Yr1 | BJ3: Shuttle Yr F | BK3: Over-Road Coach Yr1 | BL3: Over-Road Coach Yr F | BN3: Yr1 ROG | BO3: YrF ROG | BP3: Yr1 NOx | BQ3: YrF NOx | BR3: Yr1 PM2.5 | BS3: YrF PM 2.5 | BT3: Yr1 Dsl PM 10 | BU3: YrF Dsl PM10 | BV3: Yr1 ROG | BW3: YrF ROG | BX3: Yr1 NOx | BY3: YrF NOx | BZ3: Yr1 PM2.5 | CA3: YrF PM 2.5 | CB3: Yr1 Dsl PM 10 | CC3: YrF Dsl PM10 | CD3: Yr1 ROG | CE3: YrF ROG | CF3: Yr1 NOx | CG3: YrF NOx | CH3: Yr1 PM2.5 | CI3: YrF PM 2.5 | CJ3: Yr1 Dsl PM 10 | CK3: YrF Dsl PM10 | CL3: Yr1 ROG | CM3: YrF ROG | CN3: Yr1 NOx | CO3: YrF NOx | CP3: Yr1 PM2.5 | CQ3: YrF PM 2.5 | CR3: Yr1 Dsl PM 10 | CS3: YrF Dsl PM10 | CT3: ROG | CU3: NOx | CV3: PM 2.5 | CW3: PM 10 | CX3: Bus Yr1 | CY3: Bus YrF | CZ3: Van Yr1 | DA3: Van YrF | DB3: Shuttle Yr1 | DC3: Shuttle Yr F | DD3: Over-Road Coach Yr1 | DE3: Over-Road Coach Yr F
A4: Quantifiable Component 1 | B4: ='GHG Calcs'!O16 -> 4776354 | C4: ='GHG Calcs'!Q16 -> 4804506 | D4: =VLOOKUP('GHG Calcs'!G16,'Auto C&T EF'!C4:I2631,2,)*B4 -> 116259.0014 | E4: =VLOOKUP('GHG Calcs'!H16,'Auto C&T EF'!C4:I2631,2,)*C4 -> 36200.44958 | F4: =VLOOKUP('GHG Calcs'!$G16,'Auto C&T EF'!C4:I2631,3,)*$B4 -> 565956.2402 | G4: =VLOOKUP('GHG Calcs'!$H16,'Auto C&T EF'!C4:I2631,3,)*$C4 -> 190742.3312 | H4: =VLOOKUP('GHG Calcs'!$G16,'Auto C&T EF'!C4:I2631,5,)*$B4 -> 8630.343273 | I4: =VLOOKUP('GHG Calcs'!$H16,'Auto C&T EF'!C4:I2631,5,)*$C4 -> 5831.533608 | J4: =VLOOKUP('GHG Calcs'!$G16,'Auto C&T EF'!C4:I2631,6,)*$B4 -> 75252.89687 | K4: =VLOOKUP('GHG Calcs'!$H16,'Auto C&T EF'!C4:I2631,6,)*$C4 -> 9714.705247 | L4: =AVERAGE(D4:E4)*('GHG Calcs'!E16-'GHG Calcs'!D16) -> 914756.7061 | M4: =AVERAGE(F4:G4)*('GHG Calcs'!E16-'GHG Calcs'!D16) -> 4540191.428 | N4: =AVERAGE(H4:I4)*('GHG Calcs'!E16-'GHG Calcs'!D16) -> 86771.26128 | O4: =AVERAGE(J4:K4)*('GHG Calcs'!E16-'GHG Calcs'!D16) -> 509805.6127 | Q4: =IF('GHG Calcs'!$V16="Gas",VLOOKUP('GHG Calcs'!$Y16,'Bus C&T EF'!$D$3:$K$1532,3,),VLOOKUP('GHG Calcs'!$Y16,'Bus C&T EF'!$D$3:$K$1532,2,))/IF('GHG Calcs'!AX16>0,$BE4,1) -> 0.02278452189 | R4: =IF('GHG Calcs'!$V16="Gas",VLOOKUP('GHG Calcs'!$Z16,'Bus C&T EF'!$D$3:$K$1532,3,),VLOOKUP('GHG Calcs'!$Z16,'Bus C&T EF'!$D$3:$K$1532,2,))/IF('GHG Calcs'!AX16>0,$BF4,1) -> 0.02281302426 | S4: =IF('GHG Calcs'!$V16="Gas",VLOOKUP('GHG Calcs'!$Y16,'Bus C&T EF'!$D$3:$K$1532,5,),VLOOKUP('GHG Calcs'!$Y16,'Bus C&T EF'!$D$3:$K$1532,4,))/IF('GHG Calcs'!AX16>0,$BE4,1) -> 0.8119896174 | T4: =IF('GHG Calcs'!$V16="Gas",VLOOKUP('GHG Calcs'!$Z16,'Bus C&T EF'!$D$3:$K$1532,5,),VLOOKUP('GHG Calcs'!$Z16,'Bus C&T EF'!$D$3:$K$1532,4,))/IF('GHG Calcs'!AX16>0,$BF4,1) -> 0.8145974878 | U4: =IF('GHG Calcs'!$V16="Gas",VLOOKUP('GHG Calcs'!$Y16,'Bus C&T EF'!$D$3:$K$1532,7,),VLOOKUP('GHG Calcs'!$Y16,'Bus C&T EF'!$D$3:$K$1532,6,))/IF('GHG Calcs'!AX16>0,$BE4,1) -> 0.003059948604 | V4: =IF('GHG Calcs'!$V16="Gas",VLOOKUP('GHG Calcs'!$Z16,'Bus C&T EF'!$D$3:$K$1532,7,),VLOOKUP('GHG Calcs'!$Z16,'Bus C&T EF'!$D$3:$K$1532,6,))/IF('GHG Calcs'!AX16>0,$BF4,1) -> 0.003074245955 | W4: =IF('GHG Calcs'!$V16="Gas",0,VLOOKUP('GHG Calcs'!$Y16,'Bus C&T EF'!$D$3:$K$1532,8,))/IF('GHG Calcs'!AX16>0,$BE4,1) -> 0.003198305902 | X4: =IF('GHG Calcs'!$V16="Gas",0,VLOOKUP('GHG Calcs'!$Z16,'Bus C&T EF'!$D$3:$K$1532,8,))/IF('GHG Calcs'!AX16>0,$BF4,1) -> 0.003213249715 | Y4: =IF('GHG Calcs'!$V16="Gas",VLOOKUP('GHG Calcs'!$Y16,'Van C&T EF'!$D$3:$K$1532,3,),VLOOKUP('GHG Calcs'!$Y16,'Van C&T EF'!$D$3:$K$1532,2,))/IF('GHG Calcs'!AX16>0,$BG4,1) -> 0.06390295522 | Z4: =IF('GHG Calcs'!$V16="Gas",VLOOKUP('GHG Calcs'!$Z16,'Van C&T EF'!$D$3:$K$1532,3,),VLOOKUP('GHG Calcs'!$Z16,'Van C&T EF'!$D$3:$K$1532,2,))/IF('GHG Calcs'!AX16>0,$BH4,1) -> 0.08451233041 | AA4: =IF('GHG Calcs'!$V16="Gas",VLOOKUP('GHG Calcs'!$Y16,'Van C&T EF'!$D$3:$K$1532,5,),VLOOKUP('GHG Calcs'!$Y16,'Van C&T EF'!$D$3:$K$1532,4,))/IF('GHG Calcs'!AX16>0,$BG4,1) -> 0.06947775992 | AB4: =IF('GHG Calcs'!$V16="Gas",VLOOKUP('GHG Calcs'!$Z16,'Van C&T EF'!$D$3:$K$1532,5,),VLOOKUP('GHG Calcs'!$Z16,'Van C&T EF'!$D$3:$K$1532,4,))/IF('GHG Calcs'!AX16>0,$BH4,1) -> 0.1230260845 | AC4: =IF('GHG Calcs'!$V16="Gas",VLOOKUP('GHG Calcs'!$Y16,'Van C&T EF'!$D$3:$K$1532,7,),VLOOKUP('GHG Calcs'!$Y16,'Van C&T EF'!$D$3:$K$1532,6,))/IF('GHG Calcs'!AX16>0,$BG4,1) -> 0.00393633072 | AD4: =IF('GHG Calcs'!$V16="Gas",VLOOKUP('GHG Calcs'!$Z16,'Van C&T EF'!$D$3:$K$1532,7,),VLOOKUP('GHG Calcs'!$Z16,'Van C&T EF'!$D$3:$K$1532,6,))/IF('GHG Calcs'!AX16>0,$BH4,1) -> 0.01424676491 | AE4: =IF('GHG Calcs'!$V16="Gas",0,VLOOKUP('GHG Calcs'!$Y16,'Van C&T EF'!$D$3:$K$1532,8,))/IF('GHG Calcs'!AX16>0,$BG4,1) -> 0.004114314128 | AF4: =IF('GHG Calcs'!$V16="Gas",0,VLOOKUP('GHG Calcs'!$Z16,'Van C&T EF'!$D$3:$K$1532,8,))/IF('GHG Calcs'!AX16>0,$BH4,1) -> 0.0148909404 | AG4: =IF('GHG Calcs'!$V16="Gas",VLOOKUP('GHG Calcs'!$Y16,'Shuttle C&T EF'!$D$3:$K$1532,3,),VLOOKUP('GHG Calcs'!$Y16,'Shuttle C&T EF'!$D$3:$K$1532,2,))/IF('GHG Calcs'!AX16>0,$BI4,1) -> 0.06390295522 | AH4: =IF('GHG Calcs'!$V16="Gas",VLOOKUP('GHG Calcs'!$Z16,'Shuttle C&T EF'!$D$3:$K$1532,3,),VLOOKUP('GHG Calcs'!$Z16,'Shuttle C&T EF'!$D$3:$K$1532,2,))/IF('GHG Calcs'!AX16>0,$BJ4,1) -> 0.08451233041 | AI4: =IF('GHG Calcs'!$V16="Gas",VLOOKUP('GHG Calcs'!$Y16,'Shuttle C&T EF'!$D$3:$K$1532,5,),VLOOKUP('GHG Calcs'!$Y16,'Shuttle C&T EF'!$D$3:$K$1532,4,))/IF('GHG Calcs'!AX16>0,$BI4,1) -> 0.06951313543 | AJ4: =IF('GHG Calcs'!$V16="Gas",VLOOKUP('GHG Calcs'!$Z16,'Shuttle C&T EF'!$D$3:$K$1532,5,),VLOOKUP('GHG Calcs'!$Z16,'Shuttle C&T EF'!$D$3:$K$1532,4,))/IF('GHG Calcs'!AX16>0,$BJ4,1) -> 0.1230887248 | AK4: =IF('GHG Calcs'!$V16="Gas",VLOOKUP('GHG Calcs'!$Y16,'Shuttle C&T EF'!$D$3:$K$1532,7,),VLOOKUP('GHG Calcs'!$Y16,'Shuttle C&T EF'!$D$3:$K$1532,6,))/IF('GHG Calcs'!AX16>0,$BI4,1) -> 0.004180344696 | AL4: =IF('GHG Calcs'!$V16="Gas",VLOOKUP('GHG Calcs'!$Z16,'Shuttle C&T EF'!$D$3:$K$1532,7,),VLOOKUP('GHG Calcs'!$Z16,'Shuttle C&T EF'!$D$3:$K$1532,6,))/IF('GHG Calcs'!AX16>0,$BJ4,1) -> 0.01512992488 | AM4: =IF('GHG Calcs'!$V16="Gas",0,VLOOKUP('GHG Calcs'!$Y16,'Shuttle C&T EF'!$D$3:$K$1532,8,))/IF('GHG Calcs'!AX16>0,$BI4,1) -> 0.004369361333 | AN4: =IF('GHG Calcs'!$V16="Gas",0,VLOOKUP('GHG Calcs'!$Z16,'Shuttle C&T EF'!$D$3:$K$1532,8,))/IF('GHG Calcs'!AX16>0,$BJ4,1) -> 0.01581403295 | AO4: =VLOOKUP('GHG Calcs'!$Y16,'Over-Road Coach C&T EF'!$D$3:$H$1531,2,)/IF('GHG Calcs'!AX16>0,$BK4,1) -> 0.05249471673 | AP4: =VLOOKUP('GHG Calcs'!$Z16,'Over-Road Coach C&T EF'!$D$3:$H$1531,2,)/IF('GHG Calcs'!AX16>0,$BL4,1) -> 0.08834644348 | AQ4: =VLOOKUP('GHG Calcs'!$Y16,'Over-Road Coach C&T EF'!$D$3:$H$1531,3,)/IF('GHG Calcs'!AX16>0,$BK4,1) -> 0.7945070604 | AR4: =VLOOKUP('GHG Calcs'!$Z16,'Over-Road Coach C&T EF'!$D$3:$H$1531,3,)/IF('GHG Calcs'!AX16>0,$BL4,1) -> 1.729688393 | AS4: =VLOOKUP('GHG Calcs'!$Y16,'Over-Road Coach C&T EF'!$D$3:$H$1531,4,)/IF('GHG Calcs'!AX16>0,$BK4,1) -> 0.00287814237 | AT4: =VLOOKUP('GHG Calcs'!$Z16,'Over-Road Coach C&T EF'!$D$3:$H$1531,4,)/IF('GHG Calcs'!AX16>0,$BL4,1) -> 0.005839644998 | AU4: =VLOOKUP('GHG Calcs'!$Y16,'Over-Road Coach C&T EF'!$D$3:$H$1531,5,)/IF('GHG Calcs'!AX16>0,$BK4,1) -> 0.003008279197 | AV4: =VLOOKUP('GHG Calcs'!$Z16,'Over-Road Coach C&T EF'!$D$3:$H$1531,5,)/IF('GHG Calcs'!AX16>0,$BL4,1) -> 0.006103687832 | AW4: =IF('GHG Calcs'!A16="Cleaner Vehicles/Technology/Fuels",($R$14/IF('GHG Calcs'!$W16>0,1.8191,1)),($R$13/IF('GHG Calcs'!$W16>0,1.8191,1))) -> 10.35909052 | AX4: =IF('GHG Calcs'!A16="Cleaner Vehicles/Technology/Fuels",($S$14/IF('GHG Calcs'!$W16>0,1.8191,1)),($S$13/IF('GHG Calcs'!$W16>0,1.8191,1))) -> 187.294536 | AY4: =IF('GHG Calcs'!A16="Cleaner Vehicles/Technology/Fuels",($T$14/IF('GHG Calcs'!$W16>0,1.8191,1)),($T$13/IF('GHG Calcs'!$W16>0,1.8191,1))) -> 6.8107104 | AZ4: =IF('GHG Calcs'!A16="Cleaner Vehicles/Technology/Fuels",($U$14/IF('GHG Calcs'!$W16>0,1.8191,1)),($U$13/IF('GHG Calcs'!$W16>0,1.8191,1))) -> 6.606389088 | BA4: =IF('GHG Calcs'!A16="Cleaner Vehicles/Technology/Fuels",'Co-Benefit Calcs'!$R$19,IF('GHG Calcs'!A16="Fuel Reductions",0,'Co-Benefit Calcs'!$R$18)) -> 31.86 | BB4: =IF('GHG Calcs'!A16="Cleaner Vehicles/Technology/Fuels",'Co-Benefit Calcs'!$S$19,IF('GHG Calcs'!A16="Fuel Reductions",0,'Co-Benefit Calcs'!$S$18)) -> 254.02 | BC4: =IF('GHG Calcs'!A16="Cleaner Vehicles/Technology/Fuels",'Co-Benefit Calcs'!$T$19,IF('GHG Calcs'!A16="Fuel Reductions",0,'Co-Benefit Calcs'!$T$18)) -> 10.166 | BD4: =IF('GHG Calcs'!A16="Cleaner Vehicles/Technology/Fuels",'Co-Benefit Calcs'!$U$19,IF('GHG Calcs'!A16="Fuel Reductions",0,'Co-Benefit Calcs'!$U$18)) -> 11.05 | BE4: =(IF('GHG Calcs'!$V16="Gasoline",VLOOKUP('GHG Calcs'!$Y16,'Fuel Consumption'!$A$4:$H$1533,3),VLOOKUP('GHG Calcs'!$Y16,'Fuel Consumption'!$A$4:$H$1533,2))) -> 0.1850209228 | BF4: =(IF('GHG Calcs'!$V16="Gasoline",VLOOKUP('GHG Calcs'!$Z16,'Fuel Consumption'!$A$4:$H$1533,3),VLOOKUP('GHG Calcs'!$Z16,'Fuel Consumption'!$A$4:$H$1533,2))) -> 0.1851296017 | BG4: =(IF('GHG Calcs'!$V16="Gasoline",VLOOKUP('GHG Calcs'!$Y16,'Fuel Consumption'!$A$4:$H$1533,5),VLOOKUP('GHG Calcs'!$Y16,'Fuel Consumption'!$A$4:$H$1533,4))) -> 0.04724442453 | BH4: =(IF('GHG Calcs'!$V16="Gasoline",VLOOKUP('GHG Calcs'!$Z16,'Fuel Consumption'!$A$4:$H$1533,5),VLOOKUP('GHG Calcs'!$Z16,'Fuel Consumption'!$A$4:$H$1533,4))) -> 0.04757529103 | BI4: =(IF('GHG Calcs'!$V16="Gasoline",VLOOKUP('GHG Calcs'!$Y16,'Fuel Consumption'!$A$4:$H$1533,7),VLOOKUP('GHG Calcs'!$Y16,'Fuel Consumption'!$A$4:$H$1533,6))) -> 0.05253899593 | BJ4: =(IF('GHG Calcs'!$V16="Gasoline",VLOOKUP('GHG Calcs'!$Z16,'Fuel Consumption'!$A$4:$H$1533,7),VLOOKUP('GHG Calcs'!$Z16,'Fuel Consumption'!$A$4:$H$1533,6))) -> 0.05305086603 | BK4: =VLOOKUP('GHG Calcs'!$Y16,'Fuel Consumption'!$A$4:$H$1533,8) -> 0.1628174358 | BL4: =VLOOKUP('GHG Calcs'!$Z16,'Fuel Consumption'!$A$4:$H$1533,8) -> 0.1661102992 | BM4: what is CM -> | BN4: =IF('GHG Calcs'!$AW16="Gas",VLOOKUP('GHG Calcs'!$BB16,'Bus C&T EF'!$D$3:$K$1532,3,),VLOOKUP('GHG Calcs'!$BB16,'Bus C&T EF'!$D$3:$K$1532,2,))/IF('GHG Calcs'!AX16>0,$CX4,1) ->  | BO4: =IF('GHG Calcs'!$AW16="Gas",VLOOKUP('GHG Calcs'!$BC16,'Bus C&T EF'!$D$3:$K$1532,3,),VLOOKUP('GHG Calcs'!$BC16,'Bus C&T EF'!$D$3:$K$1532,2,))/IF('GHG Calcs'!AX16>0,$CY4,1) ->  | BP4: =IF('GHG Calcs'!$AW16="Gas",VLOOKUP('GHG Calcs'!$BB16,'Bus C&T EF'!$D$3:$K$1532,5,),VLOOKUP('GHG Calcs'!BB16,'Bus C&T EF'!$D$3:$K$1532,4,))/IF('GHG Calcs'!AX16>0,$CX4,1) ->  | BQ4: =IF('GHG Calcs'!$AW16="Gas",VLOOKUP('GHG Calcs'!$BC16,'Bus C&T EF'!$D$3:$K$1532,5,),VLOOKUP('GHG Calcs'!$BC16,'Bus C&T EF'!$D$3:$K$1532,4,))/IF('GHG Calcs'!AX16>0,$CY4,1) ->  | BR4: =IF('GHG Calcs'!$AW16="Gas",VLOOKUP('GHG Calcs'!$BB16,'Bus C&T EF'!$D$3:$K$1532,7,),VLOOKUP('GHG Calcs'!$BB16,'Bus C&T EF'!$D$3:$K$1532,6,))/IF('GHG Calcs'!AX16>0,$CX4,1) ->  | BS4: =IF('GHG Calcs'!$AW16="Gas",VLOOKUP('GHG Calcs'!$BC16,'Bus C&T EF'!$D$3:$K$1532,7,),VLOOKUP('GHG Calcs'!$BC16,'Bus C&T EF'!$D$3:$K$1532,6,))/IF('GHG Calcs'!AX16>0,$CY4,1) ->  | BT4: =IF('GHG Calcs'!$AW16="Gas",0,VLOOKUP('GHG Calcs'!$BB16,'Bus C&T EF'!$D$3:$K$1532,8,))/IF('GHG Calcs'!AX16>0,$CX4,1) ->  | BU4: =IF('GHG Calcs'!$AW16="Gas",0,VLOOKUP('GHG Calcs'!$BC16,'Bus C&T EF'!$D$3:$K$1532,8,))/IF('GHG Calcs'!AX16>0,$CY4,1) ->  | BV4: =IF('GHG Calcs'!$AW16="Gas",VLOOKUP('GHG Calcs'!$BB16,'Van C&T EF'!$D$3:$K$1532,3,),VLOOKUP('GHG Calcs'!$BB16,'Van C&T EF'!$D$3:$K$1532,2,))/IF('GHG Calcs'!AX16>0,$CZ4,1) ->  | BW4: =IF('GHG Calcs'!$AW16="Gas",VLOOKUP('GHG Calcs'!$BC16,'Van C&T EF'!$D$3:$K$1532,3,),VLOOKUP('GHG Calcs'!$BC16,'Van C&T EF'!$D$3:$K$1532,2,))/IF('GHG Calcs'!AX16>0,$DA4,1) ->  | BX4: =IF('GHG Calcs'!$AW16="Gas",VLOOKUP('GHG Calcs'!$BB16,'Van C&T EF'!$D$3:$K$1532,5,),VLOOKUP('GHG Calcs'!$BB16,'Van C&T EF'!$D$3:$K$1532,4,))/IF('GHG Calcs'!AX16>0,$CZ4,1) ->  | BY4: =IF('GHG Calcs'!$AW16="Gas",VLOOKUP('GHG Calcs'!$BC16,'Van C&T EF'!$D$3:$K$1532,5,),VLOOKUP('GHG Calcs'!$BC16,'Van C&T EF'!$D$3:$K$1532,4,))/IF('GHG Calcs'!AX16>0,$DA4,1) ->  | BZ4: =IF('GHG Calcs'!$AW16="Gas",VLOOKUP('GHG Calcs'!$BB16,'Van C&T EF'!$D$3:$K$1532,7,),VLOOKUP('GHG Calcs'!$BB16,'Van C&T EF'!$D$3:$K$1532,6,))/IF('GHG Calcs'!AX16>0,$CZ4,1) ->  | CA4: =IF('GHG Calcs'!$AW16="Gas",VLOOKUP('GHG Calcs'!$BC16,'Van C&T EF'!$D$3:$K$1532,7,),VLOOKUP('GHG Calcs'!$BC16,'Van C&T EF'!$D$3:$K$1532,6,))/IF('GHG Calcs'!AX16>0,$DA4,1) ->  | CB4: =IF('GHG Calcs'!$AW16="Gas",0,VLOOKUP('GHG Calcs'!$BB16,'Van C&T EF'!$D$3:$K$1532,8,))/IF('GHG Calcs'!AX16>0,$CZ4,1) ->  | CC4: =IF('GHG Calcs'!$AW16="Gas",0,VLOOKUP('GHG Calcs'!$BC16,'Van C&T EF'!$D$3:$K$1532,8,))/IF('GHG Calcs'!AX16>0,$DA4,1) ->  | CD4: =IF('GHG Calcs'!$AW16="Gas",VLOOKUP('GHG Calcs'!$BB16,'Shuttle C&T EF'!$D$3:$K$1532,3,),VLOOKUP('GHG Calcs'!$BB16,'Shuttle C&T EF'!$D$3:$K$1532,2,))/IF('GHG Calcs'!AX16>0,$DB4,1) ->  | CE4: =IF('GHG Calcs'!$AW16="Gas",VLOOKUP('GHG Calcs'!$BC16,'Shuttle C&T EF'!$D$3:$K$1532,3,),VLOOKUP('GHG Calcs'!$BC16,'Shuttle C&T EF'!$D$3:$K$1532,2,))/IF('GHG Calcs'!AX16>0,$DC4,1) ->  | CF4: =IF('GHG Calcs'!$AW16="Gas",VLOOKUP('GHG Calcs'!$BB16,'Shuttle C&T EF'!$D$3:$K$1532,5,),VLOOKUP('GHG Calcs'!$BB16,'Shuttle C&T EF'!$D$3:$K$1532,4,))/IF('GHG Calcs'!AX16>0,$DB4,1) ->  | CG4: =IF('GHG Calcs'!$AW16="Gas",VLOOKUP('GHG Calcs'!$BC16,'Shuttle C&T EF'!$D$3:$K$1532,5,),VLOOKUP('GHG Calcs'!$BC16,'Shuttle C&T EF'!$D$3:$K$1532,4,))/IF('GHG Calcs'!AX16>0,$DC4,1) ->  | CH4: =IF('GHG Calcs'!$AW16="Gas",VLOOKUP('GHG Calcs'!$BB16,'Shuttle C&T EF'!$D$3:$K$1532,7,),VLOOKUP('GHG Calcs'!$BB16,'Shuttle C&T EF'!$D$3:$K$1532,6,))/IF('GHG Calcs'!AX16>0,$DB4,1) ->  | CI4: =IF('GHG Calcs'!$AW16="Gas",VLOOKUP('GHG Calcs'!$BC16,'Shuttle C&T EF'!$D$3:$K$1532,7,),VLOOKUP('GHG Calcs'!$BC16,'Shuttle C&T EF'!$D$3:$K$1532,6,))/IF('GHG Calcs'!AX16>0,$DC4,1) ->  | CJ4: =IF('GHG Calcs'!$AW16="Gas",0,VLOOKUP('GHG Calcs'!$BB16,'Shuttle C&T EF'!$D$3:$K$1532,8,))/IF('GHG Calcs'!AX16>0,$DB4,1) ->  | CK4: =IF('GHG Calcs'!$AW16="Gas",0,VLOOKUP('GHG Calcs'!$BC16,'Shuttle C&T EF'!$D$3:$K$1532,8,))/IF('GHG Calcs'!AX16>0,$DC4,1) ->  | CL4: =VLOOKUP('GHG Calcs'!$BB16,'Over-Road Coach C&T EF'!$D$3:$H$1531,2,)/IF('GHG Calcs'!AX16>0,$DD4,1) ->  | CM4: =VLOOKUP('GHG Calcs'!$BC16,'Over-Road Coach C&T EF'!$D$3:$H$1531,2,)/IF('GHG Calcs'!AX16>0,$DE4,1) ->  | CN4: =VLOOKUP('GHG Calcs'!$BB16,'Over-Road Coach C&T EF'!$D$3:$H$1531,3,)/IF('GHG Calcs'!AX16>0,$DD4,1) ->  | CO4: =VLOOKUP('GHG Calcs'!$BC16,'Over-Road Coach C&T EF'!$D$3:$H$1531,3,)/IF('GHG Calcs'!AX16>0,$DE4,1) ->  | CP4: =VLOOKUP('GHG Calcs'!$BB16,'Over-Road Coach C&T EF'!$D$3:$H$1531,4,)/IF('GHG Calcs'!AX16>0,$DD4,1) ->  | CQ4: =VLOOKUP('GHG Calcs'!$BC16,'Over-Road Coach C&T EF'!$D$3:$H$1531,4,)/IF('GHG Calcs'!AX16>0,$DE4,1) ->  | CR4: =VLOOKUP('GHG Calcs'!$BB16,'Over-Road Coach C&T EF'!$D$3:$H$1531,5,)/IF('GHG Calcs'!AX16>0,$DD4,1) ->  | CS4: =VLOOKUP('GHG Calcs'!$BC16,'Over-Road Coach C&T EF'!$D$3:$H$1531,5,)/IF('GHG Calcs'!AX16>0,$DE4,1) ->  | CT4: =$BO$13/IF('GHG Calcs'!$AX16>0,1.8191,1) -> 10.30726944 | CU4: =$BP$13/IF('GHG Calcs'!$AX16>0,1.8191,1) -> 186.3576 | CV4: =$BQ$13/IF('GHG Calcs'!$AX16>0,1.8191,1) -> 6.5733408 | CW4: =$BR$13/IF('GHG Calcs'!$AX16>0,1.8191,1) -> 6.77664 | CX4: =(IF('GHG Calcs'!$AW16="Gasoline",VLOOKUP('GHG Calcs'!$BB16,'Fuel Consumption'!$A$4:$H$1533,3),VLOOKUP('GHG Calcs'!$BB16,'Fuel Consumption'!$A$4:$H$1533,2))) -> 0.1850502578 | CY4: =(IF('GHG Calcs'!$AW16="Gasoline",VLOOKUP('GHG Calcs'!$BC16,'Fuel Consumption'!$A$4:$H$1533,3),VLOOKUP('GHG Calcs'!$BC16,'Fuel Consumption'!$A$4:$H$1533,2))) -> 0.1850316875 | CZ4: =(IF('GHG Calcs'!$AW16="Gasoline",VLOOKUP('GHG Calcs'!$BB16,'Fuel Consumption'!$A$4:$H$1533,5),VLOOKUP('GHG Calcs'!$BB16,'Fuel Consumption'!$A$4:$H$1533,4))) -> 0.04723249222 | DA4: =(IF('GHG Calcs'!$AW16="Gasoline",VLOOKUP('GHG Calcs'!$BC16,'Fuel Consumption'!$A$4:$H$1533,5),VLOOKUP('GHG Calcs'!$BC16,'Fuel Consumption'!$A$4:$H$1533,4))) -> 0.04735750965 | DB4: =(IF('GHG Calcs'!$AW16="Gasoline",VLOOKUP('GHG Calcs'!$BB16,'Fuel Consumption'!$A$4:$H$1533,7),VLOOKUP('GHG Calcs'!$BB16,'Fuel Consumption'!$A$4:$H$1533,6))) -> 0.05253638358 | DC4: =(IF('GHG Calcs'!$AW16="Gasoline",VLOOKUP('GHG Calcs'!$BC16,'Fuel Consumption'!$A$4:$H$1533,7),VLOOKUP('GHG Calcs'!$BC16,'Fuel Consumption'!$A$4:$H$1533,6))) -> 0.05268339823 | DD4: =VLOOKUP('GHG Calcs'!$BB16,'Fuel Consumption'!$A$4:$H$1533,8) -> 0.1630668806 | DE4: =VLOOKUP('GHG Calcs'!$BC16,'Fuel Consumption'!$A$4:$H$1533,8) -> 0.1629780324
A5: Quantifiable Component 2 | B5: ='GHG Calcs'!O17 -> 1637280 | C5: ='GHG Calcs'!Q17 -> 1647000 | D5: =VLOOKUP('GHG Calcs'!G17,'Auto C&T EF'!C4:I2631,2,)*B5 -> 39852.26762 | E5: =VLOOKUP('GHG Calcs'!H17,'Auto C&T EF'!C4:I2631,2,)*C5 -> 12409.62972 | F5: =VLOOKUP('GHG Calcs'!$G17,'Auto C&T EF'!C4:I2631,3,)*$B5 -> 194003.3827 | G5: =VLOOKUP('GHG Calcs'!$H17,'Auto C&T EF'!C4:I2631,3,)*$C5 -> 65387.08027 | H5: =VLOOKUP('GHG Calcs'!$G17,'Auto C&T EF'!C4:I2631,5,)*$B5 -> 2958.383829 | I5: =VLOOKUP('GHG Calcs'!$H17,'Auto C&T EF'!C4:I2631,5,)*$C5 -> 1999.068344 | J5: =VLOOKUP('GHG Calcs'!$G17,'Auto C&T EF'!C4:I2631,6,)*$B5 -> 25795.83988 | K5: =VLOOKUP('GHG Calcs'!$H17,'Auto C&T EF'!C4:I2631,6,)*$C5 -> 3330.231983 | L5: =AVERAGE(D5:E5)*('GHG Calcs'!E17-'GHG Calcs'!D17) -> 313571.3841 | M5: =AVERAGE(F5:G5)*('GHG Calcs'!E17-'GHG Calcs'!D17) -> 1556342.778 | N5: =AVERAGE(H5:I5)*('GHG Calcs'!E17-'GHG Calcs'!D17) -> 29744.71303 | O5: =AVERAGE(J5:K5)*('GHG Calcs'!E17-'GHG Calcs'!D17) -> 174756.4312 | Q5: =IF('GHG Calcs'!$V17="Gas",VLOOKUP('GHG Calcs'!$Y17,'Bus C&T EF'!$D$3:$K$1532,3,),VLOOKUP('GHG Calcs'!$Y17,'Bus C&T EF'!$D$3:$K$1532,2,))/IF('GHG Calcs'!AX17>0,$BE5,1) -> 0.02278452189 | R5: =IF('GHG Calcs'!$V17="Gas",VLOOKUP('GHG Calcs'!$Z17,'Bus C&T EF'!$D$3:$K$1532,3,),VLOOKUP('GHG Calcs'!$Z17,'Bus C&T EF'!$D$3:$K$1532,2,))/IF('GHG Calcs'!AX17>0,$BF5,1) -> 0.02281302426 | S5: =IF('GHG Calcs'!$V17="Gas",VLOOKUP('GHG Calcs'!$Y17,'Bus C&T EF'!$D$3:$K$1532,5,),VLOOKUP('GHG Calcs'!$Y17,'Bus C&T EF'!$D$3:$K$1532,4,))/IF('GHG Calcs'!AX17>0,$BE5,1) -> 0.8119896174 | T5: =IF('GHG Calcs'!$V17="Gas",VLOOKUP('GHG Calcs'!$Z17,'Bus C&T EF'!$D$3:$K$1532,5,),VLOOKUP('GHG Calcs'!$Z17,'Bus C&T EF'!$D$3:$K$1532,4,))/IF('GHG Calcs'!AX17>0,$BF5,1) -> 0.8145974878 | U5: =IF('GHG Calcs'!$V17="Gas",VLOOKUP('GHG Calcs'!$Y17,'Bus C&T EF'!$D$3:$K$1532,7,),VLOOKUP('GHG Calcs'!$Y17,'Bus C&T EF'!$D$3:$K$1532,6,))/IF('GHG Calcs'!AX17>0,$BE5,1) -> 0.003059948604 | V5: =IF('GHG Calcs'!$V17="Gas",VLOOKUP('GHG Calcs'!$Z17,'Bus C&T EF'!$D$3:$K$1532,7,),VLOOKUP('GHG Calcs'!$Z17,'Bus C&T EF'!$D$3:$K$1532,6,))/IF('GHG Calcs'!AX17>0,$BF5,1) -> 0.003074245955 | W5: =IF('GHG Calcs'!$V17="Gas",0,VLOOKUP('GHG Calcs'!$Y17,'Bus C&T EF'!$D$3:$K$1532,8,))/IF('GHG Calcs'!AX17>0,$BE5,1) -> 0.003198305902 | X5: =IF('GHG Calcs'!$V17="Gas",0,VLOOKUP('GHG Calcs'!$Z17,'Bus C&T EF'!$D$3:$K$1532,8,))/IF('GHG Calcs'!AX17>0,$BF5,1) -> 0.003213249715 | Y5: =IF('GHG Calcs'!$V17="Gas",VLOOKUP('GHG Calcs'!$Y17,'Van C&T EF'!$D$3:$K$1532,3,),VLOOKUP('GHG Calcs'!$Y17,'Van C&T EF'!$D$3:$K$1532,2,))/IF('GHG Calcs'!AX17>0,$BG5,1) -> 0.06390295522 | Z5: =IF('GHG Calcs'!$V17="Gas",VLOOKUP('GHG Calcs'!$Z17,'Van C&T EF'!$D$3:$K$1532,3,),VLOOKUP('GHG Calcs'!$Z17,'Van C&T EF'!$D$3:$K$1532,2,))/IF('GHG Calcs'!AX17>0,$BH5,1) -> 0.08451233041 | AA5: =IF('GHG Calcs'!$V17="Gas",VLOOKUP('GHG Calcs'!$Y17,'Van C&T EF'!$D$3:$K$1532,5,),VLOOKUP('GHG Calcs'!$Y17,'Van C&T EF'!$D$3:$K$1532,4,))/IF('GHG Calcs'!AX17>0,$BG5,1) -> 0.06947775992 | AB5: =IF('GHG Calcs'!$V17="Gas",VLOOKUP('GHG Calcs'!$Z17,'Van C&T EF'!$D$3:$K$1532,5,),VLOOKUP('GHG Calcs'!$Z17,'Van C&T EF'!$D$3:$K$1532,4,))/IF('GHG Calcs'!AX17>0,$BH5,1) -> 0.1230260845 | AC5: =IF('GHG Calcs'!$V17="Gas",VLOOKUP('GHG Calcs'!$Y17,'Van C&T EF'!$D$3:$K$1532,7,),VLOOKUP('GHG Calcs'!$Y17,'Van C&T EF'!$D$3:$K$1532,6,))/IF('GHG Calcs'!AX17>0,$BG5,1) -> 0.00393633072 | AD5: =IF('GHG Calcs'!$V17="Gas",VLOOKUP('GHG Calcs'!$Z17,'Van C&T EF'!$D$3:$K$1532,7,),VLOOKUP('GHG Calcs'!$Z17,'Van C&T EF'!$D$3:$K$1532,6,))/IF('GHG Calcs'!AX17>0,$BH5,1) -> 0.01424676491 | AE5: =IF('GHG Calcs'!$V17="Gas",0,VLOOKUP('GHG Calcs'!$Y17,'Van C&T EF'!$D$3:$K$1532,8,))/IF('GHG Calcs'!AX17>0,$BG5,1) -> 0.004114314128 | AF5: =IF('GHG Calcs'!$V17="Gas",0,VLOOKUP('GHG Calcs'!$Z17,'Van C&T EF'!$D$3:$K$1532,8,))/IF('GHG Calcs'!AX17>0,$BH5,1) -> 0.0148909404 | AG5: =IF('GHG Calcs'!$V17="Gas",VLOOKUP('GHG Calcs'!$Y17,'Shuttle C&T EF'!$D$3:$K$1532,3,),VLOOKUP('GHG Calcs'!$Y17,'Shuttle C&T EF'!$D$3:$K$1532,2,))/IF('GHG Calcs'!AX17>0,$BI5,1) -> 0.06390295522 | AH5: =IF('GHG Calcs'!$V17="Gas",VLOOKUP('GHG Calcs'!$Z17,'Shuttle C&T EF'!$D$3:$K$1532,3,),VLOOKUP('GHG Calcs'!$Z17,'Shuttle C&T EF'!$D$3:$K$1532,2,))/IF('GHG Calcs'!AX17>0,$BJ5,1) -> 0.08451233041 | AI5: =IF('GHG Calcs'!$V17="Gas",VLOOKUP('GHG Calcs'!$Y17,'Shuttle C&T EF'!$D$3:$K$1532,5,),VLOOKUP('GHG Calcs'!$Y17,'Shuttle C&T EF'!$D$3:$K$1532,4,))/IF('GHG Calcs'!AX17>0,$BI5,1) -> 0.06951313543 | AJ5: =IF('GHG Calcs'!$V17="Gas",VLOOKUP('GHG Calcs'!$Z17,'Shuttle C&T EF'!$D$3:$K$1532,5,),VLOOKUP('GHG Calcs'!$Z17,'Shuttle C&T EF'!$D$3:$K$1532,4,))/IF('GHG Calcs'!AX17>0,$BJ5,1) -> 0.1230887248 | AK5: =IF('GHG Calcs'!$V17="Gas",VLOOKUP('GHG Calcs'!$Y17,'Shuttle C&T EF'!$D$3:$K$1532,7,),VLOOKUP('GHG Calcs'!$Y17,'Shuttle C&T EF'!$D$3:$K$1532,6,))/IF('GHG Calcs'!AX17>0,$BI5,1) -> 0.004180344696 | AL5: =IF('GHG Calcs'!$V17="Gas",VLOOKUP('GHG Calcs'!$Z17,'Shuttle C&T EF'!$D$3:$K$1532,7,),VLOOKUP('GHG Calcs'!$Z17,'Shuttle C&T EF'!$D$3:$K$1532,6,))/IF('GHG Calcs'!AX17>0,$BJ5,1) -> 0.01512992488 | AM5: =IF('GHG Calcs'!$V17="Gas",0,VLOOKUP('GHG Calcs'!$Y17,'Shuttle C&T EF'!$D$3:$K$1532,8,))/IF('GHG Calcs'!AX17>0,$BI5,1) -> 0.004369361333 | AN5: =IF('GHG Calcs'!$V17="Gas",0,VLOOKUP('GHG Calcs'!$Z17,'Shuttle C&T EF'!$D$3:$K$1532,8,))/IF('GHG Calcs'!AX17>0,$BJ5,1) -> 0.01581403295 | AO5: =VLOOKUP('GHG Calcs'!$Y17,'Over-Road Coach C&T EF'!$D$3:$H$1531,2,)/IF('GHG Calcs'!AX17>0,$BK5,1) -> 0.05249471673 | AP5: =VLOOKUP('GHG Calcs'!$Z17,'Over-Road Coach C&T EF'!$D$3:$H$1531,2,)/IF('GHG Calcs'!AX17>0,$BL5,1) -> 0.08834644348 | AQ5: =VLOOKUP('GHG Calcs'!$Y17,'Over-Road Coach C&T EF'!$D$3:$H$1531,3,)/IF('GHG Calcs'!AX17>0,$BK5,1) -> 0.7945070604 | AR5: =VLOOKUP('GHG Calcs'!$Z17,'Over-Road Coach C&T EF'!$D$3:$H$1531,3,)/IF('GHG Calcs'!AX17>0,$BL5,1) -> 1.729688393 | AS5: =VLOOKUP('GHG Calcs'!$Y17,'Over-Road Coach C&T EF'!$D$3:$H$1531,4,)/IF('GHG Calcs'!AX17>0,$BK5,1) -> 0.00287814237 | AT5: =VLOOKUP('GHG Calcs'!$Z17,'Over-Road Coach C&T EF'!$D$3:$H$1531,4,)/IF('GHG Calcs'!AX17>0,$BL5,1) -> 0.005839644998 | AU5: =VLOOKUP('GHG Calcs'!$Y17,'Over-Road Coach C&T EF'!$D$3:$H$1531,5,)/IF('GHG Calcs'!AX17>0,$BK5,1) -> 0.003008279197 | AV5: =VLOOKUP('GHG Calcs'!$Z17,'Over-Road Coach C&T EF'!$D$3:$H$1531,5,)/IF('GHG Calcs'!AX17>0,$BL5,1) -> 0.006103687832 | AW5: =IF('GHG Calcs'!A17="Cleaner Vehicles/Technology/Fuels",($R$14/IF('GHG Calcs'!$W17>0,1.8191,1)),($R$13/IF('GHG Calcs'!$W17>0,1.8191,1))) -> 10.35909052 | AX5: =IF('GHG Calcs'!A17="Cleaner Vehicles/Technology/Fuels",($S$14/IF('GHG Calcs'!$W17>0,1.8191,1)),($S$13/IF('GHG Calcs'!$W17>0,1.8191,1))) -> 187.294536 | AY5: =IF('GHG Calcs'!A17="Cleaner Vehicles/Technology/Fuels",($T$14/IF('GHG Calcs'!$W17>0,1.8191,1)),($T$13/IF('GHG Calcs'!$W17>0,1.8191,1))) -> 6.8107104 | AZ5: =IF('GHG Calcs'!A17="Cleaner Vehicles/Technology/Fuels",($U$14/IF('GHG Calcs'!$W17>0,1.8191,1)),($U$13/IF('GHG Calcs'!$W17>0,1.8191,1))) -> 6.606389088 | BA5: =IF('GHG Calcs'!A17="Cleaner Vehicles/Technology/Fuels",'Co-Benefit Calcs'!$R$19,IF('GHG Calcs'!A17="Fuel Reductions",0,'Co-Benefit Calcs'!$R$18)) -> 31.86 | BB5: =IF('GHG Calcs'!A17="Cleaner Vehicles/Technology/Fuels",'Co-Benefit Calcs'!$S$19,IF('GHG Calcs'!A17="Fuel Reductions",0,'Co-Benefit Calcs'!$S$18)) -> 254.02 | BC5: =IF('GHG Calcs'!A17="Cleaner Vehicles/Technology/Fuels",'Co-Benefit Calcs'!$T$19,IF('GHG Calcs'!A17="Fuel Reductions",0,'Co-Benefit Calcs'!$T$18)) -> 10.166 | BD5: =IF('GHG Calcs'!A17="Cleaner Vehicles/Technology/Fuels",'Co-Benefit Calcs'!$U$19,IF('GHG Calcs'!A17="Fuel Reductions",0,'Co-Benefit Calcs'!$U$18)) -> 11.05 | BE5: =(IF('GHG Calcs'!$V17="Gasoline",VLOOKUP('GHG Calcs'!$Y17,'Fuel Consumption'!$A$4:$H$1533,3),VLOOKUP('GHG Calcs'!$Y17,'Fuel Consumption'!$A$4:$H$1533,2))) -> 0.1850209228 | BF5: =(IF('GHG Calcs'!$V17="Gasoline",VLOOKUP('GHG Calcs'!$Z17,'Fuel Consumption'!$A$4:$H$1533,3),VLOOKUP('GHG Calcs'!$Z17,'Fuel Consumption'!$A$4:$H$1533,2))) -> 0.1851296017 | BG5: =(IF('GHG Calcs'!$V17="Gasoline",VLOOKUP('GHG Calcs'!$Y17,'Fuel Consumption'!$A$4:$H$1533,5),VLOOKUP('GHG Calcs'!$Y17,'Fuel Consumption'!$A$4:$H$1533,4))) -> 0.04724442453 | BH5: =(IF('GHG Calcs'!$V17="Gasoline",VLOOKUP('GHG Calcs'!$Z17,'Fuel Consumption'!$A$4:$H$1533,5),VLOOKUP('GHG Calcs'!$Z17,'Fuel Consumption'!$A$4:$H$1533,4))) -> 0.04757529103 | BI5: =(IF('GHG Calcs'!$V17="Gasoline",VLOOKUP('GHG Calcs'!$Y17,'Fuel Consumption'!$A$4:$H$1533,7),VLOOKUP('GHG Calcs'!$Y17,'Fuel Consumption'!$A$4:$H$1533,6))) -> 0.05253899593 | BJ5: =(IF('GHG Calcs'!$V17="Gasoline",VLOOKUP('GHG Calcs'!$Z17,'Fuel Consumption'!$A$4:$H$1533,7),VLOOKUP('GHG Calcs'!$Z17,'Fuel Consumption'!$A$4:$H$1533,6))) -> 0.05305086603 | BK5: =VLOOKUP('GHG Calcs'!$Y17,'Fuel Consumption'!$A$4:$H$1533,8) -> 0.1628174358 | BL5: =VLOOKUP('GHG Calcs'!$Z17,'Fuel Consumption'!$A$4:$H$1533,8) -> 0.1661102992 | BM5: changes to AX | BN5: =IF('GHG Calcs'!$AW17="Gas",VLOOKUP('GHG Calcs'!$BB17,'Bus C&T EF'!$D$3:$K$1532,3,),VLOOKUP('GHG Calcs'!$BB17,'Bus C&T EF'!$D$3:$K$1532,2,))/IF('GHG Calcs'!AX17>0,$CX5,1) ->  | BO5: =IF('GHG Calcs'!$AW17="Gas",VLOOKUP('GHG Calcs'!$BC17,'Bus C&T EF'!$D$3:$K$1532,3,),VLOOKUP('GHG Calcs'!$BC17,'Bus C&T EF'!$D$3:$K$1532,2,))/IF('GHG Calcs'!AX17>0,$CY5,1) ->  | BP5: =IF('GHG Calcs'!$AW17="Gas",VLOOKUP('GHG Calcs'!$BB17,'Bus C&T EF'!$D$3:$K$1532,5,),VLOOKUP('GHG Calcs'!BB17,'Bus C&T EF'!$D$3:$K$1532,4,))/IF('GHG Calcs'!AX17>0,$CX5,1) ->  | BQ5: =IF('GHG Calcs'!$AW17="Gas",VLOOKUP('GHG Calcs'!$BC17,'Bus C&T EF'!$D$3:$K$1532,5,),VLOOKUP('GHG Calcs'!$BC17,'Bus C&T EF'!$D$3:$K$1532,4,))/IF('GHG Calcs'!AX17>0,$CY5,1) ->  | BR5: =IF('GHG Calcs'!$AW17="Gas",VLOOKUP('GHG Calcs'!$BB17,'Bus C&T EF'!$D$3:$K$1532,7,),VLOOKUP('GHG Calcs'!$BB17,'Bus C&T EF'!$D$3:$K$1532,6,))/IF('GHG Calcs'!AX17>0,$CX5,1) ->  | BS5: =IF('GHG Calcs'!$AW17="Gas",VLOOKUP('GHG Calcs'!$BC17,'Bus C&T EF'!$D$3:$K$1532,7,),VLOOKUP('GHG Calcs'!$BC17,'Bus C&T EF'!$D$3:$K$1532,6,))/IF('GHG Calcs'!AX17>0,$CY5,1) ->  | BT5: =IF('GHG Calcs'!$AW17="Gas",0,VLOOKUP('GHG Calcs'!$BB17,'Bus C&T EF'!$D$3:$K$1532,8,))/IF('GHG Calcs'!AX17>0,$CX5,1) ->  | BU5: =IF('GHG Calcs'!$AW17="Gas",0,VLOOKUP('GHG Calcs'!$BC17,'Bus C&T EF'!$D$3:$K$1532,8,))/IF('GHG Calcs'!AX17>0,$CY5,1) ->  | BV5: =IF('GHG Calcs'!$AW17="Gas",VLOOKUP('GHG Calcs'!$BB17,'Van C&T EF'!$D$3:$K$1532,3,),VLOOKUP('GHG Calcs'!$BB17,'Van C&T EF'!$D$3:$K$1532,2,))/IF('GHG Calcs'!AX17>0,$CZ5,1) ->  | BW5: =IF('GHG Calcs'!$AW17="Gas",VLOOKUP('GHG Calcs'!$BC17,'Van C&T EF'!$D$3:$K$1532,3,),VLOOKUP('GHG Calcs'!$BC17,'Van C&T EF'!$D$3:$K$1532,2,))/IF('GHG Calcs'!AX17>0,$DA5,1) ->  | BX5: =IF('GHG Calcs'!$AW17="Gas",VLOOKUP('GHG Calcs'!$BB17,'Van C&T EF'!$D$3:$K$1532,5,),VLOOKUP('GHG Calcs'!$BB17,'Van C&T EF'!$D$3:$K$1532,4,))/IF('GHG Calcs'!AX17>0,$CZ5,1) ->  | BY5: =IF('GHG Calcs'!$AW17="Gas",VLOOKUP('GHG Calcs'!$BC17,'Van C&T EF'!$D$3:$K$1532,5,),VLOOKUP('GHG Calcs'!$BC17,'Van C&T EF'!$D$3:$K$1532,4,))/IF('GHG Calcs'!AX17>0,$DA5,1) ->  | BZ5: =IF('GHG Calcs'!$AW17="Gas",VLOOKUP('GHG Calcs'!$BB17,'Van C&T EF'!$D$3:$K$1532,7,),VLOOKUP('GHG Calcs'!$BB17,'Van C&T EF'!$D$3:$K$1532,6,))/IF('GHG Calcs'!AX17>0,$CZ5,1) ->  | CA5: =IF('GHG Calcs'!$AW17="Gas",VLOOKUP('GHG Calcs'!$BC17,'Van C&T EF'!$D$3:$K$1532,7,),VLOOKUP('GHG Calcs'!$BC17,'Van C&T EF'!$D$3:$K$1532,6,))/IF('GHG Calcs'!AX17>0,$DA5,1) ->  | CB5: =IF('GHG Calcs'!$AW17="Gas",0,VLOOKUP('GHG Calcs'!$BB17,'Van C&T EF'!$D$3:$K$1532,8,))/IF('GHG Calcs'!AX17>0,$CZ5,1) ->  | CC5: =IF('GHG Calcs'!$AW17="Gas",0,VLOOKUP('GHG Calcs'!$BC17,'Van C&T EF'!$D$3:$K$1532,8,))/IF('GHG Calcs'!AX17>0,$DA5,1) ->  | CD5: =IF('GHG Calcs'!$AW17="Gas",VLOOKUP('GHG Calcs'!$BB17,'Shuttle C&T EF'!$D$3:$K$1532,3,),VLOOKUP('GHG Calcs'!$BB17,'Shuttle C&T EF'!$D$3:$K$1532,2,))/IF('GHG Calcs'!AX17>0,$DB5,1) ->  | CE5: =IF('GHG Calcs'!$AW17="Gas",VLOOKUP('GHG Calcs'!$BC17,'Shuttle C&T EF'!$D$3:$K$1532,3,),VLOOKUP('GHG Calcs'!$BC17,'Shuttle C&T EF'!$D$3:$K$1532,2,))/IF('GHG Calcs'!AX17>0,$DC5,1) ->  | CF5: =IF('GHG Calcs'!$AW17="Gas",VLOOKUP('GHG Calcs'!$BB17,'Shuttle C&T EF'!$D$3:$K$1532,5,),VLOOKUP('GHG Calcs'!$BB17,'Shuttle C&T EF'!$D$3:$K$1532,4,))/IF('GHG Calcs'!AX17>0,$DB5,1) ->  | CG5: =IF('GHG Calcs'!$AW17="Gas",VLOOKUP('GHG Calcs'!$BC17,'Shuttle C&T EF'!$D$3:$K$1532,5,),VLOOKUP('GHG Calcs'!$BC17,'Shuttle C&T EF'!$D$3:$K$1532,4,))/IF('GHG Calcs'!AX17>0,$DC5,1) ->  | CH5: =IF('GHG Calcs'!$AW17="Gas",VLOOKUP('GHG Calcs'!$BB17,'Shuttle C&T EF'!$D$3:$K$1532,7,),VLOOKUP('GHG Calcs'!$BB17,'Shuttle C&T EF'!$D$3:$K$1532,6,))/IF('GHG Calcs'!AX17>0,$DB5,1) ->  | CI5: =IF('GHG Calcs'!$AW17="Gas",VLOOKUP('GHG Calcs'!$BC17,'Shuttle C&T EF'!$D$3:$K$1532,7,),VLOOKUP('GHG Calcs'!$BC17,'Shuttle C&T EF'!$D$3:$K$1532,6,))/IF('GHG Calcs'!AX17>0,$DC5,1) ->  | CJ5: =IF('GHG Calcs'!$AW17="Gas",0,VLOOKUP('GHG Calcs'!$BB17,'Shuttle C&T EF'!$D$3:$K$1532,8,))/IF('GHG Calcs'!AX17>0,$DB5,1) ->  | CK5: =IF('GHG Calcs'!$AW17="Gas",0,VLOOKUP('GHG Calcs'!$BC17,'Shuttle C&T EF'!$D$3:$K$1532,8,))/IF('GHG Calcs'!AX17>0,$DC5,1) ->  | CL5: =VLOOKUP('GHG Calcs'!$BB17,'Over-Road Coach C&T EF'!$D$3:$H$1531,2,)/IF('GHG Calcs'!AX17>0,$DD5,1) ->  | CM5: =VLOOKUP('GHG Calcs'!$BC17,'Over-Road Coach C&T EF'!$D$3:$H$1531,2,)/IF('GHG Calcs'!AX17>0,$DE5,1) ->  | CN5: =VLOOKUP('GHG Calcs'!$BB17,'Over-Road Coach C&T EF'!$D$3:$H$1531,3,)/IF('GHG Calcs'!AX17>0,$DD5,1) ->  | CO5: =VLOOKUP('GHG Calcs'!$BC17,'Over-Road Coach C&T EF'!$D$3:$H$1531,3,)/IF('GHG Calcs'!AX17>0,$DE5,1) ->  | CP5: =VLOOKUP('GHG Calcs'!$BB17,'Over-Road Coach C&T EF'!$D$3:$H$1531,4,)/IF('GHG Calcs'!AX17>0,$DD5,1) ->  | CQ5: =VLOOKUP('GHG Calcs'!$BC17,'Over-Road Coach C&T EF'!$D$3:$H$1531,4,)/IF('GHG Calcs'!AX17>0,$DE5,1) ->  | CR5: =VLOOKUP('GHG Calcs'!$BB17,'Over-Road Coach C&T EF'!$D$3:$H$1531,5,)/IF('GHG Calcs'!AX17>0,$DD5,1) ->  | CS5: =VLOOKUP('GHG Calcs'!$BC17,'Over-Road Coach C&T EF'!$D$3:$H$1531,5,)/IF('GHG Calcs'!AX17>0,$DE5,1) ->  | CT5: =$BO$13/IF('GHG Calcs'!$AX17>0,1.8191,1) -> 10.30726944 | CU5: =$BP$13/IF('GHG Calcs'!$AX17>0,1.8191,1) -> 186.3576 | CV5: =$BQ$13/IF('GHG Calcs'!$AX17>0,1.8191,1) -> 6.5733408 | CW5: =$BR$13/IF('GHG Calcs'!$AX17>0,1.8191,1) -> 6.77664 | CX5: =(IF('GHG Calcs'!$AW17="Gasoline",VLOOKUP('GHG Calcs'!$BB17,'Fuel Consumption'!$A$4:$H$1533,3),VLOOKUP('GHG Calcs'!$BB17,'Fuel Consumption'!$A$4:$H$1533,2))) -> 0.1850502578 | CY5: =(IF('GHG Calcs'!$AW17="Gasoline",VLOOKUP('GHG Calcs'!$BC17,'Fuel Consumption'!$A$4:$H$1533,3),VLOOKUP('GHG Calcs'!$BC17,'Fuel Consumption'!$A$4:$H$1533,2))) -> 0.1850316875 | CZ5: =(IF('GHG Calcs'!$AW17="Gasoline",VLOOKUP('GHG Calcs'!$BB17,'Fuel Consumption'!$A$4:$H$1533,5),VLOOKUP('GHG Calcs'!$BB17,'Fuel Consumption'!$A$4:$H$1533,4))) -> 0.04723249222 | DA5: =(IF('GHG Calcs'!$AW17="Gasoline",VLOOKUP('GHG Calcs'!$BC17,'Fuel Consumption'!$A$4:$H$1533,5),VLOOKUP('GHG Calcs'!$BC17,'Fuel Consumption'!$A$4:$H$1533,4))) -> 0.04735750965 | DB5: =(IF('GHG Calcs'!$AW17="Gasoline",VLOOKUP('GHG Calcs'!$BB17,'Fuel Consumption'!$A$4:$H$1533,7),VLOOKUP('GHG Calcs'!$BB17,'Fuel Consumption'!$A$4:$H$1533,6))) -> 0.05253638358 | DC5: =(IF('GHG Calcs'!$AW17="Gasoline",VLOOKUP('GHG Calcs'!$BC17,'Fuel Consumption'!$A$4:$H$1533,7),VLOOKUP('GHG Calcs'!$BC17,'Fuel Consumption'!$A$4:$H$1533,6))) -> 0.05268339823 | DD5: =VLOOKUP('GHG Calcs'!$BB17,'Fuel Consumption'!$A$4:$H$1533,8) -> 0.1630668806 | DE5: =VLOOKUP('GHG Calcs'!$BC17,'Fuel Consumption'!$A$4:$H$1533,8) -> 0.1629780324
A6: Quantifiable Component 3 | B6: ='GHG Calcs'!O18 -> 0 | C6: ='GHG Calcs'!Q18 -> 0 | D6: =VLOOKUP('GHG Calcs'!G18,'Auto C&T EF'!C4:I2631,2,)*B6 ->  | E6: =VLOOKUP('GHG Calcs'!H18,'Auto C&T EF'!C4:I2631,2,)*C6 ->  | F6: =VLOOKUP('GHG Calcs'!$G18,'Auto C&T EF'!C4:I2631,3,)*$B6 ->  | G6: =VLOOKUP('GHG Calcs'!$H18,'Auto C&T EF'!C4:I2631,3,)*$C6 ->  | H6: =VLOOKUP('GHG Calcs'!$G18,'Auto C&T EF'!C4:I2631,5,)*$B6 ->  | I6: =VLOOKUP('GHG Calcs'!$H18,'Auto C&T EF'!C4:I2631,5,)*$C6 ->  | J6: =VLOOKUP('GHG Calcs'!$G18,'Auto C&T EF'!C4:I2631,6,)*$B6 ->  | K6: =VLOOKUP('GHG Calcs'!$H18,'Auto C&T EF'!C4:I2631,6,)*$C6 ->  | L6: =AVERAGE(D6:E6)*('GHG Calcs'!E18-'GHG Calcs'!D18) ->  | M6: =AVERAGE(F6:G6)*('GHG Calcs'!E18-'GHG Calcs'!D18) ->  | N6: =AVERAGE(H6:I6)*('GHG Calcs'!E18-'GHG Calcs'!D18) ->  | O6: =AVERAGE(J6:K6)*('GHG Calcs'!E18-'GHG Calcs'!D18) ->  | Q6: =IF('GHG Calcs'!$V18="Gas",VLOOKUP('GHG Calcs'!$Y18,'Bus C&T EF'!$D$3:$K$1532,3,),VLOOKUP('GHG Calcs'!$Y18,'Bus C&T EF'!$D$3:$K$1532,2,))/IF('GHG Calcs'!AX18>0,$BE6,1) ->  | R6: =IF('GHG Calcs'!$V18="Gas",VLOOKUP('GHG Calcs'!$Z18,'Bus C&T EF'!$D$3:$K$1532,3,),VLOOKUP('GHG Calcs'!$Z18,'Bus C&T EF'!$D$3:$K$1532,2,))/IF('GHG Calcs'!AX18>0,$BF6,1) ->  | S6: =IF('GHG Calcs'!$V18="Gas",VLOOKUP('GHG Calcs'!$Y18,'Bus C&T EF'!$D$3:$K$1532,5,),VLOOKUP('GHG Calcs'!$Y18,'Bus C&T EF'!$D$3:$K$1532,4,))/IF('GHG Calcs'!AX18>0,$BE6,1) ->  | T6: =IF('GHG Calcs'!$V18="Gas",VLOOKUP('GHG Calcs'!$Z18,'Bus C&T EF'!$D$3:$K$1532,5,),VLOOKUP('GHG Calcs'!$Z18,'Bus C&T EF'!$D$3:$K$1532,4,))/IF('GHG Calcs'!AX18>0,$BF6,1) ->  | U6: =IF('GHG Calcs'!$V18="Gas",VLOOKUP('GHG Calcs'!$Y18,'Bus C&T EF'!$D$3:$K$1532,7,),VLOOKUP('GHG Calcs'!$Y18,'Bus C&T EF'!$D$3:$K$1532,6,))/IF('GHG Calcs'!AX18>0,$BE6,1) ->  | V6: =IF('GHG Calcs'!$V18="Gas",VLOOKUP('GHG Calcs'!$Z18,'Bus C&T EF'!$D$3:$K$1532,7,),VLOOKUP('GHG Calcs'!$Z18,'Bus C&T EF'!$D$3:$K$1532,6,))/IF('GHG Calcs'!AX18>0,$BF6,1) ->  | W6: =IF('GHG Calcs'!$V18="Gas",0,VLOOKUP('GHG Calcs'!$Y18,'Bus C&T EF'!$D$3:$K$1532,8,))/IF('GHG Calcs'!AX18>0,$BE6,1) ->  | X6: =IF('GHG Calcs'!$V18="Gas",0,VLOOKUP('GHG Calcs'!$Z18,'Bus C&T EF'!$D$3:$K$1532,8,))/IF('GHG Calcs'!AX18>0,$BF6,1) ->  | Y6: =IF('GHG Calcs'!$V18="Gas",VLOOKUP('GHG Calcs'!$Y18,'Van C&T EF'!$D$3:$K$1532,3,),VLOOKUP('GHG Calcs'!$Y18,'Van C&T EF'!$D$3:$K$1532,2,))/IF('GHG Calcs'!AX18>0,$BG6,1) ->  | Z6: =IF('GHG Calcs'!$V18="Gas",VLOOKUP('GHG Calcs'!$Z18,'Van C&T EF'!$D$3:$K$1532,3,),VLOOKUP('GHG Calcs'!$Z18,'Van C&T EF'!$D$3:$K$1532,2,))/IF('GHG Calcs'!AX18>0,$BH6,1) ->  | AA6: =IF('GHG Calcs'!$V18="Gas",VLOOKUP('GHG Calcs'!$Y18,'Van C&T EF'!$D$3:$K$1532,5,),VLOOKUP('GHG Calcs'!$Y18,'Van C&T EF'!$D$3:$K$1532,4,))/IF('GHG Calcs'!AX18>0,$BG6,1) ->  | AB6: =IF('GHG Calcs'!$V18="Gas",VLOOKUP('GHG Calcs'!$Z18,'Van C&T EF'!$D$3:$K$1532,5,),VLOOKUP('GHG Calcs'!$Z18,'Van C&T EF'!$D$3:$K$1532,4,))/IF('GHG Calcs'!AX18>0,$BH6,1) ->  | AC6: =IF('GHG Calcs'!$V18="Gas",VLOOKUP('GHG Calcs'!$Y18,'Van C&T EF'!$D$3:$K$1532,7,),VLOOKUP('GHG Calcs'!$Y18,'Van C&T EF'!$D$3:$K$1532,6,))/IF('GHG Calcs'!AX18>0,$BG6,1) ->  | AD6: =IF('GHG Calcs'!$V18="Gas",VLOOKUP('GHG Calcs'!$Z18,'Van C&T EF'!$D$3:$K$1532,7,),VLOOKUP('GHG Calcs'!$Z18,'Van C&T EF'!$D$3:$K$1532,6,))/IF('GHG Calcs'!AX18>0,$BH6,1) ->  | AE6: =IF('GHG Calcs'!$V18="Gas",0,VLOOKUP('GHG Calcs'!$Y18,'Van C&T EF'!$D$3:$K$1532,8,))/IF('GHG Calcs'!AX18>0,$BG6,1) ->  | AF6: =IF('GHG Calcs'!$V18="Gas",0,VLOOKUP('GHG Calcs'!$Z18,'Van C&T EF'!$D$3:$K$1532,8,))/IF('GHG Calcs'!AX18>0,$BH6,1) ->  | AG6: =IF('GHG Calcs'!$V18="Gas",VLOOKUP('GHG Calcs'!$Y18,'Shuttle C&T EF'!$D$3:$K$1532,3,),VLOOKUP('GHG Calcs'!$Y18,'Shuttle C&T EF'!$D$3:$K$1532,2,))/IF('GHG Calcs'!AX18>0,$BI6,1) ->  | AH6: =IF('GHG Calcs'!$V18="Gas",VLOOKUP('GHG Calcs'!$Z18,'Shuttle C&T EF'!$D$3:$K$1532,3,),VLOOKUP('GHG Calcs'!$Z18,'Shuttle C&T EF'!$D$3:$K$1532,2,))/IF('GHG Calcs'!AX18>0,$BJ6,1) ->  | AI6: =IF('GHG Calcs'!$V18="Gas",VLOOKUP('GHG Calcs'!$Y18,'Shuttle C&T EF'!$D$3:$K$1532,5,),VLOOKUP('GHG Calcs'!$Y18,'Shuttle C&T EF'!$D$3:$K$1532,4,))/IF('GHG Calcs'!AX18>0,$BI6,1) ->  | AJ6: =IF('GHG Calcs'!$V18="Gas",VLOOKUP('GHG Calcs'!$Z18,'Shuttle C&T EF'!$D$3:$K$1532,5,),VLOOKUP('GHG Calcs'!$Z18,'Shuttle C&T EF'!$D$3:$K$1532,4,))/IF('GHG Calcs'!AX18>0,$BJ6,1) ->  | AK6: =IF('GHG Calcs'!$V18="Gas",VLOOKUP('GHG Calcs'!$Y18,'Shuttle C&T EF'!$D$3:$K$1532,7,),VLOOKUP('GHG Calcs'!$Y18,'Shuttle C&T EF'!$D$3:$K$1532,6,))/IF('GHG Calcs'!AX18>0,$BI6,1) ->  | AL6: =IF('GHG Calcs'!$V18="Gas",VLOOKUP('GHG Calcs'!$Z18,'Shuttle C&T EF'!$D$3:$K$1532,7,),VLOOKUP('GHG Calcs'!$Z18,'Shuttle C&T EF'!$D$3:$K$1532,6,))/IF('GHG Calcs'!AX18>0,$BJ6,1) ->  | AM6: =IF('GHG Calcs'!$V18="Gas",0,VLOOKUP('GHG Calcs'!$Y18,'Shuttle C&T EF'!$D$3:$K$1532,8,))/IF('GHG Calcs'!AX18>0,$BI6,1) ->  | AN6: =IF('GHG Calcs'!$V18="Gas",0,VLOOKUP('GHG Calcs'!$Z18,'Shuttle C&T EF'!$D$3:$K$1532,8,))/IF('GHG Calcs'!AX18>0,$BJ6,1) ->  | AO6: =VLOOKUP('GHG Calcs'!$Y18,'Over-Road Coach C&T EF'!$D$3:$H$1531,2,)/IF('GHG Calcs'!AX18>0,$BK6,1) ->  | AP6: =VLOOKUP('GHG Calcs'!$Z18,'Over-Road Coach C&T EF'!$D$3:$H$1531,2,)/IF('GHG Calcs'!AX18>0,$BL6,1) ->  | AQ6: =VLOOKUP('GHG Calcs'!$Y18,'Over-Road Coach C&T EF'!$D$3:$H$1531,3,)/IF('GHG Calcs'!AX18>0,$BK6,1) ->  | AR6: =VLOOKUP('GHG Calcs'!$Z18,'Over-Road Coach C&T EF'!$D$3:$H$1531,3,)/IF('GHG Calcs'!AX18>0,$BL6,1) ->  | AS6: =VLOOKUP('GHG Calcs'!$Y18,'Over-Road Coach C&T EF'!$D$3:$H$1531,4,)/IF('GHG Calcs'!AX18>0,$BK6,1) ->  | AT6: =VLOOKUP('GHG Calcs'!$Z18,'Over-Road Coach C&T EF'!$D$3:$H$1531,4,)/IF('GHG Calcs'!AX18>0,$BL6,1) ->  | AU6: =VLOOKUP('GHG Calcs'!$Y18,'Over-Road Coach C&T EF'!$D$3:$H$1531,5,)/IF('GHG Calcs'!AX18>0,$BK6,1) ->  | AV6: =VLOOKUP('GHG Calcs'!$Z18,'Over-Road Coach C&T EF'!$D$3:$H$1531,5,)/IF('GHG Calcs'!AX18>0,$BL6,1) ->  | AW6: =IF('GHG Calcs'!A18="Cleaner Vehicles/Technology/Fuels",($R$14/IF('GHG Calcs'!$W18>0,1.8191,1)),($R$13/IF('GHG Calcs'!$W18>0,1.8191,1))) -> 10.35909052 | AX6: =IF('GHG Calcs'!A18="Cleaner Vehicles/Technology/Fuels",($S$14/IF('GHG Calcs'!$W18>0,1.8191,1)),($S$13/IF('GHG Calcs'!$W18>0,1.8191,1))) -> 187.294536 | AY6: =IF('GHG Calcs'!A18="Cleaner Vehicles/Technology/Fuels",($T$14/IF('GHG Calcs'!$W18>0,1.8191,1)),($T$13/IF('GHG Calcs'!$W18>0,1.8191,1))) -> 6.8107104 | AZ6: =IF('GHG Calcs'!A18="Cleaner Vehicles/Technology/Fuels",($U$14/IF('GHG Calcs'!$W18>0,1.8191,1)),($U$13/IF('GHG Calcs'!$W18>0,1.8191,1))) -> 6.606389088 | BA6: =IF('GHG Calcs'!A18="Cleaner Vehicles/Technology/Fuels",'Co-Benefit Calcs'!$R$19,IF('GHG Calcs'!A18="Fuel Reductions",0,'Co-Benefit Calcs'!$R$18)) -> 31.86 | BB6: =IF('GHG Calcs'!A18="Cleaner Vehicles/Technology/Fuels",'Co-Benefit Calcs'!$S$19,IF('GHG Calcs'!A18="Fuel Reductions",0,'Co-Benefit Calcs'!$S$18)) -> 254.02 | BC6: =IF('GHG Calcs'!A18="Cleaner Vehicles/Technology/Fuels",'Co-Benefit Calcs'!$T$19,IF('GHG Calcs'!A18="Fuel Reductions",0,'Co-Benefit Calcs'!$T$18)) -> 10.166 | BD6: =IF('GHG Calcs'!A18="Cleaner Vehicles/Technology/Fuels",'Co-Benefit Calcs'!$U$19,IF('GHG Calcs'!A18="Fuel Reductions",0,'Co-Benefit Calcs'!$U$18)) -> 11.05 | BE6: =(IF('GHG Calcs'!$V18="Gasoline",VLOOKUP('GHG Calcs'!$Y18,'Fuel Consumption'!$A$4:$H$1533,3),VLOOKUP('GHG Calcs'!$Y18,'Fuel Consumption'!$A$4:$H$1533,2))) ->  | BF6: =(IF('GHG Calcs'!$V18="Gasoline",VLOOKUP('GHG Calcs'!$Z18,'Fuel Consumption'!$A$4:$H$1533,3),VLOOKUP('GHG Calcs'!$Z18,'Fuel Consumption'!$A$4:$H$1533,2))) ->  | BG6: =(IF('GHG Calcs'!$V18="Gasoline",VLOOKUP('GHG Calcs'!$Y18,'Fuel Consumption'!$A$4:$H$1533,5),VLOOKUP('GHG Calcs'!$Y18,'Fuel Consumption'!$A$4:$H$1533,4))) ->  | BH6: =(IF('GHG Calcs'!$V18="Gasoline",VLOOKUP('GHG Calcs'!$Z18,'Fuel Consumption'!$A$4:$H$1533,5),VLOOKUP('GHG Calcs'!$Z18,'Fuel Consumption'!$A$4:$H$1533,4))) ->  | BI6: =(IF('GHG Calcs'!$V18="Gasoline",VLOOKUP('GHG Calcs'!$Y18,'Fuel Consumption'!$A$4:$H$1533,7),VLOOKUP('GHG Calcs'!$Y18,'Fuel Consumption'!$A$4:$H$1533,6))) ->  | BJ6: =(IF('GHG Calcs'!$V18="Gasoline",VLOOKUP('GHG Calcs'!$Z18,'Fuel Consumption'!$A$4:$H$1533,7),VLOOKUP('GHG Calcs'!$Z18,'Fuel Consumption'!$A$4:$H$1533,6))) ->  | BK6: =VLOOKUP('GHG Calcs'!$Y18,'Fuel Consumption'!$A$4:$H$1533,8) ->  | BL6: =VLOOKUP('GHG Calcs'!$Z18,'Fuel Consumption'!$A$4:$H$1533,8) ->  | BN6: =IF('GHG Calcs'!$AW18="Gas",VLOOKUP('GHG Calcs'!$BB18,'Bus C&T EF'!$D$3:$K$1532,3,),VLOOKUP('GHG Calcs'!$BB18,'Bus C&T EF'!$D$3:$K$1532,2,))/IF('GHG Calcs'!AX18>0,$CX6,1) ->  | BO6: =IF('GHG Calcs'!$AW18="Gas",VLOOKUP('GHG Calcs'!$BC18,'Bus C&T EF'!$D$3:$K$1532,3,),VLOOKUP('GHG Calcs'!$BC18,'Bus C&T EF'!$D$3:$K$1532,2,))/IF('GHG Calcs'!AX18>0,$CY6,1) ->  | BP6: =IF('GHG Calcs'!$AW18="Gas",VLOOKUP('GHG Calcs'!$BB18,'Bus C&T EF'!$D$3:$K$1532,5,),VLOOKUP('GHG Calcs'!BB18,'Bus C&T EF'!$D$3:$K$1532,4,))/IF('GHG Calcs'!AX18>0,$CX6,1) ->  | BQ6: =IF('GHG Calcs'!$AW18="Gas",VLOOKUP('GHG Calcs'!$BC18,'Bus C&T EF'!$D$3:$K$1532,5,),VLOOKUP('GHG Calcs'!$BC18,'Bus C&T EF'!$D$3:$K$1532,4,))/IF('GHG Calcs'!AX18>0,$CY6,1) ->  | BR6: =IF('GHG Calcs'!$AW18="Gas",VLOOKUP('GHG Calcs'!$BB18,'Bus C&T EF'!$D$3:$K$1532,7,),VLOOKUP('GHG Calcs'!$BB18,'Bus C&T EF'!$D$3:$K$1532,6,))/IF('GHG Calcs'!AX18>0,$CX6,1) ->  | BS6: =IF('GHG Calcs'!$AW18="Gas",VLOOKUP('GHG Calcs'!$BC18,'Bus C&T EF'!$D$3:$K$1532,7,),VLOOKUP('GHG Calcs'!$BC18,'Bus C&T EF'!$D$3:$K$1532,6,))/IF('GHG Calcs'!AX18>0,$CY6,1) ->  | BT6: =IF('GHG Calcs'!$AW18="Gas",0,VLOOKUP('GHG Calcs'!$BB18,'Bus C&T EF'!$D$3:$K$1532,8,))/IF('GHG Calcs'!AX18>0,$CX6,1) ->  | BU6: =IF('GHG Calcs'!$AW18="Gas",0,VLOOKUP('GHG Calcs'!$BC18,'Bus C&T EF'!$D$3:$K$1532,8,))/IF('GHG Calcs'!AX18>0,$CY6,1) ->  | BV6: =IF('GHG Calcs'!$AW18="Gas",VLOOKUP('GHG Calcs'!$BB18,'Van C&T EF'!$D$3:$K$1532,3,),VLOOKUP('GHG Calcs'!$BB18,'Van C&T EF'!$D$3:$K$1532,2,))/IF('GHG Calcs'!AX18>0,$CZ6,1) ->  | BW6: =IF('GHG Calcs'!$AW18="Gas",VLOOKUP('GHG Calcs'!$BC18,'Van C&T EF'!$D$3:$K$1532,3,),VLOOKUP('GHG Calcs'!$BC18,'Van C&T EF'!$D$3:$K$1532,2,))/IF('GHG Calcs'!AX18>0,$DA6,1) ->  | BX6: =IF('GHG Calcs'!$AW18="Gas",VLOOKUP('GHG Calcs'!$BB18,'Van C&T EF'!$D$3:$K$1532,5,),VLOOKUP('GHG Calcs'!$BB18,'Van C&T EF'!$D$3:$K$1532,4,))/IF('GHG Calcs'!AX18>0,$CZ6,1) ->  | BY6: =IF('GHG Calcs'!$AW18="Gas",VLOOKUP('GHG Calcs'!$BC18,'Van C&T EF'!$D$3:$K$1532,5,),VLOOKUP('GHG Calcs'!$BC18,'Van C&T EF'!$D$3:$K$1532,4,))/IF('GHG Calcs'!AX18>0,$DA6,1) ->  | BZ6: =IF('GHG Calcs'!$AW18="Gas",VLOOKUP('GHG Calcs'!$BB18,'Van C&T EF'!$D$3:$K$1532,7,),VLOOKUP('GHG Calcs'!$BB18,'Van C&T EF'!$D$3:$K$1532,6,))/IF('GHG Calcs'!AX18>0,$CZ6,1) ->  | CA6: =IF('GHG Calcs'!$AW18="Gas",VLOOKUP('GHG Calcs'!$BC18,'Van C&T EF'!$D$3:$K$1532,7,),VLOOKUP('GHG Calcs'!$BC18,'Van C&T EF'!$D$3:$K$1532,6,))/IF('GHG Calcs'!AX18>0,$DA6,1) ->  | CB6: =IF('GHG Calcs'!$AW18="Gas",0,VLOOKUP('GHG Calcs'!$BB18,'Van C&T EF'!$D$3:$K$1532,8,))/IF('GHG Calcs'!AX18>0,$CZ6,1) ->  | CC6: =IF('GHG Calcs'!$AW18="Gas",0,VLOOKUP('GHG Calcs'!$BC18,'Van C&T EF'!$D$3:$K$1532,8,))/IF('GHG Calcs'!AX18>0,$DA6,1) ->  | CD6: =IF('GHG Calcs'!$AW18="Gas",VLOOKUP('GHG Calcs'!$BB18,'Shuttle C&T EF'!$D$3:$K$1532,3,),VLOOKUP('GHG Calcs'!$BB18,'Shuttle C&T EF'!$D$3:$K$1532,2,))/IF('GHG Calcs'!AX18>0,$DB6,1) ->  | CE6: =IF('GHG Calcs'!$AW18="Gas",VLOOKUP('GHG Calcs'!$BC18,'Shuttle C&T EF'!$D$3:$K$1532,3,),VLOOKUP('GHG Calcs'!$BC18,'Shuttle C&T EF'!$D$3:$K$1532,2,))/IF('GHG Calcs'!AX18>0,$DC6,1) ->  | CF6: =IF('GHG Calcs'!$AW18="Gas",VLOOKUP('GHG Calcs'!$BB18,'Shuttle C&T EF'!$D$3:$K$1532,5,),VLOOKUP('GHG Calcs'!$BB18,'Shuttle C&T EF'!$D$3:$K$1532,4,))/IF('GHG Calcs'!AX18>0,$DB6,1) ->  | CG6: =IF('GHG Calcs'!$AW18="Gas",VLOOKUP('GHG Calcs'!$BC18,'Shuttle C&T EF'!$D$3:$K$1532,5,),VLOOKUP('GHG Calcs'!$BC18,'Shuttle C&T EF'!$D$3:$K$1532,4,))/IF('GHG Calcs'!AX18>0,$DC6,1) ->  | CH6: =IF('GHG Calcs'!$AW18="Gas",VLOOKUP('GHG Calcs'!$BB18,'Shuttle C&T EF'!$D$3:$K$1532,7,),VLOOKUP('GHG Calcs'!$BB18,'Shuttle C&T EF'!$D$3:$K$1532,6,))/IF('GHG Calcs'!AX18>0,$DB6,1) ->  | CI6: =IF('GHG Calcs'!$AW18="Gas",VLOOKUP('GHG Calcs'!$BC18,'Shuttle C&T EF'!$D$3:$K$1532,7,),VLOOKUP('GHG Calcs'!$BC18,'Shuttle C&T EF'!$D$3:$K$1532,6,))/IF('GHG Calcs'!AX18>0,$DC6,1) ->  | CJ6: =IF('GHG Calcs'!$AW18="Gas",0,VLOOKUP('GHG Calcs'!$BB18,'Shuttle C&T EF'!$D$3:$K$1532,8,))/IF('GHG Calcs'!AX18>0,$DB6,1) ->  | CK6: =IF('GHG Calcs'!$AW18="Gas",0,VLOOKUP('GHG Calcs'!$BC18,'Shuttle C&T EF'!$D$3:$K$1532,8,))/IF('GHG Calcs'!AX18>0,$DC6,1) ->  | CL6: =VLOOKUP('GHG Calcs'!$BB18,'Over-Road Coach C&T EF'!$D$3:$H$1531,2,)/IF('GHG Calcs'!AX18>0,$DD6,1) ->  | CM6: =VLOOKUP('GHG Calcs'!$BC18,'Over-Road Coach C&T EF'!$D$3:$H$1531,2,)/IF('GHG Calcs'!AX18>0,$DE6,1) ->  | CN6: =VLOOKUP('GHG Calcs'!$BB18,'Over-Road Coach C&T EF'!$D$3:$H$1531,3,)/IF('GHG Calcs'!AX18>0,$DD6,1) ->  | CO6: =VLOOKUP('GHG Calcs'!$BC18,'Over-Road Coach C&T EF'!$D$3:$H$1531,3,)/IF('GHG Calcs'!AX18>0,$DE6,1) ->  | CP6: =VLOOKUP('GHG Calcs'!$BB18,'Over-Road Coach C&T EF'!$D$3:$H$1531,4,)/IF('GHG Calcs'!AX18>0,$DD6,1) ->  | CQ6: =VLOOKUP('GHG Calcs'!$BC18,'Over-Road Coach C&T EF'!$D$3:$H$1531,4,)/IF('GHG Calcs'!AX18>0,$DE6,1) ->  | CR6: =VLOOKUP('GHG Calcs'!$BB18,'Over-Road Coach C&T EF'!$D$3:$H$1531,5,)/IF('GHG Calcs'!AX18>0,$DD6,1) ->  | CS6: =VLOOKUP('GHG Calcs'!$BC18,'Over-Road Coach C&T EF'!$D$3:$H$1531,5,)/IF('GHG Calcs'!AX18>0,$DE6,1) ->  | CT6: =$BO$13/IF('GHG Calcs'!$AX18>0,1.8191,1) -> 10.30726944 | CU6: =$BP$13/IF('GHG Calcs'!$AX18>0,1.8191,1) -> 186.3576 | CV6: =$BQ$13/IF('GHG Calcs'!$AX18>0,1.8191,1) -> 6.5733408 | CW6: =$BR$13/IF('GHG Calcs'!$AX18>0,1.8191,1) -> 6.77664 | CX6: =(IF('GHG Calcs'!$AW18="Gasoline",VLOOKUP('GHG Calcs'!$BB18,'Fuel Consumption'!$A$4:$H$1533,3),VLOOKUP('GHG Calcs'!$BB18,'Fuel Consumption'!$A$4:$H$1533,2))) ->  | CY6: =(IF('GHG Calcs'!$AW18="Gasoline",VLOOKUP('GHG Calcs'!$BC18,'Fuel Consumption'!$A$4:$H$1533,3),VLOOKUP('GHG Calcs'!$BC18,'Fuel Consumption'!$A$4:$H$1533,2))) ->  | CZ6: =(IF('GHG Calcs'!$AW18="Gasoline",VLOOKUP('GHG Calcs'!$BB18,'Fuel Consumption'!$A$4:$H$1533,5),VLOOKUP('GHG Calcs'!$BB18,'Fuel Consumption'!$A$4:$H$1533,4))) ->  | DA6: =(IF('GHG Calcs'!$AW18="Gasoline",VLOOKUP('GHG Calcs'!$BC18,'Fuel Consumption'!$A$4:$H$1533,5),VLOOKUP('GHG Calcs'!$BC18,'Fuel Consumption'!$A$4:$H$1533,4))) ->  | DB6: =(IF('GHG Calcs'!$AW18="Gasoline",VLOOKUP('GHG Calcs'!$BB18,'Fuel Consumption'!$A$4:$H$1533,7),VLOOKUP('GHG Calcs'!$BB18,'Fuel Consumption'!$A$4:$H$1533,6))) ->  | DC6: =(IF('GHG Calcs'!$AW18="Gasoline",VLOOKUP('GHG Calcs'!$BC18,'Fuel Consumption'!$A$4:$H$1533,7),VLOOKUP('GHG Calcs'!$BC18,'Fuel Consumption'!$A$4:$H$1533,6))) ->  | DD6: =VLOOKUP('GHG Calcs'!$BB18,'Fuel Consumption'!$A$4:$H$1533,8) ->  | DE6: =VLOOKUP('GHG Calcs'!$BC18,'Fuel Consumption'!$A$4:$H$1533,8) -> 
A7: Quantifiable Component 4 | B7: ='GHG Calcs'!O19 -> 45600 | C7: ='GHG Calcs'!Q19 -> 45840 | D7: =VLOOKUP('GHG Calcs'!G19,'Auto C&T EF'!C4:I2631,2,)*B7 -> 1109.928298 | E7: =VLOOKUP('GHG Calcs'!H19,'Auto C&T EF'!C4:I2631,2,)*C7 -> 345.3900586 | F7: =VLOOKUP('GHG Calcs'!$G19,'Auto C&T EF'!C4:I2631,3,)*$B7 -> 5403.201805 | G7: =VLOOKUP('GHG Calcs'!$H19,'Auto C&T EF'!C4:I2631,3,)*$C7 -> 1819.88085 | H7: =VLOOKUP('GHG Calcs'!$G19,'Auto C&T EF'!C4:I2631,5,)*$B7 -> 82.3941553 | I7: =VLOOKUP('GHG Calcs'!$H19,'Auto C&T EF'!C4:I26314,5,)*$C7 -> 55.63891492 | J7: =VLOOKUP('GHG Calcs'!$G19,'Auto C&T EF'!C4:I2631,6,)*$B7 -> 718.4417439 | K7: =VLOOKUP('GHG Calcs'!$H19,'Auto C&T EF'!C4:I2631,6,)*$C7 -> 92.68842385 | L7: =AVERAGE(D7:E7)*('GHG Calcs'!E19-'GHG Calcs'!D19) -> 8731.910139 | M7: =AVERAGE(F7:G7)*('GHG Calcs'!E19-'GHG Calcs'!D19) -> 43338.49593 | N7: =AVERAGE(H7:I7)*('GHG Calcs'!E19-'GHG Calcs'!D19) -> 828.1984213 | O7: =AVERAGE(J7:K7)*('GHG Calcs'!E19-'GHG Calcs'!D19) -> 4866.781006 | Q7: =IF('GHG Calcs'!$V19="Gas",VLOOKUP('GHG Calcs'!$Y19,'Bus C&T EF'!$D$3:$K$1532,3,),VLOOKUP('GHG Calcs'!$Y19,'Bus C&T EF'!$D$3:$K$1532,2,))/IF('GHG Calcs'!AX19>0,$BE7,1) -> 0.02278452189 | R7: =IF('GHG Calcs'!$V19="Gas",VLOOKUP('GHG Calcs'!$Z19,'Bus C&T EF'!$D$3:$K$1532,3,),VLOOKUP('GHG Calcs'!$Z19,'Bus C&T EF'!$D$3:$K$1532,2,))/IF('GHG Calcs'!AX19>0,$BF7,1) -> 0.02281302426 | S7: =IF('GHG Calcs'!$V19="Gas",VLOOKUP('GHG Calcs'!$Y19,'Bus C&T EF'!$D$3:$K$1532,5,),VLOOKUP('GHG Calcs'!$Y19,'Bus C&T EF'!$D$3:$K$1532,4,))/IF('GHG Calcs'!AX19>0,$BE7,1) -> 0.8119896174 | T7: =IF('GHG Calcs'!$V19="Gas",VLOOKUP('GHG Calcs'!$Z19,'Bus C&T EF'!$D$3:$K$1532,5,),VLOOKUP('GHG Calcs'!$Z19,'Bus C&T EF'!$D$3:$K$1532,4,))/IF('GHG Calcs'!AX19>0,$BF7,1) -> 0.8145974878 | U7: =IF('GHG Calcs'!$V19="Gas",VLOOKUP('GHG Calcs'!$Y19,'Bus C&T EF'!$D$3:$K$1532,7,),VLOOKUP('GHG Calcs'!$Y19,'Bus C&T EF'!$D$3:$K$1532,6,))/IF('GHG Calcs'!AX19>0,$BE7,1) -> 0.003059948604 | V7: =IF('GHG Calcs'!$V19="Gas",VLOOKUP('GHG Calcs'!$Z19,'Bus C&T EF'!$D$3:$K$1532,7,),VLOOKUP('GHG Calcs'!$Z19,'Bus C&T EF'!$D$3:$K$1532,6,))/IF('GHG Calcs'!AX19>0,$BF7,1) -> 0.003074245955 | W7: =IF('GHG Calcs'!$V19="Gas",0,VLOOKUP('GHG Calcs'!$Y19,'Bus C&T EF'!$D$3:$K$1532,8,))/IF('GHG Calcs'!AX19>0,$BE7,1) -> 0.003198305902 | X7: =IF('GHG Calcs'!$V19="Gas",0,VLOOKUP('GHG Calcs'!$Z19,'Bus C&T EF'!$D$3:$K$1532,8,))/IF('GHG Calcs'!AX19>0,$BF7,1) -> 0.003213249715 | Y7: =IF('GHG Calcs'!$V19="Gas",VLOOKUP('GHG Calcs'!$Y19,'Van C&T EF'!$D$3:$K$1532,3,),VLOOKUP('GHG Calcs'!$Y19,'Van C&T EF'!$D$3:$K$1532,2,))/IF('GHG Calcs'!AX19>0,$BG7,1) -> 0.06390295522 | Z7: =IF('GHG Calcs'!$V19="Gas",VLOOKUP('GHG Calcs'!$Z19,'Van C&T EF'!$D$3:$K$1532,3,),VLOOKUP('GHG Calcs'!$Z19,'Van C&T EF'!$D$3:$K$1532,2,))/IF('GHG Calcs'!AX19>0,$BH7,1) -> 0.08451233041 | AA7: =IF('GHG Calcs'!$V19="Gas",VLOOKUP('GHG Calcs'!$Y19,'Van C&T EF'!$D$3:$K$1532,5,),VLOOKUP('GHG Calcs'!$Y19,'Van C&T EF'!$D$3:$K$1532,4,))/IF('GHG Calcs'!AX19>0,$BG7,1) -> 0.06947775992 | AB7: =IF('GHG Calcs'!$V19="Gas",VLOOKUP('GHG Calcs'!$Z19,'Van C&T EF'!$D$3:$K$1532,5,),VLOOKUP('GHG Calcs'!$Z19,'Van C&T EF'!$D$3:$K$1532,4,))/IF('GHG Calcs'!AX19>0,$BH7,1) -> 0.1230260845 | AC7: =IF('GHG Calcs'!$V19="Gas",VLOOKUP('GHG Calcs'!$Y19,'Van C&T EF'!$D$3:$K$1532,7,),VLOOKUP('GHG Calcs'!$Y19,'Van C&T EF'!$D$3:$K$1532,6,))/IF('GHG Calcs'!AX19>0,$BG7,1) -> 0.00393633072 | AD7: =IF('GHG Calcs'!$V19="Gas",VLOOKUP('GHG Calcs'!$Z19,'Van C&T EF'!$D$3:$K$1532,7,),VLOOKUP('GHG Calcs'!$Z19,'Van C&T EF'!$D$3:$K$1532,6,))/IF('GHG Calcs'!AX19>0,$BH7,1) -> 0.01424676491 | AE7: =IF('GHG Calcs'!$V19="Gas",0,VLOOKUP('GHG Calcs'!$Y19,'Van C&T EF'!$D$3:$K$1532,8,))/IF('GHG Calcs'!AX19>0,$BG7,1) -> 0.004114314128 | AF7: =IF('GHG Calcs'!$V19="Gas",0,VLOOKUP('GHG Calcs'!$Z19,'Van C&T EF'!$D$3:$K$1532,8,))/IF('GHG Calcs'!AX19>0,$BH7,1) -> 0.0148909404 | AG7: =IF('GHG Calcs'!$V19="Gas",VLOOKUP('GHG Calcs'!$Y19,'Shuttle C&T EF'!$D$3:$K$1532,3,),VLOOKUP('GHG Calcs'!$Y19,'Shuttle C&T EF'!$D$3:$K$1532,2,))/IF('GHG Calcs'!AX19>0,$BI7,1) -> 0.06390295522 | AH7: =IF('GHG Calcs'!$V19="Gas",VLOOKUP('GHG Calcs'!$Z19,'Shuttle C&T EF'!$D$3:$K$1532,3,),VLOOKUP('GHG Calcs'!$Z19,'Shuttle C&T EF'!$D$3:$K$1532,2,))/IF('GHG Calcs'!AX19>0,$BJ7,1) -> 0.08451233041 | AI7: =IF('GHG Calcs'!$V19="Gas",VLOOKUP('GHG Calcs'!$Y19,'Shuttle C&T EF'!$D$3:$K$1532,5,),VLOOKUP('GHG Calcs'!$Y19,'Shuttle C&T EF'!$D$3:$K$1532,4,))/IF('GHG Calcs'!AX19>0,$BI7,1) -> 0.06951313543 | AJ7: =IF('GHG Calcs'!$V19="Gas",VLOOKUP('GHG Calcs'!$Z19,'Shuttle C&T EF'!$D$3:$K$1532,5,),VLOOKUP('GHG Calcs'!$Z19,'Shuttle C&T EF'!$D$3:$K$1532,4,))/IF('GHG Calcs'!AX19>0,$BJ7,1) -> 0.1230887248 | AK7: =IF('GHG Calcs'!$V19="Gas",VLOOKUP('GHG Calcs'!$Y19,'Shuttle C&T EF'!$D$3:$K$1532,7,),VLOOKUP('GHG Calcs'!$Y19,'Shuttle C&T EF'!$D$3:$K$1532,6,))/IF('GHG Calcs'!AX19>0,$BI7,1) -> 0.004180344696 | AL7: =IF('GHG Calcs'!$V19="Gas",VLOOKUP('GHG Calcs'!$Z19,'Shuttle C&T EF'!$D$3:$K$1532,7,),VLOOKUP('GHG Calcs'!$Z19,'Shuttle C&T EF'!$D$3:$K$1532,6,))/IF('GHG Calcs'!AX19>0,$BJ7,1) -> 0.01512992488 | AM7: =IF('GHG Calcs'!$V19="Gas",0,VLOOKUP('GHG Calcs'!$Y19,'Shuttle C&T EF'!$D$3:$K$1532,8,))/IF('GHG Calcs'!AX19>0,$BI7,1) -> 0.004369361333 | AN7: =IF('GHG Calcs'!$V19="Gas",0,VLOOKUP('GHG Calcs'!$Z19,'Shuttle C&T EF'!$D$3:$K$1532,8,))/IF('GHG Calcs'!AX19>0,$BJ7,1) -> 0.01581403295 | AO7: =VLOOKUP('GHG Calcs'!$Y19,'Over-Road Coach C&T EF'!$D$3:$H$1531,2,)/IF('GHG Calcs'!AX19>0,$BK7,1) -> 0.05249471673 | AP7: =VLOOKUP('GHG Calcs'!$Z19,'Over-Road Coach C&T EF'!$D$3:$H$1531,2,)/IF('GHG Calcs'!AX19>0,$BL7,1) -> 0.08834644348 | AQ7: =VLOOKUP('GHG Calcs'!$Y19,'Over-Road Coach C&T EF'!$D$3:$H$1531,3,)/IF('GHG Calcs'!AX19>0,$BK7,1) -> 0.7945070604 | AR7: =VLOOKUP('GHG Calcs'!$Z19,'Over-Road Coach C&T EF'!$D$3:$H$1531,3,)/IF('GHG Calcs'!AX19>0,$BL7,1) -> 1.729688393 | AS7: =VLOOKUP('GHG Calcs'!$Y19,'Over-Road Coach C&T EF'!$D$3:$H$1531,4,)/IF('GHG Calcs'!AX19>0,$BK7,1) -> 0.00287814237 | AT7: =VLOOKUP('GHG Calcs'!$Z19,'Over-Road Coach C&T EF'!$D$3:$H$1531,4,)/IF('GHG Calcs'!AX19>0,$BL7,1) -> 0.005839644998 | AU7: =VLOOKUP('GHG Calcs'!$Y19,'Over-Road Coach C&T EF'!$D$3:$H$1531,5,)/IF('GHG Calcs'!AX19>0,$BK7,1) -> 0.003008279197 | AV7: =VLOOKUP('GHG Calcs'!$Z19,'Over-Road Coach C&T EF'!$D$3:$H$1531,5,)/IF('GHG Calcs'!AX19>0,$BL7,1) -> 0.006103687832 | AW7: =IF('GHG Calcs'!A19="Cleaner Vehicles/Technology/Fuels",($R$14/IF('GHG Calcs'!$W19>0,1.8191,1)),($R$13/IF('GHG Calcs'!$W19>0,1.8191,1))) -> 10.35909052 | AX7: =IF('GHG Calcs'!A19="Cleaner Vehicles/Technology/Fuels",($S$14/IF('GHG Calcs'!$W19>0,1.8191,1)),($S$13/IF('GHG Calcs'!$W19>0,1.8191,1))) -> 187.294536 | AY7: =IF('GHG Calcs'!A19="Cleaner Vehicles/Technology/Fuels",($T$14/IF('GHG Calcs'!$W19>0,1.8191,1)),($T$13/IF('GHG Calcs'!$W19>0,1.8191,1))) -> 6.8107104 | AZ7: =IF('GHG Calcs'!A19="Cleaner Vehicles/Technology/Fuels",($U$14/IF('GHG Calcs'!$W19>0,1.8191,1)),($U$13/IF('GHG Calcs'!$W19>0,1.8191,1))) -> 6.606389088 | BA7: =IF('GHG Calcs'!A19="Cleaner Vehicles/Technology/Fuels",'Co-Benefit Calcs'!$R$19,IF('GHG Calcs'!A19="Fuel Reductions",0,'Co-Benefit Calcs'!$R$18)) -> 31.86 | BB7: =IF('GHG Calcs'!A19="Cleaner Vehicles/Technology/Fuels",'Co-Benefit Calcs'!$S$19,IF('GHG Calcs'!A19="Fuel Reductions",0,'Co-Benefit Calcs'!$S$18)) -> 254.02 | BC7: =IF('GHG Calcs'!A19="Cleaner Vehicles/Technology/Fuels",'Co-Benefit Calcs'!$T$19,IF('GHG Calcs'!A19="Fuel Reductions",0,'Co-Benefit Calcs'!$T$18)) -> 10.166 | BD7: =IF('GHG Calcs'!A19="Cleaner Vehicles/Technology/Fuels",'Co-Benefit Calcs'!$U$19,IF('GHG Calcs'!A19="Fuel Reductions",0,'Co-Benefit Calcs'!$U$18)) -> 11.05 | BE7: =(IF('GHG Calcs'!$V19="Gasoline",VLOOKUP('GHG Calcs'!$Y19,'Fuel Consumption'!$A$4:$H$1533,3),VLOOKUP('GHG Calcs'!$Y19,'Fuel Consumption'!$A$4:$H$1533,2))) -> 0.1850209228 | BF7: =(IF('GHG Calcs'!$V19="Gasoline",VLOOKUP('GHG Calcs'!$Z19,'Fuel Consumption'!$A$4:$H$1533,3),VLOOKUP('GHG Calcs'!$Z19,'Fuel Consumption'!$A$4:$H$1533,2))) -> 0.1851296017 | BG7: =(IF('GHG Calcs'!$V19="Gasoline",VLOOKUP('GHG Calcs'!$Y19,'Fuel Consumption'!$A$4:$H$1533,5),VLOOKUP('GHG Calcs'!$Y19,'Fuel Consumption'!$A$4:$H$1533,4))) -> 0.04724442453 | BH7: =(IF('GHG Calcs'!$V19="Gasoline",VLOOKUP('GHG Calcs'!$Z19,'Fuel Consumption'!$A$4:$H$1533,5),VLOOKUP('GHG Calcs'!$Z19,'Fuel Consumption'!$A$4:$H$1533,4))) -> 0.04757529103 | BI7: =(IF('GHG Calcs'!$V19="Gasoline",VLOOKUP('GHG Calcs'!$Y19,'Fuel Consumption'!$A$4:$H$1533,7),VLOOKUP('GHG Calcs'!$Y19,'Fuel Consumption'!$A$4:$H$1533,6))) -> 0.05253899593 | BJ7: =(IF('GHG Calcs'!$V19="Gasoline",VLOOKUP('GHG Calcs'!$Z19,'Fuel Consumption'!$A$4:$H$1533,7),VLOOKUP('GHG Calcs'!$Z19,'Fuel Consumption'!$A$4:$H$1533,6))) -> 0.05305086603 | BK7: =VLOOKUP('GHG Calcs'!$Y19,'Fuel Consumption'!$A$4:$H$1533,8) -> 0.1628174358 | BL7: =VLOOKUP('GHG Calcs'!$Z19,'Fuel Consumption'!$A$4:$H$1533,8) -> 0.1661102992 | BN7: =IF('GHG Calcs'!$AW19="Gas",VLOOKUP('GHG Calcs'!$BB19,'Bus C&T EF'!$D$3:$K$1532,3,),VLOOKUP('GHG Calcs'!$BB19,'Bus C&T EF'!$D$3:$K$1532,2,))/IF('GHG Calcs'!AX19>0,$CX7,1) ->  | BO7: =IF('GHG Calcs'!$AW19="Gas",VLOOKUP('GHG Calcs'!$BC19,'Bus C&T EF'!$D$3:$K$1532,3,),VLOOKUP('GHG Calcs'!$BC19,'Bus C&T EF'!$D$3:$K$1532,2,))/IF('GHG Calcs'!AX19>0,$CY7,1) ->  | BP7: =IF('GHG Calcs'!$AW19="Gas",VLOOKUP('GHG Calcs'!$BB19,'Bus C&T EF'!$D$3:$K$1532,5,),VLOOKUP('GHG Calcs'!BB19,'Bus C&T EF'!$D$3:$K$1532,4,))/IF('GHG Calcs'!AX19>0,$CX7,1) ->  | BQ7: =IF('GHG Calcs'!$AW19="Gas",VLOOKUP('GHG Calcs'!$BC19,'Bus C&T EF'!$D$3:$K$1532,5,),VLOOKUP('GHG Calcs'!$BC19,'Bus C&T EF'!$D$3:$K$1532,4,))/IF('GHG Calcs'!AX19>0,$CY7,1) ->  | BR7: =IF('GHG Calcs'!$AW19="Gas",VLOOKUP('GHG Calcs'!$BB19,'Bus C&T EF'!$D$3:$K$1532,7,),VLOOKUP('GHG Calcs'!$BB19,'Bus C&T EF'!$D$3:$K$1532,6,))/IF('GHG Calcs'!AX19>0,$CX7,1) ->  | BS7: =IF('GHG Calcs'!$AW19="Gas",VLOOKUP('GHG Calcs'!$BC19,'Bus C&T EF'!$D$3:$K$1532,7,),VLOOKUP('GHG Calcs'!$BC19,'Bus C&T EF'!$D$3:$K$1532,6,))/IF('GHG Calcs'!AX19>0,$CY7,1) ->  | BT7: =IF('GHG Calcs'!$AW19="Gas",0,VLOOKUP('GHG Calcs'!$BB19,'Bus C&T EF'!$D$3:$K$1532,8,))/IF('GHG Calcs'!AX19>0,$CX7,1) ->  | BU7: =IF('GHG Calcs'!$AW19="Gas",0,VLOOKUP('GHG Calcs'!$BC19,'Bus C&T EF'!$D$3:$K$1532,8,))/IF('GHG Calcs'!AX19>0,$CY7,1) ->  | BV7: =IF('GHG Calcs'!$AW19="Gas",VLOOKUP('GHG Calcs'!$BB19,'Van C&T EF'!$D$3:$K$1532,3,),VLOOKUP('GHG Calcs'!$BB19,'Van C&T EF'!$D$3:$K$1532,2,))/IF('GHG Calcs'!AX19>0,$CZ7,1) ->  | BW7: =IF('GHG Calcs'!$AW19="Gas",VLOOKUP('GHG Calcs'!$BC19,'Van C&T EF'!$D$3:$K$1532,3,),VLOOKUP('GHG Calcs'!$BC19,'Van C&T EF'!$D$3:$K$1532,2,))/IF('GHG Calcs'!AX19>0,$DA7,1) ->  | BX7: =IF('GHG Calcs'!$AW19="Gas",VLOOKUP('GHG Calcs'!$BB19,'Van C&T EF'!$D$3:$K$1532,5,),VLOOKUP('GHG Calcs'!$BB19,'Van C&T EF'!$D$3:$K$1532,4,))/IF('GHG Calcs'!AX19>0,$CZ7,1) ->  | BY7: =IF('GHG Calcs'!$AW19="Gas",VLOOKUP('GHG Calcs'!$BC19,'Van C&T EF'!$D$3:$K$1532,5,),VLOOKUP('GHG Calcs'!$BC19,'Van C&T EF'!$D$3:$K$1532,4,))/IF('GHG Calcs'!AX19>0,$DA7,1) ->  | BZ7: =IF('GHG Calcs'!$AW19="Gas",VLOOKUP('GHG Calcs'!$BB19,'Van C&T EF'!$D$3:$K$1532,7,),VLOOKUP('GHG Calcs'!$BB19,'Van C&T EF'!$D$3:$K$1532,6,))/IF('GHG Calcs'!AX19>0,$CZ7,1) ->  | CA7: =IF('GHG Calcs'!$AW19="Gas",VLOOKUP('GHG Calcs'!$BC19,'Van C&T EF'!$D$3:$K$1532,7,),VLOOKUP('GHG Calcs'!$BC19,'Van C&T EF'!$D$3:$K$1532,6,))/IF('GHG Calcs'!AX19>0,$DA7,1) ->  | CB7: =IF('GHG Calcs'!$AW19="Gas",0,VLOOKUP('GHG Calcs'!$BB19,'Van C&T EF'!$D$3:$K$1532,8,))/IF('GHG Calcs'!AX19>0,$CZ7,1) ->  | CC7: =IF('GHG Calcs'!$AW19="Gas",0,VLOOKUP('GHG Calcs'!$BC19,'Van C&T EF'!$D$3:$K$1532,8,))/IF('GHG Calcs'!AX19>0,$DA7,1) ->  | CD7: =IF('GHG Calcs'!$AW19="Gas",VLOOKUP('GHG Calcs'!$BB19,'Shuttle C&T EF'!$D$3:$K$1532,3,),VLOOKUP('GHG Calcs'!$BB19,'Shuttle C&T EF'!$D$3:$K$1532,2,))/IF('GHG Calcs'!AX19>0,$DB7,1) ->  | CE7: =IF('GHG Calcs'!$AW19="Gas",VLOOKUP('GHG Calcs'!$BC19,'Shuttle C&T EF'!$D$3:$K$1532,3,),VLOOKUP('GHG Calcs'!$BC19,'Shuttle C&T EF'!$D$3:$K$1532,2,))/IF('GHG Calcs'!AX19>0,$DC7,1) ->  | CF7: =IF('GHG Calcs'!$AW19="Gas",VLOOKUP('GHG Calcs'!$BB19,'Shuttle C&T EF'!$D$3:$K$1532,5,),VLOOKUP('GHG Calcs'!$BB19,'Shuttle C&T EF'!$D$3:$K$1532,4,))/IF('GHG Calcs'!AX19>0,$DB7,1) ->  | CG7: =IF('GHG Calcs'!$AW19="Gas",VLOOKUP('GHG Calcs'!$BC19,'Shuttle C&T EF'!$D$3:$K$1532,5,),VLOOKUP('GHG Calcs'!$BC19,'Shuttle C&T EF'!$D$3:$K$1532,4,))/IF('GHG Calcs'!AX19>0,$DC7,1) ->  | CH7: =IF('GHG Calcs'!$AW19="Gas",VLOOKUP('GHG Calcs'!$BB19,'Shuttle C&T EF'!$D$3:$K$1532,7,),VLOOKUP('GHG Calcs'!$BB19,'Shuttle C&T EF'!$D$3:$K$1532,6,))/IF('GHG Calcs'!AX19>0,$DB7,1) ->  | CI7: =IF('GHG Calcs'!$AW19="Gas",VLOOKUP('GHG Calcs'!$BC19,'Shuttle C&T EF'!$D$3:$K$1532,7,),VLOOKUP('GHG Calcs'!$BC19,'Shuttle C&T EF'!$D$3:$K$1532,6,))/IF('GHG Calcs'!AX19>0,$DC7,1) ->  | CJ7: =IF('GHG Calcs'!$AW19="Gas",0,VLOOKUP('GHG Calcs'!$BB19,'Shuttle C&T EF'!$D$3:$K$1532,8,))/IF('GHG Calcs'!AX19>0,$DB7,1) ->  | CK7: =IF('GHG Calcs'!$AW19="Gas",0,VLOOKUP('GHG Calcs'!$BC19,'Shuttle C&T EF'!$D$3:$K$1532,8,))/IF('GHG Calcs'!AX19>0,$DC7,1) ->  | CL7: =VLOOKUP('GHG Calcs'!$BB19,'Over-Road Coach C&T EF'!$D$3:$H$1531,2,)/IF('GHG Calcs'!AX19>0,$DD7,1) ->  | CM7: =VLOOKUP('GHG Calcs'!$BC19,'Over-Road Coach C&T EF'!$D$3:$H$1531,2,)/IF('GHG Calcs'!AX19>0,$DE7,1) ->  | CN7: =VLOOKUP('GHG Calcs'!$BB19,'Over-Road Coach C&T EF'!$D$3:$H$1531,3,)/IF('GHG Calcs'!AX19>0,$DD7,1) ->  | CO7: =VLOOKUP('GHG Calcs'!$BC19,'Over-Road Coach C&T EF'!$D$3:$H$1531,3,)/IF('GHG Calcs'!AX19>0,$DE7,1) ->  | CP7: =VLOOKUP('GHG Calcs'!$BB19,'Over-Road Coach C&T EF'!$D$3:$H$1531,4,)/IF('GHG Calcs'!AX19>0,$DD7,1) ->  | CQ7: =VLOOKUP('GHG Calcs'!$BC19,'Over-Road Coach C&T EF'!$D$3:$H$1531,4,)/IF('GHG Calcs'!AX19>0,$DE7,1) ->  | CR7: =VLOOKUP('GHG Calcs'!$BB19,'Over-Road Coach C&T EF'!$D$3:$H$1531,5,)/IF('GHG Calcs'!AX19>0,$DD7,1) ->  | CS7: =VLOOKUP('GHG Calcs'!$BC19,'Over-Road Coach C&T EF'!$D$3:$H$1531,5,)/IF('GHG Calcs'!AX19>0,$DE7,1) ->  | CT7: =$BO$13/IF('GHG Calcs'!$AX19>0,1.8191,1) -> 10.30726944 | CU7: =$BP$13/IF('GHG Calcs'!$AX19>0,1.8191,1) -> 186.3576 | CV7: =$BQ$13/IF('GHG Calcs'!$AX19>0,1.8191,1) -> 6.5733408 | CW7: =$BR$13/IF('GHG Calcs'!$AX19>0,1.8191,1) -> 6.77664 | CX7: =(IF('GHG Calcs'!$AW19="Gasoline",VLOOKUP('GHG Calcs'!$BB19,'Fuel Consumption'!$A$4:$H$1533,3),VLOOKUP('GHG Calcs'!$BB19,'Fuel Consumption'!$A$4:$H$1533,2))) -> 0.1850502578 | CY7: =(IF('GHG Calcs'!$AW19="Gasoline",VLOOKUP('GHG Calcs'!$BC19,'Fuel Consumption'!$A$4:$H$1533,3),VLOOKUP('GHG Calcs'!$BC19,'Fuel Consumption'!$A$4:$H$1533,2))) -> 0.1850316875 | CZ7: =(IF('GHG Calcs'!$AW19="Gasoline",VLOOKUP('GHG Calcs'!$BB19,'Fuel Consumption'!$A$4:$H$1533,5),VLOOKUP('GHG Calcs'!$BB19,'Fuel Consumption'!$A$4:$H$1533,4))) -> 0.04723249222 | DA7: =(IF('GHG Calcs'!$AW19="Gasoline",VLOOKUP('GHG Calcs'!$BC19,'Fuel Consumption'!$A$4:$H$1533,5),VLOOKUP('GHG Calcs'!$BC19,'Fuel Consumption'!$A$4:$H$1533,4))) -> 0.04735750965 | DB7: =(IF('GHG Calcs'!$AW19="Gasoline",VLOOKUP('GHG Calcs'!$BB19,'Fuel Consumption'!$A$4:$H$1533,7),VLOOKUP('GHG Calcs'!$BB19,'Fuel Consumption'!$A$4:$H$1533,6))) -> 0.05253638358 | DC7: =(IF('GHG Calcs'!$AW19="Gasoline",VLOOKUP('GHG Calcs'!$BC19,'Fuel Consumption'!$A$4:$H$1533,7),VLOOKUP('GHG Calcs'!$BC19,'Fuel Consumption'!$A$4:$H$1533,6))) -> 0.05268339823 | DD7: =VLOOKUP('GHG Calcs'!$BB19,'Fuel Consumption'!$A$4:$H$1533,8) -> 0.1630668806 | DE7: =VLOOKUP('GHG Calcs'!$BC19,'Fuel Consumption'!$A$4:$H$1533,8) -> 0.1629780324
A8: Quantifiable Component 5 | B8: ='GHG Calcs'!O20 -> 10020 | C8: ='GHG Calcs'!Q20 -> 10080 | D8: =VLOOKUP('GHG Calcs'!G20,'Auto C&T EF'!C4:I2631,2,)*B8 -> 243.8921392 | E8: =VLOOKUP('GHG Calcs'!H20,'Auto C&T EF'!C4:I2631,2,)*C8 -> 75.94964639 | F8: =VLOOKUP('GHG Calcs'!$G20,'Auto C&T EF'!C4:I2631,3,)*$B8 -> 1187.282502 | G8: =VLOOKUP('GHG Calcs'!$H20,'Auto C&T EF'!C4:I2631,3,)*$C8 -> 400.1832235 | H8: =VLOOKUP('GHG Calcs'!$G20,'Auto C&T EF'!C4:I2631,5,)*$B8 -> 18.10503149 | I8: =VLOOKUP('GHG Calcs'!$H20,'Auto C&T EF'!C4:I2631,5,)*$C8 -> 12.23473522 | J8: =VLOOKUP('GHG Calcs'!$G20,'Auto C&T EF'!C4:I2631,6,)*$B8 -> 157.86812 | K8: =VLOOKUP('GHG Calcs'!$H20,'Auto C&T EF'!C4:I2631,6,)*$C8 -> 20.38174765 | L8: =AVERAGE(D8:E8)*('GHG Calcs'!E20-'GHG Calcs'!D20) -> 1919.050713 | M8: =AVERAGE(F8:G8)*('GHG Calcs'!E20-'GHG Calcs'!D20) -> 9524.794352 | N8: =AVERAGE(H8:I8)*('GHG Calcs'!E20-'GHG Calcs'!D20) -> 182.0386003 | O8: =AVERAGE(J8:K8)*('GHG Calcs'!E20-'GHG Calcs'!D20) -> 1069.499206 | Q8: =IF('GHG Calcs'!$V20="Gas",VLOOKUP('GHG Calcs'!$Y20,'Bus C&T EF'!$D$3:$K$1532,3,),VLOOKUP('GHG Calcs'!$Y20,'Bus C&T EF'!$D$3:$K$1532,2,))/IF('GHG Calcs'!AX20>0,$BE8,1) -> 0.02278452189 | R8: =IF('GHG Calcs'!$V20="Gas",VLOOKUP('GHG Calcs'!$Z20,'Bus C&T EF'!$D$3:$K$1532,3,),VLOOKUP('GHG Calcs'!$Z20,'Bus C&T EF'!$D$3:$K$1532,2,))/IF('GHG Calcs'!AX20>0,$BF8,1) -> 0.02281302426 | S8: =IF('GHG Calcs'!$V20="Gas",VLOOKUP('GHG Calcs'!$Y20,'Bus C&T EF'!$D$3:$K$1532,5,),VLOOKUP('GHG Calcs'!$Y20,'Bus C&T EF'!$D$3:$K$1532,4,))/IF('GHG Calcs'!AX20>0,$BE8,1) -> 0.8119896174 | T8: =IF('GHG Calcs'!$V20="Gas",VLOOKUP('GHG Calcs'!$Z20,'Bus C&T EF'!$D$3:$K$1532,5,),VLOOKUP('GHG Calcs'!$Z20,'Bus C&T EF'!$D$3:$K$1532,4,))/IF('GHG Calcs'!AX20>0,$BF8,1) -> 0.8145974878 | U8: =IF('GHG Calcs'!$V20="Gas",VLOOKUP('GHG Calcs'!$Y20,'Bus C&T EF'!$D$3:$K$1532,7,),VLOOKUP('GHG Calcs'!$Y20,'Bus C&T EF'!$D$3:$K$1532,6,))/IF('GHG Calcs'!AX20>0,$BE8,1) -> 0.003059948604 | V8: =IF('GHG Calcs'!$V20="Gas",VLOOKUP('GHG Calcs'!$Z20,'Bus C&T EF'!$D$3:$K$1532,7,),VLOOKUP('GHG Calcs'!$Z20,'Bus C&T EF'!$D$3:$K$1532,6,))/IF('GHG Calcs'!AX20>0,$BF8,1) -> 0.003074245955 | W8: =IF('GHG Calcs'!$V20="Gas",0,VLOOKUP('GHG Calcs'!$Y20,'Bus C&T EF'!$D$3:$K$1532,8,))/IF('GHG Calcs'!AX20>0,$BE8,1) -> 0.003198305902 | X8: =IF('GHG Calcs'!$V20="Gas",0,VLOOKUP('GHG Calcs'!$Z20,'Bus C&T EF'!$D$3:$K$1532,8,))/IF('GHG Calcs'!AX20>0,$BF8,1) -> 0.003213249715 | Y8: =IF('GHG Calcs'!$V20="Gas",VLOOKUP('GHG Calcs'!$Y20,'Van C&T EF'!$D$3:$K$1532,3,),VLOOKUP('GHG Calcs'!$Y20,'Van C&T EF'!$D$3:$K$1532,2,))/IF('GHG Calcs'!AX20>0,$BG8,1) -> 0.06390295522 | Z8: =IF('GHG Calcs'!$V20="Gas",VLOOKUP('GHG Calcs'!$Z20,'Van C&T EF'!$D$3:$K$1532,3,),VLOOKUP('GHG Calcs'!$Z20,'Van C&T EF'!$D$3:$K$1532,2,))/IF('GHG Calcs'!AX20>0,$BH8,1) -> 0.08451233041 | AA8: =IF('GHG Calcs'!$V20="Gas",VLOOKUP('GHG Calcs'!$Y20,'Van C&T EF'!$D$3:$K$1532,5,),VLOOKUP('GHG Calcs'!$Y20,'Van C&T EF'!$D$3:$K$1532,4,))/IF('GHG Calcs'!AX20>0,$BG8,1) -> 0.06947775992 | AB8: =IF('GHG Calcs'!$V20="Gas",VLOOKUP('GHG Calcs'!$Z20,'Van C&T EF'!$D$3:$K$1532,5,),VLOOKUP('GHG Calcs'!$Z20,'Van C&T EF'!$D$3:$K$1532,4,))/IF('GHG Calcs'!AX20>0,$BH8,1) -> 0.1230260845 | AC8: =IF('GHG Calcs'!$V20="Gas",VLOOKUP('GHG Calcs'!$Y20,'Van C&T EF'!$D$3:$K$1532,7,),VLOOKUP('GHG Calcs'!$Y20,'Van C&T EF'!$D$3:$K$1532,6,))/IF('GHG Calcs'!AX20>0,$BG8,1) -> 0.00393633072 | AD8: =IF('GHG Calcs'!$V20="Gas",VLOOKUP('GHG Calcs'!$Z20,'Van C&T EF'!$D$3:$K$1532,7,),VLOOKUP('GHG Calcs'!$Z20,'Van C&T EF'!$D$3:$K$1532,6,))/IF('GHG Calcs'!AX20>0,$BH8,1) -> 0.01424676491 | AE8: =IF('GHG Calcs'!$V20="Gas",0,VLOOKUP('GHG Calcs'!$Y20,'Van C&T EF'!$D$3:$K$1532,8,))/IF('GHG Calcs'!AX20>0,$BG8,1) -> 0.004114314128 | AF8: =IF('GHG Calcs'!$V20="Gas",0,VLOOKUP('GHG Calcs'!$Z20,'Van C&T EF'!$D$3:$K$1532,8,))/IF('GHG Calcs'!AX20>0,$BH8,1) -> 0.0148909404 | AG8: =IF('GHG Calcs'!$V20="Gas",VLOOKUP('GHG Calcs'!$Y20,'Shuttle C&T EF'!$D$3:$K$1532,3,),VLOOKUP('GHG Calcs'!$Y20,'Shuttle C&T EF'!$D$3:$K$1532,2,))/IF('GHG Calcs'!AX20>0,$BI8,1) -> 0.06390295522 | AH8: =IF('GHG Calcs'!$V20="Gas",VLOOKUP('GHG Calcs'!$Z20,'Shuttle C&T EF'!$D$3:$K$1532,3,),VLOOKUP('GHG Calcs'!$Z20,'Shuttle C&T EF'!$D$3:$K$1532,2,))/IF('GHG Calcs'!AX20>0,$BJ8,1) -> 0.08451233041 | AI8: =IF('GHG Calcs'!$V20="Gas",VLOOKUP('GHG Calcs'!$Y20,'Shuttle C&T EF'!$D$3:$K$1532,5,),VLOOKUP('GHG Calcs'!$Y20,'Shuttle C&T EF'!$D$3:$K$1532,4,))/IF('GHG Calcs'!AX20>0,$BI8,1) -> 0.06951313543 | AJ8: =IF('GHG Calcs'!$V20="Gas",VLOOKUP('GHG Calcs'!$Z20,'Shuttle C&T EF'!$D$3:$K$1532,5,),VLOOKUP('GHG Calcs'!$Z20,'Shuttle C&T EF'!$D$3:$K$1532,4,))/IF('GHG Calcs'!AX20>0,$BJ8,1) -> 0.1230887248 | AK8: =IF('GHG Calcs'!$V20="Gas",VLOOKUP('GHG Calcs'!$Y20,'Shuttle C&T EF'!$D$3:$K$1532,7,),VLOOKUP('GHG Calcs'!$Y20,'Shuttle C&T EF'!$D$3:$K$1532,6,))/IF('GHG Calcs'!AX20>0,$BI8,1) -> 0.004180344696 | AL8: =IF('GHG Calcs'!$V20="Gas",VLOOKUP('GHG Calcs'!$Z20,'Shuttle C&T EF'!$D$3:$K$1532,7,),VLOOKUP('GHG Calcs'!$Z20,'Shuttle C&T EF'!$D$3:$K$1532,6,))/IF('GHG Calcs'!AX20>0,$BJ8,1) -> 0.01512992488 | AM8: =IF('GHG Calcs'!$V20="Gas",0,VLOOKUP('GHG Calcs'!$Y20,'Shuttle C&T EF'!$D$3:$K$1532,8,))/IF('GHG Calcs'!AX20>0,$BI8,1) -> 0.004369361333 | AN8: =IF('GHG Calcs'!$V20="Gas",0,VLOOKUP('GHG Calcs'!$Z20,'Shuttle C&T EF'!$D$3:$K$1532,8,))/IF('GHG Calcs'!AX20>0,$BJ8,1) -> 0.01581403295 | AO8: =VLOOKUP('GHG Calcs'!$Y20,'Over-Road Coach C&T EF'!$D$3:$H$1531,2,)/IF('GHG Calcs'!AX20>0,$BK8,1) -> 0.05249471673 | AP8: =VLOOKUP('GHG Calcs'!$Z20,'Over-Road Coach C&T EF'!$D$3:$H$1531,2,)/IF('GHG Calcs'!AX20>0,$BL8,1) -> 0.08834644348 | AQ8: =VLOOKUP('GHG Calcs'!$Y20,'Over-Road Coach C&T EF'!$D$3:$H$1531,3,)/IF('GHG Calcs'!AX20>0,$BK8,1) -> 0.7945070604 | AR8: =VLOOKUP('GHG Calcs'!$Z20,'Over-Road Coach C&T EF'!$D$3:$H$1531,3,)/IF('GHG Calcs'!AX20>0,$BL8,1) -> 1.729688393 | AS8: =VLOOKUP('GHG Calcs'!$Y20,'Over-Road Coach C&T EF'!$D$3:$H$1531,4,)/IF('GHG Calcs'!AX20>0,$BK8,1) -> 0.00287814237 | AT8: =VLOOKUP('GHG Calcs'!$Z20,'Over-Road Coach C&T EF'!$D$3:$H$1531,4,)/IF('GHG Calcs'!AX20>0,$BL8,1) -> 0.005839644998 | AU8: =VLOOKUP('GHG Calcs'!$Y20,'Over-Road Coach C&T EF'!$D$3:$H$1531,5,)/IF('GHG Calcs'!AX20>0,$BK8,1) -> 0.003008279197 | AV8: =VLOOKUP('GHG Calcs'!$Z20,'Over-Road Coach C&T EF'!$D$3:$H$1531,5,)/IF('GHG Calcs'!AX20>0,$BL8,1) -> 0.006103687832 | AW8: =IF('GHG Calcs'!A20="Cleaner Vehicles/Technology/Fuels",($R$14/IF('GHG Calcs'!$W20>0,1.8191,1)),($R$13/IF('GHG Calcs'!$W20>0,1.8191,1))) -> 10.35909052 | AX8: =IF('GHG Calcs'!A20="Cleaner Vehicles/Technology/Fuels",($S$14/IF('GHG Calcs'!$W20>0,1.8191,1)),($S$13/IF('GHG Calcs'!$W20>0,1.8191,1))) -> 187.294536 | AY8: =IF('GHG Calcs'!A20="Cleaner Vehicles/Technology/Fuels",($T$14/IF('GHG Calcs'!$W20>0,1.8191,1)),($T$13/IF('GHG Calcs'!$W20>0,1.8191,1))) -> 6.8107104 | AZ8: =IF('GHG Calcs'!A20="Cleaner Vehicles/Technology/Fuels",($U$14/IF('GHG Calcs'!$W20>0,1.8191,1)),($U$13/IF('GHG Calcs'!$W20>0,1.8191,1))) -> 6.606389088 | BA8: =IF('GHG Calcs'!A20="Cleaner Vehicles/Technology/Fuels",'Co-Benefit Calcs'!$R$19,IF('GHG Calcs'!A20="Fuel Reductions",0,'Co-Benefit Calcs'!$R$18)) -> 31.86 | BB8: =IF('GHG Calcs'!A20="Cleaner Vehicles/Technology/Fuels",'Co-Benefit Calcs'!$S$19,IF('GHG Calcs'!A20="Fuel Reductions",0,'Co-Benefit Calcs'!$S$18)) -> 254.02 | BC8: =IF('GHG Calcs'!A20="Cleaner Vehicles/Technology/Fuels",'Co-Benefit Calcs'!$T$19,IF('GHG Calcs'!A20="Fuel Reductions",0,'Co-Benefit Calcs'!$T$18)) -> 10.166 | BD8: =IF('GHG Calcs'!A20="Cleaner Vehicles/Technology/Fuels",'Co-Benefit Calcs'!$U$19,IF('GHG Calcs'!A20="Fuel Reductions",0,'Co-Benefit Calcs'!$U$18)) -> 11.05 | BE8: =(IF('GHG Calcs'!$V20="Gasoline",VLOOKUP('GHG Calcs'!$Y20,'Fuel Consumption'!$A$4:$H$1533,3),VLOOKUP('GHG Calcs'!$Y20,'Fuel Consumption'!$A$4:$H$1533,2))) -> 0.1850209228 | BF8: =(IF('GHG Calcs'!$V20="Gasoline",VLOOKUP('GHG Calcs'!$Z20,'Fuel Consumption'!$A$4:$H$1533,3),VLOOKUP('GHG Calcs'!$Z20,'Fuel Consumption'!$A$4:$H$1533,2))) -> 0.1851296017 | BG8: =(IF('GHG Calcs'!$V20="Gasoline",VLOOKUP('GHG Calcs'!$Y20,'Fuel Consumption'!$A$4:$H$1533,5),VLOOKUP('GHG Calcs'!$Y20,'Fuel Consumption'!$A$4:$H$1533,4))) -> 0.04724442453 | BH8: =(IF('GHG Calcs'!$V20="Gasoline",VLOOKUP('GHG Calcs'!$Z20,'Fuel Consumption'!$A$4:$H$1533,5),VLOOKUP('GHG Calcs'!$Z20,'Fuel Consumption'!$A$4:$H$1533,4))) -> 0.04757529103 | BI8: =(IF('GHG Calcs'!$V20="Gasoline",VLOOKUP('GHG Calcs'!$Y20,'Fuel Consumption'!$A$4:$H$1533,7),VLOOKUP('GHG Calcs'!$Y20,'Fuel Consumption'!$A$4:$H$1533,6))) -> 0.05253899593 | BJ8: =(IF('GHG Calcs'!$V20="Gasoline",VLOOKUP('GHG Calcs'!$Z20,'Fuel Consumption'!$A$4:$H$1533,7),VLOOKUP('GHG Calcs'!$Z20,'Fuel Consumption'!$A$4:$H$1533,6))) -> 0.05305086603 | BK8: =VLOOKUP('GHG Calcs'!$Y20,'Fuel Consumption'!$A$4:$H$1533,8) -> 0.1628174358 | BL8: =VLOOKUP('GHG Calcs'!$Z20,'Fuel Consumption'!$A$4:$H$1533,8) -> 0.1661102992 | BN8: =IF('GHG Calcs'!$AW20="Gas",VLOOKUP('GHG Calcs'!$BB20,'Bus C&T EF'!$D$3:$K$1532,3,),VLOOKUP('GHG Calcs'!$BB20,'Bus C&T EF'!$D$3:$K$1532,2,))/IF('GHG Calcs'!AX20>0,$CX8,1) ->  | BO8: =IF('GHG Calcs'!$AW20="Gas",VLOOKUP('GHG Calcs'!$BC20,'Bus C&T EF'!$D$3:$K$1532,3,),VLOOKUP('GHG Calcs'!$BC20,'Bus C&T EF'!$D$3:$K$1532,2,))/IF('GHG Calcs'!AX20>0,$CY8,1) ->  | BP8: =IF('GHG Calcs'!$AW20="Gas",VLOOKUP('GHG Calcs'!$BB20,'Bus C&T EF'!$D$3:$K$1532,5,),VLOOKUP('GHG Calcs'!BB20,'Bus C&T EF'!$D$3:$K$1532,4,))/IF('GHG Calcs'!AX20>0,$CX8,1) ->  | BQ8: =IF('GHG Calcs'!$AW20="Gas",VLOOKUP('GHG Calcs'!$BC20,'Bus C&T EF'!$D$3:$K$1532,5,),VLOOKUP('GHG Calcs'!$BC20,'Bus C&T EF'!$D$3:$K$1532,4,))/IF('GHG Calcs'!AX20>0,$CY8,1) ->  | BR8: =IF('GHG Calcs'!$AW20="Gas",VLOOKUP('GHG Calcs'!$BB20,'Bus C&T EF'!$D$3:$K$1532,7,),VLOOKUP('GHG Calcs'!$BB20,'Bus C&T EF'!$D$3:$K$1532,6,))/IF('GHG Calcs'!AX20>0,$CX8,1) ->  | BS8: =IF('GHG Calcs'!$AW20="Gas",VLOOKUP('GHG Calcs'!$BC20,'Bus C&T EF'!$D$3:$K$1532,7,),VLOOKUP('GHG Calcs'!$BC20,'Bus C&T EF'!$D$3:$K$1532,6,))/IF('GHG Calcs'!AX20>0,$CY8,1) ->  | BT8: =IF('GHG Calcs'!$AW20="Gas",0,VLOOKUP('GHG Calcs'!$BB20,'Bus C&T EF'!$D$3:$K$1532,8,))/IF('GHG Calcs'!AX20>0,$CX8,1) ->  | BU8: =IF('GHG Calcs'!$AW20="Gas",0,VLOOKUP('GHG Calcs'!$BC20,'Bus C&T EF'!$D$3:$K$1532,8,))/IF('GHG Calcs'!AX20>0,$CY8,1) ->  | BV8: =IF('GHG Calcs'!$AW20="Gas",VLOOKUP('GHG Calcs'!$BB20,'Van C&T EF'!$D$3:$K$1532,3,),VLOOKUP('GHG Calcs'!$BB20,'Van C&T EF'!$D$3:$K$1532,2,))/IF('GHG Calcs'!AX20>0,$CZ8,1) ->  | BW8: =IF('GHG Calcs'!$AW20="Gas",VLOOKUP('GHG Calcs'!$BC20,'Van C&T EF'!$D$3:$K$1532,3,),VLOOKUP('GHG Calcs'!$BC20,'Van C&T EF'!$D$3:$K$1532,2,))/IF('GHG Calcs'!AX20>0,$DA8,1) ->  | BX8: =IF('GHG Calcs'!$AW20="Gas",VLOOKUP('GHG Calcs'!$BB20,'Van C&T EF'!$D$3:$K$1532,5,),VLOOKUP('GHG Calcs'!$BB20,'Van C&T EF'!$D$3:$K$1532,4,))/IF('GHG Calcs'!AX20>0,$CZ8,1) ->  | BY8: =IF('GHG Calcs'!$AW20="Gas",VLOOKUP('GHG Calcs'!$BC20,'Van C&T EF'!$D$3:$K$1532,5,),VLOOKUP('GHG Calcs'!$BC20,'Van C&T EF'!$D$3:$K$1532,4,))/IF('GHG Calcs'!AX20>0,$DA8,1) ->  | BZ8: =IF('GHG Calcs'!$AW20="Gas",VLOOKUP('GHG Calcs'!$BB20,'Van C&T EF'!$D$3:$K$1532,7,),VLOOKUP('GHG Calcs'!$BB20,'Van C&T EF'!$D$3:$K$1532,6,))/IF('GHG Calcs'!AX20>0,$CZ8,1) ->  | CA8: =IF('GHG Calcs'!$AW20="Gas",VLOOKUP('GHG Calcs'!$BC20,'Van C&T EF'!$D$3:$K$1532,7,),VLOOKUP('GHG Calcs'!$BC20,'Van C&T EF'!$D$3:$K$1532,6,))/IF('GHG Calcs'!AX20>0,$DA8,1) ->  | CB8: =IF('GHG Calcs'!$AW20="Gas",0,VLOOKUP('GHG Calcs'!$BB20,'Van C&T EF'!$D$3:$K$1532,8,))/IF('GHG Calcs'!AX20>0,$CZ8,1) ->  | CC8: =IF('GHG Calcs'!$AW20="Gas",0,VLOOKUP('GHG Calcs'!$BC20,'Van C&T EF'!$D$3:$K$1532,8,))/IF('GHG Calcs'!AX20>0,$DA8,1) ->  | CD8: =IF('GHG Calcs'!$AW20="Gas",VLOOKUP('GHG Calcs'!$BB20,'Shuttle C&T EF'!$D$3:$K$1532,3,),VLOOKUP('GHG Calcs'!$BB20,'Shuttle C&T EF'!$D$3:$K$1532,2,))/IF('GHG Calcs'!AX20>0,$DB8,1) ->  | CE8: =IF('GHG Calcs'!$AW20="Gas",VLOOKUP('GHG Calcs'!$BC20,'Shuttle C&T EF'!$D$3:$K$1532,3,),VLOOKUP('GHG Calcs'!$BC20,'Shuttle C&T EF'!$D$3:$K$1532,2,))/IF('GHG Calcs'!AX20>0,$DC8,1) ->  | CF8: =IF('GHG Calcs'!$AW20="Gas",VLOOKUP('GHG Calcs'!$BB20,'Shuttle C&T EF'!$D$3:$K$1532,5,),VLOOKUP('GHG Calcs'!$BB20,'Shuttle C&T EF'!$D$3:$K$1532,4,))/IF('GHG Calcs'!AX20>0,$DB8,1) ->  | CG8: =IF('GHG Calcs'!$AW20="Gas",VLOOKUP('GHG Calcs'!$BC20,'Shuttle C&T EF'!$D$3:$K$1532,5,),VLOOKUP('GHG Calcs'!$BC20,'Shuttle C&T EF'!$D$3:$K$1532,4,))/IF('GHG Calcs'!AX20>0,$DC8,1) ->  | CH8: =IF('GHG Calcs'!$AW20="Gas",VLOOKUP('GHG Calcs'!$BB20,'Shuttle C&T EF'!$D$3:$K$1532,7,),VLOOKUP('GHG Calcs'!$BB20,'Shuttle C&T EF'!$D$3:$K$1532,6,))/IF('GHG Calcs'!AX20>0,$DB8,1) ->  | CI8: =IF('GHG Calcs'!$AW20="Gas",VLOOKUP('GHG Calcs'!$BC20,'Shuttle C&T EF'!$D$3:$K$1532,7,),VLOOKUP('GHG Calcs'!$BC20,'Shuttle C&T EF'!$D$3:$K$1532,6,))/IF('GHG Calcs'!AX20>0,$DC8,1) ->  | CJ8: =IF('GHG Calcs'!$AW20="Gas",0,VLOOKUP('GHG Calcs'!$BB20,'Shuttle C&T EF'!$D$3:$K$1532,8,))/IF('GHG Calcs'!AX20>0,$DB8,1) ->  | CK8: =IF('GHG Calcs'!$AW20="Gas",0,VLOOKUP('GHG Calcs'!$BC20,'Shuttle C&T EF'!$D$3:$K$1532,8,))/IF('GHG Calcs'!AX20>0,$DC8,1) ->  | CL8: =VLOOKUP('GHG Calcs'!$BB20,'Over-Road Coach C&T EF'!$D$3:$H$1531,2,)/IF('GHG Calcs'!AX20>0,$DD8,1) ->  | CM8: =VLOOKUP('GHG Calcs'!$BC20,'Over-Road Coach C&T EF'!$D$3:$H$1531,2,)/IF('GHG Calcs'!AX20>0,$DE8,1) ->  | CN8: =VLOOKUP('GHG Calcs'!$BB20,'Over-Road Coach C&T EF'!$D$3:$H$1531,3,)/IF('GHG Calcs'!AX20>0,$DD8,1) ->  | CO8: =VLOOKUP('GHG Calcs'!$BC20,'Over-Road Coach C&T EF'!$D$3:$H$1531,3,)/IF('GHG Calcs'!AX20>0,$DE8,1) ->  | CP8: =VLOOKUP('GHG Calcs'!$BB20,'Over-Road Coach C&T EF'!$D$3:$H$1531,4,)/IF('GHG Calcs'!AX20>0,$DD8,1) ->  | CQ8: =VLOOKUP('GHG Calcs'!$BC20,'Over-Road Coach C&T EF'!$D$3:$H$1531,4,)/IF('GHG Calcs'!AX20>0,$DE8,1) ->  | CR8: =VLOOKUP('GHG Calcs'!$BB20,'Over-Road Coach C&T EF'!$D$3:$H$1531,5,)/IF('GHG Calcs'!AX20>0,$DD8,1) ->  | CS8: =VLOOKUP('GHG Calcs'!$BC20,'Over-Road Coach C&T EF'!$D$3:$H$1531,5,)/IF('GHG Calcs'!AX20>0,$DE8,1) ->  | CT8: =$BO$13/IF('GHG Calcs'!$AX20>0,1.8191,1) -> 10.30726944 | CU8: =$BP$13/IF('GHG Calcs'!$AX20>0,1.8191,1) -> 186.3576 | CV8: =$BQ$13/IF('GHG Calcs'!$AX20>0,1.8191,1) -> 6.5733408 | CW8: =$BR$13/IF('GHG Calcs'!$AX20>0,1.8191,1) -> 6.77664 | CX8: =(IF('GHG Calcs'!$AW20="Gasoline",VLOOKUP('GHG Calcs'!$BB20,'Fuel Consumption'!$A$4:$H$1533,3),VLOOKUP('GHG Calcs'!$BB20,'Fuel Consumption'!$A$4:$H$1533,2))) -> 0.1850502578 | CY8: =(IF('GHG Calcs'!$AW20="Gasoline",VLOOKUP('GHG Calcs'!$BC20,'Fuel Consumption'!$A$4:$H$1533,3),VLOOKUP('GHG Calcs'!$BC20,'Fuel Consumption'!$A$4:$H$1533,2))) -> 0.1850316875 | CZ8: =(IF('GHG Calcs'!$AW20="Gasoline",VLOOKUP('GHG Calcs'!$BB20,'Fuel Consumption'!$A$4:$H$1533,5),VLOOKUP('GHG Calcs'!$BB20,'Fuel Consumption'!$A$4:$H$1533,4))) -> 0.04723249222 | DA8: =(IF('GHG Calcs'!$AW20="Gasoline",VLOOKUP('GHG Calcs'!$BC20,'Fuel Consumption'!$A$4:$H$1533,5),VLOOKUP('GHG Calcs'!$BC20,'Fuel Consumption'!$A$4:$H$1533,4))) -> 0.04735750965 | DB8: =(IF('GHG Calcs'!$AW20="Gasoline",VLOOKUP('GHG Calcs'!$BB20,'Fuel Consumption'!$A$4:$H$1533,7),VLOOKUP('GHG Calcs'!$BB20,'Fuel Consumption'!$A$4:$H$1533,6))) -> 0.05253638358 | DC8: =(IF('GHG Calcs'!$AW20="Gasoline",VLOOKUP('GHG Calcs'!$BC20,'Fuel Consumption'!$A$4:$H$1533,7),VLOOKUP('GHG Calcs'!$BC20,'Fuel Consumption'!$A$4:$H$1533,6))) -> 0.05268339823 | DD8: =VLOOKUP('GHG Calcs'!$BB20,'Fuel Consumption'!$A$4:$H$1533,8) -> 0.1630668806 | DE8: =VLOOKUP('GHG Calcs'!$BC20,'Fuel Consumption'!$A$4:$H$1533,8) -> 0.1629780324
A9: Quantifiable Component 6 | B9: ='GHG Calcs'!O21 -> 0 | C9: ='GHG Calcs'!Q21 -> 0 | D9: =VLOOKUP('GHG Calcs'!G21,'Auto C&T EF'!C4:I2631,2,)*B9 -> 0 | E9: =VLOOKUP('GHG Calcs'!H21,'Auto C&T EF'!C4:I2631,2,)*C9 -> 0 | F9: =VLOOKUP('GHG Calcs'!$G21,'Auto C&T EF'!C4:I2631,3,)*$B9 -> 0 | G9: =VLOOKUP('GHG Calcs'!$H21,'Auto C&T EF'!C4:I2631,3,)*$C9 -> 0 | H9: =VLOOKUP('GHG Calcs'!$G21,'Auto C&T EF'!C4:I2631,5,)*$B9 -> 0 | I9: =VLOOKUP('GHG Calcs'!$H21,'Auto C&T EF'!C4:I2631,5,)*$C9 -> 0 | J9: =VLOOKUP('GHG Calcs'!$G21,'Auto C&T EF'!C4:I2631,6,)*$B9 -> 0 | K9: =VLOOKUP('GHG Calcs'!$H21,'Auto C&T EF'!C4:I2631,6,)*$C9 -> 0 | L9: =AVERAGE(D9:E9)*('GHG Calcs'!E21-'GHG Calcs'!D21) -> 0 | M9: =AVERAGE(F9:G9)*('GHG Calcs'!E21-'GHG Calcs'!D21) -> 0 | N9: =AVERAGE(H9:I9)*('GHG Calcs'!E21-'GHG Calcs'!D21) -> 0 | O9: =AVERAGE(J9:K9)*('GHG Calcs'!E21-'GHG Calcs'!D21) -> 0 | Q9: =IF('GHG Calcs'!$V21="Gas",VLOOKUP('GHG Calcs'!$Y21,'Bus C&T EF'!$D$3:$K$1532,3,),VLOOKUP('GHG Calcs'!$Y21,'Bus C&T EF'!$D$3:$K$1532,2,))/IF('GHG Calcs'!AX21>0,$BE9,1) -> 0.02278452189 | R9: =IF('GHG Calcs'!$V21="Gas",VLOOKUP('GHG Calcs'!$Z21,'Bus C&T EF'!$D$3:$K$1532,3,),VLOOKUP('GHG Calcs'!$Z21,'Bus C&T EF'!$D$3:$K$1532,2,))/IF('GHG Calcs'!AX21>0,$BF9,1) -> 0.02281302426 | S9: =IF('GHG Calcs'!$V21="Gas",VLOOKUP('GHG Calcs'!$Y21,'Bus C&T EF'!$D$3:$K$1532,5,),VLOOKUP('GHG Calcs'!$Y21,'Bus C&T EF'!$D$3:$K$1532,4,))/IF('GHG Calcs'!AX21>0,$BE9,1) -> 0.8119896174 | T9: =IF('GHG Calcs'!$V21="Gas",VLOOKUP('GHG Calcs'!$Z21,'Bus C&T EF'!$D$3:$K$1532,5,),VLOOKUP('GHG Calcs'!$Z21,'Bus C&T EF'!$D$3:$K$1532,4,))/IF('GHG Calcs'!AX21>0,$BF9,1) -> 0.8145974878 | U9: =IF('GHG Calcs'!$V21="Gas",VLOOKUP('GHG Calcs'!$Y21,'Bus C&T EF'!$D$3:$K$1532,7,),VLOOKUP('GHG Calcs'!$Y21,'Bus C&T EF'!$D$3:$K$1532,6,))/IF('GHG Calcs'!AX21>0,$BE9,1) -> 0.003059948604 | V9: =IF('GHG Calcs'!$V21="Gas",VLOOKUP('GHG Calcs'!$Z21,'Bus C&T EF'!$D$3:$K$1532,7,),VLOOKUP('GHG Calcs'!$Z21,'Bus C&T EF'!$D$3:$K$1532,6,))/IF('GHG Calcs'!AX21>0,$BF9,1) -> 0.003074245955 | W9: =IF('GHG Calcs'!$V21="Gas",0,VLOOKUP('GHG Calcs'!$Y21,'Bus C&T EF'!$D$3:$K$1532,8,))/IF('GHG Calcs'!AX21>0,$BE9,1) -> 0.003198305902 | X9: =IF('GHG Calcs'!$V21="Gas",0,VLOOKUP('GHG Calcs'!$Z21,'Bus C&T EF'!$D$3:$K$1532,8,))/IF('GHG Calcs'!AX21>0,$BF9,1) -> 0.003213249715 | Y9: =IF('GHG Calcs'!$V21="Gas",VLOOKUP('GHG Calcs'!$Y21,'Van C&T EF'!$D$3:$K$1532,3,),VLOOKUP('GHG Calcs'!$Y21,'Van C&T EF'!$D$3:$K$1532,2,))/IF('GHG Calcs'!AX21>0,$BG9,1) -> 0.06390295522 | Z9: =IF('GHG Calcs'!$V21="Gas",VLOOKUP('GHG Calcs'!$Z21,'Van C&T EF'!$D$3:$K$1532,3,),VLOOKUP('GHG Calcs'!$Z21,'Van C&T EF'!$D$3:$K$1532,2,))/IF('GHG Calcs'!AX21>0,$BH9,1) -> 0.08451233041 | AA9: =IF('GHG Calcs'!$V21="Gas",VLOOKUP('GHG Calcs'!$Y21,'Van C&T EF'!$D$3:$K$1532,5,),VLOOKUP('GHG Calcs'!$Y21,'Van C&T EF'!$D$3:$K$1532,4,))/IF('GHG Calcs'!AX21>0,$BG9,1) -> 0.06947775992 | AB9: =IF('GHG Calcs'!$V21="Gas",VLOOKUP('GHG Calcs'!$Z21,'Van C&T EF'!$D$3:$K$1532,5,),VLOOKUP('GHG Calcs'!$Z21,'Van C&T EF'!$D$3:$K$1532,4,))/IF('GHG Calcs'!AX21>0,$BH9,1) -> 0.1230260845 | AC9: =IF('GHG Calcs'!$V21="Gas",VLOOKUP('GHG Calcs'!$Y21,'Van C&T EF'!$D$3:$K$1532,7,),VLOOKUP('GHG Calcs'!$Y21,'Van C&T EF'!$D$3:$K$1532,6,))/IF('GHG Calcs'!AX21>0,$BG9,1) -> 0.00393633072 | AD9: =IF('GHG Calcs'!$V21="Gas",VLOOKUP('GHG Calcs'!$Z21,'Van C&T EF'!$D$3:$K$1532,7,),VLOOKUP('GHG Calcs'!$Z21,'Van C&T EF'!$D$3:$K$1532,6,))/IF('GHG Calcs'!AX21>0,$BH9,1) -> 0.01424676491 | AE9: =IF('GHG Calcs'!$V21="Gas",0,VLOOKUP('GHG Calcs'!$Y21,'Van C&T EF'!$D$3:$K$1532,8,))/IF('GHG Calcs'!AX21>0,$BG9,1) -> 0.004114314128 | AF9: =IF('GHG Calcs'!$V21="Gas",0,VLOOKUP('GHG Calcs'!$Z21,'Van C&T EF'!$D$3:$K$1532,8,))/IF('GHG Calcs'!AX21>0,$BH9,1) -> 0.0148909404 | AG9: =IF('GHG Calcs'!$V21="Gas",VLOOKUP('GHG Calcs'!$Y21,'Shuttle C&T EF'!$D$3:$K$1532,3,),VLOOKUP('GHG Calcs'!$Y21,'Shuttle C&T EF'!$D$3:$K$1532,2,))/IF('GHG Calcs'!AX21>0,$BI9,1) -> 0.06390295522 | AH9: =IF('GHG Calcs'!$V21="Gas",VLOOKUP('GHG Calcs'!$Z21,'Shuttle C&T EF'!$D$3:$K$1532,3,),VLOOKUP('GHG Calcs'!$Z21,'Shuttle C&T EF'!$D$3:$K$1532,2,))/IF('GHG Calcs'!AX21>0,$BJ9,1) -> 0.08451233041 | AI9: =IF('GHG Calcs'!$V21="Gas",VLOOKUP('GHG Calcs'!$Y21,'Shuttle C&T EF'!$D$3:$K$1532,5,),VLOOKUP('GHG Calcs'!$Y21,'Shuttle C&T EF'!$D$3:$K$1532,4,))/IF('GHG Calcs'!AX21>0,$BI9,1) -> 0.06951313543 | AJ9: =IF('GHG Calcs'!$V21="Gas",VLOOKUP('GHG Calcs'!$Z21,'Shuttle C&T EF'!$D$3:$K$1532,5,),VLOOKUP('GHG Calcs'!$Z21,'Shuttle C&T EF'!$D$3:$K$1532,4,))/IF('GHG Calcs'!AX21>0,$BJ9,1) -> 0.1230887248 | AK9: =IF('GHG Calcs'!$V21="Gas",VLOOKUP('GHG Calcs'!$Y21,'Shuttle C&T EF'!$D$3:$K$1532,7,),VLOOKUP('GHG Calcs'!$Y21,'Shuttle C&T EF'!$D$3:$K$1532,6,))/IF('GHG Calcs'!AX21>0,$BI9,1) -> 0.004180344696 | AL9: =IF('GHG Calcs'!$V21="Gas",VLOOKUP('GHG Calcs'!$Z21,'Shuttle C&T EF'!$D$3:$K$1532,7,),VLOOKUP('GHG Calcs'!$Z21,'Shuttle C&T EF'!$D$3:$K$1532,6,))/IF('GHG Calcs'!AX21>0,$BJ9,1) -> 0.01512992488 | AM9: =IF('GHG Calcs'!$V21="Gas",0,VLOOKUP('GHG Calcs'!$Y21,'Shuttle C&T EF'!$D$3:$K$1532,8,))/IF('GHG Calcs'!AX21>0,$BI9,1) -> 0.004369361333 | AN9: =IF('GHG Calcs'!$V21="Gas",0,VLOOKUP('GHG Calcs'!$Z21,'Shuttle C&T EF'!$D$3:$K$1532,8,))/IF('GHG Calcs'!AX21>0,$BJ9,1) -> 0.01581403295 | AO9: =VLOOKUP('GHG Calcs'!$Y21,'Over-Road Coach C&T EF'!$D$3:$H$1531,2,)/IF('GHG Calcs'!AX21>0,$BK9,1) -> 0.05249471673 | AP9: =VLOOKUP('GHG Calcs'!$Z21,'Over-Road Coach C&T EF'!$D$3:$H$1531,2,)/IF('GHG Calcs'!AX21>0,$BL9,1) -> 0.08834644348 | AQ9: =VLOOKUP('GHG Calcs'!$Y21,'Over-Road Coach C&T EF'!$D$3:$H$1531,3,)/IF('GHG Calcs'!AX21>0,$BK9,1) -> 0.7945070604 | AR9: =VLOOKUP('GHG Calcs'!$Z21,'Over-Road Coach C&T EF'!$D$3:$H$1531,3,)/IF('GHG Calcs'!AX21>0,$BL9,1) -> 1.729688393 | AS9: =VLOOKUP('GHG Calcs'!$Y21,'Over-Road Coach C&T EF'!$D$3:$H$1531,4,)/IF('GHG Calcs'!AX21>0,$BK9,1) -> 0.00287814237 | AT9: =VLOOKUP('GHG Calcs'!$Z21,'Over-Road Coach C&T EF'!$D$3:$H$1531,4,)/IF('GHG Calcs'!AX21>0,$BL9,1) -> 0.005839644998 | AU9: =VLOOKUP('GHG Calcs'!$Y21,'Over-Road Coach C&T EF'!$D$3:$H$1531,5,)/IF('GHG Calcs'!AX21>0,$BK9,1) -> 0.003008279197 | AV9: =VLOOKUP('GHG Calcs'!$Z21,'Over-Road Coach C&T EF'!$D$3:$H$1531,5,)/IF('GHG Calcs'!AX21>0,$BL9,1) -> 0.006103687832 | AW9: =IF('GHG Calcs'!A21="Cleaner Vehicles/Technology/Fuels",($R$14/IF('GHG Calcs'!$W21>0,1.8191,1)),($R$13/IF('GHG Calcs'!$W21>0,1.8191,1))) -> 1.593706234 | AX9: =IF('GHG Calcs'!A21="Cleaner Vehicles/Technology/Fuels",($S$14/IF('GHG Calcs'!$W21>0,1.8191,1)),($S$13/IF('GHG Calcs'!$W21>0,1.8191,1))) -> 37.83728 | AY9: =IF('GHG Calcs'!A21="Cleaner Vehicles/Technology/Fuels",($T$14/IF('GHG Calcs'!$W21>0,1.8191,1)),($T$13/IF('GHG Calcs'!$W21>0,1.8191,1))) -> 0.5675592 | AZ9: =IF('GHG Calcs'!A21="Cleaner Vehicles/Technology/Fuels",($U$14/IF('GHG Calcs'!$W21>0,1.8191,1)),($U$13/IF('GHG Calcs'!$W21>0,1.8191,1))) -> 0.550532424 | BA9: =IF('GHG Calcs'!A21="Cleaner Vehicles/Technology/Fuels",'Co-Benefit Calcs'!$R$19,IF('GHG Calcs'!A21="Fuel Reductions",0,'Co-Benefit Calcs'!$R$18)) -> 23.61 | BB9: =IF('GHG Calcs'!A21="Cleaner Vehicles/Technology/Fuels",'Co-Benefit Calcs'!$S$19,IF('GHG Calcs'!A21="Fuel Reductions",0,'Co-Benefit Calcs'!$S$18)) -> 81.59 | BC9: =IF('GHG Calcs'!A21="Cleaner Vehicles/Technology/Fuels",'Co-Benefit Calcs'!$T$19,IF('GHG Calcs'!A21="Fuel Reductions",0,'Co-Benefit Calcs'!$T$18)) -> 2.0148 | BD9: =IF('GHG Calcs'!A21="Cleaner Vehicles/Technology/Fuels",'Co-Benefit Calcs'!$U$19,IF('GHG Calcs'!A21="Fuel Reductions",0,'Co-Benefit Calcs'!$U$18)) -> 2.19 | BE9: =(IF('GHG Calcs'!$V21="Gasoline",VLOOKUP('GHG Calcs'!$Y21,'Fuel Consumption'!$A$4:$H$1533,3),VLOOKUP('GHG Calcs'!$Y21,'Fuel Consumption'!$A$4:$H$1533,2))) -> 0.1850209228 | BF9: =(IF('GHG Calcs'!$V21="Gasoline",VLOOKUP('GHG Calcs'!$Z21,'Fuel Consumption'!$A$4:$H$1533,3),VLOOKUP('GHG Calcs'!$Z21,'Fuel Consumption'!$A$4:$H$1533,2))) -> 0.1851296017 | BG9: =(IF('GHG Calcs'!$V21="Gasoline",VLOOKUP('GHG Calcs'!$Y21,'Fuel Consumption'!$A$4:$H$1533,5),VLOOKUP('GHG Calcs'!$Y21,'Fuel Consumption'!$A$4:$H$1533,4))) -> 0.04724442453 | BH9: =(IF('GHG Calcs'!$V21="Gasoline",VLOOKUP('GHG Calcs'!$Z21,'Fuel Consumption'!$A$4:$H$1533,5),VLOOKUP('GHG Calcs'!$Z21,'Fuel Consumption'!$A$4:$H$1533,4))) -> 0.04757529103 | BI9: =(IF('GHG Calcs'!$V21="Gasoline",VLOOKUP('GHG Calcs'!$Y21,'Fuel Consumption'!$A$4:$H$1533,7),VLOOKUP('GHG Calcs'!$Y21,'Fuel Consumption'!$A$4:$H$1533,6))) -> 0.05253899593 | BJ9: =(IF('GHG Calcs'!$V21="Gasoline",VLOOKUP('GHG Calcs'!$Z21,'Fuel Consumption'!$A$4:$H$1533,7),VLOOKUP('GHG Calcs'!$Z21,'Fuel Consumption'!$A$4:$H$1533,6))) -> 0.05305086603 | BK9: =VLOOKUP('GHG Calcs'!$Y21,'Fuel Consumption'!$A$4:$H$1533,8) -> 0.1628174358 | BL9: =VLOOKUP('GHG Calcs'!$Z21,'Fuel Consumption'!$A$4:$H$1533,8) -> 0.1661102992 | BN9: =IF('GHG Calcs'!$AW21="Gas",VLOOKUP('GHG Calcs'!$BB21,'Bus C&T EF'!$D$3:$K$1532,3,),VLOOKUP('GHG Calcs'!$BB21,'Bus C&T EF'!$D$3:$K$1532,2,))/IF('GHG Calcs'!AX21>0,$CX9,1) -> 0.02283281493 | BO9: =IF('GHG Calcs'!$AW21="Gas",VLOOKUP('GHG Calcs'!$BC21,'Bus C&T EF'!$D$3:$K$1532,3,),VLOOKUP('GHG Calcs'!$BC21,'Bus C&T EF'!$D$3:$K$1532,2,))/IF('GHG Calcs'!AX21>0,$CY9,1) -> 0.02284823329 | BP9: =IF('GHG Calcs'!$AW21="Gas",VLOOKUP('GHG Calcs'!$BB21,'Bus C&T EF'!$D$3:$K$1532,5,),VLOOKUP('GHG Calcs'!BB21,'Bus C&T EF'!$D$3:$K$1532,4,))/IF('GHG Calcs'!AX21>0,$CX9,1) -> 1.438501853 | BQ9: =IF('GHG Calcs'!$AW21="Gas",VLOOKUP('GHG Calcs'!$BC21,'Bus C&T EF'!$D$3:$K$1532,5,),VLOOKUP('GHG Calcs'!$BC21,'Bus C&T EF'!$D$3:$K$1532,4,))/IF('GHG Calcs'!AX21>0,$CY9,1) -> 1.437564576 | BR9: =IF('GHG Calcs'!$AW21="Gas",VLOOKUP('GHG Calcs'!$BB21,'Bus C&T EF'!$D$3:$K$1532,7,),VLOOKUP('GHG Calcs'!$BB21,'Bus C&T EF'!$D$3:$K$1532,6,))/IF('GHG Calcs'!AX21>0,$CX9,1) -> 0.007026889638 | BS9: =IF('GHG Calcs'!$AW21="Gas",VLOOKUP('GHG Calcs'!$BC21,'Bus C&T EF'!$D$3:$K$1532,7,),VLOOKUP('GHG Calcs'!$BC21,'Bus C&T EF'!$D$3:$K$1532,6,))/IF('GHG Calcs'!AX21>0,$CY9,1) -> 0.007019404481 | BT9: =IF('GHG Calcs'!$AW21="Gas",0,VLOOKUP('GHG Calcs'!$BB21,'Bus C&T EF'!$D$3:$K$1532,8,))/IF('GHG Calcs'!AX21>0,$CX9,1) -> 0.007344614406 | BU9: =IF('GHG Calcs'!$AW21="Gas",0,VLOOKUP('GHG Calcs'!$BC21,'Bus C&T EF'!$D$3:$K$1532,8,))/IF('GHG Calcs'!AX21>0,$CY9,1) -> 0.007336790804 | BV9: =IF('GHG Calcs'!$AW21="Gas",VLOOKUP('GHG Calcs'!$BB21,'Van C&T EF'!$D$3:$K$1532,3,),VLOOKUP('GHG Calcs'!$BB21,'Van C&T EF'!$D$3:$K$1532,2,))/IF('GHG Calcs'!AX21>0,$CZ9,1) -> 0.09792226719 | BW9: =IF('GHG Calcs'!$AW21="Gas",VLOOKUP('GHG Calcs'!$BC21,'Van C&T EF'!$D$3:$K$1532,3,),VLOOKUP('GHG Calcs'!$BC21,'Van C&T EF'!$D$3:$K$1532,2,))/IF('GHG Calcs'!AX21>0,$DA9,1) -> 0.1111007768 | BX9: =IF('GHG Calcs'!$AW21="Gas",VLOOKUP('GHG Calcs'!$BB21,'Van C&T EF'!$D$3:$K$1532,5,),VLOOKUP('GHG Calcs'!$BB21,'Van C&T EF'!$D$3:$K$1532,4,))/IF('GHG Calcs'!AX21>0,$CZ9,1) -> 0.2278512567 | BY9: =IF('GHG Calcs'!$AW21="Gas",VLOOKUP('GHG Calcs'!$BC21,'Van C&T EF'!$D$3:$K$1532,5,),VLOOKUP('GHG Calcs'!$BC21,'Van C&T EF'!$D$3:$K$1532,4,))/IF('GHG Calcs'!AX21>0,$DA9,1) -> 0.2838346971 | BZ9: =IF('GHG Calcs'!$AW21="Gas",VLOOKUP('GHG Calcs'!$BB21,'Van C&T EF'!$D$3:$K$1532,7,),VLOOKUP('GHG Calcs'!$BB21,'Van C&T EF'!$D$3:$K$1532,6,))/IF('GHG Calcs'!AX21>0,$CZ9,1) -> 0.01626957766 | CA9: =IF('GHG Calcs'!$AW21="Gas",VLOOKUP('GHG Calcs'!$BC21,'Van C&T EF'!$D$3:$K$1532,7,),VLOOKUP('GHG Calcs'!$BC21,'Van C&T EF'!$D$3:$K$1532,6,))/IF('GHG Calcs'!AX21>0,$DA9,1) -> 0.02327470691 | CB9: =IF('GHG Calcs'!$AW21="Gas",0,VLOOKUP('GHG Calcs'!$BB21,'Van C&T EF'!$D$3:$K$1532,8,))/IF('GHG Calcs'!AX21>0,$CZ9,1) -> 0.01700521576 | CC9: =IF('GHG Calcs'!$AW21="Gas",0,VLOOKUP('GHG Calcs'!$BC21,'Van C&T EF'!$D$3:$K$1532,8,))/IF('GHG Calcs'!AX21>0,$DA9,1) -> 0.02432708587 | CD9: =IF('GHG Calcs'!$AW21="Gas",VLOOKUP('GHG Calcs'!$BB21,'Shuttle C&T EF'!$D$3:$K$1532,3,),VLOOKUP('GHG Calcs'!$BB21,'Shuttle C&T EF'!$D$3:$K$1532,2,))/IF('GHG Calcs'!AX21>0,$DB9,1) -> 0.09666323279 | CE9: =IF('GHG Calcs'!$AW21="Gas",VLOOKUP('GHG Calcs'!$BC21,'Shuttle C&T EF'!$D$3:$K$1532,3,),VLOOKUP('GHG Calcs'!$BC21,'Shuttle C&T EF'!$D$3:$K$1532,2,))/IF('GHG Calcs'!AX21>0,$DC9,1) -> 0.1097198958 | CF9: =IF('GHG Calcs'!$AW21="Gas",VLOOKUP('GHG Calcs'!$BB21,'Shuttle C&T EF'!$D$3:$K$1532,5,),VLOOKUP('GHG Calcs'!$BB21,'Shuttle C&T EF'!$D$3:$K$1532,4,))/IF('GHG Calcs'!AX21>0,$DB9,1) -> 0.2261632612 | CG9: =IF('GHG Calcs'!$AW21="Gas",VLOOKUP('GHG Calcs'!$BC21,'Shuttle C&T EF'!$D$3:$K$1532,5,),VLOOKUP('GHG Calcs'!$BC21,'Shuttle C&T EF'!$D$3:$K$1532,4,))/IF('GHG Calcs'!AX21>0,$DC9,1) -> 0.281792131 | CH9: =IF('GHG Calcs'!$AW21="Gas",VLOOKUP('GHG Calcs'!$BB21,'Shuttle C&T EF'!$D$3:$K$1532,7,),VLOOKUP('GHG Calcs'!$BB21,'Shuttle C&T EF'!$D$3:$K$1532,6,))/IF('GHG Calcs'!AX21>0,$DB9,1) -> 0.01620267795 | CI9: =IF('GHG Calcs'!$AW21="Gas",VLOOKUP('GHG Calcs'!$BC21,'Shuttle C&T EF'!$D$3:$K$1532,7,),VLOOKUP('GHG Calcs'!$BC21,'Shuttle C&T EF'!$D$3:$K$1532,6,))/IF('GHG Calcs'!AX21>0,$DC9,1) -> 0.02318153424 | CJ9: =IF('GHG Calcs'!$AW21="Gas",0,VLOOKUP('GHG Calcs'!$BB21,'Shuttle C&T EF'!$D$3:$K$1532,8,))/IF('GHG Calcs'!AX21>0,$DB9,1) -> 0.01693529115 | CK9: =IF('GHG Calcs'!$AW21="Gas",0,VLOOKUP('GHG Calcs'!$BC21,'Shuttle C&T EF'!$D$3:$K$1532,8,))/IF('GHG Calcs'!AX21>0,$DC9,1) -> 0.02422970035 | CL9: =VLOOKUP('GHG Calcs'!$BB21,'Over-Road Coach C&T EF'!$D$3:$H$1531,2,)/IF('GHG Calcs'!AX21>0,$DD9,1) -> 0.2717961654 | CM9: =VLOOKUP('GHG Calcs'!$BC21,'Over-Road Coach C&T EF'!$D$3:$H$1531,2,)/IF('GHG Calcs'!AX21>0,$DE9,1) -> 0 | CN9: =VLOOKUP('GHG Calcs'!$BB21,'Over-Road Coach C&T EF'!$D$3:$H$1531,3,)/IF('GHG Calcs'!AX21>0,$DD9,1) -> 8.752491746 | CO9: =VLOOKUP('GHG Calcs'!$BC21,'Over-Road Coach C&T EF'!$D$3:$H$1531,3,)/IF('GHG Calcs'!AX21>0,$DE9,1) -> 0 | CP9: =VLOOKUP('GHG Calcs'!$BB21,'Over-Road Coach C&T EF'!$D$3:$H$1531,4,)/IF('GHG Calcs'!AX21>0,$DD9,1) -> 0.0360063074 | CQ9: =VLOOKUP('GHG Calcs'!$BC21,'Over-Road Coach C&T EF'!$D$3:$H$1531,4,)/IF('GHG Calcs'!AX21>0,$DE9,1) -> 0 | CR9: =VLOOKUP('GHG Calcs'!$BB21,'Over-Road Coach C&T EF'!$D$3:$H$1531,5,)/IF('GHG Calcs'!AX21>0,$DD9,1) -> 0.03763435284 | CS9: =VLOOKUP('GHG Calcs'!$BC21,'Over-Road Coach C&T EF'!$D$3:$H$1531,5,)/IF('GHG Calcs'!AX21>0,$DE9,1) -> 0 | CT9: =$BO$13/IF('GHG Calcs'!$AX21>0,1.8191,1) -> 10.30726944 | CU9: =$BP$13/IF('GHG Calcs'!$AX21>0,1.8191,1) -> 186.3576 | CV9: =$BQ$13/IF('GHG Calcs'!$AX21>0,1.8191,1) -> 6.5733408 | CW9: =$BR$13/IF('GHG Calcs'!$AX21>0,1.8191,1) -> 6.77664 | CX9: =(IF('GHG Calcs'!$AW21="Gasoline",VLOOKUP('GHG Calcs'!$BB21,'Fuel Consumption'!$A$4:$H$1533,3),VLOOKUP('GHG Calcs'!$BB21,'Fuel Consumption'!$A$4:$H$1533,2))) -> 0.2049991999 | CY9: =(IF('GHG Calcs'!$AW21="Gasoline",VLOOKUP('GHG Calcs'!$BC21,'Fuel Consumption'!$A$4:$H$1533,3),VLOOKUP('GHG Calcs'!$BC21,'Fuel Consumption'!$A$4:$H$1533,2))) -> 0.2052250446 | CZ9: =(IF('GHG Calcs'!$AW21="Gasoline",VLOOKUP('GHG Calcs'!$BB21,'Fuel Consumption'!$A$4:$H$1533,5),VLOOKUP('GHG Calcs'!$BB21,'Fuel Consumption'!$A$4:$H$1533,4))) -> 0.09748207346 | DA9: =(IF('GHG Calcs'!$AW21="Gasoline",VLOOKUP('GHG Calcs'!$BC21,'Fuel Consumption'!$A$4:$H$1533,5),VLOOKUP('GHG Calcs'!$BC21,'Fuel Consumption'!$A$4:$H$1533,4))) -> 0.1003885868 | DB9: =(IF('GHG Calcs'!$AW21="Gasoline",VLOOKUP('GHG Calcs'!$BB21,'Fuel Consumption'!$A$4:$H$1533,7),VLOOKUP('GHG Calcs'!$BB21,'Fuel Consumption'!$A$4:$H$1533,6))) -> 0.1072495419 | DC9: =(IF('GHG Calcs'!$AW21="Gasoline",VLOOKUP('GHG Calcs'!$BC21,'Fuel Consumption'!$A$4:$H$1533,7),VLOOKUP('GHG Calcs'!$BC21,'Fuel Consumption'!$A$4:$H$1533,6))) -> 0.1101022643 | DD9: =VLOOKUP('GHG Calcs'!$BB21,'Fuel Consumption'!$A$4:$H$1533,8) -> 0.1875627309 | DE9: =VLOOKUP('GHG Calcs'!$BC21,'Fuel Consumption'!$A$4:$H$1533,8) -> 0.1992952735
Q11: Train (g/mile) | BN11: Train (g/mile)
R12: ROG | S12: NOx | T12: PM 2.5 | U12: PM 10 | BO12: ROG | BP12: NOx | BQ12: PM 2.5 | BR12: PM 10
Q13: Tier 2 | R13: 10.35909052 | S13: 187.294536 | T13: 6.8107104 | U13: 6.606389088 | BN13: Tier 2 | BO13: =10.30726944 -> 10.30726944 | BP13: 186.3576 | BQ13: 6.5733408 | BR13: 6.77664
Q14: Tier 4 | R14: 1.593706234 | S14: 37.83728 | T14: 0.5675592 | U14: 0.550532424 | BN14: Tier 4 | BO14: 1.58573376 | BP14: 37.648 | BQ14: 0.5477784 | BR14: 0.56472
A15: Project Emission Reduction (pounds)
B16: ROG Emission Reduction | C16: NOx Emission Reduction | D16: PM 2.5 Emission Reduction | E16: PM 10 Emission Reduction | Q16: Ferry | BN16: Ferry
A17: Quantifiable Component 1 | B17: =IF('GHG Calcs'!$A16="New/Expanded Service",L4-Y22,IF('GHG Calcs'!$A16="System and Efficiency Improvements",L4,IF('GHG Calcs'!$A16="Cleaner Vehicles/Technology/Fuels",BV22-Y22,IF('GHG Calcs'!$A16="Fuel Reductions",BV22,"N/A"))))/453.6 -> 2016.659405 | C17: =IF('GHG Calcs'!$A16="New/Expanded Service",M4-Z22,IF('GHG Calcs'!$A16="System and Efficiency Improvements",M4,IF('GHG Calcs'!$A16="Cleaner Vehicles/Technology/Fuels",BW22-Z22,IF('GHG Calcs'!$A16="Fuel Reductions",BW22,"N/A"))))/453.6 -> 10009.24036 | D17: =IF('GHG Calcs'!$A16="New/Expanded Service",N4-AA22,IF('GHG Calcs'!$A16="System and Efficiency Improvements",N4,IF('GHG Calcs'!$A16="Cleaner Vehicles/Technology/Fuels",BX22-AA22,IF('GHG Calcs'!$A16="Fuel Reductions",BX22,"N/A"))))/453.6 -> 191.2946677 | E17: =IF('GHG Calcs'!$A16="New/Expanded Service",O4-AB22,IF('GHG Calcs'!$A16="System and Efficiency Improvements",O4,IF('GHG Calcs'!$A16="Cleaner Vehicles/Technology/Fuels",BY22-AB22,IF('GHG Calcs'!$A16="Fuel Reductions",BY22,"N/A"))))/453.6 -> 1123.910081 | R17: ROG | S17: NOx | T17: PM 2.5 | U17: PM 10 | BO17: ROG | BP17: NOx | BQ17: PM 2.5 | BR17: PM 10
A18: Quantifiable Component 2 | B18: =IF('GHG Calcs'!$A17="New/Expanded Service",L5-Y23,IF('GHG Calcs'!$A17="System and Efficiency Improvements",L5,IF('GHG Calcs'!$A17="Cleaner Vehicles/Technology/Fuels",BV23-Y23,IF('GHG Calcs'!$A17="Fuel Reductions",BV23,"N/A"))))/453.6 -> 691.2949384 | C18: =IF('GHG Calcs'!$A17="New/Expanded Service",M5-Z23,IF('GHG Calcs'!$A17="System and Efficiency Improvements",M5,IF('GHG Calcs'!$A17="Cleaner Vehicles/Technology/Fuels",BW23-Z23,IF('GHG Calcs'!$A17="Fuel Reductions",BW23,"N/A"))))/453.6 -> 3431.09078 | D18: =IF('GHG Calcs'!$A17="New/Expanded Service",N5-AA23,IF('GHG Calcs'!$A17="System and Efficiency Improvements",N5,IF('GHG Calcs'!$A17="Cleaner Vehicles/Technology/Fuels",BX23-AA23,IF('GHG Calcs'!$A17="Fuel Reductions",BX23,"N/A"))))/453.6 -> 65.57476419 | E18: =IF('GHG Calcs'!$A17="New/Expanded Service",O5-AB23,IF('GHG Calcs'!$A17="System and Efficiency Improvements",O5,IF('GHG Calcs'!$A17="Cleaner Vehicles/Technology/Fuels",BY23-AB23,IF('GHG Calcs'!$A17="Fuel Reductions",BY23,"N/A"))))/453.6 -> 385.2655008 | Q18: 1987-1994 | R18: 31.86 | S18: 254.02 | T18: =U18*0.92 -> 10.166 | U18: 11.05 | BN18: 1987-1994 | BO18: 31.86 | BP18: 254.02 | BQ18: =BR18*0.92 -> 10.166 | BR18: 11.05
A19: Quantifiable Component 3 | B19: =IF('GHG Calcs'!$A18="New/Expanded Service",L6-Y24,IF('GHG Calcs'!$A18="System and Efficiency Improvements",L6,IF('GHG Calcs'!$A18="Cleaner Vehicles/Technology/Fuels",BV24-Y24,IF('GHG Calcs'!$A18="Fuel Reductions",BV24,"N/A"))))/453.6 ->  | C19: =IF('GHG Calcs'!$A18="New/Expanded Service",M6-Z24,IF('GHG Calcs'!$A18="System and Efficiency Improvements",M6,IF('GHG Calcs'!$A18="Cleaner Vehicles/Technology/Fuels",BW24-Z24,IF('GHG Calcs'!$A18="Fuel Reductions",BW24,"N/A"))))/453.6 ->  | D19: =IF('GHG Calcs'!$A18="New/Expanded Service",N6-AA24,IF('GHG Calcs'!$A18="System and Efficiency Improvements",N6,IF('GHG Calcs'!$A18="Cleaner Vehicles/Technology/Fuels",BX24-AA24,IF('GHG Calcs'!$A18="Fuel Reductions",BX24,"N/A"))))/453.6 ->  | E19: =IF('GHG Calcs'!$A18="New/Expanded Service",O6-AB24,IF('GHG Calcs'!$A18="System and Efficiency Improvements",O6,IF('GHG Calcs'!$A18="Cleaner Vehicles/Technology/Fuels",BY24-AB24,IF('GHG Calcs'!$A18="Fuel Reductions",BY24,"N/A"))))/453.6 ->  | Q19: 2014-2020 | R19: 23.61 | S19: 81.59 | T19: =U19*0.92 -> 2.0148 | U19: 2.19 | BN19: 2014-2020 | BO19: 23.61 | BP19: 81.59 | BQ19: =BR19*0.92 -> 2.0148 | BR19: 2.19
A20: Quantifiable Component 4 | B20: =IF('GHG Calcs'!$A19="New/Expanded Service",L7-Y25,IF('GHG Calcs'!$A19="System and Efficiency Improvements",L7,IF('GHG Calcs'!$A19="Cleaner Vehicles/Technology/Fuels",BV25-Y25,IF('GHG Calcs'!$A19="Fuel Reductions",BV25,"N/A"))))/453.6 -> 19.25024281 | C20: =IF('GHG Calcs'!$A19="New/Expanded Service",M7-Z25,IF('GHG Calcs'!$A19="System and Efficiency Improvements",M7,IF('GHG Calcs'!$A19="Cleaner Vehicles/Technology/Fuels",BW25-Z25,IF('GHG Calcs'!$A19="Fuel Reductions",BW25,"N/A"))))/453.6 -> 95.54342136 | D20: =IF('GHG Calcs'!$A19="New/Expanded Service",N7-AA25,IF('GHG Calcs'!$A19="System and Efficiency Improvements",N7,IF('GHG Calcs'!$A19="Cleaner Vehicles/Technology/Fuels",BX25-AA25,IF('GHG Calcs'!$A19="Fuel Reductions",BX25,"N/A"))))/453.6 -> 1.825834262 | E20: =IF('GHG Calcs'!$A19="New/Expanded Service",O7-AB25,IF('GHG Calcs'!$A19="System and Efficiency Improvements",O7,IF('GHG Calcs'!$A19="Cleaner Vehicles/Technology/Fuels",BY25-AB25,IF('GHG Calcs'!$A19="Fuel Reductions",BY25,"N/A"))))/453.6 -> 10.72923502
A21: Quantifiable Component 5 | B21: =IF('GHG Calcs'!$A20="New/Expanded Service",L8-Y26,IF('GHG Calcs'!$A20="System and Efficiency Improvements",L8,IF('GHG Calcs'!$A20="Cleaner Vehicles/Technology/Fuels",BV26-Y26,IF('GHG Calcs'!$A20="Fuel Reductions",BV26,"N/A"))))/453.6 -> 4.230711449 | C21: =IF('GHG Calcs'!$A20="New/Expanded Service",M8-Z26,IF('GHG Calcs'!$A20="System and Efficiency Improvements",M8,IF('GHG Calcs'!$A20="Cleaner Vehicles/Technology/Fuels",BW26-Z26,IF('GHG Calcs'!$A20="Fuel Reductions",BW26,"N/A"))))/453.6 -> 20.99822388 | D21: =IF('GHG Calcs'!$A20="New/Expanded Service",N8-AA26,IF('GHG Calcs'!$A20="System and Efficiency Improvements",N8,IF('GHG Calcs'!$A20="Cleaner Vehicles/Technology/Fuels",BX26-AA26,IF('GHG Calcs'!$A20="Fuel Reductions",BX26,"N/A"))))/453.6 -> 0.4013196655 | E21: =IF('GHG Calcs'!$A20="New/Expanded Service",O8-AB26,IF('GHG Calcs'!$A20="System and Efficiency Improvements",O8,IF('GHG Calcs'!$A20="Cleaner Vehicles/Technology/Fuels",BY26-AB26,IF('GHG Calcs'!$A20="Fuel Reductions",BY26,"N/A"))))/453.6 -> 2.357802483 | Q21: Yr1 ROG | R21: YrF ROG | S21: Yr1 NOx | T21: YrF NOx | U21: Yr1 PM2.5 | V21: YrF PM 2.5 | W21: Yr1 Dsl PM 10 | X21: YrF Dsl PM10 | Y21: ROG Emissions | Z21: NOx Emissions | AA21: PM 2.5 Emissions | AB21: PM 10 Emissions | BN21: Yr1 ROG | BO21: YrF ROG | BP21: Yr1 NOx | BQ21: YrF NOx | BR21: Yr1 PM2.5 | BS21: YrF PM 2.5 | BT21: Yr1 Dsl PM 10 | BU21: YrF Dsl PM10 | BV21: ROG Emissions | BW21: NOx Emissions | BX21: PM 2.5 Emissions | BY21: PM 10 Emissions
A22: Quantifiable Component 6 | B22: =IF('GHG Calcs'!$A21="New/Expanded Service",L9-Y27,IF('GHG Calcs'!$A21="System and Efficiency Improvements",L9,IF('GHG Calcs'!$A21="Cleaner Vehicles/Technology/Fuels",BV27-Y27,IF('GHG Calcs'!$A21="Fuel Reductions",BV27,"N/A"))))/453.6 -> 734.8562991 | C22: =IF('GHG Calcs'!$A21="New/Expanded Service",M9-Z27,IF('GHG Calcs'!$A21="System and Efficiency Improvements",M9,IF('GHG Calcs'!$A21="Cleaner Vehicles/Technology/Fuels",BW27-Z27,IF('GHG Calcs'!$A21="Fuel Reductions",BW27,"N/A"))))/453.6 -> 23664.14435 | D22: =IF('GHG Calcs'!$A21="New/Expanded Service",N9-AA27,IF('GHG Calcs'!$A21="System and Efficiency Improvements",N9,IF('GHG Calcs'!$A21="Cleaner Vehicles/Technology/Fuels",BX27-AA27,IF('GHG Calcs'!$A21="Fuel Reductions",BX27,"N/A"))))/453.6 -> 97.35038666 | E22: =IF('GHG Calcs'!$A21="New/Expanded Service",O9-AB27,IF('GHG Calcs'!$A21="System and Efficiency Improvements",O9,IF('GHG Calcs'!$A21="Cleaner Vehicles/Technology/Fuels",BY27-AB27,IF('GHG Calcs'!$A21="Fuel Reductions",BY27,"N/A"))))/453.6 -> 101.7521392 | P22: Quantifiable Component 1 | Q22: =IF(OR('GHG Calcs'!V16="Electric",'GHG Calcs'!V16="Hydrogen Fuel Cell"),0,IF('GHG Calcs'!$C16="Transit Bus",Q4,IF('GHG Calcs'!$C16="Van",Y4,IF('GHG Calcs'!$C16="Cut-A-Way",AG4,IF('GHG Calcs'!$C16="Over-Road Coach",AO4,IF('GHG Calcs'!$C16="Heavy Rail",$AW4,IF('GHG Calcs'!$C16="Ferry",BA4,0))))))) -> 0 | R22: =IF(OR('GHG Calcs'!V16="Electric",'GHG Calcs'!V16="Hydrogen Fuel Cell"),0,IF('GHG Calcs'!$C16="Transit Bus",R4,IF('GHG Calcs'!$C16="Van",Z4,IF('GHG Calcs'!$C16="Cut-A-Way",AH4,IF('GHG Calcs'!$C16="Over-Road Coach",AP4,IF('GHG Calcs'!$C16="Heavy Rail",$AW4,IF('GHG Calcs'!$C16="Ferry",BA4,0))))))) -> 0 | S22: =IF(OR('GHG Calcs'!V16="Electric",'GHG Calcs'!V16="Hydrogen Fuel Cell"),0,IF('GHG Calcs'!$C16="Transit Bus",S4,IF('GHG Calcs'!$C16="Van",AA4,IF('GHG Calcs'!$C16="Cut-A-Way",AI4,IF('GHG Calcs'!$C16="Over-Road Coach",AQ4,IF('GHG Calcs'!$C16="Heavy Rail",$AX4,IF('GHG Calcs'!$C16="Ferry",BB4,0))))))) -> 0 | T22: =IF(OR('GHG Calcs'!V16="Electric",'GHG Calcs'!V16="Hydrogen Fuel Cell"),0,IF('GHG Calcs'!$C16="Transit Bus",T4,IF('GHG Calcs'!$C16="Van",AB4,IF('GHG Calcs'!$C16="Cut-A-Way",AJ4,IF('GHG Calcs'!$C16="Over-Road Coach",AR4,IF('GHG Calcs'!$C16="Heavy Rail",$AX4,IF('GHG Calcs'!$C16="Ferry",BB4,0))))))) -> 0 | U22: =IF(OR('GHG Calcs'!V16="Electric",'GHG Calcs'!V16="Hydrogen Fuel Cell"),0,IF('GHG Calcs'!$C16="Transit Bus",U4,IF('GHG Calcs'!$C16="Van",AC4,IF('GHG Calcs'!$C16="Cut-A-Way",AK4,IF('GHG Calcs'!$C16="Over-Road Coach",AS4,IF('GHG Calcs'!$C16="Heavy Rail",$AY4,IF('GHG Calcs'!$C16="Ferry",BC4,0))))))) -> 0 | V22: =IF(OR('GHG Calcs'!V16="Electric",'GHG Calcs'!V16="Hydrogen Fuel Cell"),0,IF('GHG Calcs'!$C16="Transit Bus",V4,IF('GHG Calcs'!$C16="Van",AD4,IF('GHG Calcs'!$C16="Cut-A-Way",AL4,IF('GHG Calcs'!$C16="Over-Road Coach",AT4,IF('GHG Calcs'!$C16="Heavy Rail",$AY4,IF('GHG Calcs'!$C16="Ferry",BC4,0))))))) -> 0 | W22: =IF(OR('GHG Calcs'!V16="Electric",'GHG Calcs'!V16="Hydrogen Fuel Cell"),0,IF('GHG Calcs'!$C16="Transit Bus",W4,IF('GHG Calcs'!$C16="Van",AE4,IF('GHG Calcs'!$C16="Cut-A-Way",AM4,IF('GHG Calcs'!$C16="Over-Road Coach",AU4,IF('GHG Calcs'!$C16="Heavy Rail",$AZ4,IF('GHG Calcs'!$C16="Ferry",BD4,0))))))) -> 0 | X22: =IF(OR('GHG Calcs'!V16="Electric",'GHG Calcs'!V16="Hydrogen Fuel Cell"),0,IF('GHG Calcs'!$C16="Transit Bus",X4,IF('GHG Calcs'!$C16="Van",AF4,IF('GHG Calcs'!$C16="Cut-A-Way",AN4,IF('GHG Calcs'!$C16="Over-Road Coach",AV4,IF('GHG Calcs'!$C16="Heavy Rail",$AZ4,IF('GHG Calcs'!$C16="Ferry",BD4,0))))))) -> 0 | Y22: =(IF('GHG Calcs'!AN16="yes",0.8,1))*IF('GHG Calcs'!$W16>0,AVERAGE(Q22:R22)*'GHG Calcs'!$W16*('GHG Calcs'!$E16-'GHG Calcs'!$D16),AVERAGE(Q22:R22)*'GHG Calcs'!$AA16*('GHG Calcs'!$E16-'GHG Calcs'!$D16)) -> 0 | Z22: =(IF('GHG Calcs'!AN16="yes",0.8,1))*IF('GHG Calcs'!$W16>0,AVERAGE(S22:T22)*'GHG Calcs'!$W16*('GHG Calcs'!$E16-'GHG Calcs'!$D16),AVERAGE(S22:T22)*'GHG Calcs'!$AA16*('GHG Calcs'!$E16-'GHG Calcs'!$D16)) -> 0 | AA22: =(IF('GHG Calcs'!AN16="yes",0.8,1))*IF('GHG Calcs'!$W16>0,AVERAGE(U22:V22)*'GHG Calcs'!$W16*('GHG Calcs'!$E16-'GHG Calcs'!$D16),AVERAGE(U22:V22)*'GHG Calcs'!$AA16*('GHG Calcs'!$E16-'GHG Calcs'!$D16)) -> 0 | AB22: =(IF('GHG Calcs'!AN16="yes",0.8,1))*IF('GHG Calcs'!$W16>0,AVERAGE(W22:X22)*'GHG Calcs'!$W16*('GHG Calcs'!$E16-'GHG Calcs'!$D16),AVERAGE(W22:X22)*'GHG Calcs'!$AA16*('GHG Calcs'!$E16-'GHG Calcs'!$D16)) -> 0 | BM22: Quantifiable Component 1 | BN22: =IF(OR('GHG Calcs'!AW16="Electric",'GHG Calcs'!AW16="Hydrogen Fuel Cell"),0,IF('GHG Calcs'!$C16="Transit Bus",BN4,IF('GHG Calcs'!$C16="Van",BV4,IF('GHG Calcs'!$C16="Cut-A-Way",CD4,IF('GHG Calcs'!$C16="Over-Road Coach",CL4,IF('GHG Calcs'!$C16="Heavy Rail",$CT4,IF('GHG Calcs'!$C16="Ferry",$BO$18,0))))))) ->  | BO22: =IF(OR('GHG Calcs'!AW16="Electric",'GHG Calcs'!AW16="Hydrogen Fuel Cell"),0,IF('GHG Calcs'!$C16="Transit Bus",BO4,IF('GHG Calcs'!$C16="Van",BW4,IF('GHG Calcs'!$C16="Cut-A-Way",CE4,IF('GHG Calcs'!$C16="Over-Road Coach",CM4,IF('GHG Calcs'!$C16="Heavy Rail",$CT4,IF('GHG Calcs'!$C16="Ferry",$BO$18,0))))))) ->  | BP22: =IF(OR('GHG Calcs'!AW16="Electric",'GHG Calcs'!AW16="Hydrogen Fuel Cell"),0,IF('GHG Calcs'!$C16="Transit Bus",BP4,IF('GHG Calcs'!$C16="Van",BX4,IF('GHG Calcs'!$C16="Cut-A-Way",CF4,IF('GHG Calcs'!$C16="Over-Road Coach",CN4,IF('GHG Calcs'!$C16="Heavy Rail",$CU4,IF('GHG Calcs'!$C16="Ferry",$BP$18,0))))))) ->  | BQ22: =IF(OR('GHG Calcs'!AW16="Electric",'GHG Calcs'!AW16="Hydrogen Fuel Cell"),0,IF('GHG Calcs'!$C16="Transit Bus",BQ4,IF('GHG Calcs'!$C16="Van",BY4,IF('GHG Calcs'!$C16="Cut-A-Way",CG4,IF('GHG Calcs'!$C16="Over-Road Coach",CO4,IF('GHG Calcs'!$C16="Heavy Rail",$CU4,IF('GHG Calcs'!$C16="Ferry",$BP$18,0))))))) ->  | BR22: =IF(OR('GHG Calcs'!AW16="Electric",'GHG Calcs'!AW16="Hydrogen Fuel Cell"),0,IF('GHG Calcs'!$C16="Transit Bus",BR4,IF('GHG Calcs'!$C16="Van",BZ4,IF('GHG Calcs'!$C16="Cut-A-Way",CH4,IF('GHG Calcs'!$C16="Over-Road Coach",CP4,IF('GHG Calcs'!$C16="Heavy Rail",$CV4,IF('GHG Calcs'!$C16="Ferry",$BQ$18,0))))))) ->  | BS22: =IF(OR('GHG Calcs'!AW16="Electric",'GHG Calcs'!AW16="Hydrogen Fuel Cell"),0,IF('GHG Calcs'!$C16="Transit Bus",BS4,IF('GHG Calcs'!$C16="Van",CA4,IF('GHG Calcs'!$C16="Cut-A-Way",CI4,IF('GHG Calcs'!$C16="Over-Road Coach",CQ4,IF('GHG Calcs'!$C16="Heavy Rail",$CV4,IF('GHG Calcs'!$C16="Ferry",$BQ$18,0))))))) ->  | BT22: =IF(OR('GHG Calcs'!AW16="Electric",'GHG Calcs'!AW16="Hydrogen Fuel Cell"),0,IF('GHG Calcs'!$C16="Transit Bus",BT4,IF('GHG Calcs'!$C16="Van",CB4,IF('GHG Calcs'!$C16="Cut-A-Way",CJ4,IF('GHG Calcs'!$C16="Over-Road Coach",CR4,IF('GHG Calcs'!$C16="Heavy Rail",$CW4,IF('GHG Calcs'!$C16="Ferry",$BR$18,0))))))) ->  | BU22: =IF(OR('GHG Calcs'!AW16="Electric",'GHG Calcs'!AW16="Hydrogen Fuel Cell"),0,IF('GHG Calcs'!$C16="Transit Bus",BU4,IF('GHG Calcs'!$C16="Van",CC4,IF('GHG Calcs'!$C16="Cut-A-Way",CK4,IF('GHG Calcs'!$C16="Over-Road Coach",CS4,IF('GHG Calcs'!$C16="Heavy Rail",$CW4,IF('GHG Calcs'!$C16="Ferry",$BR$18,0))))))) ->  | BV22: =IF('GHG Calcs'!$AX16>0,AVERAGE(BN22:BO22)*'GHG Calcs'!$AX16*('GHG Calcs'!$E16-'GHG Calcs'!$D16),AVERAGE(BN22:BO22)*'GHG Calcs'!$AZ16*('GHG Calcs'!$E16-'GHG Calcs'!$D16)) ->  | BW22: =IF('GHG Calcs'!$AX16>0,AVERAGE(BP22:BQ22)*'GHG Calcs'!$AX16*('GHG Calcs'!$E16-'GHG Calcs'!$D16),AVERAGE(BP22:BQ22)*'GHG Calcs'!$AZ16*('GHG Calcs'!$E16-'GHG Calcs'!$D16)) ->  | BX22: =IF('GHG Calcs'!$AX16>0,AVERAGE(BR22:BS22)*'GHG Calcs'!$AX16*('GHG Calcs'!$E16-'GHG Calcs'!$D16),AVERAGE(BR22:BS22)*'GHG Calcs'!$AZ16*('GHG Calcs'!$E16-'GHG Calcs'!$D16)) ->  | BY22: =IF('GHG Calcs'!$AX16>0,AVERAGE(BT22:BU22)*'GHG Calcs'!$AX16*('GHG Calcs'!$E16-'GHG Calcs'!$D16),AVERAGE(BT22:BU22)*'GHG Calcs'!$AZ16*('GHG Calcs'!$E16-'GHG Calcs'!$D16)) -> 
P23: Quantifiable Component 2 | Q23: =IF(OR('GHG Calcs'!V17="Electric",'GHG Calcs'!V17="Hydrogen Fuel Cell"),0,IF('GHG Calcs'!$C17="Transit Bus",Q5,IF('GHG Calcs'!$C17="Van",Y5,IF('GHG Calcs'!$C17="Cut-A-Way",AG5,IF('GHG Calcs'!$C17="Over-Road Coach",AO5,IF('GHG Calcs'!$C17="Heavy Rail",$AW5,IF('GHG Calcs'!$C17="Ferry",BA5,0))))))) -> 0 | R23: =IF(OR('GHG Calcs'!V17="Electric",'GHG Calcs'!V17="Hydrogen Fuel Cell"),0,IF('GHG Calcs'!$C17="Transit Bus",R5,IF('GHG Calcs'!$C17="Van",Z5,IF('GHG Calcs'!$C17="Cut-A-Way",AH5,IF('GHG Calcs'!$C17="Over-Road Coach",AP5,IF('GHG Calcs'!$C17="Heavy Rail",$AW5,IF('GHG Calcs'!$C17="Ferry",BA5,0))))))) -> 0 | S23: =IF(OR('GHG Calcs'!V17="Electric",'GHG Calcs'!V17="Hydrogen Fuel Cell"),0,IF('GHG Calcs'!$C17="Transit Bus",S5,IF('GHG Calcs'!$C17="Van",AA5,IF('GHG Calcs'!$C17="Cut-A-Way",AI5,IF('GHG Calcs'!$C17="Over-Road Coach",AQ5,IF('GHG Calcs'!$C17="Heavy Rail",$AX5,IF('GHG Calcs'!$C17="Ferry",BB5,0))))))) -> 0 | T23: =IF(OR('GHG Calcs'!V17="Electric",'GHG Calcs'!V17="Hydrogen Fuel Cell"),0,IF('GHG Calcs'!$C17="Transit Bus",T5,IF('GHG Calcs'!$C17="Van",AB5,IF('GHG Calcs'!$C17="Cut-A-Way",AJ5,IF('GHG Calcs'!$C17="Over-Road Coach",AR5,IF('GHG Calcs'!$C17="Heavy Rail",$AX5,IF('GHG Calcs'!$C17="Ferry",BB5,0))))))) -> 0 | U23: =IF(OR('GHG Calcs'!V17="Electric",'GHG Calcs'!V17="Hydrogen Fuel Cell"),0,IF('GHG Calcs'!$C17="Transit Bus",U5,IF('GHG Calcs'!$C17="Van",AC5,IF('GHG Calcs'!$C17="Cut-A-Way",AK5,IF('GHG Calcs'!$C17="Over-Road Coach",AS5,IF('GHG Calcs'!$C17="Heavy Rail",$AY5,IF('GHG Calcs'!$C17="Ferry",BC5,0))))))) -> 0 | V23: =IF(OR('GHG Calcs'!V17="Electric",'GHG Calcs'!V17="Hydrogen Fuel Cell"),0,IF('GHG Calcs'!$C17="Transit Bus",V5,IF('GHG Calcs'!$C17="Van",AD5,IF('GHG Calcs'!$C17="Cut-A-Way",AL5,IF('GHG Calcs'!$C17="Over-Road Coach",AT5,IF('GHG Calcs'!$C17="Heavy Rail",$AY5,IF('GHG Calcs'!$C17="Ferry",BC5,0))))))) -> 0 | W23: =IF(OR('GHG Calcs'!V17="Electric",'GHG Calcs'!V17="Hydrogen Fuel Cell"),0,IF('GHG Calcs'!$C17="Transit Bus",W5,IF('GHG Calcs'!$C17="Van",AE5,IF('GHG Calcs'!$C17="Cut-A-Way",AM5,IF('GHG Calcs'!$C17="Over-Road Coach",AU5,IF('GHG Calcs'!$C17="Heavy Rail",$AZ5,IF('GHG Calcs'!$C17="Ferry",BD5,0))))))) -> 0 | X23: =IF(OR('GHG Calcs'!V17="Electric",'GHG Calcs'!V17="Hydrogen Fuel Cell"),0,IF('GHG Calcs'!$C17="Transit Bus",X5,IF('GHG Calcs'!$C17="Van",AF5,IF('GHG Calcs'!$C17="Cut-A-Way",AN5,IF('GHG Calcs'!$C17="Over-Road Coach",AV5,IF('GHG Calcs'!$C17="Heavy Rail",$AZ5,IF('GHG Calcs'!$C17="Ferry",BD5,0))))))) -> 0 | Y23: =(IF('GHG Calcs'!AN16="yes",0.8,1))*IF('GHG Calcs'!$W17>0,AVERAGE(Q23:R23)*'GHG Calcs'!$W17*('GHG Calcs'!$E17-'GHG Calcs'!$D17),AVERAGE(Q23:R23)*'GHG Calcs'!$AA17*('GHG Calcs'!$E17-'GHG Calcs'!$D17)) -> 0 | Z23: =(IF('GHG Calcs'!AN16="yes",0.8,1))*IF('GHG Calcs'!$W17>0,AVERAGE(S23:T23)*'GHG Calcs'!$W17*('GHG Calcs'!$E17-'GHG Calcs'!$D17),AVERAGE(S23:T23)*'GHG Calcs'!$AA17*('GHG Calcs'!$E17-'GHG Calcs'!$D17)) -> 0 | AA23: =(IF('GHG Calcs'!AN16="yes",0.8,1))*IF('GHG Calcs'!$W17>0,AVERAGE(U23:V23)*'GHG Calcs'!$W17*('GHG Calcs'!$E17-'GHG Calcs'!$D17),AVERAGE(U23:V23)*'GHG Calcs'!$AA17*('GHG Calcs'!$E17-'GHG Calcs'!$D17)) -> 0 | AB23: =(IF('GHG Calcs'!AN16="yes",0.8,1))*IF('GHG Calcs'!$W17>0,AVERAGE(W23:X23)*'GHG Calcs'!$W17*('GHG Calcs'!$E17-'GHG Calcs'!$D17),AVERAGE(W23:X23)*'GHG Calcs'!$AA17*('GHG Calcs'!$E17-'GHG Calcs'!$D17)) -> 0 | BM23: Quantifiable Component 2 | BN23: =IF(OR('GHG Calcs'!AW17="Electric",'GHG Calcs'!AW17="Hydrogen Fuel Cell"),0,IF('GHG Calcs'!$C17="Transit Bus",BN5,IF('GHG Calcs'!$C17="Van",BV5,IF('GHG Calcs'!$C17="Cut-A-Way",CD5,IF('GHG Calcs'!$C17="Over-Road Coach",CL5,IF('GHG Calcs'!$C17="Heavy Rail",$CT5,IF('GHG Calcs'!$C17="Ferry",$BO$18,0))))))) ->  | BO23: =IF(OR('GHG Calcs'!AW17="Electric",'GHG Calcs'!AW17="Hydrogen Fuel Cell"),0,IF('GHG Calcs'!$C17="Transit Bus",BO5,IF('GHG Calcs'!$C17="Van",BW5,IF('GHG Calcs'!$C17="Cut-A-Way",CE5,IF('GHG Calcs'!$C17="Over-Road Coach",CM5,IF('GHG Calcs'!$C17="Heavy Rail",$CT5,IF('GHG Calcs'!$C17="Ferry",$BO$18,0))))))) ->  | BP23: =IF(OR('GHG Calcs'!AW17="Electric",'GHG Calcs'!AW17="Hydrogen Fuel Cell"),0,IF('GHG Calcs'!$C17="Transit Bus",BP5,IF('GHG Calcs'!$C17="Van",BX5,IF('GHG Calcs'!$C17="Cut-A-Way",CF5,IF('GHG Calcs'!$C17="Over-Road Coach",CN5,IF('GHG Calcs'!$C17="Heavy Rail",$CU5,IF('GHG Calcs'!$C17="Ferry",$BP$18,0))))))) ->  | BQ23: =IF(OR('GHG Calcs'!AW17="Electric",'GHG Calcs'!AW17="Hydrogen Fuel Cell"),0,IF('GHG Calcs'!$C17="Transit Bus",BQ5,IF('GHG Calcs'!$C17="Van",BY5,IF('GHG Calcs'!$C17="Cut-A-Way",CG5,IF('GHG Calcs'!$C17="Over-Road Coach",CO5,IF('GHG Calcs'!$C17="Heavy Rail",$CU5,IF('GHG Calcs'!$C17="Ferry",$BP$18,0))))))) ->  | BR23: =IF(OR('GHG Calcs'!AW17="Electric",'GHG Calcs'!AW17="Hydrogen Fuel Cell"),0,IF('GHG Calcs'!$C17="Transit Bus",BR5,IF('GHG Calcs'!$C17="Van",BZ5,IF('GHG Calcs'!$C17="Cut-A-Way",CH5,IF('GHG Calcs'!$C17="Over-Road Coach",CP5,IF('GHG Calcs'!$C17="Heavy Rail",$CV5,IF('GHG Calcs'!$C17="Ferry",$BQ$18,0))))))) ->  | BS23: =IF(OR('GHG Calcs'!AW17="Electric",'GHG Calcs'!AW17="Hydrogen Fuel Cell"),0,IF('GHG Calcs'!$C17="Transit Bus",BS5,IF('GHG Calcs'!$C17="Van",CA5,IF('GHG Calcs'!$C17="Cut-A-Way",CI5,IF('GHG Calcs'!$C17="Over-Road Coach",CQ5,IF('GHG Calcs'!$C17="Heavy Rail",$CV5,IF('GHG Calcs'!$C17="Ferry",$BQ$18,0))))))) ->  | BT23: =IF(OR('GHG Calcs'!AW17="Electric",'GHG Calcs'!AW17="Hydrogen Fuel Cell"),0,IF('GHG Calcs'!$C17="Transit Bus",BT5,IF('GHG Calcs'!$C17="Van",CB5,IF('GHG Calcs'!$C17="Cut-A-Way",CJ5,IF('GHG Calcs'!$C17="Over-Road Coach",CR5,IF('GHG Calcs'!$C17="Heavy Rail",$CW5,IF('GHG Calcs'!$C17="Ferry",$BR$18,0))))))) ->  | BU23: =IF(OR('GHG Calcs'!AW17="Electric",'GHG Calcs'!AW17="Hydrogen Fuel Cell"),0,IF('GHG Calcs'!$C17="Transit Bus",BU5,IF('GHG Calcs'!$C17="Van",CC5,IF('GHG Calcs'!$C17="Cut-A-Way",CK5,IF('GHG Calcs'!$C17="Over-Road Coach",CS5,IF('GHG Calcs'!$C17="Heavy Rail",$CW5,IF('GHG Calcs'!$C17="Ferry",$BR$18,0))))))) ->  | BV23: =IF('GHG Calcs'!$AX17>0,AVERAGE(BN23:BO23)*'GHG Calcs'!$AX17*('GHG Calcs'!$E17-'GHG Calcs'!$D17),AVERAGE(BN23:BO23)*'GHG Calcs'!$AZ17*('GHG Calcs'!$E17-'GHG Calcs'!$D17)) ->  | BW23: =IF('GHG Calcs'!$AX17>0,AVERAGE(BP23:BQ23)*'GHG Calcs'!$AX17*('GHG Calcs'!$E17-'GHG Calcs'!$D17),AVERAGE(BP23:BQ23)*'GHG Calcs'!$AZ17*('GHG Calcs'!$E17-'GHG Calcs'!$D17)) ->  | BX23: =IF('GHG Calcs'!$AX17>0,AVERAGE(BR23:BS23)*'GHG Calcs'!$AX17*('GHG Calcs'!$E17-'GHG Calcs'!$D17),AVERAGE(BR23:BS23)*'GHG Calcs'!$AZ17*('GHG Calcs'!$E17-'GHG Calcs'!$D17)) ->  | BY23: =IF('GHG Calcs'!$AX17>0,AVERAGE(BT23:BU23)*'GHG Calcs'!$AX17*('GHG Calcs'!$E17-'GHG Calcs'!$D17),AVERAGE(BT23:BU23)*'GHG Calcs'!$AZ17*('GHG Calcs'!$E17-'GHG Calcs'!$D17)) -> 
P24: Quantifiable Component 3 | Q24: =IF(OR('GHG Calcs'!V18="Electric",'GHG Calcs'!V18="Hydrogen Fuel Cell"),0,IF('GHG Calcs'!$C18="Transit Bus",Q6,IF('GHG Calcs'!$C18="Van",Y6,IF('GHG Calcs'!$C18="Cut-A-Way",AG6,IF('GHG Calcs'!$C18="Over-Road Coach",AO6,IF('GHG Calcs'!$C18="Heavy Rail",$AW6,IF('GHG Calcs'!$C18="Ferry",BA6,0))))))) -> 0 | R24: =IF(OR('GHG Calcs'!V18="Electric",'GHG Calcs'!V18="Hydrogen Fuel Cell"),0,IF('GHG Calcs'!$C18="Transit Bus",R6,IF('GHG Calcs'!$C18="Van",Z6,IF('GHG Calcs'!$C18="Cut-A-Way",AH6,IF('GHG Calcs'!$C18="Over-Road Coach",AP6,IF('GHG Calcs'!$C18="Heavy Rail",$AW6,IF('GHG Calcs'!$C18="Ferry",BA6,0))))))) -> 0 | S24: =IF(OR('GHG Calcs'!V18="Electric",'GHG Calcs'!V18="Hydrogen Fuel Cell"),0,IF('GHG Calcs'!$C18="Transit Bus",S6,IF('GHG Calcs'!$C18="Van",AA6,IF('GHG Calcs'!$C18="Cut-A-Way",AI6,IF('GHG Calcs'!$C18="Over-Road Coach",AQ6,IF('GHG Calcs'!$C18="Heavy Rail",$AX6,IF('GHG Calcs'!$C18="Ferry",BB6,0))))))) -> 0 | T24: =IF(OR('GHG Calcs'!V18="Electric",'GHG Calcs'!V18="Hydrogen Fuel Cell"),0,IF('GHG Calcs'!$C18="Transit Bus",T6,IF('GHG Calcs'!$C18="Van",AB6,IF('GHG Calcs'!$C18="Cut-A-Way",AJ6,IF('GHG Calcs'!$C18="Over-Road Coach",AR6,IF('GHG Calcs'!$C18="Heavy Rail",$AX6,IF('GHG Calcs'!$C18="Ferry",BB6,0))))))) -> 0 | U24: =IF(OR('GHG Calcs'!V18="Electric",'GHG Calcs'!V18="Hydrogen Fuel Cell"),0,IF('GHG Calcs'!$C18="Transit Bus",U6,IF('GHG Calcs'!$C18="Van",AC6,IF('GHG Calcs'!$C18="Cut-A-Way",AK6,IF('GHG Calcs'!$C18="Over-Road Coach",AS6,IF('GHG Calcs'!$C18="Heavy Rail",$AY6,IF('GHG Calcs'!$C18="Ferry",BC6,0))))))) -> 0 | V24: =IF(OR('GHG Calcs'!V18="Electric",'GHG Calcs'!V18="Hydrogen Fuel Cell"),0,IF('GHG Calcs'!$C18="Transit Bus",V6,IF('GHG Calcs'!$C18="Van",AD6,IF('GHG Calcs'!$C18="Cut-A-Way",AL6,IF('GHG Calcs'!$C18="Over-Road Coach",AT6,IF('GHG Calcs'!$C18="Heavy Rail",$AY6,IF('GHG Calcs'!$C18="Ferry",BC6,0))))))) -> 0 | W24: =IF(OR('GHG Calcs'!V18="Electric",'GHG Calcs'!V18="Hydrogen Fuel Cell"),0,IF('GHG Calcs'!$C18="Transit Bus",W6,IF('GHG Calcs'!$C18="Van",AE6,IF('GHG Calcs'!$C18="Cut-A-Way",AM6,IF('GHG Calcs'!$C18="Over-Road Coach",AU6,IF('GHG Calcs'!$C18="Heavy Rail",$AZ6,IF('GHG Calcs'!$C18="Ferry",BD6,0))))))) -> 0 | X24: =IF(OR('GHG Calcs'!V18="Electric",'GHG Calcs'!V18="Hydrogen Fuel Cell"),0,IF('GHG Calcs'!$C18="Transit Bus",X6,IF('GHG Calcs'!$C18="Van",AF6,IF('GHG Calcs'!$C18="Cut-A-Way",AN6,IF('GHG Calcs'!$C18="Over-Road Coach",AV6,IF('GHG Calcs'!$C18="Heavy Rail",$AZ6,IF('GHG Calcs'!$C18="Ferry",BD6,0))))))) -> 0 | Y24: =(IF('GHG Calcs'!AN16="yes",0.8,1))*IF('GHG Calcs'!$W18>0,AVERAGE(Q24:R24)*'GHG Calcs'!$W18*('GHG Calcs'!$E18-'GHG Calcs'!$D18),AVERAGE(Q24:R24)*'GHG Calcs'!$AA18*('GHG Calcs'!$E18-'GHG Calcs'!$D18)) -> 0 | Z24: =(IF('GHG Calcs'!AN16="yes",0.8,1))*IF('GHG Calcs'!$W18>0,AVERAGE(S24:T24)*'GHG Calcs'!$W18*('GHG Calcs'!$E18-'GHG Calcs'!$D18),AVERAGE(S24:T24)*'GHG Calcs'!$AA18*('GHG Calcs'!$E18-'GHG Calcs'!$D18)) -> 0 | AA24: =(IF('GHG Calcs'!AN16="yes",0.8,1))*IF('GHG Calcs'!$W18>0,AVERAGE(U24:V24)*'GHG Calcs'!$W18*('GHG Calcs'!$E18-'GHG Calcs'!$D18),AVERAGE(U24:V24)*'GHG Calcs'!$AA18*('GHG Calcs'!$E18-'GHG Calcs'!$D18)) -> 0 | AB24: =(IF('GHG Calcs'!AN16="yes",0.8,1))*IF('GHG Calcs'!$W18>0,AVERAGE(W24:X24)*'GHG Calcs'!$W18*('GHG Calcs'!$E18-'GHG Calcs'!$D18),AVERAGE(W24:X24)*'GHG Calcs'!$AA18*('GHG Calcs'!$E18-'GHG Calcs'!$D18)) -> 0 | BM24: Quantifiable Component 3 | BN24: =IF(OR('GHG Calcs'!AW18="Electric",'GHG Calcs'!AW18="Hydrogen Fuel Cell"),0,IF('GHG Calcs'!$C18="Transit Bus",BN6,IF('GHG Calcs'!$C18="Van",BV6,IF('GHG Calcs'!$C18="Cut-A-Way",CD6,IF('GHG Calcs'!$C18="Over-Road Coach",CL6,IF('GHG Calcs'!$C18="Heavy Rail",$CT6,IF('GHG Calcs'!$C18="Ferry",$BO$18,0))))))) -> 0 | BO24: =IF(OR('GHG Calcs'!AW18="Electric",'GHG Calcs'!AW18="Hydrogen Fuel Cell"),0,IF('GHG Calcs'!$C18="Transit Bus",BO6,IF('GHG Calcs'!$C18="Van",BW6,IF('GHG Calcs'!$C18="Cut-A-Way",CE6,IF('GHG Calcs'!$C18="Over-Road Coach",CM6,IF('GHG Calcs'!$C18="Heavy Rail",$CT6,IF('GHG Calcs'!$C18="Ferry",$BO$18,0))))))) -> 0 | BP24: =IF(OR('GHG Calcs'!AW18="Electric",'GHG Calcs'!AW18="Hydrogen Fuel Cell"),0,IF('GHG Calcs'!$C18="Transit Bus",BP6,IF('GHG Calcs'!$C18="Van",BX6,IF('GHG Calcs'!$C18="Cut-A-Way",CF6,IF('GHG Calcs'!$C18="Over-Road Coach",CN6,IF('GHG Calcs'!$C18="Heavy Rail",$CU6,IF('GHG Calcs'!$C18="Ferry",$BP$18,0))))))) -> 0 | BQ24: =IF(OR('GHG Calcs'!AW18="Electric",'GHG Calcs'!AW18="Hydrogen Fuel Cell"),0,IF('GHG Calcs'!$C18="Transit Bus",BQ6,IF('GHG Calcs'!$C18="Van",BY6,IF('GHG Calcs'!$C18="Cut-A-Way",CG6,IF('GHG Calcs'!$C18="Over-Road Coach",CO6,IF('GHG Calcs'!$C18="Heavy Rail",$CU6,IF('GHG Calcs'!$C18="Ferry",$BP$18,0))))))) -> 0 | BR24: =IF(OR('GHG Calcs'!AW18="Electric",'GHG Calcs'!AW18="Hydrogen Fuel Cell"),0,IF('GHG Calcs'!$C18="Transit Bus",BR6,IF('GHG Calcs'!$C18="Van",BZ6,IF('GHG Calcs'!$C18="Cut-A-Way",CH6,IF('GHG Calcs'!$C18="Over-Road Coach",CP6,IF('GHG Calcs'!$C18="Heavy Rail",$CV6,IF('GHG Calcs'!$C18="Ferry",$BQ$18,0))))))) -> 0 | BS24: =IF(OR('GHG Calcs'!AW18="Electric",'GHG Calcs'!AW18="Hydrogen Fuel Cell"),0,IF('GHG Calcs'!$C18="Transit Bus",BS6,IF('GHG Calcs'!$C18="Van",CA6,IF('GHG Calcs'!$C18="Cut-A-Way",CI6,IF('GHG Calcs'!$C18="Over-Road Coach",CQ6,IF('GHG Calcs'!$C18="Heavy Rail",$CV6,IF('GHG Calcs'!$C18="Ferry",$BQ$18,0))))))) -> 0 | BT24: =IF(OR('GHG Calcs'!AW18="Electric",'GHG Calcs'!AW18="Hydrogen Fuel Cell"),0,IF('GHG Calcs'!$C18="Transit Bus",BT6,IF('GHG Calcs'!$C18="Van",CB6,IF('GHG Calcs'!$C18="Cut-A-Way",CJ6,IF('GHG Calcs'!$C18="Over-Road Coach",CR6,IF('GHG Calcs'!$C18="Heavy Rail",$CW6,IF('GHG Calcs'!$C18="Ferry",$BR$18,0))))))) -> 0 | BU24: =IF(OR('GHG Calcs'!AW18="Electric",'GHG Calcs'!AW18="Hydrogen Fuel Cell"),0,IF('GHG Calcs'!$C18="Transit Bus",BU6,IF('GHG Calcs'!$C18="Van",CC6,IF('GHG Calcs'!$C18="Cut-A-Way",CK6,IF('GHG Calcs'!$C18="Over-Road Coach",CS6,IF('GHG Calcs'!$C18="Heavy Rail",$CW6,IF('GHG Calcs'!$C18="Ferry",$BR$18,0))))))) -> 0 | BV24: =IF('GHG Calcs'!$AX18>0,AVERAGE(BN24:BO24)*'GHG Calcs'!$AX18*('GHG Calcs'!$E18-'GHG Calcs'!$D18),AVERAGE(BN24:BO24)*'GHG Calcs'!$AZ18*('GHG Calcs'!$E18-'GHG Calcs'!$D18)) -> 0 | BW24: =IF('GHG Calcs'!$AX18>0,AVERAGE(BP24:BQ24)*'GHG Calcs'!$AX18*('GHG Calcs'!$E18-'GHG Calcs'!$D18),AVERAGE(BP24:BQ24)*'GHG Calcs'!$AZ18*('GHG Calcs'!$E18-'GHG Calcs'!$D18)) -> 0 | BX24: =IF('GHG Calcs'!$AX18>0,AVERAGE(BR24:BS24)*'GHG Calcs'!$AX18*('GHG Calcs'!$E18-'GHG Calcs'!$D18),AVERAGE(BR24:BS24)*'GHG Calcs'!$AZ18*('GHG Calcs'!$E18-'GHG Calcs'!$D18)) -> 0 | BY24: =IF('GHG Calcs'!$AX18>0,AVERAGE(BT24:BU24)*'GHG Calcs'!$AX18*('GHG Calcs'!$E18-'GHG Calcs'!$D18),AVERAGE(BT24:BU24)*'GHG Calcs'!$AZ18*('GHG Calcs'!$E18-'GHG Calcs'!$D18)) -> 0
P25: Quantifiable Component 4 | Q25: =IF(OR('GHG Calcs'!V19="Electric",'GHG Calcs'!V19="Hydrogen Fuel Cell"),0,IF('GHG Calcs'!$C19="Transit Bus",Q7,IF('GHG Calcs'!$C19="Van",Y7,IF('GHG Calcs'!$C19="Cut-A-Way",AG7,IF('GHG Calcs'!$C19="Over-Road Coach",AO7,IF('GHG Calcs'!$C19="Heavy Rail",$AW7,IF('GHG Calcs'!$C19="Ferry",BA7,0))))))) -> 0 | R25: =IF(OR('GHG Calcs'!V19="Electric",'GHG Calcs'!V19="Hydrogen Fuel Cell"),0,IF('GHG Calcs'!$C19="Transit Bus",R7,IF('GHG Calcs'!$C19="Van",Z7,IF('GHG Calcs'!$C19="Cut-A-Way",AH7,IF('GHG Calcs'!$C19="Over-Road Coach",AP7,IF('GHG Calcs'!$C19="Heavy Rail",$AW7,IF('GHG Calcs'!$C19="Ferry",BA7,0))))))) -> 0 | S25: =IF(OR('GHG Calcs'!V19="Electric",'GHG Calcs'!V19="Hydrogen Fuel Cell"),0,IF('GHG Calcs'!$C19="Transit Bus",S7,IF('GHG Calcs'!$C19="Van",AA7,IF('GHG Calcs'!$C19="Cut-A-Way",AI7,IF('GHG Calcs'!$C19="Over-Road Coach",AQ7,IF('GHG Calcs'!$C19="Heavy Rail",$AX7,IF('GHG Calcs'!$C19="Ferry",BB7,0))))))) -> 0 | T25: =IF(OR('GHG Calcs'!V19="Electric",'GHG Calcs'!V19="Hydrogen Fuel Cell"),0,IF('GHG Calcs'!$C19="Transit Bus",T7,IF('GHG Calcs'!$C19="Van",AB7,IF('GHG Calcs'!$C19="Cut-A-Way",AJ7,IF('GHG Calcs'!$C19="Over-Road Coach",AR7,IF('GHG Calcs'!$C19="Heavy Rail",$AX7,IF('GHG Calcs'!$C19="Ferry",BB7,0))))))) -> 0 | U25: =IF(OR('GHG Calcs'!V19="Electric",'GHG Calcs'!V19="Hydrogen Fuel Cell"),0,IF('GHG Calcs'!$C19="Transit Bus",U7,IF('GHG Calcs'!$C19="Van",AC7,IF('GHG Calcs'!$C19="Cut-A-Way",AK7,IF('GHG Calcs'!$C19="Over-Road Coach",AS7,IF('GHG Calcs'!$C19="Heavy Rail",$AY7,IF('GHG Calcs'!$C19="Ferry",BC7,0))))))) -> 0 | V25: =IF(OR('GHG Calcs'!V19="Electric",'GHG Calcs'!V19="Hydrogen Fuel Cell"),0,IF('GHG Calcs'!$C19="Transit Bus",V7,IF('GHG Calcs'!$C19="Van",AD7,IF('GHG Calcs'!$C19="Cut-A-Way",AL7,IF('GHG Calcs'!$C19="Over-Road Coach",AT7,IF('GHG Calcs'!$C19="Heavy Rail",$AY7,IF('GHG Calcs'!$C19="Ferry",BC7,0))))))) -> 0 | W25: =IF(OR('GHG Calcs'!V19="Electric",'GHG Calcs'!V19="Hydrogen Fuel Cell"),0,IF('GHG Calcs'!$C19="Transit Bus",W7,IF('GHG Calcs'!$C19="Van",AE7,IF('GHG Calcs'!$C19="Cut-A-Way",AM7,IF('GHG Calcs'!$C19="Over-Road Coach",AU7,IF('GHG Calcs'!$C19="Heavy Rail",$AZ7,IF('GHG Calcs'!$C19="Ferry",BD7,0))))))) -> 0 | X25: =IF(OR('GHG Calcs'!V19="Electric",'GHG Calcs'!V19="Hydrogen Fuel Cell"),0,IF('GHG Calcs'!$C19="Transit Bus",X7,IF('GHG Calcs'!$C19="Van",AF7,IF('GHG Calcs'!$C19="Cut-A-Way",AN7,IF('GHG Calcs'!$C19="Over-Road Coach",AV7,IF('GHG Calcs'!$C19="Heavy Rail",$AZ7,IF('GHG Calcs'!$C19="Ferry",BD7,0))))))) -> 0 | Y25: =(IF('GHG Calcs'!AN16="yes",0.8,1))*IF('GHG Calcs'!$W19>0,AVERAGE(Q25:R25)*'GHG Calcs'!$W19*('GHG Calcs'!$E19-'GHG Calcs'!$D19),AVERAGE(Q25:R25)*'GHG Calcs'!$AA19*('GHG Calcs'!$E19-'GHG Calcs'!$D19)) -> 0 | Z25: =(IF('GHG Calcs'!AN16="yes",0.8,1))*IF('GHG Calcs'!$W19>0,AVERAGE(S25:T25)*'GHG Calcs'!$W19*('GHG Calcs'!$E19-'GHG Calcs'!$D19),AVERAGE(S25:T25)*'GHG Calcs'!$AA19*('GHG Calcs'!$E19-'GHG Calcs'!$D19)) -> 0 | AA25: =(IF('GHG Calcs'!AN16="yes",0.8,1))*IF('GHG Calcs'!$W19>0,AVERAGE(U25:V25)*'GHG Calcs'!$W19*('GHG Calcs'!$E19-'GHG Calcs'!$D19),AVERAGE(U25:V25)*'GHG Calcs'!$AA19*('GHG Calcs'!$E19-'GHG Calcs'!$D19)) -> 0 | AB25: =(IF('GHG Calcs'!AN16="yes",0.8,1))*IF('GHG Calcs'!$W19>0,AVERAGE(W25:X25)*'GHG Calcs'!$W19*('GHG Calcs'!$E19-'GHG Calcs'!$D19),AVERAGE(W25:X25)*'GHG Calcs'!$AA19*('GHG Calcs'!$E19-'GHG Calcs'!$D19)) -> 0 | BM25: Quantifiable Component 4 | BN25: =IF(OR('GHG Calcs'!AW19="Electric",'GHG Calcs'!AW19="Hydrogen Fuel Cell"),0,IF('GHG Calcs'!$C19="Transit Bus",BN7,IF('GHG Calcs'!$C19="Van",BV7,IF('GHG Calcs'!$C19="Cut-A-Way",CD7,IF('GHG Calcs'!$C19="Over-Road Coach",CL7,IF('GHG Calcs'!$C19="Heavy Rail",$CT7,IF('GHG Calcs'!$C19="Ferry",$BO$18,0))))))) ->  | BO25: =IF(OR('GHG Calcs'!AW19="Electric",'GHG Calcs'!AW19="Hydrogen Fuel Cell"),0,IF('GHG Calcs'!$C19="Transit Bus",BO7,IF('GHG Calcs'!$C19="Van",BW7,IF('GHG Calcs'!$C19="Cut-A-Way",CE7,IF('GHG Calcs'!$C19="Over-Road Coach",CM7,IF('GHG Calcs'!$C19="Heavy Rail",$CT7,IF('GHG Calcs'!$C19="Ferry",$BO$18,0))))))) ->  | BP25: =IF(OR('GHG Calcs'!AW19="Electric",'GHG Calcs'!AW19="Hydrogen Fuel Cell"),0,IF('GHG Calcs'!$C19="Transit Bus",BP7,IF('GHG Calcs'!$C19="Van",BX7,IF('GHG Calcs'!$C19="Cut-A-Way",CF7,IF('GHG Calcs'!$C19="Over-Road Coach",CN7,IF('GHG Calcs'!$C19="Heavy Rail",$CU7,IF('GHG Calcs'!$C19="Ferry",$BP$18,0))))))) ->  | BQ25: =IF(OR('GHG Calcs'!AW19="Electric",'GHG Calcs'!AW19="Hydrogen Fuel Cell"),0,IF('GHG Calcs'!$C19="Transit Bus",BQ7,IF('GHG Calcs'!$C19="Van",BY7,IF('GHG Calcs'!$C19="Cut-A-Way",CG7,IF('GHG Calcs'!$C19="Over-Road Coach",CO7,IF('GHG Calcs'!$C19="Heavy Rail",$CU7,IF('GHG Calcs'!$C19="Ferry",$BP$18,0))))))) ->  | BR25: =IF(OR('GHG Calcs'!AW19="Electric",'GHG Calcs'!AW19="Hydrogen Fuel Cell"),0,IF('GHG Calcs'!$C19="Transit Bus",BR7,IF('GHG Calcs'!$C19="Van",BZ7,IF('GHG Calcs'!$C19="Cut-A-Way",CH7,IF('GHG Calcs'!$C19="Over-Road Coach",CP7,IF('GHG Calcs'!$C19="Heavy Rail",$CV7,IF('GHG Calcs'!$C19="Ferry",$BQ$18,0))))))) ->  | BS25: =IF(OR('GHG Calcs'!AW19="Electric",'GHG Calcs'!AW19="Hydrogen Fuel Cell"),0,IF('GHG Calcs'!$C19="Transit Bus",BS7,IF('GHG Calcs'!$C19="Van",CA7,IF('GHG Calcs'!$C19="Cut-A-Way",CI7,IF('GHG Calcs'!$C19="Over-Road Coach",CQ7,IF('GHG Calcs'!$C19="Heavy Rail",$CV7,IF('GHG Calcs'!$C19="Ferry",$BQ$18,0))))))) ->  | BT25: =IF(OR('GHG Calcs'!AW19="Electric",'GHG Calcs'!AW19="Hydrogen Fuel Cell"),0,IF('GHG Calcs'!$C19="Transit Bus",BT7,IF('GHG Calcs'!$C19="Van",CB7,IF('GHG Calcs'!$C19="Cut-A-Way",CJ7,IF('GHG Calcs'!$C19="Over-Road Coach",CR7,IF('GHG Calcs'!$C19="Heavy Rail",$CW7,IF('GHG Calcs'!$C19="Ferry",$BR$18,0))))))) ->  | BU25: =IF(OR('GHG Calcs'!AW19="Electric",'GHG Calcs'!AW19="Hydrogen Fuel Cell"),0,IF('GHG Calcs'!$C19="Transit Bus",BU7,IF('GHG Calcs'!$C19="Van",CC7,IF('GHG Calcs'!$C19="Cut-A-Way",CK7,IF('GHG Calcs'!$C19="Over-Road Coach",CS7,IF('GHG Calcs'!$C19="Heavy Rail",$CW7,IF('GHG Calcs'!$C19="Ferry",$BR$18,0))))))) ->  | BV25: =IF('GHG Calcs'!$AX19>0,AVERAGE(BN25:BO25)*'GHG Calcs'!$AX19*('GHG Calcs'!$E19-'GHG Calcs'!$D19),AVERAGE(BN25:BO25)*'GHG Calcs'!$AZ19*('GHG Calcs'!$E19-'GHG Calcs'!$D19)) ->  | BW25: =IF('GHG Calcs'!$AX19>0,AVERAGE(BP25:BQ25)*'GHG Calcs'!$AX19*('GHG Calcs'!$E19-'GHG Calcs'!$D19),AVERAGE(BP25:BQ25)*'GHG Calcs'!$AZ19*('GHG Calcs'!$E19-'GHG Calcs'!$D19)) ->  | BX25: =IF('GHG Calcs'!$AX19>0,AVERAGE(BR25:BS25)*'GHG Calcs'!$AX19*('GHG Calcs'!$E19-'GHG Calcs'!$D19),AVERAGE(BR25:BS25)*'GHG Calcs'!$AZ19*('GHG Calcs'!$E19-'GHG Calcs'!$D19)) ->  | BY25: =IF('GHG Calcs'!$AX19>0,AVERAGE(BT25:BU25)*'GHG Calcs'!$AX19*('GHG Calcs'!$E19-'GHG Calcs'!$D19),AVERAGE(BT25:BU25)*'GHG Calcs'!$AZ19*('GHG Calcs'!$E19-'GHG Calcs'!$D19)) -> 
P26: Quantifiable Component 5 | Q26: =IF(OR('GHG Calcs'!V20="Electric",'GHG Calcs'!V20="Hydrogen Fuel Cell"),0,IF('GHG Calcs'!$C20="Transit Bus",Q8,IF('GHG Calcs'!$C20="Van",Y8,IF('GHG Calcs'!$C20="Cut-A-Way",AG8,IF('GHG Calcs'!$C20="Over-Road Coach",AO8,IF('GHG Calcs'!$C20="Heavy Rail",$AW8,IF('GHG Calcs'!$C20="Ferry",BA8,0))))))) -> 0 | R26: =IF(OR('GHG Calcs'!V20="Electric",'GHG Calcs'!V20="Hydrogen Fuel Cell"),0,IF('GHG Calcs'!$C20="Transit Bus",R8,IF('GHG Calcs'!$C20="Van",Z8,IF('GHG Calcs'!$C20="Cut-A-Way",AH8,IF('GHG Calcs'!$C20="Over-Road Coach",AP8,IF('GHG Calcs'!$C20="Heavy Rail",$AW8,IF('GHG Calcs'!$C20="Ferry",BA8,0))))))) -> 0 | S26: =IF(OR('GHG Calcs'!V20="Electric",'GHG Calcs'!V20="Hydrogen Fuel Cell"),0,IF('GHG Calcs'!$C20="Transit Bus",S8,IF('GHG Calcs'!$C20="Van",AA8,IF('GHG Calcs'!$C20="Cut-A-Way",AI8,IF('GHG Calcs'!$C20="Over-Road Coach",AQ8,IF('GHG Calcs'!$C20="Heavy Rail",$AX8,IF('GHG Calcs'!$C20="Ferry",BB8,0))))))) -> 0 | T26: =IF(OR('GHG Calcs'!V20="Electric",'GHG Calcs'!V20="Hydrogen Fuel Cell"),0,IF('GHG Calcs'!$C20="Transit Bus",T8,IF('GHG Calcs'!$C20="Van",AB8,IF('GHG Calcs'!$C20="Cut-A-Way",AJ8,IF('GHG Calcs'!$C20="Over-Road Coach",AR8,IF('GHG Calcs'!$C20="Heavy Rail",$AX8,IF('GHG Calcs'!$C20="Ferry",BB8,0))))))) -> 0 | U26: =IF(OR('GHG Calcs'!V20="Electric",'GHG Calcs'!V20="Hydrogen Fuel Cell"),0,IF('GHG Calcs'!$C20="Transit Bus",U8,IF('GHG Calcs'!$C20="Van",AC8,IF('GHG Calcs'!$C20="Cut-A-Way",AK8,IF('GHG Calcs'!$C20="Over-Road Coach",AS8,IF('GHG Calcs'!$C20="Heavy Rail",$AY8,IF('GHG Calcs'!$C20="Ferry",BC8,0))))))) -> 0 | V26: =IF(OR('GHG Calcs'!V20="Electric",'GHG Calcs'!V20="Hydrogen Fuel Cell"),0,IF('GHG Calcs'!$C20="Transit Bus",V8,IF('GHG Calcs'!$C20="Van",AD8,IF('GHG Calcs'!$C20="Cut-A-Way",AL8,IF('GHG Calcs'!$C20="Over-Road Coach",AT8,IF('GHG Calcs'!$C20="Heavy Rail",$AY8,IF('GHG Calcs'!$C20="Ferry",BC8,0))))))) -> 0 | W26: =IF(OR('GHG Calcs'!V20="Electric",'GHG Calcs'!V20="Hydrogen Fuel Cell"),0,IF('GHG Calcs'!$C20="Transit Bus",W8,IF('GHG Calcs'!$C20="Van",AE8,IF('GHG Calcs'!$C20="Cut-A-Way",AM8,IF('GHG Calcs'!$C20="Over-Road Coach",AU8,IF('GHG Calcs'!$C20="Heavy Rail",$AZ8,IF('GHG Calcs'!$C20="Ferry",BD8,0))))))) -> 0 | X26: =IF(OR('GHG Calcs'!V20="Electric",'GHG Calcs'!V20="Hydrogen Fuel Cell"),0,IF('GHG Calcs'!$C20="Transit Bus",X8,IF('GHG Calcs'!$C20="Van",AF8,IF('GHG Calcs'!$C20="Cut-A-Way",AN8,IF('GHG Calcs'!$C20="Over-Road Coach",AV8,IF('GHG Calcs'!$C20="Heavy Rail",$AZ8,IF('GHG Calcs'!$C20="Ferry",BD8,0))))))) -> 0 | Y26: =(IF('GHG Calcs'!AN16="yes",0.8,1))*IF('GHG Calcs'!$W20>0,AVERAGE(Q26:R26)*'GHG Calcs'!$W20*('GHG Calcs'!$E20-'GHG Calcs'!$D20),AVERAGE(Q26:R26)*'GHG Calcs'!$AA20*('GHG Calcs'!$E20-'GHG Calcs'!$D20)) -> 0 | Z26: =(IF('GHG Calcs'!AN16="yes",0.8,1))*IF('GHG Calcs'!$W20>0,AVERAGE(S26:T26)*'GHG Calcs'!$W20*('GHG Calcs'!$E20-'GHG Calcs'!$D20),AVERAGE(S26:T26)*'GHG Calcs'!$AA20*('GHG Calcs'!$E20-'GHG Calcs'!$D20)) -> 0 | AA26: =(IF('GHG Calcs'!AN16="yes",0.8,1))*IF('GHG Calcs'!$W20>0,AVERAGE(U26:V26)*'GHG Calcs'!$W20*('GHG Calcs'!$E20-'GHG Calcs'!$D20),AVERAGE(U26:V26)*'GHG Calcs'!$AA20*('GHG Calcs'!$E20-'GHG Calcs'!$D20)) -> 0 | AB26: =(IF('GHG Calcs'!AN16="yes",0.8,1))*IF('GHG Calcs'!$W20>0,AVERAGE(W26:X26)*'GHG Calcs'!$W20*('GHG Calcs'!$E20-'GHG Calcs'!$D20),AVERAGE(W26:X26)*'GHG Calcs'!$AA20*('GHG Calcs'!$E20-'GHG Calcs'!$D20)) -> 0 | BM26: Quantifiable Component 5 | BN26: =IF(OR('GHG Calcs'!AW20="Electric",'GHG Calcs'!AW20="Hydrogen Fuel Cell"),0,IF('GHG Calcs'!$C20="Transit Bus",BN8,IF('GHG Calcs'!$C20="Van",BV8,IF('GHG Calcs'!$C20="Cut-A-Way",CD8,IF('GHG Calcs'!$C20="Over-Road Coach",CL8,IF('GHG Calcs'!$C20="Heavy Rail",$CT8,IF('GHG Calcs'!$C20="Ferry",$BO$18,0))))))) ->  | BO26: =IF(OR('GHG Calcs'!AW20="Electric",'GHG Calcs'!AW20="Hydrogen Fuel Cell"),0,IF('GHG Calcs'!$C20="Transit Bus",BO8,IF('GHG Calcs'!$C20="Van",BW8,IF('GHG Calcs'!$C20="Cut-A-Way",CE8,IF('GHG Calcs'!$C20="Over-Road Coach",CM8,IF('GHG Calcs'!$C20="Heavy Rail",$CT8,IF('GHG Calcs'!$C20="Ferry",$BO$18,0))))))) ->  | BP26: =IF(OR('GHG Calcs'!AW20="Electric",'GHG Calcs'!AW20="Hydrogen Fuel Cell"),0,IF('GHG Calcs'!$C20="Transit Bus",BP8,IF('GHG Calcs'!$C20="Van",BX8,IF('GHG Calcs'!$C20="Cut-A-Way",CF8,IF('GHG Calcs'!$C20="Over-Road Coach",CN8,IF('GHG Calcs'!$C20="Heavy Rail",$CU8,IF('GHG Calcs'!$C20="Ferry",$BP$18,0))))))) ->  | BQ26: =IF(OR('GHG Calcs'!AW20="Electric",'GHG Calcs'!AW20="Hydrogen Fuel Cell"),0,IF('GHG Calcs'!$C20="Transit Bus",BQ8,IF('GHG Calcs'!$C20="Van",BY8,IF('GHG Calcs'!$C20="Cut-A-Way",CG8,IF('GHG Calcs'!$C20="Over-Road Coach",CO8,IF('GHG Calcs'!$C20="Heavy Rail",$CU8,IF('GHG Calcs'!$C20="Ferry",$BP$18,0))))))) ->  | BR26: =IF(OR('GHG Calcs'!AW20="Electric",'GHG Calcs'!AW20="Hydrogen Fuel Cell"),0,IF('GHG Calcs'!$C20="Transit Bus",BR8,IF('GHG Calcs'!$C20="Van",BZ8,IF('GHG Calcs'!$C20="Cut-A-Way",CH8,IF('GHG Calcs'!$C20="Over-Road Coach",CP8,IF('GHG Calcs'!$C20="Heavy Rail",$CV8,IF('GHG Calcs'!$C20="Ferry",$BQ$18,0))))))) ->  | BS26: =IF(OR('GHG Calcs'!AW20="Electric",'GHG Calcs'!AW20="Hydrogen Fuel Cell"),0,IF('GHG Calcs'!$C20="Transit Bus",BS8,IF('GHG Calcs'!$C20="Van",CA8,IF('GHG Calcs'!$C20="Cut-A-Way",CI8,IF('GHG Calcs'!$C20="Over-Road Coach",CQ8,IF('GHG Calcs'!$C20="Heavy Rail",$CV8,IF('GHG Calcs'!$C20="Ferry",$BQ$18,0))))))) ->  | BT26: =IF(OR('GHG Calcs'!AW20="Electric",'GHG Calcs'!AW20="Hydrogen Fuel Cell"),0,IF('GHG Calcs'!$C20="Transit Bus",BT8,IF('GHG Calcs'!$C20="Van",CB8,IF('GHG Calcs'!$C20="Cut-A-Way",CJ8,IF('GHG Calcs'!$C20="Over-Road Coach",CR8,IF('GHG Calcs'!$C20="Heavy Rail",$CW8,IF('GHG Calcs'!$C20="Ferry",$BR$18,0))))))) ->  | BU26: =IF(OR('GHG Calcs'!AW21="Electric",'GHG Calcs'!AW21="Hydrogen Fuel Cell"),0,IF('GHG Calcs'!$C20="Transit Bus",BU8,IF('GHG Calcs'!$C20="Van",CC8,IF('GHG Calcs'!$C20="Cut-A-Way",CK8,IF('GHG Calcs'!$C20="Over-Road Coach",CS8,IF('GHG Calcs'!$C20="Heavy Rail",$CW8,IF('GHG Calcs'!$C20="Ferry",$BR$18,0))))))) ->  | BV26: =IF('GHG Calcs'!$AX20>0,AVERAGE(BN26:BO26)*'GHG Calcs'!$AX20*('GHG Calcs'!$E20-'GHG Calcs'!$D20),AVERAGE(BN26:BO26)*'GHG Calcs'!$AZ20*('GHG Calcs'!$E20-'GHG Calcs'!$D20)) ->  | BW26: =IF('GHG Calcs'!$AX20>0,AVERAGE(BP26:BQ26)*'GHG Calcs'!$AX20*('GHG Calcs'!$E20-'GHG Calcs'!$D20),AVERAGE(BP26:BQ26)*'GHG Calcs'!$AZ20*('GHG Calcs'!$E20-'GHG Calcs'!$D20)) ->  | BX26: =IF('GHG Calcs'!$AX20>0,AVERAGE(BR26:BS26)*'GHG Calcs'!$AX20*('GHG Calcs'!$E20-'GHG Calcs'!$D20),AVERAGE(BR26:BS26)*'GHG Calcs'!$AZ20*('GHG Calcs'!$E20-'GHG Calcs'!$D20)) ->  | BY26: =IF('GHG Calcs'!$AX20>0,AVERAGE(BT26:BU26)*'GHG Calcs'!$AX20*('GHG Calcs'!$E20-'GHG Calcs'!$D20),AVERAGE(BT26:BU26)*'GHG Calcs'!$AZ20*('GHG Calcs'!$E20-'GHG Calcs'!$D20)) -> 
P27: Quantifiable Component 6 | Q27: =IF(OR('GHG Calcs'!V21="Electric",'GHG Calcs'!V21="Hydrogen Fuel Cell"),0,IF('GHG Calcs'!$C21="Transit Bus",Q9,IF('GHG Calcs'!$C21="Van",Y9,IF('GHG Calcs'!$C21="Cut-A-Way",AG9,IF('GHG Calcs'!$C21="Over-Road Coach",AO9,IF('GHG Calcs'!$C21="Heavy Rail",$AW9,IF('GHG Calcs'!$C21="Ferry",BA9,0))))))) -> 0 | R27: =IF(OR('GHG Calcs'!V21="Electric",'GHG Calcs'!V21="Hydrogen Fuel Cell"),0,IF('GHG Calcs'!$C21="Transit Bus",R9,IF('GHG Calcs'!$C21="Van",Z9,IF('GHG Calcs'!$C21="Cut-A-Way",AH9,IF('GHG Calcs'!$C21="Over-Road Coach",AP9,IF('GHG Calcs'!$C21="Heavy Rail",$AW9,IF('GHG Calcs'!$C21="Ferry",BA9,0))))))) -> 0 | S27: =IF(OR('GHG Calcs'!V21="Electric",'GHG Calcs'!V21="Hydrogen Fuel Cell"),0,IF('GHG Calcs'!$C21="Transit Bus",S9,IF('GHG Calcs'!$C21="Van",AA9,IF('GHG Calcs'!$C21="Cut-A-Way",AI9,IF('GHG Calcs'!$C21="Over-Road Coach",AQ9,IF('GHG Calcs'!$C21="Heavy Rail",$AX9,IF('GHG Calcs'!$C21="Ferry",BB9,0))))))) -> 0 | T27: =IF(OR('GHG Calcs'!V21="Electric",'GHG Calcs'!V21="Hydrogen Fuel Cell"),0,IF('GHG Calcs'!$C21="Transit Bus",T9,IF('GHG Calcs'!$C21="Van",AB9,IF('GHG Calcs'!$C21="Cut-A-Way",AJ9,IF('GHG Calcs'!$C21="Over-Road Coach",AR9,IF('GHG Calcs'!$C21="Heavy Rail",$AX9,IF('GHG Calcs'!$C21="Ferry",BB9,0))))))) -> 0 | U27: =IF(OR('GHG Calcs'!V21="Electric",'GHG Calcs'!V21="Hydrogen Fuel Cell"),0,IF('GHG Calcs'!$C21="Transit Bus",U9,IF('GHG Calcs'!$C21="Van",AC9,IF('GHG Calcs'!$C21="Cut-A-Way",AK9,IF('GHG Calcs'!$C21="Over-Road Coach",AS9,IF('GHG Calcs'!$C21="Heavy Rail",$AY9,IF('GHG Calcs'!$C21="Ferry",BC9,0))))))) -> 0 | V27: =IF(OR('GHG Calcs'!V21="Electric",'GHG Calcs'!V21="Hydrogen Fuel Cell"),0,IF('GHG Calcs'!$C21="Transit Bus",V9,IF('GHG Calcs'!$C21="Van",AD9,IF('GHG Calcs'!$C21="Cut-A-Way",AL9,IF('GHG Calcs'!$C21="Over-Road Coach",AT9,IF('GHG Calcs'!$C21="Heavy Rail",$AY9,IF('GHG Calcs'!$C21="Ferry",BC9,0))))))) -> 0 | W27: =IF(OR('GHG Calcs'!V21="Electric",'GHG Calcs'!V21="Hydrogen Fuel Cell"),0,IF('GHG Calcs'!$C21="Transit Bus",W9,IF('GHG Calcs'!$C21="Van",AE9,IF('GHG Calcs'!$C21="Cut-A-Way",AM9,IF('GHG Calcs'!$C21="Over-Road Coach",AU9,IF('GHG Calcs'!$C21="Heavy Rail",$AZ9,IF('GHG Calcs'!$C21="Ferry",BD9,0))))))) -> 0 | X27: =IF(OR('GHG Calcs'!V21="Electric",'GHG Calcs'!V21="Hydrogen Fuel Cell"),0,IF('GHG Calcs'!$C21="Transit Bus",X9,IF('GHG Calcs'!$C21="Van",AF9,IF('GHG Calcs'!$C21="Cut-A-Way",AN9,IF('GHG Calcs'!$C21="Over-Road Coach",AV9,IF('GHG Calcs'!$C21="Heavy Rail",$AZ9,IF('GHG Calcs'!$C21="Ferry",BD9,0))))))) -> 0 | Y27: =(IF('GHG Calcs'!AN16="yes",0.8,1))*IF('GHG Calcs'!$W21>0,AVERAGE(Q27:R27)*'GHG Calcs'!$W21*('GHG Calcs'!$E21-'GHG Calcs'!$D21),AVERAGE(Q27:R27)*'GHG Calcs'!$AA21*('GHG Calcs'!$E21-'GHG Calcs'!$D21)) -> 0 | Z27: =(IF('GHG Calcs'!AN16="yes",0.8,1))*IF('GHG Calcs'!$W21>0,AVERAGE(S27:T27)*'GHG Calcs'!$W21*('GHG Calcs'!$E21-'GHG Calcs'!$D21),AVERAGE(S27:T27)*'GHG Calcs'!$AA21*('GHG Calcs'!$E21-'GHG Calcs'!$D21)) -> 0 | AA27: =(IF('GHG Calcs'!AN16="yes",0.8,1))*IF('GHG Calcs'!$W21>0,AVERAGE(U27:V27)*'GHG Calcs'!$W21*('GHG Calcs'!$E21-'GHG Calcs'!$D21),AVERAGE(U27:V27)*'GHG Calcs'!$AA21*('GHG Calcs'!$E21-'GHG Calcs'!$D21)) -> 0 | AB27: =(IF('GHG Calcs'!AN16="yes",0.8,1))*IF('GHG Calcs'!$W21>0,AVERAGE(W27:X27)*'GHG Calcs'!$W21*('GHG Calcs'!$E21-'GHG Calcs'!$D21),AVERAGE(W27:X27)*'GHG Calcs'!$AA21*('GHG Calcs'!$E21-'GHG Calcs'!$D21)) -> 0 | BM27: Quantifiable Component 6 | BN27: =IF(OR('GHG Calcs'!AW21="Electric",'GHG Calcs'!AW21="Hydrogen Fuel Cell"),0,IF('GHG Calcs'!$C21="Transit Bus",BN9,IF('GHG Calcs'!$C21="Van",BV9,IF('GHG Calcs'!$C21="Cut-A-Way",CD9,IF('GHG Calcs'!$C21="Over-Road Coach",CL9,IF('GHG Calcs'!$C21="Heavy Rail",$CT9,IF('GHG Calcs'!$C21="Ferry",$BO$18,0))))))) -> 0.2717961654 | BO27: =IF(OR('GHG Calcs'!AW21="Electric",'GHG Calcs'!AW21="Hydrogen Fuel Cell"),0,IF('GHG Calcs'!$C21="Transit Bus",BO9,IF('GHG Calcs'!$C21="Van",BW9,IF('GHG Calcs'!$C21="Cut-A-Way",CE9,IF('GHG Calcs'!$C21="Over-Road Coach",CM9,IF('GHG Calcs'!$C21="Heavy Rail",$CT9,IF('GHG Calcs'!$C21="Ferry",$BO$18,0))))))) -> 0 | BP27: =IF(OR('GHG Calcs'!AW21="Electric",'GHG Calcs'!AW21="Hydrogen Fuel Cell"),0,IF('GHG Calcs'!$C21="Transit Bus",BP9,IF('GHG Calcs'!$C21="Van",BX9,IF('GHG Calcs'!$C21="Cut-A-Way",CF9,IF('GHG Calcs'!$C21="Over-Road Coach",CN9,IF('GHG Calcs'!$C21="Heavy Rail",$CU9,IF('GHG Calcs'!$C21="Ferry",$BP$18,0))))))) -> 8.752491746 | BQ27: =IF(OR('GHG Calcs'!AW21="Electric",'GHG Calcs'!AW21="Hydrogen Fuel Cell"),0,IF('GHG Calcs'!$C21="Transit Bus",BQ9,IF('GHG Calcs'!$C21="Van",BY9,IF('GHG Calcs'!$C21="Cut-A-Way",CG9,IF('GHG Calcs'!$C21="Over-Road Coach",CO9,IF('GHG Calcs'!$C21="Heavy Rail",$CU9,IF('GHG Calcs'!$C21="Ferry",$BP$18,0))))))) -> 0 | BR27: =IF(OR('GHG Calcs'!AW21="Electric",'GHG Calcs'!AW21="Hydrogen Fuel Cell"),0,IF('GHG Calcs'!$C21="Transit Bus",BR9,IF('GHG Calcs'!$C21="Van",BZ9,IF('GHG Calcs'!$C21="Cut-A-Way",CH9,IF('GHG Calcs'!$C21="Over-Road Coach",CP9,IF('GHG Calcs'!$C21="Heavy Rail",$CV9,IF('GHG Calcs'!$C21="Ferry",$BQ$18,0))))))) -> 0.0360063074 | BS27: =IF(OR('GHG Calcs'!AW21="Electric",'GHG Calcs'!AW21="Hydrogen Fuel Cell"),0,IF('GHG Calcs'!$C21="Transit Bus",BS9,IF('GHG Calcs'!$C21="Van",CA9,IF('GHG Calcs'!$C21="Cut-A-Way",CI9,IF('GHG Calcs'!$C21="Over-Road Coach",CQ9,IF('GHG Calcs'!$C21="Heavy Rail",$CV9,IF('GHG Calcs'!$C21="Ferry",$BQ$18,0))))))) -> 0 | BT27: =IF(OR('GHG Calcs'!AW21="Electric",'GHG Calcs'!AW21="Hydrogen Fuel Cell"),0,IF('GHG Calcs'!$C21="Transit Bus",BT9,IF('GHG Calcs'!$C21="Van",CB9,IF('GHG Calcs'!$C21="Cut-A-Way",CJ9,IF('GHG Calcs'!$C21="Over-Road Coach",CR9,IF('GHG Calcs'!$C21="Heavy Rail",$CW9,IF('GHG Calcs'!$C21="Ferry",$BR$18,0))))))) -> 0.03763435284 | BU27: =IF(OR('GHG Calcs'!AW21="Electric",'GHG Calcs'!AW21="Hydrogen Fuel Cell"),0,IF('GHG Calcs'!$C21="Transit Bus",BU9,IF('GHG Calcs'!$C21="Van",CC9,IF('GHG Calcs'!$C21="Cut-A-Way",CK9,IF('GHG Calcs'!$C21="Over-Road Coach",CS9,IF('GHG Calcs'!$C21="Heavy Rail",$CW9,IF('GHG Calcs'!$C21="Ferry",$BR$18,0))))))) -> 0 | BV27: =IF('GHG Calcs'!$AX21>0,AVERAGE(BN27:BO27)*'GHG Calcs'!$AX21*('GHG Calcs'!$E21-'GHG Calcs'!$D21),AVERAGE(BN27:BO27)*'GHG Calcs'!$AZ21*('GHG Calcs'!$E21-'GHG Calcs'!$D21)) -> 333330.8173 | BW27: =IF('GHG Calcs'!$AX21>0,AVERAGE(BP27:BQ27)*'GHG Calcs'!$AX21*('GHG Calcs'!$E21-'GHG Calcs'!$D21),AVERAGE(BP27:BQ27)*'GHG Calcs'!$AZ21*('GHG Calcs'!$E21-'GHG Calcs'!$D21)) -> 10734055.88 | BX27: =IF('GHG Calcs'!$AX21>0,AVERAGE(BR27:BS27)*'GHG Calcs'!$AX21*('GHG Calcs'!$E21-'GHG Calcs'!$D21),AVERAGE(BR27:BS27)*'GHG Calcs'!$AZ21*('GHG Calcs'!$E21-'GHG Calcs'!$D21)) -> 44158.13539 | BY27: =IF('GHG Calcs'!$AX21>0,AVERAGE(BT27:BU27)*'GHG Calcs'!$AX21*('GHG Calcs'!$E21-'GHG Calcs'!$D21),AVERAGE(BT27:BU27)*'GHG Calcs'!$AZ21*('GHG Calcs'!$E21-'GHG Calcs'!$D21)) -> 46154.77032

Sheet Defaults (hidden)
A1: EMY | B1: CY | C1: Region | D1: County | E1: Air Basin | F1: Service Type | G1: Vehicle Type | H1: Baseline Fuel Type (unit) | I1: New Fuel Type (unit) | J1: Additional GHG Reductions
A2: 2030 | B2: 2016 | C2: Air Basin | D2: Alameda | E2: Great Basin Valley | F2: Ferry | G2: Cut-A-Way | H2: CNG | I2: Biodiesel | J2: Not Applicable
A3: 2029 | B3: 2017 | C3: County | D3: Alpine | E3: Lake County (Air Basin) | F3: Heavy Rail | G3: Ferry | H3: Diesel | I3: CNG | J3: Fuel Reductions
A4: 2028 | B4: 2018 | D4: Amador | E4: Lake Tahoe | F4: Intercity/Express Bus (Long Distance) | G4: Heavy Rail | H4: Gasoline | I4: Diesel | J4: Vehicle Replacement
A5: 2027 | B5: 2019 | D5: Butte | E5: Mojave Desert | F5: Light Rail | G5: Light Rail | H5: LNG | I5: Electric
A6: 2026 | B6: 2020 | D6: Calaveras | E6: Mountain Counties | F6: Local/ Intercity Bus (Short Distances) | G6: Over-Road Coach | I6: Gasoline
A7: 2025 | B7: 2021 | D7: Colusa | E7: North Central Coast | F7: Multi-modal | G7: Streetcar | I7: Hydrogen Fuel Cell
A8: 2024 | B8: 2022 | D8: Contra Costa | E8: North Coast | F8: Shuttle | G8: Transit Bus | I8: LNG
A9: 2023 | B9: 2023 | D9: Del Norte | E9: Northeast Plateau | F9: Streetcar | G9: Van | I9: Renewable Diesel
A10: 2022 | B10: 2024 | D10: El Dorado | E10: Sacramento Valley | F10: Vanpool | I10: Renewable Natural Gas
A11: 2021 | B11: 2025 | D11: Fresno | E11: Salton Sea | L11: Train Fuel Type | M11: gCO2e/mile | N11: TEFnew
A12: 2020 | B12: 2026 | D12: Glenn | E12: San Diego (Air Basin) | L12: CNG | M12: 21596.27817 | N12: 11872.2068
A13: 2019 | B13: 2027 | D13: Humboldt | E13: San Francisco Bay Area | G13: Yes | L13: Diesel | M13: 25136.04569 | N13: 13818.1372
A14: 2018 | B14: 2028 | D14: Imperial | E14: San Joaquin Valley | G14: No | L14: Electric/BEV or PHEV
A15: 2017 | B15: 2029 | D15: Inyo | E15: South Central Coast | I15: Biodiesel (gal) | L15: Electric (Heavy Rail) | M15: 5591.979972 | N15: 3074.10113
A16: 2016 | B16: 2030 | D16: Kern | E16: South Coast | I16: CNG (ft3) | L16: Electric (Light Rail) | M16: 7794.881173 | N16: 4285.110667
A17: 2015 | B17: 2031 | D17: Kings | I17: Diesel (gal) | L17: Electric (Trolley Bus, Cable Car, Street Car) | M17: 8297.776732 | N17: 4561.569419
A18: 2014 | B18: 2032 | D18: Lake | I18: Electric (KWh) | L18: Gasoline
A19: 2013 | B19: 2033 | D19: Lassen | I19: Gasoline (gal) | L19: Hydrogen Fuel Cell | M19: 13601.56126 | N19: 7477.239737
A20: 2012 | B20: 2034 | D20: Los Angeles | I20: Hydrogen Fuel Cell (kg) | L20: Hydrogen Fuel Cell (SB 1505) | M20: 11228.85162 | N20: 6172.880737
A21: 2011 | B21: 2035 | D21: Madera | I21: LNG (gal) | L21: LNG | M21: 23528.69118 | N21: 12934.51989
A22: 2010 | B22: 2036 | D22: Marin | I22: Renewable Diesel (gal) | L22: Renewable Diesel | M22: 8508.487867 | N22: 4677.40448
A23: 2009 | B23: 2037 | D23: Mariposa | I23: Renewable Natural Gas (ft3)
A24: 2008 | B24: 2038 | D24: Mendocino | L24: Shuttle/Van Fuel Type | M24: gCO2e/unit
A25: 2007 | B25: 2039 | D25: Merced | L25: CNG | M25: 11872.20689
A26: 2006 | B26: 2040 | D26: Modoc | L26: Diesel | M26: 13818.1372
A27: 2005 | B27: 2041 | D27: Mono | L27: Electric/BEV or PHEV | M27: 5237.357481
A28: 2004 | B28: 2042 | D28: Monterey | L28: Gasoline | M28: 14808.13522
A29: 2003 | B29: 2043 | D29: Napa | L29: Hydrogen Fuel Cell | M29: 7477.239737
A30: 2002 | B30: 2044 | D30: Nevada | L30: Hydrogen Fuel Cell (SB 1505) | M30: 6172.880737
A31: 2001 | B31: 2045 | D31: Orange | L31: LNG | M31: 12934.51989
A32: 2000 | B32: 2046 | D32: Placer
A33: 1999 | B33: 2047 | D33: Plumas | L33: Ferry Fuel Type | M33: gCO2e/unit
A34: 1998 | B34: 2048 | D34: Riverside | L34: CNG | M34: 77.8708
A35: 1997 | B35: 2049 | D35: Sacramento | L35: Diesel | M35: 13818.1372
A36: 1996 | B36: 2050 | D36: San Benito | L36: Electric/BEV or PHEV | M36: 378.576
A37: 1995 | B37: 2051 | D37: San Bernardino | L37: Hydrogen Fuel Cell | M37: 12678
A38: 1994 | B38: 2052 | D38: San Diego | L38: Hydrogen Fuel Cell (SB 1505) | M38: 10466.4
A39: 1993 | B39: 2053 | D39: San Francisco | L39: LNG | M39: 6824.3131
A40: 1992 | B40: 2054 | D40: San Joaquin
A41: 1991 | B41: 2055 | D41: San Luis Obispo
A42: 1990 | B42: 2056 | D42: San Mateo | L42: Eligilbe Project Type
A43: 1989 | B43: 2057 | D43: Santa Barbara | L43: New/Expanded Service
A44: 1988 | B44: 2058 | D44: Santa Clara | L44: System and Efficiency Improvements
A45: 1987 | B45: 2059 | D45: Santa Cruz | L45: Cleaner Vehicles/Technology/Fuels
A46: 1986 | B46: 2060 | D46: Shasta | L46: Fuel Reductions
A47: 1985 | B47: 2061 | D47: Sierra | M47: Defaults
A48: 1984 | B48: 2062 | D48: Siskiyou | L48: Project Type | M48: A | N48: L | O48: AA | P48: LL
A49: 1983 | B49: 2063 | D49: Solano | L49: Train
A50: 1982 | B50: 2064 | D50: Sonoma | L50: Bus
A51: 1981 | B51: 2065 | D51: Stanislaus | L51: Ferry
A52: 1980 | B52: 2066 | D52: Sutter | L52: Shuttle
A53: 1979 | B53: 2067 | D53: Tehama | L53: Vanpool
A54: 1978 | B54: 2068 | D54: Trinity
A55: 1977 | B55: 2069 | D55: Tulare
A56: 1976 | B56: 2070 | D56: Tuolumne
A57: 1975 | B57: 2071 | D57: Ventura
A58: 1974 | B58: 2072 | D58: Yolo
A59: 1973 | B59: 2073 | D59: Yuba
A60: 1972 | B60: 2074 | L60: Fuel Type | M60: gCO2e/unit
A61: 1971 | B61: 2075 | L61: CNG | M61: 77.8708
B62: 2076 | L62: Diesel | M62: 13818.1372
B63: 2077 | L63: Gasoline | M63: 11460.0893
B64: 2078 | L64: Electric/BEV or PHEV | M64: 378.576
B65: 2079 | L65: Electric (Heavy Rail) | M65: 378.576
B66: 2080 | L66: Electric (Light Rail) | M66: 378.576
L67: Electric (Trolley Bus, Cable Car, Street Car) | M67: 378.576
L68: Hydrogen Fuel Cell | M68: 12678
L69: Hydrogen Fuel Cell (SB 1505) | M69: 10466.4
L70: LNG | M70: 6824.3131
L71: Renewable Diesel | M71: 4509.75

Sheet Auto GHG (hidden)
A1: Region | B1: CalYr | C1: Ryr | D1: gCO2e/mile | F1: Counties | G1: Air Basins
A2: Alameda | B2: 2017 | C2: =CONCATENATE(A2,"_",B2) -> Alameda_2017 | D2: 506.4416281 | F2: Alameda | G2: Great Basin Valley
A3: Alameda | B3: 2018 | C3: =CONCATENATE(A3,"_",B3) -> Alameda_2018 | D3: 493.0630843 | F3: Alpine | G3: Lake County (Air Basin)
A4: Alameda | B4: 2019 | C4: Alameda_2019 | D4: 479.5035865 | F4: Amador | G4: Lake Tahoe
A5: Alameda | B5: 2020 | C5: Alameda_2020 | D5: 466.0817502 | F5: Butte | G5: Mojave Desert
A6: Alameda | B6: 2021 | C6: Alameda_2021 | D6: 451.8341222 | F6: Calaveras | G6: Mountain Counties
A7: Alameda | B7: 2022 | C7: Alameda_2022 | D7: 437.5949965 | F7: Colusa | G7: North Central Coast
A8: Alameda | B8: 2023 | C8: Alameda_2023 | D8: 423.369365 | F8: Contra Costa | G8: North Coast
A9: Alameda | B9: 2024 | C9: Alameda_2024 | D9: 409.248836 | F9: Del Norte | G9: Northeast Plateau
A10: Alameda | B10: 2025 | C10: Alameda_2025 | D10: 395.2687146 | F10: El Dorado | G10: Sacramento Valley
A11: Alameda | B11: 2026 | C11: Alameda_2026 | D11: 382.9326476 | F11: Fresno | G11: Salton Sea
A12: Alameda | B12: 2027 | C12: Alameda_2027 | D12: 371.8214756 | F12: Glenn | G12: San Diego (Air Basin)
A13: Alameda | B13: 2028 | C13: Alameda_2028 | D13: 361.9352139 | F13: Humboldt | G13: San Francisco Bay Area
A14: Alameda | B14: 2029 | C14: Alameda_2029 | D14: 353.1556125 | F14: Imperial | G14: San Joaquin Valley
A15: Alameda | B15: 2030 | C15: Alameda_2030 | D15: 345.3995028 | F15: Inyo | G15: South Central Coast
A16: Alameda | B16: 2031 | C16: Alameda_2031 | D16: 338.5802311 | F16: Kern | G16: South Coast
A17: Alameda | B17: 2032 | C17: Alameda_2032 | D17: 332.6206111 | F17: Kings
A18: Alameda | B18: 2033 | C18: Alameda_2033 | D18: 327.4512448 | F18: Lake
A19: Alameda | B19: 2034 | C19: Alameda_2034 | D19: 322.9824508 | F19: Lassen
A20: Alameda | B20: 2035 | C20: Alameda_2035 | D20: 319.1525408 | F20: Los Angeles
A21: Alameda | B21: 2036 | C21: Alameda_2036 | D21: 315.9090425 | F21: Madera
A22: Alameda | B22: 2037 | C22: Alameda_2037 | D22: 313.1880514 | F22: Marin
A23: Alameda | B23: 2038 | C23: Alameda_2038 | D23: 310.9316149 | F23: Mariposa
A24: Alameda | B24: 2039 | C24: Alameda_2039 | D24: 309.0596397 | F24: Mendocino
A25: Alameda | B25: 2040 | C25: Alameda_2040 | D25: 307.5203555 | F25: Merced
A26: Alameda | B26: 2041 | C26: Alameda_2041 | D26: 306.2786748 | F26: Modoc
A27: Alameda | B27: 2042 | C27: Alameda_2042 | D27: 305.2463136 | F27: Mono
A28: Alameda | B28: 2043 | C28: Alameda_2043 | D28: 304.4040067 | F28: Monterey
A29: Alameda | B29: 2044 | C29: Alameda_2044 | D29: 303.6950889 | F29: Napa
A30: Alameda | B30: 2045 | C30: Alameda_2045 | D30: 303.0815616 | F30: Nevada
A31: Alameda | B31: 2046 | C31: Alameda_2046 | D31: 302.5567134 | F31: Orange
A32: Alameda | B32: 2047 | C32: Alameda_2047 | D32: 302.1024385 | F32: Placer
A33: Alameda | B33: 2048 | C33: Alameda_2048 | D33: 301.7348095 | F33: Plumas
A34: Alameda | B34: 2049 | C34: Alameda_2049 | D34: 301.4301346 | F34: Riverside
A35: Alameda | B35: 2050 | C35: Alameda_2050 | D35: 301.1753512 | F35: Sacramento
A36: Alpine | B36: 2017 | C36: Alpine_2017 | D36: 486.292936 | F36: San Benito
A37: Alpine | B37: 2018 | C37: Alpine_2018 | D37: 472.1883314 | F37: San Bernardino
A38: Alpine | B38: 2019 | C38: Alpine_2019 | D38: 458.2846748 | F38: San Diego
A39: Alpine | B39: 2020 | C39: Alpine_2020 | D39: 444.8060725 | F39: San Francisco
A40: Alpine | B40: 2021 | C40: Alpine_2021 | D40: 430.7577373 | F40: San Joaquin
A41: Alpine | B41: 2022 | C41: Alpine_2022 | D41: 416.9256541 | F41: San Luis Obispo
A42: Alpine | B42: 2023 | C42: Alpine_2023 | D42: 403.2527791 | F42: San Mateo
A43: Alpine | B43: 2024 | C43: Alpine_2024 | D43: 389.8195048 | F43: Santa Barbara
A44: Alpine | B44: 2025 | C44: Alpine_2025 | D44: 376.637034 | F44: Santa Clara
A45: Alpine | B45: 2026 | C45: Alpine_2026 | D45: 364.9830554 | F45: Santa Cruz
A46: Alpine | B46: 2027 | C46: Alpine_2027 | D46: 354.5152912 | F46: Shasta
A47: Alpine | B47: 2028 | C47: Alpine_2028 | D47: 345.1919405 | F47: Sierra
A48: Alpine | B48: 2029 | C48: Alpine_2029 | D48: 336.9050382 | F48: Siskiyou
A49: Alpine | B49: 2030 | C49: Alpine_2030 | D49: 329.5773882 | F49: Solano
A50: Alpine | B50: 2031 | C50: Alpine_2031 | D50: 323.1029206 | F50: Sonoma
A51: Alpine | B51: 2032 | C51: Alpine_2032 | D51: 317.432055 | F51: Stanislaus
A52: Alpine | B52: 2033 | C52: Alpine_2033 | D52: 312.5027591 | F52: Sutter
A53: Alpine | B53: 2034 | C53: Alpine_2034 | D53: 308.2197792 | F53: Tehama
A54: Alpine | B54: 2035 | C54: Alpine_2035 | D54: 304.5685739 | F54: Trinity
A55: Alpine | B55: 2036 | C55: Alpine_2036 | D55: 301.452987 | F55: Tulare
A56: Alpine | B56: 2037 | C56: Alpine_2037 | D56: 298.8454351 | F56: Tuolumne
A57: Alpine | B57: 2038 | C57: Alpine_2038 | D57: 296.6821325 | F57: Ventura
A58: Alpine | B58: 2039 | C58: Alpine_2039 | D58: 294.8802466 | F58: Yolo
A59: Alpine | B59: 2040 | C59: Alpine_2040 | D59: 293.4194198 | F59: Yuba
A60: Alpine | B60: 2041 | C60: Alpine_2041 | D60: 292.2468894
A61: Alpine | B61: 2042 | C61: Alpine_2042 | D61: 291.2784075
A62: Alpine | B62: 2043 | C62: Alpine_2043 | D62: 290.5060778
A63: Alpine | B63: 2044 | C63: Alpine_2044 | D63: 289.856252
A64: Alpine | B64: 2045 | C64: Alpine_2045 | D64: 289.299125
A65: Alpine | B65: 2046 | C65: Alpine_2046 | D65: 288.8381838
A66: Alpine | B66: 2047 | C66: Alpine_2047 | D66: 288.4357152
A67: Alpine | B67: 2048 | C67: =CONCATENATE(A67,"_",B67) -> Alpine_2048 | D67: 288.1395534
A68: Alpine | B68: 2049 | C68: Alpine_2049 | D68: 287.8849904
A69: Alpine | B69: 2050 | C69: Alpine_2050 | D69: 287.6714138
A70: Amador | B70: 2017 | C70: Amador_2017 | D70: 482.241483
A71: Amador | B71: 2018 | C71: Amador_2018 | D71: 468.40038
A72: Amador | B72: 2019 | C72: Amador_2019 | D72: 454.4374404
A73: Amador | B73: 2020 | C73: Amador_2020 | D73: 440.6650455
A74: Amador | B74: 2021 | C74: Amador_2021 | D74: 426.4575866
A75: Amador | B75: 2022 | C75: Amador_2022 | D75: 412.3289447
A76: Amador | B76: 2023 | C76: Amador_2023 | D76: 398.3879506
A77: Amador | B77: 2024 | C77: Amador_2024 | D77: 384.6977457
A78: Amador | B78: 2025 | C78: Amador_2025 | D78: 371.360727
A79: Amador | B79: 2026 | C79: Amador_2026 | D79: 359.3149864
A80: Amador | B80: 2027 | C80: Amador_2027 | D80: 348.2603405
A81: Amador | B81: 2028 | C81: Amador_2028 | D81: 338.2619997
A82: Amador | B82: 2029 | C82: Amador_2029 | D82: 329.2514365
A83: Amador | B83: 2030 | C83: Amador_2030 | D83: 321.1551575
A84: Amador | B84: 2031 | C84: Amador_2031 | D84: 313.9790341
A85: Amador | B85: 2032 | C85: Amador_2032 | D85: 307.659156
A86: Amador | B86: 2033 | C86: Amador_2033 | D86: 302.1059823
A87: Amador | B87: 2034 | C87: Amador_2034 | D87: 297.2183446
A88: Amador | B88: 2035 | C88: Amador_2035 | D88: 292.9593587
A89: Amador | B89: 2036 | C89: Amador_2036 | D89: 289.2728349
A90: Amador | B90: 2037 | C90: Amador_2037 | D90: 286.1050461
A91: Amador | B91: 2038 | C91: Amador_2038 | D91: 283.3983965
A92: Amador | B92: 2039 | C92: Amador_2039 | D92: 281.0503649
A93: Amador | B93: 2040 | C93: Amador_2040 | D93: 279.0585639
A94: Amador | B94: 2041 | C94: Amador_2041 | D94: 277.3780595
A95: Amador | B95: 2042 | C95: Amador_2042 | D95: 275.8962678
A96: Amador | B96: 2043 | C96: Amador_2043 | D96: 274.6186777
A97: Amador | B97: 2044 | C97: Amador_2044 | D97: 273.4956971
A98: Amador | B98: 2045 | C98: Amador_2045 | D98: 272.4670701
A99: Amador | B99: 2046 | C99: Amador_2046 | D99: 271.5603029
A100: Amador | B100: 2047 | C100: Amador_2047 | D100: 270.77842
A101: Amador | B101: 2048 | C101: Amador_2048 | D101: 270.0980128
A102: Amador | B102: 2049 | C102: Amador_2049 | D102: 269.5211239
A103: Amador | B103: 2050 | C103: Amador_2050 | D103: 269.0011749
A104: Butte | B104: 2017 | C104: Butte_2017 | D104: 539.5871281
A105: Butte | B105: 2018 | C105: Butte_2018 | D105: 522.6314826
A106: Butte | B106: 2019 | C106: Butte_2019 | D106: 505.4686529
A107: Butte | B107: 2020 | C107: Butte_2020 | D107: 488.6851871
A108: Butte | B108: 2021 | C108: Butte_2021 | D108: 472.3052825
A109: Butte | B109: 2022 | C109: Butte_2022 | D109: 455.451377
A110: Butte | B110: 2023 | C110: Butte_2023 | D110: 438.9573758
A111: Butte | B111: 2024 | C111: Butte_2024 | D111: 422.9391838
A112: Butte | B112: 2025 | C112: Butte_2025 | D112: 407.4743446
A113: Butte | B113: 2026 | C113: Butte_2026 | D113: 393.5601882
A114: Butte | B114: 2027 | C114: Butte_2027 | D114: 380.9052806
A115: Butte | B115: 2028 | C115: Butte_2028 | D115: 369.5656119
A116: Butte | B116: 2029 | C116: Butte_2029 | D116: 359.4051928
A117: Butte | B117: 2030 | C117: Butte_2030 | D117: 350.3789908
A118: Butte | B118: 2031 | C118: Butte_2031 | D118: 342.3942336
A119: Butte | B119: 2032 | C119: Butte_2032 | D119: 335.4132633
A120: Butte | B120: 2033 | C120: Butte_2033 | D120: 329.314521
A121: Butte | B121: 2034 | C121: Butte_2034 | D121: 323.9988262
A122: Butte | B122: 2035 | C122: Butte_2035 | D122: 319.431456
A123: Butte | B123: 2036 | C123: Butte_2036 | D123: 315.5303131
A124: Butte | B124: 2037 | C124: Butte_2037 | D124: 312.2474563
A125: Butte | B125: 2038 | C125: Butte_2038 | D125: 309.518679
A126: Butte | B126: 2039 | C126: Butte_2039 | D126: 307.2090617
A127: Butte | B127: 2040 | C127: Butte_2040 | D127: 305.3103507
A128: Butte | B128: 2041 | C128: Butte_2041 | D128: 303.7546476
A129: Butte | B129: 2042 | C129: Butte_2042 | D129: 302.4415544
A130: Butte | B130: 2043 | C130: Butte_2043 | D130: 301.3524041
A131: Butte | B131: 2044 | C131: =CONCATENATE(A131,"_",B131) -> Butte_2044 | D131: 300.4277997
A132: Butte | B132: 2045 | C132: Butte_2045 | D132: 299.6452583
A133: Butte | B133: 2046 | C133: Butte_2046 | D133: 298.9751325
A134: Butte | B134: 2047 | C134: Butte_2047 | D134: 298.4030689
A135: Butte | B135: 2048 | C135: Butte_2048 | D135: 297.9280862
A136: Butte | B136: 2049 | C136: Butte_2049 | D136: 297.5128364
A137: Butte | B137: 2050 | C137: Butte_2050 | D137: 297.1578218
A138: Calaveras | B138: 2017 | C138: Calaveras_2017 | D138: 530.8751168
A139: Calaveras | B139: 2018 | C139: Calaveras_2018 | D139: 515.1985839
A140: Calaveras | B140: 2019 | C140: Calaveras_2019 | D140: 499.7589206
A141: Calaveras | B141: 2020 | C141: Calaveras_2020 | D141: 484.6754257
A142: Calaveras | B142: 2021 | C142: Calaveras_2021 | D142: 469.1615988
A143: Calaveras | B143: 2022 | C143: Calaveras_2022 | D143: 453.8541473
A144: Calaveras | B144: 2023 | C144: Calaveras_2023 | D144: 438.7384694
A145: Calaveras | B145: 2024 | C145: Calaveras_2024 | D145: 423.8777292
A146: Calaveras | B146: 2025 | C146: Calaveras_2025 | D146: 409.3936194
A147: Calaveras | B147: 2026 | C147: Calaveras_2026 | D147: 396.340672
A148: Calaveras | B148: 2027 | C148: Calaveras_2027 | D148: 384.3757662
A149: Calaveras | B149: 2028 | C149: Calaveras_2028 | D149: 373.5739522
A150: Calaveras | B150: 2029 | C150: Calaveras_2029 | D150: 363.8396687
A151: Calaveras | B151: 2030 | C151: Calaveras_2030 | D151: 355.0948703
A152: Calaveras | B152: 2031 | C152: Calaveras_2031 | D152: 347.2627838
A153: Calaveras | B153: 2032 | C153: Calaveras_2032 | D153: 340.3283802
A154: Calaveras | B154: 2033 | C154: Calaveras_2033 | D154: 334.2201731
A155: Calaveras | B155: 2034 | C155: Calaveras_2034 | D155: 328.8142086
A156: Calaveras | B156: 2035 | C156: Calaveras_2035 | D156: 324.0949257
A157: Calaveras | B157: 2036 | C157: Calaveras_2036 | D157: 319.9965843
A158: Calaveras | B158: 2037 | C158: Calaveras_2037 | D158: 316.466024
A159: Calaveras | B159: 2038 | C159: Calaveras_2038 | D159: 313.434347
A160: Calaveras | B160: 2039 | C160: Calaveras_2039 | D160: 310.802312
A161: Calaveras | B161: 2040 | C161: Calaveras_2040 | D161: 308.5412695
A162: Calaveras | B162: 2041 | C162: Calaveras_2041 | D162: 306.6369916
A163: Calaveras | B163: 2042 | C163: Calaveras_2042 | D163: 304.9738904
A164: Calaveras | B164: 2043 | C164: Calaveras_2043 | D164: 303.5515271
A165: Calaveras | B165: 2044 | C165: Calaveras_2044 | D165: 302.2999233
A166: Calaveras | B166: 2045 | C166: Calaveras_2045 | D166: 301.1834641
A167: Calaveras | B167: 2046 | C167: Calaveras_2046 | D167: 300.1953837
A168: Calaveras | B168: 2047 | C168: Calaveras_2047 | D168: 299.3533521
A169: Calaveras | B169: 2048 | C169: Calaveras_2048 | D169: 298.63776
A170: Calaveras | B170: 2049 | C170: Calaveras_2049 | D170: 298.0367263
A171: Calaveras | B171: 2050 | C171: Calaveras_2050 | D171: 297.4915169
A172: Colusa | B172: 2017 | C172: Colusa _2017 | D172: 516.2769576
A173: Colusa | B173: 2018 | C173: Colusa _2018 | D173: 500.0793802
A174: Colusa | B174: 2019 | C174: Colusa _2019 | D174: 484.1373577
A175: Colusa | B175: 2020 | C175: Colusa _2020 | D175: 468.7529588
A176: Colusa | B176: 2021 | C176: Colusa _2021 | D176: 452.9784092
A177: Colusa | B177: 2022 | C177: Colusa _2022 | D177: 437.5306938
A178: Colusa | B178: 2023 | C178: Colusa _2023 | D178: 422.3771541
A179: Colusa | B179: 2024 | C179: Colusa _2024 | D179: 407.5578397
A180: Colusa | B180: 2025 | C180: Colusa _2025 | D180: 393.0872987
A181: Colusa | B181: 2026 | C181: Colusa _2026 | D181: 380.2925176
A182: Colusa | B182: 2027 | C182: Colusa _2027 | D182: 368.8264078
A183: Colusa | B183: 2028 | C183: Colusa _2028 | D183: 358.6576212
A184: Colusa | B184: 2029 | C184: Colusa _2029 | D184: 349.6496761
A185: Colusa | B185: 2030 | C185: Colusa _2030 | D185: 341.691629
A186: Colusa | B186: 2031 | C186: Colusa _2031 | D186: 334.69941
A187: Colusa | B187: 2032 | C187: Colusa _2032 | D187: 328.5881821
A188: Colusa | B188: 2033 | C188: Colusa _2033 | D188: 323.274925
A189: Colusa | B189: 2034 | C189: Colusa _2034 | D189: 318.6675951
A190: Colusa | B190: 2035 | C190: Colusa _2035 | D190: 314.7238767
A191: Colusa | B191: 2036 | C191: Colusa _2036 | D191: 311.3683036
A192: Colusa | B192: 2037 | C192: Colusa _2037 | D192: 308.546949
A193: Colusa | B193: 2038 | C193: Colusa _2038 | D193: 306.1932762
A194: Colusa | B194: 2039 | C194: Colusa _2039 | D194: 304.2345198
A195: Colusa | B195: 2040 | C195: =CONCATENATE(A195,"_",B195) -> Colusa _2040 | D195: 302.6182163
A196: Colusa | B196: 2041 | C196: Colusa _2041 | D196: 301.3068926
A197: Colusa | B197: 2042 | C197: Colusa _2042 | D197: 300.2136324
A198: Colusa | B198: 2043 | C198: Colusa _2043 | D198: 299.3174296
A199: Colusa | B199: 2044 | C199: Colusa _2044 | D199: 516.2745545
A200: Colusa | B200: 2045 | C200: Colusa _2045 | D200: 297.9165323
... 2283 more rows

Sheet Auto C&T EF (hidden)
D2: Criteria | H2: Toxics
A3: Region | B3: CalYr | C3: Ryr | D3: Weighted ROG (g/mile) | E3: Weighted NOx (g/mile) | F3: Weighted PM10 (g/mile) | G3: Weighted PM2.5 (g/mile) | H3: Weighted DSL PM10 (g/mile) | I3: Weighted DSL PM2.5 (g/mile)
A4: Alameda | B4: 2015 | C4: =CONCATENATE(A4,"_",B4) -> Alameda_2015 | D4: 0.04058830524 | E4: 0.1704862255 | F4: 0.002169163856 | G4: 0.002006518434 | H4: 0.02987021095 | I4: 0.02857803885
A5: Alameda | B5: 2016 | C5: =CONCATENATE(A5,"_",B5) -> Alameda_2016 | D5: 0.03460286795 | E5: 0.1501694431 | F5: 0.002068852581 | G5: 0.001912460653 | H5: 0.0251786702 | I5: 0.02408945207
A6: Alameda | B6: 2017 | C6: Alameda_2017 | D6: 0.02901708953 | E6: 0.1318323233 | F6: 0.002004904336 | G6: 0.00185196873 | H6: 0.02156929014 | I6: 0.0206362122
A7: Alameda | B7: 2018 | C7: Alameda_2018 | D7: 0.02427830435 | E7: 0.1159741111 | F7: 0.001972975652 | G7: 0.00182121259 | H7: 0.01875939222 | I7: 0.01794786922
A8: Alameda | B8: 2019 | C8: Alameda_2019 | D8: 0.02070903003 | E8: 0.1027186753 | F8: 0.00195953068 | G8: 0.001807804128 | H8: 0.01641346577 | I8: 0.01570342651
A9: Alameda | B9: 2020 | C9: Alameda_2020 | D9: 0.01838408399 | E9: 0.09180938323 | F9: 0.001937199429 | G9: 0.001786693005 | H9: 0.01448169229 | I9: 0.01385522069
A10: Alameda | B10: 2021 | C10: Alameda_2021 | D10: 0.01637956916 | E10: 0.08239168836 | F10: 0.001898501073 | G10: 0.001750487031 | H10: 0.01256818288 | I10: 0.01202448886
A11: Alameda | B11: 2022 | C11: Alameda_2022 | D11: 0.01441167494 | E11: 0.07403685715 | F11: 0.001869115078 | G11: 0.001722826601 | H11: 0.01090546531 | I11: 0.0104336997
A12: Alameda | B12: 2023 | C12: Alameda_2023 | D12: 0.01305851893 | E12: 0.06716535333 | F12: 0.001846835102 | G12: 0.001701799274 | H12: 0.009305505712 | I12: 0.008902953654
A13: Alameda | B13: 2024 | C13: Alameda_2024 | D13: 0.01184212561 | E13: 0.06111001622 | F13: 0.001825776735 | G13: 0.001681792646 | H13: 0.007569310974 | I13: 0.007241865932
A14: Alameda | B14: 2025 | C14: Alameda_2025 | D14: 0.01085545995 | E14: 0.05608031991 | F14: 0.001816430921 | G14: 0.001672786592 | H14: 0.006433438034 | I14: 0.006155130353
A15: Alameda | B15: 2026 | C15: Alameda_2026 | D15: 0.01001631043 | E15: 0.05184124783 | F15: 0.00177672147 | G15: 0.001635872788 | H15: 0.005168682497 | I15: 0.00494508758
A16: Alameda | B16: 2027 | C16: Alameda_2027 | D16: 0.009255560801 | E16: 0.04805524012 | F16: 0.001696014257 | G16: 0.001561183457 | H16: 0.00416576779 | I16: 0.00398555852
A17: Alameda | B17: 2028 | C17: Alameda_2028 | D17: 0.008582598592 | E17: 0.04471618795 | F17: 0.001582739482 | G17: 0.001456653973 | H17: 0.003239985428 | I17: 0.003099825093
A18: Alameda | B18: 2029 | C18: Alameda_2029 | D18: 0.007960984873 | E18: 0.04169467961 | F18: 0.001482679428 | G18: 0.001364415418 | H18: 0.002661105503 | I18: 0.002545987257
A19: Alameda | B19: 2030 | C19: Alameda_2030 | D19: 0.007418957375 | E19: 0.03904413838 | F19: 0.001391002333 | G19: 0.001279922148 | H19: 0.002181452144 | I19: 0.00208708349
A20: Alameda | B20: 2031 | C20: Alameda_2031 | D20: 0.006927503959 | E20: 0.03665321682 | F20: 0.001306832136 | G20: 0.001202437278 | H20: 0.001952058922 | I20: 0.001867613717
A21: Alameda | B21: 2032 | C21: Alameda_2032 | D21: 0.006490585924 | E21: 0.03455938576 | F21: 0.00122763578 | G21: 0.00112951883 | H21: 0.001712416582 | I21: 0.001638338199
A22: Alameda | B22: 2033 | C22: Alameda_2033 | D22: 0.006103699455 | E22: 0.03272002534 | F22: 0.001154749398 | G22: 0.001062447103 | H22: 0.001577898826 | I22: 0.001509639622
A23: Alameda | B23: 2034 | C23: Alameda_2034 | D23: 0.005750896729 | E23: 0.03110084342 | F23: 0.001086701836 | G23: 0.0009998298658 | H23: 0.001457910373 | I23: 0.001394841815
A24: Alameda | B24: 2035 | C24: Alameda_2035 | D24: 0.005432934907 | E24: 0.02969363137 | F24: 0.001023439027 | G24: 0.0009416179832 | H24: 0.001353167704 | I24: 0.001294630269
A25: Alameda | B25: 2036 | C25: Alameda_2036 | D25: 0.005157987869 | E25: 0.02849412692 | F25: 0.0009682876174 | G25: 0.0008908692367 | H25: 0.001261153393 | I25: 0.001206596455
A26: Alameda | B26: 2037 | C26: Alameda_2037 | D26: 0.004925836178 | E26: 0.02746969051 | F26: 0.0009187294511 | G26: 0.0008452688681 | H26: 0.001182836354 | I26: 0.001131667377
A27: Alameda | B27: 2038 | C27: Alameda_2038 | D27: 0.00473109141 | E27: 0.02658258121 | F27: 0.000874497765 | G27: 0.000804572766 | H27: 0.001120442706 | I27: 0.001071972851
A28: Alameda | B28: 2039 | C28: Alameda_2039 | D28: 0.004567989601 | E28: 0.0257991569 | F28: 0.000835112327 | G28: 0.0007683371859 | H28: 0.001068848867 | I28: 0.001022610939
A29: Alameda | B29: 2040 | C29: Alameda_2040 | D29: 0.004432824109 | E29: 0.02514011266 | F29: 0.000800481102 | G29: 0.0007364760715 | H29: 0.001024776911 | I29: 0.0009804455158
A30: Alameda | B30: 2041 | C30: Alameda_2041 | D30: 0.00433121056 | E30: 0.02464402947 | F30: 0.0007730489409 | G30: 0.0007112381507 | H30: 0.0009898197736 | I30: 0.0009470006083
A31: Alameda | B31: 2042 | C31: Alameda_2042 | D31: 0.004236518751 | E31: 0.02415755278 | F31: 0.0007497724342 | G31: 0.0006898242547 | H31: 0.0009618692254 | I31: 0.0009202591885
A32: Alameda | B32: 2043 | C32: Alameda_2043 | D32: 0.004157660489 | E32: 0.02375045311 | F32: 0.0007303652628 | G32: 0.0006719704729 | H32: 0.0009394697102 | I32: 0.0008988286664
A33: Alameda | B33: 2044 | C33: Alameda_2044 | D33: 0.004087265127 | E33: 0.02338026724 | F33: 0.0007143139051 | G33: 0.0006572044968 | H33: 0.0009221828472 | I33: 0.0008822896255
A34: Alameda | B34: 2045 | C34: Alameda_2045 | D34: 0.004029255007 | E34: 0.02308358589 | F34: 0.000701152199 | G34: 0.0006450963227 | H34: 0.0009069716307 | I34: 0.0008677364395
A35: Alameda | B35: 2046 | C35: Alameda_2046 | D35: 0.003979496755 | E35: 0.02284112166 | F35: 0.0006905317804 | G35: 0.0006353266684 | H35: 0.0008960201315 | I35: 0.0008572586973
A36: Alameda | B36: 2047 | C36: Alameda_2047 | D36: 0.003933062135 | E36: 0.02260896817 | F36: 0.0006819952563 | G36: 0.0006274734606 | H36: 0.0008860201762 | I36: 0.0008476913356
A37: Alameda | B37: 2048 | C37: Alameda_2048 | D37: 0.003896054108 | E37: 0.02241559935 | F37: 0.0006752763314 | G37: 0.0006212921114 | H37: 0.0008775507923 | I37: 0.0008395883335
A38: Alameda | B38: 2049 | C38: Alameda_2049 | D38: 0.003881543123 | E38: 0.02236347839 | F38: 0.0006710888762 | G38: 0.0006174394715 | H38: 0.0008715846956 | I38: 0.0008338803275
A39: Alameda | B39: 2050 | C39: Alameda_2050 | D39: 0.00386974986 | E39: 0.02232243515 | F39: 0.0006678705372 | G39: 0.000614478077 | H39: 0.0008660731176 | I39: 0.0008286071779
A40: Alpine | B40: 2015 | C40: Alpine_2015 | D40: 0.05981787807 | E40: 0.2861583096 | F40: 0.0021509549 | G40: 0.001988999922 | H40: 0.02444154991 | I40: 0.02338421928
A41: Alpine | B41: 2016 | C41: Alpine_2016 | D41: 0.05064896464 | E41: 0.2515487564 | F41: 0.002051428038 | G41: 0.001895614651 | H41: 0.02053775529 | I41: 0.01964930109
A42: Alpine | B42: 2017 | C42: Alpine_2017 | D42: 0.04242008772 | E42: 0.2205430468 | F42: 0.001989031673 | G42: 0.001836568127 | H42: 0.01754894731 | I42: 0.01678978761
A43: Alpine | B43: 2018 | C43: Alpine_2018 | D43: 0.03540867356 | E43: 0.1934802803 | F43: 0.001949802856 | G43: 0.001798872992 | H43: 0.014576832 | I43: 0.0139462447
A44: Alpine | B44: 2019 | C44: Alpine_2019 | D44: 0.02994821413 | E44: 0.1705327056 | F44: 0.001934608071 | G44: 0.001783904976 | H44: 0.01288979872 | I44: 0.01233219173
A45: Alpine | B45: 2020 | C45: Alpine_2020 | D45: 0.02626378252 | E45: 0.1515116422 | F45: 0.001910258665 | G45: 0.001761009702 | H45: 0.01150339431 | I45: 0.01100576256
A46: Alpine | B46: 2021 | C46: Alpine_2021 | D46: 0.02271759609 | E46: 0.1346126991 | F46: 0.001866897625 | G46: 0.00172055615 | H46: 0.01006324252 | I46: 0.009627911104
A47: Alpine | B47: 2022 | C47: Alpine_2022 | D47: 0.01958400182 | E47: 0.1201716286 | F47: 0.001832667158 | G47: 0.001688545124 | H47: 0.008848824517 | I47: 0.008466028285
A48: Alpine | B48: 2023 | C48: Alpine_2023 | D48: 0.01746155392 | E48: 0.1081666502 | F48: 0.001805086208 | G48: 0.001662766023 | H48: 0.007666011061 | I48: 0.007334382816
A49: Alpine | B49: 2024 | C49: Alpine_2024 | D49: 0.01562872698 | E49: 0.09787947546 | F49: 0.001780730534 | G49: 0.00163988277 | H49: 0.006373049257 | I49: 0.006097353967
A50: Alpine | B50: 2025 | C50: Alpine_2025 | D50: 0.01423778988 | E50: 0.08950125697 | F50: 0.001768332424 | G50: 0.001628176132 | H50: 0.005520382271 | I50: 0.005281572977
A51: Alpine | B51: 2026 | C51: Alpine_2026 | D51: 0.01301154136 | E51: 0.08237190686 | F51: 0.001727759263 | G51: 0.001590547724 | H51: 0.004474155407 | I51: 0.004280605424
A52: Alpine | B52: 2027 | C52: Alpine_2027 | D52: 0.01194936069 | E52: 0.07607237798 | F52: 0.001649379007 | G52: 0.001518124558 | H52: 0.003760358678 | I52: 0.003597687226
A53: Alpine | B53: 2028 | C53: Alpine_2028 | D53: 0.01099307075 | E53: 0.07042749657 | F53: 0.001538913277 | G53: 0.001416272464 | H53: 0.003056840902 | I53: 0.002924603317
A54: Alpine | B54: 2029 | C54: Alpine_2029 | D54: 0.01009322448 | E54: 0.06528638498 | F54: 0.001438621141 | G54: 0.001323857356 | H54: 0.002562499851 | I54: 0.002451647242
A55: Alpine | B55: 2030 | C55: Alpine_2030 | D55: 0.009341187861 | E55: 0.06070185719 | F55: 0.001347700365 | G55: 0.001240095036 | H55: 0.002163211717 | I55: 0.002069632135
A56: Alpine | B56: 2031 | C56: Alpine_2031 | D56: 0.008643001136 | E56: 0.05644549395 | F56: 0.001264364263 | G56: 0.001163383331 | H56: 0.001947234844 | I56: 0.001862998327
A57: Alpine | B57: 2032 | C57: Alpine_2032 | D57: 0.008016325393 | E57: 0.05267041717 | F57: 0.001186567747 | G57: 0.001091758916 | H57: 0.001722272417 | I57: 0.001647767675
A58: Alpine | B58: 2033 | C58: Alpine_2033 | D58: 0.007458422879 | E58: 0.04932997402 | F58: 0.001115173505 | G58: 0.001026059806 | H58: 0.001588781168 | I58: 0.001520051198
A59: Alpine | B59: 2034 | C59: Alpine_2034 | D59: 0.006922878126 | E59: 0.04627961369 | F59: 0.001048125408 | G59: 0.0009643620828 | H59: 0.001469492234 | I59: 0.001405922651
A60: Alpine | B60: 2035 | C60: Alpine_2035 | D60: 0.006456159273 | E60: 0.04372640154 | F60: 0.0009869314103 | G60: 0.000908052915 | H60: 0.001365546789 | I60: 0.001306473839
A61: Alpine | B61: 2036 | C61: Alpine_2036 | D61: 0.006029599165 | E61: 0.0413931673 | F61: 0.000933283945 | G61: 0.0008586863876 | H61: 0.001271933432 | I61: 0.001216910155
A62: Alpine | B62: 2037 | C62: Alpine_2037 | D62: 0.005671484906 | E62: 0.03940887222 | F62: 0.0008853646848 | G62: 0.0008145933837 | H62: 0.001194452041 | I62: 0.001142780574
A63: Alpine | B63: 2038 | C63: Alpine_2038 | D63: 0.005368206485 | E63: 0.03764679363 | F63: 0.0008425963806 | G63: 0.0007752432601 | H63: 0.001132807501 | I63: 0.00108380275
A64: Alpine | B64: 2039 | C64: Alpine_2039 | D64: 0.005114116827 | E64: 0.03607568768 | F64: 0.0008045210128 | G64: 0.0007402121866 | H64: 0.001080916075 | I64: 0.001034156124
A65: Alpine | B65: 2040 | C65: Alpine_2040 | D65: 0.004914902117 | E65: 0.03482901531 | F65: 0.0007713609405 | G65: 0.0007097042004 | H65: 0.001037721672 | I65: 0.000992830292
A66: Alpine | B66: 2041 | C66: Alpine_2041 | D66: 0.004777118048 | E66: 0.03390645998 | F66: 0.0007452296665 | G66: 0.0006856624457 | H66: 0.00100278089 | I66: 0.0009594010325
A67: Alpine | B67: 2042 | C67: Alpine_2042 | D67: 0.004650213749 | E67: 0.03301837526 | F67: 0.0007230097996 | G67: 0.0006652199866 | H67: 0.0009745208554 | I67: 0.0009323635146
A68: Alpine | B68: 2043 | C68: Alpine_2043 | D68: 0.004548259196 | E68: 0.03229303011 | F68: 0.0007044595364 | G68: 0.0006481536429 | H68: 0.0009510533769 | I68: 0.0009099112288
A69: Alpine | B69: 2044 | C69: =CONCATENATE(A69,"_",B69) -> Alpine_2044 | D69: 0.004457588805 | E69: 0.03161936423 | F69: 0.0006890515191 | G69: 0.000633978968 | H69: 0.0009332272187 | I69: 0.0008928562224
A70: Alpine | B70: 2045 | C70: Alpine_2045 | D70: 0.004383783587 | E70: 0.03105984826 | F70: 0.0006764077544 | G70: 0.0006223474134 | H70: 0.0009188062567 | I70: 0.0008790591047
A71: Alpine | B71: 2046 | C71: Alpine_2046 | D71: 0.004322978046 | E71: 0.03059878328 | F71: 0.0006661665085 | G71: 0.0006129261269 | H71: 0.000907239372 | I71: 0.0008679925984
A72: Alpine | B72: 2047 | C72: Alpine_2047 | D72: 0.0042654634 | E72: 0.03015003675 | F72: 0.0006578494829 | G72: 0.0006052751392 | H72: 0.0008980611275 | I72: 0.0008592114006
A73: Alpine | B73: 2048 | C73: Alpine_2048 | D73: 0.004222005385 | E73: 0.02979921125 | F73: 0.0006513118008 | G73: 0.0005992607027 | H73: 0.0008901681244 | I73: 0.0008516598454
A74: Alpine | B74: 2049 | C74: Alpine_2049 | D74: 0.004203414229 | E74: 0.0296964391 | F74: 0.0006471582234 | G74: 0.0005954393619 | H74: 0.0008845152067 | I74: 0.0008462514704
A75: Alpine | B75: 2050 | C75: Alpine_2050 | D75: 0.004188316174 | E75: 0.02961556971 | F75: 0.0006439206499 | G75: 0.0005924605155 | H75: 0.0008795021399 | I75: 0.0008414552666
A76: Amador | B76: 2015 | C76: Amador_2015 | D76: 0.07484105979 | E76: 0.3551862533 | F76: 0.002369466106 | G76: 0.002192497592 | H76: 0.0276239925 | I76: 0.02642899082
A77: Amador | B77: 2016 | C77: Amador_2016 | D77: 0.06477127658 | E77: 0.3184023437 | F77: 0.002216962721 | G77: 0.002050076739 | H77: 0.02374389414 | I77: 0.02271674379
A78: Amador | B78: 2017 | C78: Amador_2017 | D78: 0.05457702174 | E78: 0.2830014314 | F78: 0.002088758519 | G78: 0.001929828971 | H78: 0.02051694451 | I78: 0.01962939057
A79: Amador | B79: 2018 | C79: Amador_2018 | D79: 0.04637769325 | E79: 0.2515555296 | F79: 0.001998860791 | G79: 0.001845421831 | H79: 0.01790666471 | I79: 0.01713203032
A80: Amador | B80: 2019 | C80: Amador_2019 | D80: 0.0396162969 | E80: 0.223800034 | F80: 0.001929831559 | G80: 0.001780514545 | H80: 0.01556372455 | I80: 0.01489044471
A81: Amador | B81: 2020 | C81: Amador_2020 | D81: 0.03474483476 | E81: 0.1997962863 | F81: 0.001867521134 | G81: 0.001722542563 | H81: 0.01380050854 | I81: 0.01320350465
A82: Amador | B82: 2021 | C82: Amador_2021 | D82: 0.03054403227 | E82: 0.1782176262 | F82: 0.001797415463 | G82: 0.001657499376 | H82: 0.01218891326 | I82: 0.01166162627
A83: Amador | B83: 2022 | C83: Amador_2022 | D83: 0.02628657639 | E83: 0.1586461537 | F83: 0.001731074692 | G83: 0.001595739685 | H83: 0.01051204639 | I83: 0.01005729992
A84: Amador | B84: 2023 | C84: Amador_2023 | D84: 0.02315970177 | E84: 0.1420048331 | F84: 0.00166768285 | G84: 0.001536750954 | H84: 0.008608115561 | I84: 0.008235732292
A85: Amador | B85: 2024 | C85: Amador_2024 | D85: 0.02038248343 | E85: 0.1273920799 | F85: 0.001614219614 | G85: 0.00148710286 | H85: 0.007341806617 | I85: 0.007024203312
A86: Amador | B86: 2025 | C86: Amador_2025 | D86: 0.0184028204 | E86: 0.115675981 | F86: 0.00158173693 | G86: 0.001456874507 | H86: 0.006315170651 | I86: 0.006041979164
A87: Amador | B87: 2026 | C87: Amador_2026 | D87: 0.01669884806 | E87: 0.1056529871 | F87: 0.00154129218 | G87: 0.001419454934 | H87: 0.005462157937 | I87: 0.005225867403
A88: Amador | B88: 2027 | C88: Amador_2027 | D88: 0.01513109535 | E88: 0.09642078484 | F88: 0.001467874469 | G88: 0.001351432766 | H88: 0.004293463795 | I88: 0.004107730452
A89: Amador | B89: 2028 | C89: Amador_2028 | D89: 0.0137262356 | E89: 0.08805512211 | F89: 0.001373857358 | G89: 0.001264620445 | H89: 0.003362508199 | I89: 0.003217047583
A90: Amador | B90: 2029 | C90: Amador_2029 | D90: 0.01235326279 | E90: 0.08024099219 | F90: 0.001283860176 | G90: 0.001181641306 | H90: 0.002780827031 | I90: 0.002660529684
A91: Amador | B91: 2030 | C91: Amador_2030 | D91: 0.01117635577 | E91: 0.07296536492 | F91: 0.001196953213 | G91: 0.001101536723 | H91: 0.002292711887 | I91: 0.002193530185
A92: Amador | B92: 2031 | C92: Amador_2031 | D92: 0.01016634947 | E92: 0.06656210012 | F92: 0.001118964227 | G92: 0.001029742858 | H92: 0.002071803965 | I92: 0.001982178642
A93: Amador | B93: 2032 | C93: Amador_2032 | D93: 0.009280209855 | E93: 0.06099241986 | F93: 0.001045640826 | G93: 0.000962225385 | H93: 0.001827336742 | I93: 0.001748286963
A94: Amador | B94: 2033 | C94: Amador_2033 | D94: 0.008478842285 | E94: 0.05598589142 | F94: 0.0009779794493 | G94: 0.0008999573161 | H94: 0.001686246453 | I94: 0.001613300177
A95: Amador | B95: 2034 | C95: Amador_2034 | D95: 0.00771505005 | E95: 0.05149143345 | F95: 0.0009139419078 | G95: 0.0008410098676 | H95: 0.001523413035 | I95: 0.001457510861
A96: Amador | B96: 2035 | C96: Amador_2035 | D96: 0.007027537544 | E96: 0.04761481043 | F96: 0.0008560067987 | G96: 0.0007876983637 | H96: 0.001419691361 | I96: 0.001358276141
